{"text_format":"3","workbook":"xlsx","n_sheets":6,"sheets":["note","salaries","salariesHourly","salariesbyPosition","positionsSummaryLibraries","positionsSummaryState"],"read":"whole","date_system":"1900"}

{"sheet":"note","index":0,"n_rows":27,"n_cols":2,"rows_kept":27,"merged":[[22,1,22,6],[23,1,23,6],[24,1,24,6],[25,1,25,6],[26,1,26,6],[27,1,27,6]]}
{"$rows_empty":22}
[null,"Salaries"]
[null,"Salaries - hourly and annual"]
[null,"Salaries sorted by position"]
[null,"Salary Positions (total) by Library"]
[null,"Salary Summary (statewide) by Position"]

{"sheet":"salaries","index":1,"n_rows":793,"n_cols":13,"rows_kept":793}
["2b. City/Town File #","8. City","1. Library ID","Location","160. Job Category","161. Number of Staff","162. Official Title(s) at Library","163. Hourly Rate","163a. Annual Salary","164. Hours Worked per Week","165. MLS?","MLS Total","MLS Hours"]
["1","BARRINGTON","BAR","BARRINGTON PUBLIC LIBRARY","16",34,"16",{"v":11.75667,"d":"$11.76"},{"v":53107.69231,"d":"$53,108"},{"v":30.6875,"d":"30.7"},{"$f":"SUM(L3:L18)","v":6},{"$f":"SUM(M3:M18)","v":210}]
["1","BARRINGTON","BAR","BARRINGTON PUBLIC LIBRARY","Director",1,"Library Director","",{"v":86976,"d":"$86,976"},35,"Yes",{"$f":"IF(K3=\"yes\",F3,0)","v":1},{"$f":"IF(K3=\"YES\",J3,0)","v":35}]
["1","BARRINGTON","BAR","BARRINGTON PUBLIC LIBRARY","Deputy/Associate/Assistant Director",1,"assistant director/head of children\\'s dept","",{"v":69206,"d":"$69,206"},35,"Yes",{"$f":"IF(K4=\"yes\",F4,0)","v":1},{"$f":"IF(K4=\"YES\",J4,0)","v":35}]
["1","BARRINGTON","BAR","BARRINGTON PUBLIC LIBRARY","Manager/Department Head",1,"head of technical services","",{"v":65299,"d":"$65,299"},35,"Yes",1,35]
["1","BARRINGTON","BAR","BARRINGTON PUBLIC LIBRARY","Manager/Department Head",1,"head of reference","",{"v":62920,"d":"$62,920"},35,"Yes",1,35]
["1","BARRINGTON","BAR","BARRINGTON PUBLIC LIBRARY","Childrens and/or Young Adult Services Librarian",1,"YA librarian","",{"v":51500,"d":"$51,500"},35,"Yes",1,35]
["1","BARRINGTON","BAR","BARRINGTON PUBLIC LIBRARY","Manager/Department Head",1,"community services librarian","",{"v":51500,"d":"$51,500"},35,"Yes",1,35]
["1","BARRINGTON","BAR","BARRINGTON PUBLIC LIBRARY","Library Associate",1,"Administrative assistant II","",{"v":48653,"d":"$48,653"},35,"No",0,0]
["1","BARRINGTON","BAR","BARRINGTON PUBLIC LIBRARY","Library Associate",3,"Library assistant I","",{"v":48653,"d":"$48,653"},35,"No",0,0]
["1","BARRINGTON","BAR","BARRINGTON PUBLIC LIBRARY","Library Associate",1,"Library assistant I","",{"v":43790,"d":"$43,790"},35,"No",0,0]
["1","BARRINGTON","BAR","BARRINGTON PUBLIC LIBRARY","Library Technician",1,"Library assistant II","",{"v":35921,"d":"$35,921"},35,"No",0,0]
["1","BARRINGTON","BAR","BARRINGTON PUBLIC LIBRARY","Library Technician",1,"Library assistant II","",{"v":34358,"d":"$34,358"},35,"No",0,0]
["1","BARRINGTON","BAR","BARRINGTON PUBLIC LIBRARY","Manager/Department Head",1,"Technology Coordinator","",{"v":50175,"d":"$50,175"},35,"No",0,0]
["1","BARRINGTON","BAR","BARRINGTON PUBLIC LIBRARY","Buildings/Ground Staff",1,"head custodian","",{"v":41449,"d":"$41,449"},35,"No",0,0]
["1","BARRINGTON","BAR","BARRINGTON PUBLIC LIBRARY","Library Associate",10,"Library assistant ",{"v":16.19,"d":"$16.19"},"",15,"No",0,0]
["1","BARRINGTON","BAR","BARRINGTON PUBLIC LIBRARY","Buildings/Ground Staff",3,"custodians",{"v":10.82,"d":"$10.82"},"",12,"No",0,0]
["1","BARRINGTON","BAR","BARRINGTON PUBLIC LIBRARY","Aide/Page",6,"pages",{"v":8.26,"d":"$8.26"},null,9,"No",0,0]
["2","BRISTOL","BRI","ROGERS FREE LIBRARY","9",23,"9",{"v":11.865,"d":"$11.87"},{"v":41699.85714,"d":"$41,700"},{"v":31,"d":"31.0"},{"$f":"SUM(L20:L28)","v":4},{"$f":"SUM(M20:M28)","v":105}]
["2","BRISTOL","BRI","ROGERS FREE LIBRARY","Director",1,"Director",{"v":0,"d":"$0.00"},{"v":63550,"d":"$63,550"},35,"Yes",1,35]
["2","BRISTOL","BRI","ROGERS FREE LIBRARY","Deputy/Associate/Assistant Director",1,"Asst. Director",{"v":0,"d":"$0.00"},{"v":44000,"d":"$44,000"},35,"No",0,0]
["2","BRISTOL","BRI","ROGERS FREE LIBRARY","Childrens and/or Young Adult Services Librarian",1,"Youth services librarian",{"v":0,"d":"$0.00"},{"v":42000,"d":"$42,000"},35,"Yes",1,35]
["2","BRISTOL","BRI","ROGERS FREE LIBRARY","Reference/Information Librarian",2,"Ref/info/outreach librarian",{"v":0,"d":"$0.00"},{"v":42000,"d":"$42,000"},35,"Yes",2,35]
["2","BRISTOL","BRI","ROGERS FREE LIBRARY","Library Associate",1,"Liby assoc/technology",{"v":0,"d":"$0.00"},{"v":37000,"d":"$37,000"},35,"No",0,0]
["2","BRISTOL","BRI","ROGERS FREE LIBRARY","Library Associate",1,"Circulation supervisor",{"v":0,"d":"$0.00"},{"v":32000,"d":"$32,000"},35,"No",0,0]
["2","BRISTOL","BRI","ROGERS FREE LIBRARY","Library Associate",13,"Circ associates",{"v":15.04,"d":"$15.04"},{"v":0,"d":"$0"},24,"No",0,0]
["2","BRISTOL","BRI","ROGERS FREE LIBRARY","Aide/Page",2,"Page",{"v":8.69,"d":"$8.69"},{"v":0,"d":"$0"},10,"No",0,0]
["2","BRISTOL","BRI","ROGERS FREE LIBRARY","Buildings/Ground Staff",1,"Custodian",{"v":0,"d":"$0.00"},{"v":31349,"d":"$31,349"},35,"No",0,0]
["3","BURRILLVILLE","BUR","JESSE M. SMITH MEMORIAL LIBRARY","18",19,"18",{"v":17.65222,"d":"$17.65"},{"v":0,"d":"$0"},25.5,{"$f":"SUM(L30:L47)","v":4},{"$f":"SUM(M30:M47)","v":124}]
["3","BURRILLVILLE","BUR","JESSE M. SMITH MEMORIAL LIBRARY","Buildings/Ground Staff",1,"Building and Grounds Supervisor",{"v":19.69,"d":"$19.69"},"",40,"No",0,0]
["3","BURRILLVILLE","BUR","JESSE M. SMITH MEMORIAL LIBRARY","Aide/Page",2,"Page",{"v":9,"d":"$9.00"},"",14,"No",0,0]
["3","BURRILLVILLE","BUR","JESSE M. SMITH MEMORIAL LIBRARY","Childrens and/or Young Adult Services Librarian",1,"Head Children\\'s Librarian",{"v":22.52,"d":"$22.52"},"",35,"Yes",1,35]
["3","BURRILLVILLE","BUR","JESSE M. SMITH MEMORIAL LIBRARY","Childrens and/or Young Adult Services Librarian",1,"Children\\'s Librarian",{"v":19.42,"d":"$19.42"},"",19,"Yes",1,19]
["3","BURRILLVILLE","BUR","JESSE M. SMITH MEMORIAL LIBRARY","Director",1,"Director",{"v":31.87,"d":"$31.87"},"",35,"Yes",1,35]
["3","BURRILLVILLE","BUR","JESSE M. SMITH MEMORIAL LIBRARY","Deputy/Associate/Assistant Director",1,"Assistant Director",{"v":26.43,"d":"$26.43"},"",35,"Yes",1,35]
["3","BURRILLVILLE","BUR","JESSE M. SMITH MEMORIAL LIBRARY","Library Associate",1,"Children\\'s Paraprofessional",{"v":13.99,"d":"$13.99"},"",18,"No",0,0]
["3","BURRILLVILLE","BUR","JESSE M. SMITH MEMORIAL LIBRARY","Library Associate",1,"Children\\'s Paraprofessional",{"v":15.17,"d":"$15.17"},"",18,"No",0,0]
["3","BURRILLVILLE","BUR","JESSE M. SMITH MEMORIAL LIBRARY","Library Associate",1,"Reference Paraprofessioanl",{"v":13.99,"d":"$13.99"},"",19.5,"No",0,0]
["3","BURRILLVILLE","BUR","JESSE M. SMITH MEMORIAL LIBRARY","Technical Services Librarian",1,"Head of Circulation",{"v":21.78,"d":"$21.78"},"",35,"No",0,0]
["3","BURRILLVILLE","BUR","JESSE M. SMITH MEMORIAL LIBRARY","Reference/Information Librarian",1,"Reference Specialist",{"v":21.78,"d":"$21.78"},"",35,"No",0,0]
["3","BURRILLVILLE","BUR","JESSE M. SMITH MEMORIAL LIBRARY","Library Technician",1,"Library Assistant (Circulation II)",{"v":11.42,"d":"$11.42"},"",14.5,"No",0,0]
["3","BURRILLVILLE","BUR","JESSE M. SMITH MEMORIAL LIBRARY","Library Technician",1,"Library Assistant (Circulation II)",{"v":12.68,"d":"$12.68"},"",18,"No",0,0]
["3","BURRILLVILLE","BUR","JESSE M. SMITH MEMORIAL LIBRARY","Library Technician",1,"Library Assistant (Circulation II)",{"v":12,"d":"$12.00"},"",14,"No",0,0]
["3","BURRILLVILLE","BUR","JESSE M. SMITH MEMORIAL LIBRARY","Library Associate",1,"Library Assistant (Circulation III)",{"v":13.46,"d":"$13.46"},"",19.5,"No",0,0]
["3","BURRILLVILLE","BUR","JESSE M. SMITH MEMORIAL LIBRARY","Library Technician",1,"Library Assistant (Circulation III)/Admin. Assistant",{"v":16.62,"d":"$16.62"},"",35,"No",0,0]
["3","BURRILLVILLE","BUR","JESSE M. SMITH MEMORIAL LIBRARY","Library Technician",1,"Library Assistant (Circulation III)",{"v":14.8,"d":"$14.80"},"",35,"No",0,0]
["3","BURRILLVILLE","BUR","JESSE M. SMITH MEMORIAL LIBRARY","Office Staff",1,"Technology Specialist/Admin. Assistant",{"v":21.12,"d":"$21.12"},"",19.5,"No",0,0]
["3","PASCOAG","PAS","PASCOAG FREE PUBLIC LIBRARY","8",8,"8",{"v":11.71333,"d":"$11.71"},{"v":8558.5,"d":"$8,559"},{"v":12.375,"d":"12.4"},{"$f":"SUM(L49:L56)","v":1},{"$f":"SUM(M49:M56)","v":26}]
["3","PASCOAG","PAS","PASCOAG FREE PUBLIC LIBRARY","Director",1,"Director",{"v":15.06,"d":"$15.06"},{"v":20361,"d":"$20,361"},26,"Yes",1,26]
["3","PASCOAG","PAS","PASCOAG FREE PUBLIC LIBRARY","Deputy/Associate/Assistant Director",1,"Library Manager",{"v":15.06,"d":"$15.06"},{"v":20361,"d":"$20,361"},26,"No",0,0]
["3","PASCOAG","PAS","PASCOAG FREE PUBLIC LIBRARY","Library Associate",1,"Cataloger",{"v":10.5,"d":"$10.50"},{"v":7644,"d":"$7,644"},14,"No",0,0]
["3","PASCOAG","PAS","PASCOAG FREE PUBLIC LIBRARY","Technical Services Librarian",1,"Library Technician",{"v":10.24,"d":"$10.24"},{"v":6502,"d":"$6,502"},11,"No",0,0]
["3","PASCOAG","PAS","PASCOAG FREE PUBLIC LIBRARY","Library Associate",1,"Library Assistant",{"v":9.18,"d":"$9.18"},{"v":5728,"d":"$5,728"},12,"No",0,0]
["3","PASCOAG","PAS","PASCOAG FREE PUBLIC LIBRARY","Library Associate",1,"Library Assistant",{"v":10.24,"d":"$10.24"},{"v":2520,"d":"$2,520"},3,"No",0,0]
["3","PASCOAG","PAS","PASCOAG FREE PUBLIC LIBRARY","Office Staff",1,"Bookkeeper","",{"v":2520,"d":"$2,520"},3,"No",0,0]
["3","PASCOAG","PAS","PASCOAG FREE PUBLIC LIBRARY","Buildings/Ground Staff",1,"Janitor","",{"v":2832,"d":"$2,832"},4,"No",0,0]
["4","CENTRAL FALLS","CFA","CENTRAL FALLS FREE PUBLIC LIBRARY","3",3,"3",{"v":9,"d":"$9.00"},{"v":50000,"d":"$50,000"},{"v":29,"d":"29.0"},{"$f":"SUM(L58:L60)","v":1},{"$f":"SUM(M58:M60)","v":40}]
["4","CENTRAL FALLS","CFA","CENTRAL FALLS FREE PUBLIC LIBRARY","Director",1,"Acting Director","",{"v":50000,"d":"$50,000"},40,"Yes",1,40]
["4","CENTRAL FALLS","CFA","CENTRAL FALLS FREE PUBLIC LIBRARY","Manager/Department Head",1,"Head of Circulation",{"v":9,"d":"$9.00"},"",22,"No",0,0]
["4","CENTRAL FALLS","CFA","CENTRAL FALLS FREE PUBLIC LIBRARY","Library Technician",1,"Library Aide",{"v":9,"d":"$9.00"},"",25,"No",0,0]
["5","CHARLESTOWN","CHA","CROSS' MILLS PUBLIC LIBRARY","13",13,"13",{"v":13.97364,"d":"$13.97"},{"v":54064,"d":"$54,064"},{"v":16.38462,"d":"16.4"},{"$f":"SUM(L62:L74)","v":4},{"$f":"SUM(M62:M74)","v":111.5}]
["5","CHARLESTOWN","CHA","CROSS' MILLS PUBLIC LIBRARY","Director",1,"Director","",{"v":66308,"d":"$66,308"},40,"Yes",1,40]
["5","CHARLESTOWN","CHA","CROSS' MILLS PUBLIC LIBRARY","Deputy/Associate/Assistant Director",1,"Assistant Director","",{"v":41820,"d":"$41,820"},35,"Yes",1,35]
["5","CHARLESTOWN","CHA","CROSS' MILLS PUBLIC LIBRARY","Library Associate",1,"Public Relations & Programming",{"v":14,"d":"$14.00"},"",28,"Yes",1,28]
["5","CHARLESTOWN","CHA","CROSS' MILLS PUBLIC LIBRARY","Technical Services Librarian",1,"Technical Librarian",{"v":20.51,"d":"$20.51"},"",8.5,"Yes",1,8.5]
["5","CHARLESTOWN","CHA","CROSS' MILLS PUBLIC LIBRARY","Library Associate",1,"Circulation Clerk",{"v":12,"d":"$12.00"},"",13,"No",0,0]
["5","CHARLESTOWN","CHA","CROSS' MILLS PUBLIC LIBRARY","Library Associate",1,"Circulation Clerk",{"v":12,"d":"$12.00"},"",17.5,"No",0,0]
["5","CHARLESTOWN","CHA","CROSS' MILLS PUBLIC LIBRARY","Library Associate",1,"Circulation Clerk",{"v":12.35,"d":"$12.35"},"",8,"No",{"$f":"IF(K68=\"yes\",F68,0)","v":0},{"$f":"IF(K68=\"YES\",J68,0)","v":0}]
["5","CHARLESTOWN","CHA","CROSS' MILLS PUBLIC LIBRARY","Manager/Department Head",1,"Musical Programming",{"v":17.58,"d":"$17.58"},"",10,"No",0,0]
["5","CHARLESTOWN","CHA","CROSS' MILLS PUBLIC LIBRARY","Library Associate",1,"Circulation Clerk",{"v":11,"d":"$11.00"},"",20,"No",0,0]
["5","CHARLESTOWN","CHA","CROSS' MILLS PUBLIC LIBRARY","Aide/Page",1,"Shelver",{"v":10,"d":"$10.00"},"",11,"No",0,0]
["5","CHARLESTOWN","CHA","CROSS' MILLS PUBLIC LIBRARY","Buildings/Ground Staff",1,"Maintenance",{"v":15.59,"d":"$15.59"},"",12,"No",0,0]
["5","CHARLESTOWN","CHA","CROSS' MILLS PUBLIC LIBRARY","Buildings/Ground Staff",1,"Custodian",{"v":20.18,"d":"$20.18"},"",4,"No",0,0]
["5","CHARLESTOWN","CHA","CROSS' MILLS PUBLIC LIBRARY","Aide/Page",1,"Shelver",{"v":8.5,"d":"$8.50"},"",6,"No",0,0]
["6","COVENTRY","COV","COVENTRY PUBLIC LIBRARY","16",31,"16",{"v":15.08429,"d":"$15.08"},{"v":44516.55556,"d":"$44,517"},{"v":24.28125,"d":"24.3"},{"$f":"SUM(L76:L91)","v":13},{"$f":"SUM(M76:M91)","v":228}]
["6","COVENTRY","COV","COVENTRY PUBLIC LIBRARY","Director",1,"Library Director","",{"v":71951,"d":"$71,951"},35,"Yes",1,35]
["6","COVENTRY","COV","COVENTRY PUBLIC LIBRARY","Deputy/Associate/Assistant Director",1,"Assistant Director","",{"v":58756,"d":"$58,756"},35,"Yes",1,35]
["6","COVENTRY","COV","COVENTRY PUBLIC LIBRARY","Manager/Department Head",1,"Adult Services","",{"v":49299,"d":"$49,299"},35,"Yes",1,35]
["6","COVENTRY","COV","COVENTRY PUBLIC LIBRARY","Manager/Department Head",1,"Youth Services","",{"v":59368,"d":"$59,368"},35,"Yes",1,35]
["6","COVENTRY","COV","COVENTRY PUBLIC LIBRARY","Manager/Department Head",1,"Technical Services","",{"v":54384,"d":"$54,384"},35,"Yes",1,35]
["6","COVENTRY","COV","COVENTRY PUBLIC LIBRARY","Manager/Department Head",1,"Circulation Manager","",{"v":46103,"d":"$46,103"},35,"No",0,0]
["6","COVENTRY","COV","COVENTRY PUBLIC LIBRARY","Buildings/Ground Staff",1,"Building Maintenance","",{"v":20901,"d":"$20,901"},20,"No",0,0]
["6","COVENTRY","COV","COVENTRY PUBLIC LIBRARY","Buildings/Ground Staff",1,"Custodian","",{"v":17913,"d":"$17,913"},20,"No",0,0]
["6","COVENTRY","COV","COVENTRY PUBLIC LIBRARY","Library Technician",1,"Technology Coordinator","",{"v":21974,"d":"$21,974"},17.5,"No",0,0]
["6","COVENTRY","COV","COVENTRY PUBLIC LIBRARY","Reference/Information Librarian",5,"Part-time Reference Librarians",{"v":19.26,"d":"$19.26"},"",15,"Yes",5,15]
["6","COVENTRY","COV","COVENTRY PUBLIC LIBRARY","Branch Librarian",1,"Part-time Branch Librarian",{"v":18.03,"d":"$18.03"},"",18,"Yes",1,18]
["6","COVENTRY","COV","COVENTRY PUBLIC LIBRARY","Childrens and/or Young Adult Services Librarian",2,"Part-time Youth Services Librarians",{"v":19.52,"d":"$19.52"},"",20,"Yes",2,20]
["6","COVENTRY","COV","COVENTRY PUBLIC LIBRARY","Library Technician",10,"Part-time Circulation/Youth Services Assistants",{"v":13.35,"d":"$13.35"},"",19,"No",0,0]
["6","COVENTRY","COV","COVENTRY PUBLIC LIBRARY","Library Technician",1,"Technical Assistant",{"v":11.91,"d":"$11.91"},"",19,"No",0,0]
["6","COVENTRY","COV","COVENTRY PUBLIC LIBRARY","Aide/Page",2,"Library Aides",{"v":11.76,"d":"$11.76"},"",15,"No",0,0]
["6","COVENTRY","COV","COVENTRY PUBLIC LIBRARY","Library Technician",1,"Homebound Coordinator",{"v":11.76,"d":"$11.76"},"",15,"No",0,0]
["7","CRANSTON","CRA","CRANSTON PUBLIC LIBRARY","64",93,"64",{"v":11.05128,"d":"$11.05"},{"v":50766.92,"d":"$50,767"},{"v":21.09375,"d":"21.1"},{"$f":"SUM(L93:L156)","v":24},{"$f":"SUM(M93:M156)","v":590.5}]
["7","CRANSTON","CRA","CRANSTON PUBLIC LIBRARY","Director",1,"Library Director","",{"v":89900,"d":"$89,900"},35,"Yes",1,35]
["7","CRANSTON","CRA","CRANSTON PUBLIC LIBRARY","Deputy/Associate/Assistant Director",1,"Assistant Library Director","",{"v":69000,"d":"$69,000"},35,"Yes",1,35]
["7","CRANSTON","CRA","CRANSTON PUBLIC LIBRARY","Manager/Department Head",1,"Coordinator of Adult Services","",{"v":74916,"d":"$74,916"},35,"Yes",1,35]
["7","CRANSTON","CRA","CRANSTON PUBLIC LIBRARY","Manager/Department Head",1,"Coordinator of youth Services","",{"v":62266,"d":"$62,266"},35,"Yes",1,35]
["7","CRANSTON","CRA","CRANSTON PUBLIC LIBRARY","Manager/Department Head",1,"Coordinator of Technical Services","",{"v":64923,"d":"$64,923"},35,"Yes",1,35]
["7","CRANSTON","CRA","CRANSTON PUBLIC LIBRARY","Branch Librarian",1,"Branch Librarian","",{"v":65582,"d":"$65,582"},35,"Yes",1,35]
["7","CRANSTON","CRA","CRANSTON PUBLIC LIBRARY","Childrens and/or Young Adult Services Librarian",1,"Head of Teen Services","",{"v":65582,"d":"$65,582"},35,"Yes",1,35]
["7","CRANSTON","CRA","CRANSTON PUBLIC LIBRARY","Childrens and/or Young Adult Services Librarian",2,"Youth Services Librarian","",{"v":55728,"d":"$55,728"},35,"Yes",2,35]
["7","CRANSTON","CRA","CRANSTON PUBLIC LIBRARY","Childrens and/or Young Adult Services Librarian",2,"Youth Services Librarian","",{"v":43184,"d":"$43,184"},35,"Yes",2,35]
["7","CRANSTON","CRA","CRANSTON PUBLIC LIBRARY","Reference/Information Librarian",1,"Information Services Librarian","",{"v":54714,"d":"$54,714"},35,"Yes",1,35]
["7","CRANSTON","CRA","CRANSTON PUBLIC LIBRARY","Reference/Information Librarian",1,"Information Services Librarian","",{"v":43184,"d":"$43,184"},35,"Yes",1,35]
["7","CRANSTON","CRA","CRANSTON PUBLIC LIBRARY","Reference/Information Librarian",1,"Information Services Librarian","",{"v":55223,"d":"$55,223"},35,"Yes",1,35]
["7","CRANSTON","CRA","CRANSTON PUBLIC LIBRARY","Branch Librarian",1,"Branch Librarian","",{"v":53689,"d":"$53,689"},35,"Yes",1,35]
["7","CRANSTON","CRA","CRANSTON PUBLIC LIBRARY","Branch Librarian",1,"Branch Librarian","",{"v":59691,"d":"$59,691"},35,"Yes",1,35]
["7","CRANSTON","CRA","CRANSTON PUBLIC LIBRARY","Branch Librarian",1,"Branch Librarian","",{"v":55728,"d":"$55,728"},35,"Yes",1,35]
["7","CRANSTON","CRA","CRANSTON PUBLIC LIBRARY","Manager/Department Head",1,"Head of Circulation","",{"v":44078,"d":"$44,078"},35,"No",0,0]
["7","CRANSTON","CRA","CRANSTON PUBLIC LIBRARY","Manager/Department Head",1,"Office Manager","",{"v":44078,"d":"$44,078"},35,"No",0,0]
["7","CRANSTON","CRA","CRANSTON PUBLIC LIBRARY","Buildings/Ground Staff",1,"Custodian","",{"v":38178,"d":"$38,178"},35,"No",0,0]
["7","CRANSTON","CRA","CRANSTON PUBLIC LIBRARY","Library Associate",3,"Library Assistant II","",{"v":37308,"d":"$37,308"},35,"No",0,0]
["7","CRANSTON","CRA","CRANSTON PUBLIC LIBRARY","Library Associate",4,"Library Assistant II","",{"v":37993,"d":"$37,993"},35,"No",0,0]
["7","CRANSTON","CRA","CRANSTON PUBLIC LIBRARY","Library Associate",1,"Library Assistant II","",{"v":37652,"d":"$37,652"},35,"No",0,0]
["7","CRANSTON","CRA","CRANSTON PUBLIC LIBRARY","Office Staff",1,"Administrative Assistant","",{"v":37652,"d":"$37,652"},35,"No",0,0]
["7","CRANSTON","CRA","CRANSTON PUBLIC LIBRARY","Library Associate",1,"Library Assistant II","",{"v":28783,"d":"$28,783"},35,"No",0,0]
["7","CRANSTON","CRA","CRANSTON PUBLIC LIBRARY","Buildings/Ground Staff",1,"Driver","",{"v":20374,"d":"$20,374"},25,"No",0,0]
["7","CRANSTON","CRA","CRANSTON PUBLIC LIBRARY","Office Staff",1,"Community Engagment Mgr","",{"v":29767,"d":"$29,767"},35,"No",0,0]
["7","CRANSTON","CRA","CRANSTON PUBLIC LIBRARY","Library Technician",4,"Library Aide",{"v":9,"d":"$9.00"},"",3,"No",0,0]
["7","CRANSTON","CRA","CRANSTON PUBLIC LIBRARY","Library Technician",2,"Library Aide",{"v":9,"d":"$9.00"},"",5,"No",0,0]
["7","CRANSTON","CRA","CRANSTON PUBLIC LIBRARY","Library Technician",4,"Library Aide",{"v":9,"d":"$9.00"},"",12,"No",0,0]
["7","CRANSTON","CRA","CRANSTON PUBLIC LIBRARY","Library Technician",2,"Library Aide",{"v":9,"d":"$9.00"},"",16,"No",0,0]
["7","CRANSTON","CRA","CRANSTON PUBLIC LIBRARY","Library Technician",3,"Library Aide",{"v":9,"d":"$9.00"},"",4,"No",0,0]
["7","CRANSTON","CRA","CRANSTON PUBLIC LIBRARY","Library Technician",2,"Library Aide",{"v":9,"d":"$9.00"},"",8,"No",0,0]
["7","CRANSTON","CRA","CRANSTON PUBLIC LIBRARY","Library Technician",2,"Library Aide",{"v":9,"d":"$9.00"},"",18,"No",0,0]
["7","CRANSTON","CRA","CRANSTON PUBLIC LIBRARY","Library Technician",2,"Library Aide",{"v":9,"d":"$9.00"},"",20,"No",0,0]
["7","CRANSTON","CRA","CRANSTON PUBLIC LIBRARY","Library Technician",3,"Library Aide",{"v":9,"d":"$9.00"},"",15,"No",0,0]
["7","CRANSTON","CRA","CRANSTON PUBLIC LIBRARY","Library Technician",2,"Library Aide",{"v":9,"d":"$9.00"},"",21,"No",0,0]
["7","CRANSTON","CRA","CRANSTON PUBLIC LIBRARY","Buildings/Ground Staff",1,"Custodian",{"v":10,"d":"$10.00"},"",14,"No",0,0]
["7","CRANSTON","CRA","CRANSTON PUBLIC LIBRARY","Buildings/Ground Staff",2,"Custodian",{"v":10,"d":"$10.00"},"",25,"No",0,0]
["7","CRANSTON","CRA","CRANSTON PUBLIC LIBRARY","Buildings/Ground Staff",1,"Security",{"v":9,"d":"$9.00"},"",12,"No",0,0]
["7","CRANSTON","CRA","CRANSTON PUBLIC LIBRARY","Reference/Information Librarian",1,"Librarian",{"v":17.5,"d":"$17.50"},"",6,"Yes",1,6]
["7","CRANSTON","CRA","CRANSTON PUBLIC LIBRARY","Reference/Information Librarian",1,"Librarian",{"v":16.5,"d":"$16.50"},"",30,"Yes",{"$f":"IF(K132=\"yes\",F132,0)","v":1},{"$f":"IF(K132=\"YES\",J132,0)","v":30}]
["7","CRANSTON","CRA","CRANSTON PUBLIC LIBRARY","Childrens and/or Young Adult Services Librarian",1,"Librarian",{"v":16.5,"d":"$16.50"},"",3.5,"Yes",1,3.5]
["7","CRANSTON","CRA","CRANSTON PUBLIC LIBRARY","Childrens and/or Young Adult Services Librarian",1,"Librarian",{"v":16.5,"d":"$16.50"},"",20,"Yes",1,20]
["7","CRANSTON","CRA","CRANSTON PUBLIC LIBRARY","Reference/Information Librarian",3,"Librarian",{"v":16.5,"d":"$16.50"},"",6,"Yes",3,6]
["7","CRANSTON","CRA","CRANSTON PUBLIC LIBRARY","Library Associate",2,"Library Assistant",{"v":9,"d":"$9.00"},"",7,"No",0,0]
["7","CRANSTON","CRA","CRANSTON PUBLIC LIBRARY","Library Associate",1,"Library Assistant",{"v":10.25,"d":"$10.25"},"",7,"No",0,0]
["7","CRANSTON","CRA","CRANSTON PUBLIC LIBRARY","Library Associate",1,"Library Assistant",{"v":10.25,"d":"$10.25"},"",23,"No",0,0]
["7","CRANSTON","CRA","CRANSTON PUBLIC LIBRARY","Library Associate",1,"Library Assistant",{"v":10.25,"d":"$10.25"},"",4,"No",0,0]
["7","CRANSTON","CRA","CRANSTON PUBLIC LIBRARY","Library Associate",1,"Library Assistant",{"v":10.25,"d":"$10.25"},"",12,"No",0,0]
["7","CRANSTON","CRA","CRANSTON PUBLIC LIBRARY","Buildings/Ground Staff",1,"Custodian",{"v":9.35,"d":"$9.35"},"",9,"No",0,0]
["7","CRANSTON","CRA","CRANSTON PUBLIC LIBRARY","Buildings/Ground Staff",1,"Custodian",{"v":12.35,"d":"$12.35"},"",20,"No",0,0]
["7","CRANSTON","CRA","CRANSTON PUBLIC LIBRARY","Library Technician",1,"Library Aide",{"v":9.75,"d":"$9.75"},"",25,"No",0,0]
["7","CRANSTON","CRA","CRANSTON PUBLIC LIBRARY","Library Technician",1,"Library Aide",{"v":11.55,"d":"$11.55"},"",18,"No",0,0]
["7","CRANSTON","CRA","CRANSTON PUBLIC LIBRARY","Library Associate",1,"Library Assistant",{"v":12.05,"d":"$12.05"},"",20,"No",0,0]
["7","CRANSTON","CRA","CRANSTON PUBLIC LIBRARY","Library Associate",1,"Library Assistant",{"v":11.1,"d":"$11.10"},"",10,"No",0,0]
["7","CRANSTON","CRA","CRANSTON PUBLIC LIBRARY","Library Associate",1,"Library Assistant",{"v":11.1,"d":"$11.10"},"",18,"No",0,0]
["7","CRANSTON","CRA","CRANSTON PUBLIC LIBRARY","Library Associate",1,"Library Assistant",{"v":13.6,"d":"$13.60"},"",3,"No",0,0]
["7","CRANSTON","CRA","CRANSTON PUBLIC LIBRARY","Library Associate",1,"Library Assistant",{"v":12.3,"d":"$12.30"},"",6,"No",0,0]
["7","CRANSTON","CRA","CRANSTON PUBLIC LIBRARY","Library Associate",1,"Library Assistant",{"v":12.3,"d":"$12.30"},"",20,"No",0,0]
["7","CRANSTON","CRA","CRANSTON PUBLIC LIBRARY","Aide/Page",3,"Page",{"v":9,"d":"$9.00"},"",8,"No",0,0]
["7","CRANSTON","CRA","CRANSTON PUBLIC LIBRARY","Aide/Page",1,"Page",{"v":9,"d":"$9.00"},"",20,"No",0,0]
["7","CRANSTON","CRA","CRANSTON PUBLIC LIBRARY","Buildings/Ground Staff",1,"Security",{"v":10.1,"d":"$10.10"},"",3,"No",0,0]
["7","CRANSTON","CRA","CRANSTON PUBLIC LIBRARY","Buildings/Ground Staff",1,"Security",{"v":9.35,"d":"$9.35"},"",5,"No",0,0]
["7","CRANSTON","CRA","CRANSTON PUBLIC LIBRARY","Office Staff",1,"Secretary to Board",{"v":13.3,"d":"$13.30"},"",1.5,"No",0,0]
["7","CRANSTON","CRA","CRANSTON PUBLIC LIBRARY","Library Associate",1,"Library Assistant",{"v":12.3,"d":"$12.30"},"",7,"No",0,0]
["8","CUMBERLAND","CUM","CUMBERLAND PUBLIC LIBRARY","29",35,"29",{"v":16.375,"d":"$16.38"},{"v":56625,"d":"$56,625"},{"v":23.44828,"d":"23.4"},{"$f":"SUM(L158:L186)","v":8},{"$f":"SUM(M158:M186)","v":257.5}]
["8","CUMBERLAND","CUM","CUMBERLAND PUBLIC LIBRARY","Director",1,"Library Director","",{"v":76407,"d":"$76,407"},35,"Yes",1,35]
["8","CUMBERLAND","CUM","CUMBERLAND PUBLIC LIBRARY","Deputy/Associate/Assistant Director",1,"Assistant Director/Technology Coordinator","",{"v":60658,"d":"$60,658"},35,"Yes",1,35]
["8","CUMBERLAND","CUM","CUMBERLAND PUBLIC LIBRARY","Manager/Department Head",1,"Reference Services Coordinator","",{"v":52866,"d":"$52,866"},35,"Yes",1,35]
["8","CUMBERLAND","CUM","CUMBERLAND PUBLIC LIBRARY","Manager/Department Head",1,"Adult Services Coordinator","",{"v":53395,"d":"$53,395"},35,"Yes",1,35]
["8","CUMBERLAND","CUM","CUMBERLAND PUBLIC LIBRARY","Manager/Department Head",1,"Children\\'s Services Coordinator","",{"v":51709,"d":"$51,709"},35,"Yes",1,35]
["8","CUMBERLAND","CUM","CUMBERLAND PUBLIC LIBRARY","Manager/Department Head",1,"Technical Services/Homebound Librarian","",{"v":51709,"d":"$51,709"},35,"Yes",1,35]
["8","CUMBERLAND","CUM","CUMBERLAND PUBLIC LIBRARY","Childrens and/or Young Adult Services Librarian",1,"Young Adult Reference Librarian","",{"v":49631,"d":"$49,631"},35,"Yes",1,35]
["8","CUMBERLAND","CUM","CUMBERLAND PUBLIC LIBRARY","Childrens and/or Young Adult Services Librarian",1,"Part-time Children\\'s Librarian",{"v":24.73,"d":"$24.73"},"",12.5,"Yes",1,12.5]
["8","CUMBERLAND","CUM","CUMBERLAND PUBLIC LIBRARY","Manager/Department Head",1,"Circulation Supervisor",{"v":21.02,"d":"$21.02"},"",35,"No",0,0]
["8","CUMBERLAND","CUM","CUMBERLAND PUBLIC LIBRARY","Office Staff",1,"Administrative Assistant",{"v":21.82,"d":"$21.82"},"",35,"No",0,0]
["8","CUMBERLAND","CUM","CUMBERLAND PUBLIC LIBRARY","Office Staff",1,"Bookkeeper",{"v":17.21,"d":"$17.21"},"",4,"No",0,0]
["8","CUMBERLAND","CUM","CUMBERLAND PUBLIC LIBRARY","Library Associate",1,"Full-time Children\\'s Assistant",{"v":18.01,"d":"$18.01"},"",35,"No",0,0]
["8","CUMBERLAND","CUM","CUMBERLAND PUBLIC LIBRARY","Library Associate",1,"Part-time Children\\'s Assistant",{"v":16.28,"d":"$16.28"},"",19.5,"No",0,0]
["8","CUMBERLAND","CUM","CUMBERLAND PUBLIC LIBRARY","Library Associate",1,"Part-time Children\\'s Assistant",{"v":15.58,"d":"$15.58"},"",19.5,"No",0,0]
["8","CUMBERLAND","CUM","CUMBERLAND PUBLIC LIBRARY","Library Associate",2,"Part-time Reference Assistant",{"v":15.58,"d":"$15.58"},"",19.5,"No",0,0]
["8","CUMBERLAND","CUM","CUMBERLAND PUBLIC LIBRARY","Library Associate",1,"Information Services Specialist",{"v":15.58,"d":"$15.58"},"",19.5,"No",0,0]
["8","CUMBERLAND","CUM","CUMBERLAND PUBLIC LIBRARY","Library Associate",1,"Part-time Reference Assistant",{"v":15.58,"d":"$15.58"},"",6,"No",0,0]
["8","CUMBERLAND","CUM","CUMBERLAND PUBLIC LIBRARY","Library Associate",2,"Part-time Desk Assistant",{"v":15.42,"d":"$15.42"},"",19.5,"No",0,0]
["8","CUMBERLAND","CUM","CUMBERLAND PUBLIC LIBRARY","Library Associate",1,"Part-time Desk Assistant",{"v":15.27,"d":"$15.27"},"",19.5,"No",0,0]
["8","CUMBERLAND","CUM","CUMBERLAND PUBLIC LIBRARY","Library Associate",2,"Part-time Desk Assistant",{"v":14.52,"d":"$14.52"},"",19.5,"No",0,0]
["8","CUMBERLAND","CUM","CUMBERLAND PUBLIC LIBRARY","Library Associate",2,"Part-time Desk Assistant",{"v":14.52,"d":"$14.52"},"",16.5,"No",0,0]
["8","CUMBERLAND","CUM","CUMBERLAND PUBLIC LIBRARY","Library Technician",1,"Part-time Catalog Assistant",{"v":15.27,"d":"$15.27"},"",19.5,"No",0,0]
["8","CUMBERLAND","CUM","CUMBERLAND PUBLIC LIBRARY","Library Technician",1,"Part-time Catalog Assistant",{"v":14.52,"d":"$14.52"},"",19.5,"No",0,0]
["8","CUMBERLAND","CUM","CUMBERLAND PUBLIC LIBRARY","Aide/Page",1,"Part-time Library Page",{"v":10.51,"d":"$10.51"},"",15,"No",0,0]
["8","CUMBERLAND","CUM","CUMBERLAND PUBLIC LIBRARY","Aide/Page",3,"Part-time Library Page",{"v":9.54,"d":"$9.54"},"",15,"No",0,0]
["8","CUMBERLAND","CUM","CUMBERLAND PUBLIC LIBRARY","Buildings/Ground Staff",1,"Facility Manager",{"v":20.43,"d":"$20.43"},"",40,"No",0,0]
["8","CUMBERLAND","CUM","CUMBERLAND PUBLIC LIBRARY","Buildings/Ground Staff",1,"Part-time Custodian",{"v":16.91,"d":"$16.91"},"",18,"No",0,0]
["8","CUMBERLAND","CUM","CUMBERLAND PUBLIC LIBRARY","Buildings/Ground Staff",1,"Part-time Custodial Assistant",{"v":16.25,"d":"$16.25"},"",19.5,"No",0,0]
["8","CUMBERLAND","CUM","CUMBERLAND PUBLIC LIBRARY","Buildings/Ground Staff",1,"Part-time Custodial Assistant",{"v":15.7,"d":"$15.70"},"",8,"No",0,0]
["9","EAST GREENWICH","EGR","EAST GREENWICH FREE LIBRARY","16",17,"15",{"v":20.73267,"d":"$20.73"},{"v":0,"d":"$0"},22.8,{"$f":"SUM(L188:L202)","v":6},{"$f":"SUM(M188:M202)","v":153}]
["9","EAST GREENWICH","EGR","EAST GREENWICH FREE LIBRARY","Director",1,"Director",{"v":41.43,"d":"$41.43"},"",35,"Yes",1,35]
["9","EAST GREENWICH","EGR","EAST GREENWICH FREE LIBRARY","Manager/Department Head",1,"Head of Refernce and Information Services",{"v":29.82,"d":"$29.82"},"",35,"Yes",1,35]
["9","EAST GREENWICH","EGR","EAST GREENWICH FREE LIBRARY","Manager/Department Head",1,"Head of Children\\'s Services",{"v":28.4,"d":"$28.40"},"",35,"Yes",1,35]
["9","EAST GREENWICH","EGR","EAST GREENWICH FREE LIBRARY","Manager/Department Head",1,"Head of Cirulation",{"v":20.22,"d":"$20.22"},"",35,"No",0,0]
["9","EAST GREENWICH","EGR","EAST GREENWICH FREE LIBRARY","Library Associate",1,"Circulation clerk",{"v":20.22,"d":"$20.22"},"",15,"No",0,0]
["9","EAST GREENWICH","EGR","EAST GREENWICH FREE LIBRARY","Childrens and/or Young Adult Services Librarian",1,"childrens librarian",{"v":21.5,"d":"$21.50"},"",16,"Yes",1,16]
["9","EAST GREENWICH","EGR","EAST GREENWICH FREE LIBRARY","Childrens and/or Young Adult Services Librarian",1,"children\\'s librarian",{"v":18.07,"d":"$18.07"},"",10,"No",0,0]
["9","EAST GREENWICH","EGR","EAST GREENWICH FREE LIBRARY","Reference/Information Librarian",1,"Reference librarian",{"v":20.5,"d":"$20.50"},"",12,"Yes",1,12]
["9","EAST GREENWICH","EGR","EAST GREENWICH FREE LIBRARY","Reference/Information Librarian",1,"Reference librarian",{"v":19.53,"d":"$19.53"},"",20,"Yes",{"$f":"IF(K196=\"yes\",F196,0)","v":1},{"$f":"IF(K196=\"YES\",J196,0)","v":20}]
["9","EAST GREENWICH","EGR","EAST GREENWICH FREE LIBRARY","Library Associate",3,"circulation clerk",{"v":11.62,"d":"$11.62"},"",56,"No",0,0]
["9","EAST GREENWICH","EGR","EAST GREENWICH FREE LIBRARY","Office Staff",1,"administrative assistant",{"v":17.86,"d":"$17.86"},"",24,"No",0,0]
["9","EAST GREENWICH","EGR","EAST GREENWICH FREE LIBRARY","Technical Services Librarian",1,"technical services",{"v":12.29,"d":"$12.29"},"",9,"No",0,0]
["9","EAST GREENWICH","EGR","EAST GREENWICH FREE LIBRARY","Aide/Page",1,"page",{"v":9.09,"d":"$9.09"},"",20,"No",0,0]
["9","EAST GREENWICH","EGR","EAST GREENWICH FREE LIBRARY","Buildings/Ground Staff",1,"maintenace",{"v":20.22,"d":"$20.22"},"",15,"No",0,0]
["9","EAST GREENWICH","EGR","EAST GREENWICH FREE LIBRARY","Technical Services Librarian",1,"technical services",{"v":20.22,"d":"$20.22"},"",5,"No",0,0]
["10","EAST PROVIDENCE","EPL","EAST PROVIDENCE PUBLIC LIBRARY","16",24,"16","",{"v":52127.13333,"d":"$52,127"},{"v":33.75,"d":"33.8"},{"$f":"SUM(L204:L219)","v":11},{"$f":"SUM(M204:M219)","v":385}]
["10","EAST PROVIDENCE","EPL","EAST PROVIDENCE PUBLIC LIBRARY","Director",1,"Director of Library Services","",{"v":84157,"d":"$84,157"},35,"Yes",1,35]
["10","EAST PROVIDENCE","EPL","EAST PROVIDENCE PUBLIC LIBRARY","Manager/Department Head",1,"Information Services","",{"v":56507,"d":"$56,507"},35,"Yes",1,35]
["10","EAST PROVIDENCE","EPL","EAST PROVIDENCE PUBLIC LIBRARY","Childrens and/or Young Adult Services Librarian",1,"Children\\'s Librarian","",{"v":56507,"d":"$56,507"},35,"Yes",1,35]
["10","EAST PROVIDENCE","EPL","EAST PROVIDENCE PUBLIC LIBRARY","Branch Librarian",1,"Branch Librarian","",{"v":56507,"d":"$56,507"},35,"Yes",1,35]
["10","EAST PROVIDENCE","EPL","EAST PROVIDENCE PUBLIC LIBRARY","Childrens and/or Young Adult Services Librarian",1,"Teen Librarian","",{"v":56507,"d":"$56,507"},35,"Yes",1,35]
["10","EAST PROVIDENCE","EPL","EAST PROVIDENCE PUBLIC LIBRARY","Technical Services Librarian",1,"Cataloging and Acq","",{"v":54061,"d":"$54,061"},35,"Yes",1,35]
["10","EAST PROVIDENCE","EPL","EAST PROVIDENCE PUBLIC LIBRARY","Manager/Department Head",1,"Systems Librarian","",{"v":56507,"d":"$56,507"},35,"Yes",1,35]
["10","EAST PROVIDENCE","EPL","EAST PROVIDENCE PUBLIC LIBRARY","Manager/Department Head",1,"Neighborhood and Community Services","",{"v":56507,"d":"$56,507"},35,"Yes",1,35]
["10","EAST PROVIDENCE","EPL","EAST PROVIDENCE PUBLIC LIBRARY","Technical Services Librarian",1,"Digital Services","",{"v":45282,"d":"$45,282"},35,"Yes",1,35]
["10","EAST PROVIDENCE","EPL","EAST PROVIDENCE PUBLIC LIBRARY","Manager/Department Head",1,"Adult Services","",{"v":56507,"d":"$56,507"},35,"Yes",1,35]
["10","EAST PROVIDENCE","EPL","EAST PROVIDENCE PUBLIC LIBRARY","Library Associate",1,"Circulation Coordinator","",{"v":40692,"d":"$40,692"},35,"No",0,0]
["10","EAST PROVIDENCE","EPL","EAST PROVIDENCE PUBLIC LIBRARY","Library Associate",1,"Technical Services Assistant","",{"v":40692,"d":"$40,692"},35,"No",0,0]
["10","EAST PROVIDENCE","EPL","EAST PROVIDENCE PUBLIC LIBRARY","Library Associate",1,"Youth Services Assistant","",{"v":37299,"d":"$37,299"},35,"Yes",1,35]
["10","EAST PROVIDENCE","EPL","EAST PROVIDENCE PUBLIC LIBRARY","Library Technician",7,"Library Aide","",{"v":35718,"d":"$35,718"},35,"No",0,0]
["10","EAST PROVIDENCE","EPL","EAST PROVIDENCE PUBLIC LIBRARY","Manager/Department Head",1,"Literacy Coordinator","",{"v":48457,"d":"$48,457"},35,"No",0,0]
["10","EAST PROVIDENCE","EPL","EAST PROVIDENCE PUBLIC LIBRARY","Aide/Page",3,"P/T 10.00","","",15,"No",0,0]
[10.5,"EXETER","EXE","EXETER PUBLIC LIBRARY","6",7,"6",{"v":12.474,"d":"$12.47"},{"v":59056,"d":"$59,056"},{"v":18.83333,"d":"18.8"},{"$f":"SUM(L221:L226)","v":1},{"$f":"SUM(M221:M226)","v":35}]
[10.5,"EXETER","EXE","EXETER PUBLIC LIBRARY","Director",1,"Library Director","",{"v":59056,"d":"$59,056"},35,"Yes",1,35]
[10.5,"EXETER","EXE","EXETER PUBLIC LIBRARY","Childrens and/or Young Adult Services Librarian",1,"Youth Services / Assistant Director",{"v":22.6,"d":"$22.60"},"",25,"N/A",0,0]
[10.5,"EXETER","EXE","EXETER PUBLIC LIBRARY","Library Technician",1,"Library Assistant",{"v":12.5,"d":"$12.50"},"",12,"N/A",0,0]
[10.5,"EXETER","EXE","EXETER PUBLIC LIBRARY","Library Technician",2,"Library Assistant",{"v":9,"d":"$9.00"},"",12,"No",0,0]
[10.5,"EXETER","EXE","EXETER PUBLIC LIBRARY","Library Technician",1,"Library Assistant",{"v":9,"d":"$9.00"},"",18,"N/A",0,0]
[10.5,"EXETER","EXE","EXETER PUBLIC LIBRARY","Library Technician",1,"Library Assistant",{"v":9.27,"d":"$9.27"},"",11,"No",0,0]
["11","FOSTER","FOS","LIBRARIES OF FOSTER","10",10,"10",{"v":9.942,"d":"$9.94"},{"v":4614.6,"d":"$4,615"},{"v":16,"d":"16.0"},{"$f":"SUM(L228:L237)","v":1},{"$f":"SUM(M228:M237)","v":40}]
["11","FOSTER","FOS","LIBRARIES OF FOSTER","Director",1,"Director",{"v":0,"d":"$0.00"},{"v":46146,"d":"$46,146"},40,"Yes",1,40]
["11","FOSTER","FOS","LIBRARIES OF FOSTER","Reference/Information Librarian",1,"Special Collections/Reference",{"v":12.86,"d":"$12.86"},{"v":0,"d":"$0"},18,"No",0,0]
["11","FOSTER","FOS","LIBRARIES OF FOSTER","Childrens and/or Young Adult Services Librarian",1,"Youth Services Librarian",{"v":15,"d":"$15.00"},{"v":0,"d":"$0"},36,"No",0,0]
["11","FOSTER","FOS","LIBRARIES OF FOSTER","Technical Services Librarian",1,"Cataloger",{"v":9.97,"d":"$9.97"},{"v":0,"d":"$0"},8,"No",0,0]
["11","FOSTER","FOS","LIBRARIES OF FOSTER","Library Associate",1,"Circulation Clerk",{"v":9.66,"d":"$9.66"},{"v":0,"d":"$0"},21,"No",0,0]
["11","FOSTER","FOS","LIBRARIES OF FOSTER","Library Associate",1,"Circulation Clerk",{"v":13.42,"d":"$13.42"},{"v":0,"d":"$0"},6,"No",0,0]
["11","FOSTER","FOS","LIBRARIES OF FOSTER","Library Associate",1,"Circulation Clerk",{"v":11.51,"d":"$11.51"},{"v":0,"d":"$0"},7,"No",0,0]
["11","FOSTER","FOS","LIBRARIES OF FOSTER","Library Associate",1,"Circulation Clerk",{"v":9,"d":"$9.00"},{"v":0,"d":"$0"},12,"No",0,0]
["11","FOSTER","FOS","LIBRARIES OF FOSTER","Library Associate",1,"Circulation Clerk",{"v":9,"d":"$9.00"},{"v":0,"d":"$0"},8,"No",0,0]
["11","FOSTER","FOS","LIBRARIES OF FOSTER","Library Associate",1,"Circulation Clerk",{"v":9,"d":"$9.00"},{"v":0,"d":"$0"},4,"No",0,0]
["12","GLOCESTER","GLO","GLOCESTER MANTON FREE PUBLIC LIBRARY","7",7,"7",{"v":11.918,"d":"$11.92"},{"v":25831,"d":"$25,831"},{"v":19.85714,"d":"19.9"},{"$f":"SUM(L239:L245)","v":1},{"$f":"SUM(M239:M245)","v":40}]
["12","GLOCESTER","GLO","GLOCESTER MANTON FREE PUBLIC LIBRARY","Director",1,"Director, Adult Services","",{"v":49322,"d":"$49,322"},40,"Yes",1,40]
["12","GLOCESTER","GLO","GLOCESTER MANTON FREE PUBLIC LIBRARY","Childrens and/or Young Adult Services Librarian",1,"Children\\'s Assistant",{"v":15.35,"d":"$15.35"},"",30,"No",0,0]
["12","GLOCESTER","GLO","GLOCESTER MANTON FREE PUBLIC LIBRARY","Library Technician",1,"Circulation Assistant",{"v":10.86,"d":"$10.86"},"",15,"No",0,0]
["12","GLOCESTER","GLO","GLOCESTER MANTON FREE PUBLIC LIBRARY","Library Technician",1,"Circulation Head",{"v":11.91,"d":"$11.91"},"",15,"No",0,0]
["12","GLOCESTER","GLO","GLOCESTER MANTON FREE PUBLIC LIBRARY","Library Technician",1,"Library Technician",{"v":10.89,"d":"$10.89"},"",15,"No",0,0]
["12","GLOCESTER","GLO","GLOCESTER MANTON FREE PUBLIC LIBRARY","Library Technician",1,"Library Technician",{"v":10.58,"d":"$10.58"},"",20,"No",0,0]
["12","GLOCESTER","GLO","GLOCESTER MANTON FREE PUBLIC LIBRARY","Office Staff",1,"Bookkeeper","",{"v":2340,"d":"$2,340"},4,"No",0,0]
["12","GLOCESTER","HAR","HARMONY LIBRARY","9",10,"9",{"v":14.24714,"d":"$14.25"},{"v":23617.5,"d":"$23,618"},{"v":17.55556,"d":"17.6"},{"$f":"SUM(L247:L255)","v":3},{"$f":"SUM(M247:M255)","v":74}]
["12","GLOCESTER","HAR","HARMONY LIBRARY","Childrens and/or Young Adult Services Librarian",1,"Glocester Childrens Services Coordinator","",{"v":42116,"d":"$42,116"},35,"Yes",1,35]
["12","GLOCESTER","HAR","HARMONY LIBRARY","Reference/Information Librarian",1,"Reference/Technology Libraries",{"v":22.41,"d":"$22.41"},"",26,"Yes",1,26]
["12","GLOCESTER","HAR","HARMONY LIBRARY","Reference/Information Librarian",1,"Adult Services Librarian",{"v":19.63,"d":"$19.63"},"",13,"Yes",1,13]
["12","GLOCESTER","HAR","HARMONY LIBRARY","Library Technician",1,"Circulation Assistant",{"v":11.51,"d":"$11.51"},"",21,"No",0,0]
["12","GLOCESTER","HAR","HARMONY LIBRARY","Library Technician",1,"Circulation Assistant",{"v":10.3,"d":"$10.30"},"",8,"No",0,0]
["12","GLOCESTER","HAR","HARMONY LIBRARY","Library Technician",1,"Circulation Assistant",{"v":11.67,"d":"$11.67"},"",23,"No",0,0]
["12","GLOCESTER","HAR","HARMONY LIBRARY","Library Technician",1,"Circulation Head",{"v":14.94,"d":"$14.94"},"",24,"No",0,0]
["12","GLOCESTER","HAR","HARMONY LIBRARY","Aide/Page",2,"Page",{"v":9.27,"d":"$9.27"},"",4,"No",0,0]
["12","GLOCESTER","HAR","HARMONY LIBRARY","Office Staff",1,"Bookkeeper","",{"v":5119,"d":"$5,119"},4,"No",0,0]
["13","HOPKINTON","ASH","ASHAWAY FREE LIBRARY","6",8,"6",{"v":16.89333,"d":"$16.89"},"",{"v":9.33333,"d":"9.3"},{"$f":"SUM(L257:L262)","v":2},{"$f":"SUM(M257:M262)","v":38}]
["13","HOPKINTON","ASH","ASHAWAY FREE LIBRARY","Director",1,"Head Librarian",{"v":24.41,"d":"$24.41"},"",30,"Yes",1,30]
["13","HOPKINTON","ASH","ASHAWAY FREE LIBRARY","Aide/Page",1,"Story Hour Assistant",{"v":21.65,"d":"$21.65"},"",1,"No",0,0]
["13","HOPKINTON","ASH","ASHAWAY FREE LIBRARY","Office Staff",1,"Bookkeeper",{"v":15,"d":"$15.00"},"",2,"No",0,0]
["13","HOPKINTON","ASH","ASHAWAY FREE LIBRARY","Library Associate",1,"Staff Librarian",{"v":13.45,"d":"$13.45"},"",8,"Yes",{"$f":"IF(K260=\"yes\",F260,0)","v":1},{"$f":"IF(K260=\"YES\",J260,0)","v":8}]
["13","HOPKINTON","ASH","ASHAWAY FREE LIBRARY","Library Technician",3,"Staff Librarian",{"v":11.65,"d":"$11.65"},"",13,"No",0,0]
["13","HOPKINTON","ASH","ASHAWAY FREE LIBRARY","Library Technician",1,"Substitute Librarian",{"v":15.2,"d":"$15.20"},"",2,"No",0,0]
["13","HOPKINTON","LAN","LANGWORTHY PUBLIC LIBRARY","6",10,"6",{"v":13.41667,"d":"$13.42"},"",13.5,{"$f":"SUM(L264:L269)","v":3},{"$f":"SUM(M264:M269)","v":36}]
["13","HOPKINTON","LAN","LANGWORTHY PUBLIC LIBRARY","Director",1,"Director",{"v":22,"d":"$22.00"},"",20,"Yes",1,20]
["13","HOPKINTON","LAN","LANGWORTHY PUBLIC LIBRARY","Deputy/Associate/Assistant Director",1,"Assistant Director",{"v":19,"d":"$19.00"},"",12,"Yes",1,12]
["13","HOPKINTON","LAN","LANGWORTHY PUBLIC LIBRARY","Manager/Department Head",1,"Circulation Manager",{"v":12,"d":"$12.00"},"",18,"No",0,0]
["13","HOPKINTON","LAN","LANGWORTHY PUBLIC LIBRARY","Library Associate",1,"Circulation Clerk",{"v":9.5,"d":"$9.50"},"",12,"No",0,0]
["13","HOPKINTON","LAN","LANGWORTHY PUBLIC LIBRARY","Library Associate",5,"Circulation Clerk",{"v":9,"d":"$9.00"},"",15,"No",0,0]
["13","HOPKINTON","LAN","LANGWORTHY PUBLIC LIBRARY","Reference/Information Librarian",1,"Circulation Librarian",{"v":9,"d":"$9.00"},"",4,"Yes",1,4]
["14","JAMESTOWN","JAM","JAMESTOWN PHILOMENIAN LIBRARY","11",11,"11",{"v":13.909,"d":"$13.91"},{"v":69921,"d":"$69,921"},{"v":25.45455,"d":"25.5"},{"$f":"SUM(L271:L281)","v":3},{"$f":"SUM(M271:M281)","v":120}]
["14","JAMESTOWN","JAM","JAMESTOWN PHILOMENIAN LIBRARY","Director",1,"Director","",{"v":69921,"d":"$69,921"},40,"Yes",1,40]
["14","JAMESTOWN","JAM","JAMESTOWN PHILOMENIAN LIBRARY","Childrens and/or Young Adult Services Librarian",1,"Children\\'s Librarian ",{"v":21.18,"d":"$21.18"},"",40,"Yes",1,40]
["14","JAMESTOWN","JAM","JAMESTOWN PHILOMENIAN LIBRARY","Reference/Information Librarian",1,"Referrence Librarian",{"v":26.16,"d":"$26.16"},"",40,"Yes",1,40]
["14","JAMESTOWN","JAM","JAMESTOWN PHILOMENIAN LIBRARY","Library Associate",1,"Para-Professional ",{"v":12.5,"d":"$12.50"},"",35,"No",0,0]
["14","JAMESTOWN","JAM","JAMESTOWN PHILOMENIAN LIBRARY","Technical Services Librarian",1,"Cataloger ",{"v":11.21,"d":"$11.21"},"",35,"No",0,0]
["14","JAMESTOWN","JAM","JAMESTOWN PHILOMENIAN LIBRARY","Library Associate",1,"Library Associate ",{"v":12,"d":"$12.00"},"",19,"No",0,0]
["14","JAMESTOWN","JAM","JAMESTOWN PHILOMENIAN LIBRARY","Library Associate",1,"Library Associate ",{"v":10,"d":"$10.00"},"",19,"No",0,0]
["14","JAMESTOWN","JAM","JAMESTOWN PHILOMENIAN LIBRARY","Library Associate",1,"library Assoicate ",{"v":10.51,"d":"$10.51"},"",14,"No",0,0]
["14","JAMESTOWN","JAM","JAMESTOWN PHILOMENIAN LIBRARY","Library Associate",1,"Library Associate ",{"v":13.59,"d":"$13.59"},"",10,"No",0,0]
["14","JAMESTOWN","JAM","JAMESTOWN PHILOMENIAN LIBRARY","Technical Services Librarian",1,"Tech Librarian",{"v":12.94,"d":"$12.94"},"",16,"No",0,0]
["14","JAMESTOWN","JAM","JAMESTOWN PHILOMENIAN LIBRARY","Aide/Page",1,"aide",{"v":9,"d":"$9.00"},"",12,"No",0,0]
["15","JOHNSTON","JOH","MARIAN J. MOHR MEMORIAL LIBRARY","18",18,"18",{"v":13.04067,"d":"$13.04"},{"v":47000,"d":"$47,000"},{"v":23.77778,"d":"23.8"},{"$f":"SUM(L283:L300)","v":7},{"$f":"SUM(M283:M300)","v":165}]
["15","JOHNSTON","JOH","MARIAN J. MOHR MEMORIAL LIBRARY","Director",1,"Library Director","",{"v":56000,"d":"$56,000"},35,"Yes",1,35]
["15","JOHNSTON","JOH","MARIAN J. MOHR MEMORIAL LIBRARY","Deputy/Associate/Assistant Director",1,"Associate Director","",{"v":45000,"d":"$45,000"},35,"Yes",1,35]
["15","JOHNSTON","JOH","MARIAN J. MOHR MEMORIAL LIBRARY","Childrens and/or Young Adult Services Librarian",1,"Children\\'s Librarian","",{"v":40000,"d":"$40,000"},35,"Yes",1,35]
["15","JOHNSTON","JOH","MARIAN J. MOHR MEMORIAL LIBRARY","Reference/Information Librarian",1,"Reference Librarian",{"v":18,"d":"$18.00"},"",19,"Yes",1,19]
["15","JOHNSTON","JOH","MARIAN J. MOHR MEMORIAL LIBRARY","Childrens and/or Young Adult Services Librarian",1,"Young Adult Librarian",{"v":18,"d":"$18.00"},"",19,"Yes",1,19]
["15","JOHNSTON","JOH","MARIAN J. MOHR MEMORIAL LIBRARY","Reference/Information Librarian",1,"Reference Librarian",{"v":18,"d":"$18.00"},"",14,"Yes",1,14]
["15","JOHNSTON","JOH","MARIAN J. MOHR MEMORIAL LIBRARY","Reference/Information Librarian",1,"Reference Librarian",{"v":18,"d":"$18.00"},"",8,"Yes",1,8]
["15","JOHNSTON","JOH","MARIAN J. MOHR MEMORIAL LIBRARY","Buildings/Ground Staff",1,"Custodian",{"v":9,"d":"$9.00"},"",19,"No",0,0]
["15","JOHNSTON","JOH","MARIAN J. MOHR MEMORIAL LIBRARY","Library Technician",1,"Aide/Technician",{"v":9.46,"d":"$9.46"},"",19,"No",0,0]
["15","JOHNSTON","JOH","MARIAN J. MOHR MEMORIAL LIBRARY","Aide/Page",1,"Library Aide",{"v":9,"d":"$9.00"},"",19,"No",0,0]
["15","JOHNSTON","JOH","MARIAN J. MOHR MEMORIAL LIBRARY","Library Technician",1,"Aide/Technician",{"v":9,"d":"$9.00"},"",19,"No",0,0]
["15","JOHNSTON","JOH","MARIAN J. MOHR MEMORIAL LIBRARY","Library Associate",1,"Aide/Desk Assistant",{"v":10,"d":"$10.00"},"",19,"No",0,0]
["15","JOHNSTON","JOH","MARIAN J. MOHR MEMORIAL LIBRARY","Library Technician",1,"Library Assistant",{"v":9,"d":"$9.00"},"",9,"No",0,0]
["15","JOHNSTON","JOH","MARIAN J. MOHR MEMORIAL LIBRARY","Library Associate",1,"Desk Assistant & Administrative Assistant",{"v":14.07,"d":"$14.07"},"",35,"No",0,0]
["15","JOHNSTON","JOH","MARIAN J. MOHR MEMORIAL LIBRARY","Library Associate",1,"Desk Assistant & Program Specialist",{"v":14.07,"d":"$14.07"},"",35,"No",0,0]
["15","JOHNSTON","JOH","MARIAN J. MOHR MEMORIAL LIBRARY","Library Associate",1,"Children\\'s Associate",{"v":13.93,"d":"$13.93"},"",35,"No",0,0]
["15","JOHNSTON","JOH","MARIAN J. MOHR MEMORIAL LIBRARY","Library Associate",1,"Aide/Children\\'s Associate",{"v":10,"d":"$10.00"},"",19,"No",0,0]
["15","JOHNSTON","JOH","MARIAN J. MOHR MEMORIAL LIBRARY","Manager/Department Head",1,"Head of Circulation & Fiction Specialist",{"v":16.08,"d":"$16.08"},"",35,"No",0,0]
["16","LINCOLN","LIN","LINCOLN PUBLIC LIBRARY","20",22,"20",{"v":16.23278,"d":"$16.23"},{"v":56704,"d":"$56,704"},24.3,{"$f":"SUM(L302:L321)","v":8},{"$f":"SUM(M302:M321)","v":215}]
["16","LINCOLN","LIN","LINCOLN PUBLIC LIBRARY","Director",1,"Director","",{"v":62568,"d":"$62,568"},35,"Yes",1,35]
["16","LINCOLN","LIN","LINCOLN PUBLIC LIBRARY","Deputy/Associate/Assistant Director",1,"Assistant Director","",{"v":50840,"d":"$50,840"},35,"Yes",1,35]
["16","LINCOLN","LIN","LINCOLN PUBLIC LIBRARY","Technical Services Librarian",1,"Electronic Resources Librarian",{"v":26.98,"d":"$26.98"},"",35,"Yes",1,35]
["16","LINCOLN","LIN","LINCOLN PUBLIC LIBRARY","Reference/Information Librarian",1,"Reference/YA",{"v":24.77,"d":"$24.77"},"",35,"Yes",1,35]
["16","LINCOLN","LIN","LINCOLN PUBLIC LIBRARY","Childrens and/or Young Adult Services Librarian",1,"Children\\'s Librarian",{"v":26.01,"d":"$26.01"},"",35,"Yes",1,35]
["16","LINCOLN","LIN","LINCOLN PUBLIC LIBRARY","Office Staff",1,"Bookkeeper/Secretary",{"v":16.84,"d":"$16.84"},"",35,"No",0,0]
["16","LINCOLN","LIN","LINCOLN PUBLIC LIBRARY","Library Associate",1,"Tech 3 TS",{"v":18.15,"d":"$18.15"},"",35,"No",0,0]
["16","LINCOLN","LIN","LINCOLN PUBLIC LIBRARY","Library Associate",1,"Tech 3 PS",{"v":18.15,"d":"$18.15"},"",35,"No",0,0]
["16","LINCOLN","LIN","LINCOLN PUBLIC LIBRARY","Library Technician",3,"Tech 2 PS",{"v":15.35,"d":"$15.35"},"",35,"No",0,0]
["16","LINCOLN","LIN","LINCOLN PUBLIC LIBRARY","Library Technician",1,"Tech 1 PS",{"v":14.34,"d":"$14.34"},"",35,"No",0,0]
["16","LINCOLN","LIN","LINCOLN PUBLIC LIBRARY","Library Technician",1,"Part time Circulation",{"v":11.31,"d":"$11.31"},"",12,"No",0,0]
["16","LINCOLN","LIN","LINCOLN PUBLIC LIBRARY","Library Technician",1,"Part time Circulation",{"v":10.69,"d":"$10.69"},"",14,"No",0,0]
["16","LINCOLN","LIN","LINCOLN PUBLIC LIBRARY","Library Technician",1,"Part time Circulation",{"v":10.69,"d":"$10.69"},"",11.5,"No",0,0]
["16","LINCOLN","LIN","LINCOLN PUBLIC LIBRARY","Childrens and/or Young Adult Services Librarian",1,"Reference LibrarianChildren\\'s Librarian",{"v":17.81,"d":"$17.81"},"",16,"Yes",1,16]
["16","LINCOLN","LIN","LINCOLN PUBLIC LIBRARY","Childrens and/or Young Adult Services Librarian",1,"Reference LibrarianChildren\\'s Librarian",{"v":18.79,"d":"$18.79"},"",12,"Yes",1,12]
["16","LINCOLN","LIN","LINCOLN PUBLIC LIBRARY","Reference/Information Librarian",1,"Reference Librarian",{"v":17.81,"d":"$17.81"},"",12,"Yes",1,12]
["16","LINCOLN","LIN","LINCOLN PUBLIC LIBRARY","Aide/Page",1,"Page",{"v":9,"d":"$9.00"},"",18,"No",0,0]
["16","LINCOLN","LIN","LINCOLN PUBLIC LIBRARY","Aide/Page",1,"Page",{"v":9,"d":"$9.00"},"",9,"No",0,0]
["16","LINCOLN","LIN","LINCOLN PUBLIC LIBRARY","Aide/Page",1,"Page",{"v":9,"d":"$9.00"},"",8,"No",0,0]
["16","LINCOLN","LIN","LINCOLN PUBLIC LIBRARY","Buildings/Ground Staff",1,"Maintenance",{"v":17.5,"d":"$17.50"},"",23.5,"No",0,0]
["17","LITTLE COMPTON","LCO","BROWNELL LIBRARY, HOME OF LITTLE COMPTON","4",4,"4",{"v":18.0325,"d":"$18.03"},"",{"v":29.875,"d":"29.9"},{"$f":"SUM(L323:L326)","v":1},{"$f":"SUM(M323:M326)","v":35}]
["17","LITTLE COMPTON","LCO","BROWNELL LIBRARY, HOME OF LITTLE COMPTON","Director",1,"Director",{"v":24.91,"d":"$24.91"},"",35,"No",0,0]
["17","LITTLE COMPTON","LCO","BROWNELL LIBRARY, HOME OF LITTLE COMPTON","Childrens and/or Young Adult Services Librarian",1,"Youth Services Librarian",{"v":19,"d":"$19.00"},"",35,"Yes",{"$f":"IF(K324=\"yes\",F324,0)","v":1},{"$f":"IF(K324=\"YES\",J324,0)","v":35}]
["17","LITTLE COMPTON","LCO","BROWNELL LIBRARY, HOME OF LITTLE COMPTON","Technical Services Librarian",1,"Technical Services Librarian",{"v":14.11,"d":"$14.11"},"",28.5,"No",0,0]
["17","LITTLE COMPTON","LCO","BROWNELL LIBRARY, HOME OF LITTLE COMPTON","Library Associate",1,"Head of Circulation",{"v":14.11,"d":"$14.11"},"",21,"No",0,0]
["18","MIDDLETOWN","MID","MIDDLETOWN PUBLIC LIBRARY","8",14,"8",{"v":21.11625,"d":"$21.12"},"",{"v":31.125,"d":"31.1"},{"$f":"SUM(L328:L334)","v":3},{"$f":"SUM(M328:M334)","v":105}]
["18","MIDDLETOWN","MID","MIDDLETOWN PUBLIC LIBRARY","Director",1,"Library Director",{"v":35.45,"d":"$35.45"},"",35,"Yes",1,35]
["18","MIDDLETOWN","MID","MIDDLETOWN PUBLIC LIBRARY","Manager/Department Head",1,"Head of Reference",{"v":27.45,"d":"$27.45"},"",35,"Yes",1,35]
["18","MIDDLETOWN","MID","MIDDLETOWN PUBLIC LIBRARY","Manager/Department Head",1,"Head of Children\\'s Services",{"v":23.12,"d":"$23.12"},"",35,"Yes",1,35]
["18","MIDDLETOWN","MID","MIDDLETOWN PUBLIC LIBRARY","Manager/Department Head",1,"Head of Technical Services",{"v":22.84,"d":"$22.84"},"",35,"No",0,0]
["18","MIDDLETOWN","MID","MIDDLETOWN PUBLIC LIBRARY","Manager/Department Head",1,"Circulation Supervisor",{"v":22.84,"d":"$22.84"},"",35,"No",0,0]
["18","MIDDLETOWN","MID","MIDDLETOWN PUBLIC LIBRARY","Library Associate",1,"Library Assistant",{"v":15.3,"d":"$15.30"},"",35,"No",0,0]
["18","MIDDLETOWN","MID","MIDDLETOWN PUBLIC LIBRARY","Library Associate",7,"Library Assistant",{"v":12.75,"d":"$12.75"},"",20,"No",0,0]
["19","NARRAGANSETT","NAR","MAURY LOONTJENS MEMORIAL LIBRARY (NARRAGANSETT)","17",18,"17",{"v":12.25417,"d":"$12.25"},{"v":49031,"d":"$49,031"},{"v":23.61765,"d":"23.6"},{"$f":"SUM(L336:L352)","v":5},{"$f":"SUM(M336:M352)","v":161}]
["19","NARRAGANSETT","NAR","MAURY LOONTJENS MEMORIAL LIBRARY (NARRAGANSETT)","Director",1,"Library Director","",{"v":78541,"d":"$78,541"},40,"Yes",1,40]
["19","NARRAGANSETT","NAR","MAURY LOONTJENS MEMORIAL LIBRARY (NARRAGANSETT)","Childrens and/or Young Adult Services Librarian",1,"Children\\'s Librarian","",{"v":51002,"d":"$51,002"},40,"Yes",1,40]
["19","NARRAGANSETT","NAR","MAURY LOONTJENS MEMORIAL LIBRARY (NARRAGANSETT)","Reference/Information Librarian",1,"Reference Librarian",{"v":15.3,"d":"$15.30"},"",25,"Yes",1,25]
["19","NARRAGANSETT","NAR","MAURY LOONTJENS MEMORIAL LIBRARY (NARRAGANSETT)","Manager/Department Head",1,"Circulation Supervisor","",{"v":32256,"d":"$32,256"},40,"No",0,0]
["19","NARRAGANSETT","NAR","MAURY LOONTJENS MEMORIAL LIBRARY (NARRAGANSETT)","Deputy/Associate/Assistant Director",1,"Childen\\'s Assistant","",{"v":30212,"d":"$30,212"},35,"No",0,0]
["19","NARRAGANSETT","NAR","MAURY LOONTJENS MEMORIAL LIBRARY (NARRAGANSETT)","Deputy/Associate/Assistant Director",1,"Adult Services","",{"v":53144,"d":"$53,144"},40,"Yes",1,40]
["19","NARRAGANSETT","NAR","MAURY LOONTJENS MEMORIAL LIBRARY (NARRAGANSETT)","Library Technician",2,"Library Clerk",{"v":9,"d":"$9.00"},"",41,"No",0,0]
["19","NARRAGANSETT","NAR","MAURY LOONTJENS MEMORIAL LIBRARY (NARRAGANSETT)","Library Technician",1,"Library Clerk",{"v":9,"d":"$9.00"},"",16,"Yes",1,16]
["19","NARRAGANSETT","NAR","MAURY LOONTJENS MEMORIAL LIBRARY (NARRAGANSETT)","Library Technician",1,"Library Clerk",{"v":9.39,"d":"$9.39"},"",8,"No",0,0]
["19","NARRAGANSETT","NAR","MAURY LOONTJENS MEMORIAL LIBRARY (NARRAGANSETT)","Library Technician",1,"Library Clerk",{"v":10.97,"d":"$10.97"},"",15,"No",0,0]
["19","NARRAGANSETT","NAR","MAURY LOONTJENS MEMORIAL LIBRARY (NARRAGANSETT)","Library Technician",1,"library Clerk",{"v":9,"d":"$9.00"},"",4,"No",0,0]
["19","NARRAGANSETT","NAR","MAURY LOONTJENS MEMORIAL LIBRARY (NARRAGANSETT)","Library Technician",1,"Library Clerk",{"v":9.25,"d":"$9.25"},"",25,"No",0,0]
["19","NARRAGANSETT","NAR","MAURY LOONTJENS MEMORIAL LIBRARY (NARRAGANSETT)","Aide/Page",1,"Library Page",{"v":9,"d":"$9.00"},"",16,"No",0,0]
["19","NARRAGANSETT","NAR","MAURY LOONTJENS MEMORIAL LIBRARY (NARRAGANSETT)","Library Technician",1,"Library Clerk",{"v":13.64,"d":"$13.64"},"",25,"No",0,0]
["19","NARRAGANSETT","NAR","MAURY LOONTJENS MEMORIAL LIBRARY (NARRAGANSETT)","Library Technician",1,"Library clerk",{"v":15.35,"d":"$15.35"},"",18,"No",0,0]
["19","NARRAGANSETT","NAR","MAURY LOONTJENS MEMORIAL LIBRARY (NARRAGANSETT)","Library Technician",1,"Library Clerk",{"v":12.15,"d":"$12.15"},"",12,"No",0,0]
["19","NARRAGANSETT","NAR","MAURY LOONTJENS MEMORIAL LIBRARY (NARRAGANSETT)","Technical Services Librarian",1,"Computer Tech",{"v":25,"d":"$25.00"},"",1.5,"No",0,0]
["20","NEW SHOREHAM","NSH","ISLAND FREE LIBRARY","5",5,"5",{"v":15.93,"d":"$15.93"},{"v":59808,"d":"$59,808"},38.4,{"$f":"SUM(L354:L358)","v":1},{"$f":"SUM(M354:M358)","v":40}]
["20","NEW SHOREHAM","NSH","ISLAND FREE LIBRARY","Director",1,"Director","",{"v":59808,"d":"$59,808"},40,"Yes",1,40]
["20","NEW SHOREHAM","NSH","ISLAND FREE LIBRARY","Technical Services Librarian",1,"Technical Services",{"v":20.9,"d":"$20.90"},"",38,"No",0,0]
["20","NEW SHOREHAM","NSH","ISLAND FREE LIBRARY","Childrens and/or Young Adult Services Librarian",1,"Childrens Services",{"v":13.35,"d":"$13.35"},"",38,"No",0,0]
["20","NEW SHOREHAM","NSH","ISLAND FREE LIBRARY","Reference/Information Librarian",1,"Circulation Clerk",{"v":12.9,"d":"$12.90"},"",38,"No",0,0]
["20","NEW SHOREHAM","NSH","ISLAND FREE LIBRARY","Reference/Information Librarian",1,"Circulation/ILL Clerk",{"v":16.57,"d":"$16.57"},"",38,"No",0,0]
["21","NEWPORT","NPT","NEWPORT PUBLIC LIBRARY","29",37,"29",{"v":18.20455,"d":"$18.20"},{"v":47504.88889,"d":"$47,505"},{"v":33.05172,"d":"33.1"},{"$f":"SUM(L360:L388)","v":10},{"$f":"SUM(M360:M388)","v":301}]
["21","NEWPORT","NPT","NEWPORT PUBLIC LIBRARY","Director",1,"Director","",{"v":92925,"d":"$92,925"},35,"Yes",1,35]
["21","NEWPORT","NPT","NEWPORT PUBLIC LIBRARY","Deputy/Associate/Assistant Director",1,"Assistant Director/Head of Collection Management","",{"v":67941,"d":"$67,941"},35,"Yes",1,35]
["21","NEWPORT","NPT","NEWPORT PUBLIC LIBRARY","Office Staff",1,"Secretary","",{"v":41025,"d":"$41,025"},35,"No",0,0]
["21","NEWPORT","NPT","NEWPORT PUBLIC LIBRARY","Office Staff",1,"Bookkeeper","",{"v":47187,"d":"$47,187"},35,"No",0,0]
["21","NEWPORT","NPT","NEWPORT PUBLIC LIBRARY","Buildings/Ground Staff",1,"Property Manager","",{"v":50557,"d":"$50,557"},37.5,"No",0,0]
["21","NEWPORT","NPT","NEWPORT PUBLIC LIBRARY","Buildings/Ground Staff",1,"Custodian","",{"v":42739,"d":"$42,739"},37.5,"No",0,0]
["21","NEWPORT","NPT","NEWPORT PUBLIC LIBRARY","Library Associate",1,"Library Aide","",{"v":37173,"d":"$37,173"},35,"No",0,0]
["21","NEWPORT","NPT","NEWPORT PUBLIC LIBRARY","Library Associate",1,"Library Aide","",{"v":27101,"d":"$27,101"},35,"No",0,0]
["21","NEWPORT","NPT","NEWPORT PUBLIC LIBRARY","Manager/Department Head",1,"Circulation Supervisor","",{"v":38840,"d":"$38,840"},35,"No",0,0]
["21","NEWPORT","NPT","NEWPORT PUBLIC LIBRARY","Manager/Department Head",1,"Head of Children\\'s Services","",{"v":56412,"d":"$56,412"},35,"Yes",1,35]
["21","NEWPORT","NPT","NEWPORT PUBLIC LIBRARY","Childrens and/or Young Adult Services Librarian",1,"Children\\'s Librarian","",{"v":45725,"d":"$45,725"},35,"Yes",1,35]
["21","NEWPORT","NPT","NEWPORT PUBLIC LIBRARY","Library Associate",1,"Technical Services Aide","",{"v":35286,"d":"$35,286"},35,"No",0,0]
["21","NEWPORT","NPT","NEWPORT PUBLIC LIBRARY","Manager/Department Head",1,"Head of Adult Services","",{"v":56412,"d":"$56,412"},35,"Yes",1,35]
["21","NEWPORT","NPT","NEWPORT PUBLIC LIBRARY","Library Associate",1,"Outreach Coordinator","",{"v":45575,"d":"$45,575"},35,"No",0,0]
["21","NEWPORT","NPT","NEWPORT PUBLIC LIBRARY","Library Associate",1,"Cataloger","",{"v":47187,"d":"$47,187"},35,"No",0,0]
["21","NEWPORT","NPT","NEWPORT PUBLIC LIBRARY","Buildings/Ground Staff",1,"Custodian/Security Guard","",{"v":34072,"d":"$34,072"},37.5,"No",0,0]
["21","NEWPORT","NPT","NEWPORT PUBLIC LIBRARY","Reference/Information Librarian",1,"Reference Librarian","",{"v":43206,"d":"$43,206"},35,"Yes",1,35]
["21","NEWPORT","NPT","NEWPORT PUBLIC LIBRARY","Reference/Information Librarian",1,"Reference Librarian","",{"v":45725,"d":"$45,725"},35,"Yes",1,35]
["21","NEWPORT","NPT","NEWPORT PUBLIC LIBRARY","Buildings/Ground Staff",1,"Custodian part time",{"v":14.42,"d":"$14.42"},"",25,"No",0,0]
["21","NEWPORT","NPT","NEWPORT PUBLIC LIBRARY","Childrens and/or Young Adult Services Librarian",1,"Young Adult Librarian",{"v":24.33,"d":"$24.33"},"",18,"Yes",1,18]
["21","NEWPORT","NPT","NEWPORT PUBLIC LIBRARY","Library Associate",1,"Reference Assistant",{"v":18.78,"d":"$18.78"},"",15,"No",0,0]
["21","NEWPORT","NPT","NEWPORT PUBLIC LIBRARY","Library Technician",1,"Library Aide part time",{"v":14.42,"d":"$14.42"},"",25,"No",0,0]
["21","NEWPORT","NPT","NEWPORT PUBLIC LIBRARY","Childrens and/or Young Adult Services Librarian",1,"Children\\'s Librarian Part Time",{"v":24.33,"d":"$24.33"},"",18,"Yes",1,18]
["21","NEWPORT","NPT","NEWPORT PUBLIC LIBRARY","Library Associate",1,"Technology Aide",{"v":22.52,"d":"$22.52"},"",15,"No",0,0]
["21","NEWPORT","NPT","NEWPORT PUBLIC LIBRARY","Childrens and/or Young Adult Services Librarian",1,"Young Adult Librarian",{"v":24.33,"d":"$24.33"},"",20,"Yes",1,20]
["21","NEWPORT","NPT","NEWPORT PUBLIC LIBRARY","Library Technician",1,"Technical Services Aide",{"v":14.42,"d":"$14.42"},"",20,"No",0,0]
["21","NEWPORT","NPT","NEWPORT PUBLIC LIBRARY","Library Technician",1,"Library Technician",{"v":14.42,"d":"$14.42"},"",25,"No",0,0]
["21","NEWPORT","NPT","NEWPORT PUBLIC LIBRARY","Library Associate",1,"Children\\'s Aide",{"v":18.78,"d":"$18.78"},"",20,"No",0,0]
["21","NEWPORT","NPT","NEWPORT PUBLIC LIBRARY","Aide/Page",9,"Page",{"v":9.5,"d":"$9.50"},"",120,"No",{"$f":"IF(K388=\"yes\",F388,0)","v":0},{"$f":"IF(K388=\"YES\",J388,0)","v":0}]
["22","NORTH KINGSTOWN","DPL","DAVISVILLE FREE LIBRARY","3",4,"3",{"v":17.76,"d":"$17.76"},"",{"v":13.16667,"d":"13.2"},{"$f":"SUM(L390:L392)","v":2},{"$f":"SUM(M390:M392)","v":35}]
["22","NORTH KINGSTOWN","DPL","DAVISVILLE FREE LIBRARY","Director",1,"Director",{"v":28.28,"d":"$28.28"},"",17,"Yes",1,17]
["22","NORTH KINGSTOWN","DPL","DAVISVILLE FREE LIBRARY","Deputy/Associate/Assistant Director",1,"Asst. Director",{"v":14,"d":"$14.00"},"",18,"Yes",1,18]
["22","NORTH KINGSTOWN","DPL","DAVISVILLE FREE LIBRARY","Library Associate",2,"Library Assistant",{"v":11,"d":"$11.00"},"",4.5,"No",0,0]
["22","NORTH KINGSTOWN","NKI","NORTH KINGSTOWN FREE LIBRARY","18",21,"18",{"v":16.9725,"d":"$16.97"},{"v":48918.42857,"d":"$48,918"},{"v":32.11111,"d":"32.1"},{"$f":"SUM(L394:L411)","v":8},{"$f":"SUM(M394:M411)","v":275}]
["22","NORTH KINGSTOWN","NKI","NORTH KINGSTOWN FREE LIBRARY","Director",1,"Library Director","",{"v":77553,"d":"$77,553"},35,"Yes",1,35]
["22","NORTH KINGSTOWN","NKI","NORTH KINGSTOWN FREE LIBRARY","Deputy/Associate/Assistant Director",1,"Deputy Director","",{"v":73121,"d":"$73,121"},35,"Yes",1,35]
["22","NORTH KINGSTOWN","NKI","NORTH KINGSTOWN FREE LIBRARY","Manager/Department Head",1,"Reference & Nonfiction Coordinator","",{"v":55792,"d":"$55,792"},35,"Yes",1,35]
["22","NORTH KINGSTOWN","NKI","NORTH KINGSTOWN FREE LIBRARY","Manager/Department Head",1,"Young Readers & Teens Coordinator","",{"v":53473,"d":"$53,473"},35,"No",0,0]
["22","NORTH KINGSTOWN","NKI","NORTH KINGSTOWN FREE LIBRARY","Manager/Department Head",1,"Community Outreach Coordinator","",{"v":55792,"d":"$55,792"},35,"No",0,0]
["22","NORTH KINGSTOWN","NKI","NORTH KINGSTOWN FREE LIBRARY","Deputy/Associate/Assistant Director",1,"Fiction & Readers\\' Advisor Coordinator","",{"v":48391,"d":"$48,391"},35,"Yes",1,35]
["22","NORTH KINGSTOWN","NKI","NORTH KINGSTOWN FREE LIBRARY","Manager/Department Head",1,"Technology Coordinator","",{"v":48391,"d":"$48,391"},35,"No",0,0]
["22","NORTH KINGSTOWN","NKI","NORTH KINGSTOWN FREE LIBRARY","Reference/Information Librarian",1,"Reference & Local History Librarian","",{"v":47823,"d":"$47,823"},35,"Yes",1,35]
["22","NORTH KINGSTOWN","NKI","NORTH KINGSTOWN FREE LIBRARY","Childrens and/or Young Adult Services Librarian",1,"Young Adult/Assistant Children\\'s Librarian","",{"v":38918,"d":"$38,918"},35,"Yes",1,35]
["22","NORTH KINGSTOWN","NKI","NORTH KINGSTOWN FREE LIBRARY","Library Associate",1,"ILL/Acquisitions","",{"v":41277,"d":"$41,277"},35,"No",0,0]
["22","NORTH KINGSTOWN","NKI","NORTH KINGSTOWN FREE LIBRARY","Library Associate",1,"Circulation Supervisor","",{"v":38475,"d":"$38,475"},35,"No",0,0]
["22","NORTH KINGSTOWN","NKI","NORTH KINGSTOWN FREE LIBRARY","Library Technician",1,"Circulation ","",{"v":38605,"d":"$38,605"},35,"No",0,0]
["22","NORTH KINGSTOWN","NKI","NORTH KINGSTOWN FREE LIBRARY","Library Technician",1,"Circulation","",{"v":35746,"d":"$35,746"},35,"No",0,0]
["22","NORTH KINGSTOWN","NKI","NORTH KINGSTOWN FREE LIBRARY","Aide/Page",1,"Senior Library Clerk","",{"v":31501,"d":"$31,501"},35,"Yes",1,35]
["22","NORTH KINGSTOWN","NKI","NORTH KINGSTOWN FREE LIBRARY","Aide/Page",1,"Library Clerk",{"v":15.91,"d":"$15.91"},"",30,"Yes",1,30]
["22","NORTH KINGSTOWN","NKI","NORTH KINGSTOWN FREE LIBRARY","Aide/Page",4,"Intern",{"v":13,"d":"$13.00"},"",10,"No",0,0]
["22","NORTH KINGSTOWN","NKI","NORTH KINGSTOWN FREE LIBRARY","Buildings/Ground Staff",1,"Morning Custodian",{"v":19.49,"d":"$19.49"},"",20,"No",0,0]
["22","NORTH KINGSTOWN","NKI","NORTH KINGSTOWN FREE LIBRARY","Buildings/Ground Staff",1,"EveningCustodian",{"v":19.49,"d":"$19.49"},"",28,"No",0,0]
["22","NORTH KINGSTOWN","WIL","WILLETT FREE LIBRARY","4",4,"4",{"v":13.8375,"d":"$13.84"},{"v":10763,"d":"$10,763"},{"v":12.875,"d":"12.9"},{"$f":"SUM(L413:L415)","v":2},{"$f":"SUM(M413:M415)","v":36.5}]
["22","NORTH KINGSTOWN","WIL","WILLETT FREE LIBRARY","Director",1,"Director",{"v":22.35,"d":"$22.35"},{"v":27602,"d":"$27,602"},25,"Yes",1,25]
["22","NORTH KINGSTOWN","WIL","WILLETT FREE LIBRARY","Branch Librarian",1,"Librarian",{"v":15,"d":"$15.00"},{"v":8745,"d":"$8,745"},11.5,"Yes",1,11.5]
["22","NORTH KINGSTOWN","WIL","WILLETT FREE LIBRARY","Library Associate",1,"Library Assistant",{"v":9,"d":"$9.00"},{"v":4590,"d":"$4,590"},10,"No",0,0]
["23","NORTH PROVIDENCE","NPR","NORTH PROVIDENCE UNION FREE","26",29,"26",{"v":10.8275,"d":"$10.83"},{"v":42671,"d":"$42,671"},{"v":23.15385,"d":"23.2"},{"$f":"SUM(L417:L442)","v":7},{"$f":"SUM(M417:M442)","v":209}]
["23","NORTH PROVIDENCE","NPR","NORTH PROVIDENCE UNION FREE","Director",1,"Director","",{"v":70175,"d":"$70,175"},35,"Yes",1,35]
["23","NORTH PROVIDENCE","NPR","NORTH PROVIDENCE UNION FREE","Deputy/Associate/Assistant Director",1,"Information Technology","",{"v":41199,"d":"$41,199"},35,"No",0,0]
["23","NORTH PROVIDENCE","NPR","NORTH PROVIDENCE UNION FREE","Manager/Department Head",1,"Youth Services Librarian","",{"v":46335,"d":"$46,335"},35,"Yes",1,35]
["23","NORTH PROVIDENCE","NPR","NORTH PROVIDENCE UNION FREE","Manager/Department Head",1,"Collection Development Librarian","",{"v":37362,"d":"$37,362"},35,"Yes",1,35]
["23","NORTH PROVIDENCE","NPR","NORTH PROVIDENCE UNION FREE","Manager/Department Head",1,"Circulation Manager","",{"v":39071,"d":"$39,071"},35,"No",0,0]
["23","NORTH PROVIDENCE","NPR","NORTH PROVIDENCE UNION FREE","Manager/Department Head",1,"Circulation Supervisor",{"v":12.89,"d":"$12.89"},"",19,"No",0,0]
["23","NORTH PROVIDENCE","NPR","NORTH PROVIDENCE UNION FREE","Manager/Department Head",1,"Assistant Circulation Manager","",{"v":31951,"d":"$31,951"},35,"No",0,0]
["23","NORTH PROVIDENCE","NPR","NORTH PROVIDENCE UNION FREE","Manager/Department Head",1,"Reference Department Head","",{"v":51174,"d":"$51,174"},35,"Yes",1,35]
["23","NORTH PROVIDENCE","NPR","NORTH PROVIDENCE UNION FREE","Childrens and/or Young Adult Services Librarian",1,"Children\\'s Program Assistant",{"v":14.82,"d":"$14.82"},"",19,"Yes",1,19]
["23","NORTH PROVIDENCE","NPR","NORTH PROVIDENCE UNION FREE","Reference/Information Librarian",1,"Reference/Information Librarian",{"v":10.43,"d":"$10.43"},"",15,"Yes",1,15]
["23","NORTH PROVIDENCE","NPR","NORTH PROVIDENCE UNION FREE","Reference/Information Librarian",1,"Reference/Information Librarian","",{"v":44600,"d":"$44,600"},35,"Yes",1,35]
["23","NORTH PROVIDENCE","NPR","NORTH PROVIDENCE UNION FREE","Library Technician",1,"Circulation Associate",{"v":9.39,"d":"$9.39"},"",17,"No",0,0]
["23","NORTH PROVIDENCE","NPR","NORTH PROVIDENCE UNION FREE","Library Technician",1,"Circulation Associate",{"v":10.21,"d":"$10.21"},"",15,"No",0,0]
["23","NORTH PROVIDENCE","NPR","NORTH PROVIDENCE UNION FREE","Library Technician",1,"Circulation Associate",{"v":9.66,"d":"$9.66"},"",15,"No",0,0]
["23","NORTH PROVIDENCE","NPR","NORTH PROVIDENCE UNION FREE","Library Technician",1,"Circulation Associate",{"v":11.43,"d":"$11.43"},"",12,"No",0,0]
["23","NORTH PROVIDENCE","NPR","NORTH PROVIDENCE UNION FREE","Library Technician",1,"Circulation Associate",{"v":11.82,"d":"$11.82"},"",19,"No",0,0]
["23","NORTH PROVIDENCE","NPR","NORTH PROVIDENCE UNION FREE","Library Technician",1,"Reference Associate",{"v":11.43,"d":"$11.43"},"",18,"No",0,0]
["23","NORTH PROVIDENCE","NPR","NORTH PROVIDENCE UNION FREE","Library Technician",1,"Reference Associate",{"v":9.63,"d":"$9.63"},"",15,"No",0,0]
["23","NORTH PROVIDENCE","NPR","NORTH PROVIDENCE UNION FREE","Library Technician",1,"Reference Associate",{"v":9,"d":"$9.00"},"",18,"No",0,0]
["23","NORTH PROVIDENCE","NPR","NORTH PROVIDENCE UNION FREE","Library Technician",1,"Sr. Children\\'s Associate",{"v":12.59,"d":"$12.59"},"",16,"No",0,0]
["23","NORTH PROVIDENCE","NPR","NORTH PROVIDENCE UNION FREE","Office Staff",1,"Executive Assistant","",{"v":40059,"d":"$40,059"},35,"No",0,0]
["23","NORTH PROVIDENCE","NPR","NORTH PROVIDENCE UNION FREE","Buildings/Ground Staff",1,"Maintenance/Custodian","",{"v":24784,"d":"$24,784"},22.5,"No",0,0]
["23","NORTH PROVIDENCE","NPR","NORTH PROVIDENCE UNION FREE","Buildings/Ground Staff",1,"Maintenance/Assistance",{"v":12.55,"d":"$12.55"},"",19.5,"No",0,0]
["23","NORTH PROVIDENCE","NPR","NORTH PROVIDENCE UNION FREE","Library Technician",2,"Circulation Associate",{"v":9,"d":"$9.00"},"",17,"No",0,0]
["23","NORTH PROVIDENCE","NPR","NORTH PROVIDENCE UNION FREE","Library Technician",3,"Children\\'s Associate",{"v":9.39,"d":"$9.39"},"",15,"No",0,0]
["23","NORTH PROVIDENCE","NPR","NORTH PROVIDENCE UNION FREE","Library Technician",1,"Circulation Associate",{"v":9,"d":"$9.00"},"",15,"No",0,0]
["24","NORTH SMITHFIELD","NSM","NORTH SMITHFIELD PUBLIC LIBRARY","9",9,"9",{"v":12.46,"d":"$12.46"},{"v":47603.33333,"d":"$47,603"},{"v":24.77778,"d":"24.8"},{"$f":"SUM(L444:L452)","v":3},{"$f":"SUM(M444:M452)","v":110}]
["24","NORTH SMITHFIELD","NSM","NORTH SMITHFIELD PUBLIC LIBRARY","Director",1,"DIRECTOR","",{"v":61984,"d":"$61,984"},40,"Yes",1,40]
["24","NORTH SMITHFIELD","NSM","NORTH SMITHFIELD PUBLIC LIBRARY","Childrens and/or Young Adult Services Librarian",1,"YOUTH SERVICES","",{"v":44426,"d":"$44,426"},35,"Yes",1,35]
["24","NORTH SMITHFIELD","NSM","NORTH SMITHFIELD PUBLIC LIBRARY","Reference/Information Librarian",1,"REFERENCE","",{"v":36400,"d":"$36,400"},35,"Yes",1,35]
["24","NORTH SMITHFIELD","NSM","NORTH SMITHFIELD PUBLIC LIBRARY","Technical Services Librarian",1,"CATALOGER",{"v":18.17,"d":"$18.17"},"",30,"No",0,0]
["24","NORTH SMITHFIELD","NSM","NORTH SMITHFIELD PUBLIC LIBRARY","Library Associate",1,"CIRCULATION",{"v":13.12,"d":"$13.12"},"",21,"No",0,0]
["24","NORTH SMITHFIELD","NSM","NORTH SMITHFIELD PUBLIC LIBRARY","Library Associate",1,"CIRCULATION",{"v":11.14,"d":"$11.14"},"",21,"No",0,0]
["24","NORTH SMITHFIELD","NSM","NORTH SMITHFIELD PUBLIC LIBRARY","Library Associate",1,"CIRCULATION",{"v":11.33,"d":"$11.33"},"",26,"No",0,0]
["24","NORTH SMITHFIELD","NSM","NORTH SMITHFIELD PUBLIC LIBRARY","Library Associate",1,"CIRCULATION",{"v":10,"d":"$10.00"},"",10,"No",0,0]
["24","NORTH SMITHFIELD","NSM","NORTH SMITHFIELD PUBLIC LIBRARY","Library Associate",1,"CIRCULATION",{"v":11,"d":"$11.00"},"",5,"No",{"$f":"IF(K452=\"yes\",F452,0)","v":0},{"$f":"IF(K452=\"YES\",J452,0)","v":0}]
["25","PAWTUCKET","PAW","PAWTUCKET PUBLIC LIBRARY","22",31,"22",{"v":21.793,"d":"$21.79"},{"v":37285.40909,"d":"$37,285"},{"v":30.95455,"d":"31.0"},{"$f":"SUM(L454:L475)","v":11},{"$f":"SUM(M454:M475)","v":264}]
["25","PAWTUCKET","PAW","PAWTUCKET PUBLIC LIBRARY","Director",1,"Director","",{"v":69484,"d":"$69,484"},35,"Yes",1,35]
["25","PAWTUCKET","PAW","PAWTUCKET PUBLIC LIBRARY","Deputy/Associate/Assistant Director",1,"Assistant Director",{"v":35.68,"d":"$35.68"},{"v":64938,"d":"$64,938"},35,"Yes",1,35]
["25","PAWTUCKET","PAW","PAWTUCKET PUBLIC LIBRARY","Manager/Department Head",3,"Coordinator",{"v":31.88,"d":"$31.88"},{"v":58017,"d":"$58,017"},35,"Yes",3,35]
["25","PAWTUCKET","PAW","PAWTUCKET PUBLIC LIBRARY","Reference/Information Librarian",2,"Reference Librarian",{"v":28.05,"d":"$28.05"},{"v":51060,"d":"$51,060"},35,"Yes",2,35]
["25","PAWTUCKET","PAW","PAWTUCKET PUBLIC LIBRARY","Technical Services Librarian",1,"Technical Services Librarian",{"v":28.05,"d":"$28.05"},{"v":51060,"d":"$51,060"},35,"Yes",1,35]
["25","PAWTUCKET","PAW","PAWTUCKET PUBLIC LIBRARY","Childrens and/or Young Adult Services Librarian",1,"Children\\'s Librarian",{"v":28.05,"d":"$28.05"},{"v":51060,"d":"$51,060"},35,"Yes",1,35]
["25","PAWTUCKET","PAW","PAWTUCKET PUBLIC LIBRARY","Childrens and/or Young Adult Services Librarian",1,"Children\\'s Librarian",{"v":28.05,"d":"$28.05"},{"v":27718,"d":"$27,718"},19,"Yes",1,19]
["25","PAWTUCKET","PAW","PAWTUCKET PUBLIC LIBRARY","Manager/Department Head",1,"Circulation Supervisor",{"v":23.95,"d":"$23.95"},{"v":43589,"d":"$43,589"},35,"No",0,0]
["25","PAWTUCKET","PAW","PAWTUCKET PUBLIC LIBRARY","Library Technician",1,"Library Assistant I Circ ",{"v":17.52,"d":"$17.52"},{"v":31880,"d":"$31,880"},35,"No",0,0]
["25","PAWTUCKET","PAW","PAWTUCKET PUBLIC LIBRARY","Library Technician",2,"Library Assistant II Circ",{"v":18.9,"d":"$18.90"},{"v":34402,"d":"$34,402"},35,"No",0,0]
["25","PAWTUCKET","PAW","PAWTUCKET PUBLIC LIBRARY","Library Associate",1,"BiLingual Computer Technician",{"v":19.93,"d":"$19.93"},{"v":36272,"d":"$36,272"},35,"No",0,0]
["25","PAWTUCKET","PAW","PAWTUCKET PUBLIC LIBRARY","Library Associate",1,"Library Assistant III",{"v":19.93,"d":"$19.93"},{"v":36272,"d":"$36,272"},35,"No",0,0]
["25","PAWTUCKET","PAW","PAWTUCKET PUBLIC LIBRARY","Library Associate",2,"Bookmobile Operator/Clerk",{"v":19.93,"d":"$19.93"},{"v":19690,"d":"$19,690"},19,"No",0,0]
["25","PAWTUCKET","PAW","PAWTUCKET PUBLIC LIBRARY","Library Technician",2,"Library Assistant I",{"v":16.95,"d":"$16.95"},{"v":16743,"d":"$16,743"},19,"No",0,0]
["25","PAWTUCKET","PAW","PAWTUCKET PUBLIC LIBRARY","Library Technician",1,"Library Assistant II",{"v":18.47,"d":"$18.47"},{"v":33611,"d":"$33,611"},35,"No",0,0]
["25","PAWTUCKET","PAW","PAWTUCKET PUBLIC LIBRARY","Aide/Page",3,"Library Senior Page",{"v":11.37,"d":"$11.37"},{"v":11234,"d":"$11,234"},19,"No",0,0]
["25","PAWTUCKET","PAW","PAWTUCKET PUBLIC LIBRARY","Aide/Page",2,"Library Page",{"v":10.5,"d":"$10.50"},{"v":10379,"d":"$10,379"},19,"No",0,0]
["25","PAWTUCKET","PAW","PAWTUCKET PUBLIC LIBRARY","Office Staff",1,"Secretary",{"v":21.42,"d":"$21.42"},{"v":44543,"d":"$44,543"},40,"No",0,0]
["25","PAWTUCKET","PAW","PAWTUCKET PUBLIC LIBRARY","Buildings/Ground Staff",1,"Custodian",{"v":15.93,"d":"$15.93"},{"v":33125,"d":"$33,125"},40,"No",0,0]
["25","PAWTUCKET","PAW","PAWTUCKET PUBLIC LIBRARY","Childrens and/or Young Adult Services Librarian",1,"Teen Librarian",{"v":28.05,"d":"$28.05"},{"v":51060,"d":"$51,060"},35,"Yes",1,35]
["25","PAWTUCKET","PAW","PAWTUCKET PUBLIC LIBRARY","Manager/Department Head",1,"Literacy Coordinator","",{"v":35662,"d":"$35,662"},35,"No",0,0]
["25","PAWTUCKET","PAW","PAWTUCKET PUBLIC LIBRARY","Buildings/Ground Staff",1,"Security Guard",{"v":13.25,"d":"$13.25"},{"v":8480,"d":"$8,480"},16,"No",0,0]
["26","PORTSMOUTH","POR","PORTSMOUTH FREE PUBLIC LIBRARY","14",21,"14",{"v":15.37,"d":"$15.37"},{"v":46205,"d":"$46,205"},{"v":26.23077,"d":"26.2"},{"$f":"SUM(L477:L490)","v":3},{"$f":"SUM(M477:M490)","v":105}]
["26","PORTSMOUTH","POR","PORTSMOUTH FREE PUBLIC LIBRARY","Director",1,"Director","",{"v":59928,"d":"$59,928"},35,"Yes",1,35]
["26","PORTSMOUTH","POR","PORTSMOUTH FREE PUBLIC LIBRARY","Childrens and/or Young Adult Services Librarian",1,"Children\\'s Librarian","",{"v":44946,"d":"$44,946"},35,"Yes",1,35]
["26","PORTSMOUTH","POR","PORTSMOUTH FREE PUBLIC LIBRARY","Reference/Information Librarian",1,"Reference/Young Adult","",{"v":44946,"d":"$44,946"},35,"Yes",1,35]
["26","PORTSMOUTH","POR","PORTSMOUTH FREE PUBLIC LIBRARY","Library Associate",1,"Library Assistant Refernece",{"v":16.19,"d":"$16.19"},"",35,"No",0,0]
["26","PORTSMOUTH","POR","PORTSMOUTH FREE PUBLIC LIBRARY","Library Technician",1,"Senior Library Assistant",{"v":17.27,"d":"$17.27"},"",35,"No",0,0]
["26","PORTSMOUTH","POR","PORTSMOUTH FREE PUBLIC LIBRARY","Buildings/Ground Staff",1,"Custodian",{"v":13.7,"d":"$13.70"},"",35,"No",0,0]
["26","PORTSMOUTH","POR","PORTSMOUTH FREE PUBLIC LIBRARY","Office Staff",1,"Office Manager","",{"v":35000,"d":"$35,000"},35,"No",0,0]
["26","PORTSMOUTH","POR","PORTSMOUTH FREE PUBLIC LIBRARY","Library Associate",3,"Library Assistant Sunday",{"v":12,"d":"$12.00"},"",4,"No",0,0]
["26","PORTSMOUTH","POR","PORTSMOUTH FREE PUBLIC LIBRARY","Reference/Information Librarian",2,"Reference Librarian Sunday",{"v":26,"d":"$26.00"},"",4,"No",0,0]
["26","PORTSMOUTH","POR","PORTSMOUTH FREE PUBLIC LIBRARY","Library Associate",5,"Library Assistant Children\\'s",{"v":12.05,"d":"$12.05"},"","","No",0,0]
["26","PORTSMOUTH","POR","PORTSMOUTH FREE PUBLIC LIBRARY","Library Associate",1,"Library Assistant Circulation Full Time",{"v":16.19,"d":"$16.19"},"",35,"No",0,0]
["26","PORTSMOUTH","POR","PORTSMOUTH FREE PUBLIC LIBRARY","Library Associate",1,"Library Assistant Circulation Part Time",{"v":13.75,"d":"$13.75"},"",27,"No",0,0]
["26","PORTSMOUTH","POR","PORTSMOUTH FREE PUBLIC LIBRARY","Library Associate",1,"Library Assistant Circulation Part Time",{"v":12.05,"d":"$12.05"},"",22,"No",0,0]
["26","PORTSMOUTH","POR","PORTSMOUTH FREE PUBLIC LIBRARY","Library Associate",1,"Sunday Library Assistant",{"v":14.5,"d":"$14.50"},"",4,"No",0,0]
["27","PROVIDENCE","PCL","PROVIDENCE COMMUNITY LIBRARY","25",68,"25","",{"v":52382.16,"d":"$52,382"},{"v":37.572,"d":"37.6"},{"$f":"SUM(L492:L516)","v":21},{"$f":"SUM(M492:M516)","v":257}]
["27","PROVIDENCE","PCL","PROVIDENCE COMMUNITY LIBRARY","Director",1,"Executive Director","",{"v":90000,"d":"$90,000"},40,"Yes",1,40]
["27","PROVIDENCE","PCL","PROVIDENCE COMMUNITY LIBRARY","Manager/Department Head",1,"Business Director","",{"v":80000,"d":"$80,000"},40,"No",0,0]
["27","PROVIDENCE","PCL","PROVIDENCE COMMUNITY LIBRARY","Manager/Department Head",1,"Development Director","",{"v":85000,"d":"$85,000"},40,"No",0,0]
["27","PROVIDENCE","PCL","PROVIDENCE COMMUNITY LIBRARY","Office Staff",1,"Human Resources Specialist","",{"v":50000,"d":"$50,000"},40,"No",0,0]
["27","PROVIDENCE","PCL","PROVIDENCE COMMUNITY LIBRARY","Office Staff",1,"Administrative Assistant","",{"v":40000,"d":"$40,000"},40,"No",0,0]
["27","PROVIDENCE","PCL","PROVIDENCE COMMUNITY LIBRARY","Manager/Department Head",1,"IT Director","",{"v":62000,"d":"$62,000"},40,"No",0,0]
["27","PROVIDENCE","PCL","PROVIDENCE COMMUNITY LIBRARY","Manager/Department Head",1,"Web/Computer Training Specialist","",{"v":51695,"d":"$51,695"},40,"No",0,0]
["27","PROVIDENCE","PCL","PROVIDENCE COMMUNITY LIBRARY","Manager/Department Head",1,"Program Coordinator","",{"v":65998,"d":"$65,998"},40,"No",0,0]
["27","PROVIDENCE","PCL","PROVIDENCE COMMUNITY LIBRARY","Manager/Department Head",1,"Youth Program Coordinator","",{"v":58929,"d":"$58,929"},35,"Yes",1,35]
["27","PROVIDENCE","PCL","PROVIDENCE COMMUNITY LIBRARY","Manager/Department Head",1,"Latino Program Coordinator","",{"v":44402,"d":"$44,402"},37.5,"No",0,0]
["27","PROVIDENCE","PCL","PROVIDENCE COMMUNITY LIBRARY","Manager/Department Head",1,"IMLS  coordinator","",{"v":18000,"d":"$18,000"},20,"No",0,0]
["27","PROVIDENCE","PCL","PROVIDENCE COMMUNITY LIBRARY","Branch Librarian",6,"Library Manager","",{"v":49834,"d":"$49,834"},37.5,"Yes",6,37.5]
["27","PROVIDENCE","PCL","PROVIDENCE COMMUNITY LIBRARY","Manager/Department Head",3,"Regional Librarian","",{"v":56836,"d":"$56,836"},40,"Yes",3,40]
["27","PROVIDENCE","PCL","PROVIDENCE COMMUNITY LIBRARY","Reference/Information Librarian",6,"Adult Services Librarian","",{"v":59375,"d":"$59,375"},27,"Yes",6,27]
["27","PROVIDENCE","PCL","PROVIDENCE COMMUNITY LIBRARY","Library Associate",19,"Library Clerk","",{"v":31742,"d":"$31,742"},32.3,"No",0,0]
["27","PROVIDENCE","PCL","PROVIDENCE COMMUNITY LIBRARY","Library Associate",3,"Library Clerk Supervisor","",{"v":37582,"d":"$37,582"},37.5,"No",0,0]
["27","PROVIDENCE","PCL","PROVIDENCE COMMUNITY LIBRARY","Childrens and/or Young Adult Services Librarian",3,"Children\\'s Librarian","",{"v":45487,"d":"$45,487"},37.5,"Yes",3,37.5]
["27","PROVIDENCE","PCL","PROVIDENCE COMMUNITY LIBRARY","Library Associate",8,"Children\\'s Specialist","",{"v":44819,"d":"$44,819"},37.5,"No",0,0]
["27","PROVIDENCE","PCL","PROVIDENCE COMMUNITY LIBRARY","Technical Services Librarian",1,"Head of Collection Management Services","",{"v":53825,"d":"$53,825"},40,"Yes",1,40]
["27","PROVIDENCE","PCL","PROVIDENCE COMMUNITY LIBRARY","Library Associate",1,"Collection Management Services Spoecialist","",{"v":48828,"d":"$48,828"},40,"No",0,0]
["27","PROVIDENCE","PCL","PROVIDENCE COMMUNITY LIBRARY","Library Associate",1,"AV Tech. Library Clerk","",{"v":34866,"d":"$34,866"},37.5,"No",0,0]
["27","PROVIDENCE","PCL","PROVIDENCE COMMUNITY LIBRARY","Manager/Department Head",1,"Head of Maintenance","",{"v":68890,"d":"$68,890"},40,"No",0,0]
["27","PROVIDENCE","PCL","PROVIDENCE COMMUNITY LIBRARY","Buildings/Ground Staff",2,"Maintenance Worker","",{"v":56379,"d":"$56,379"},40,"No",0,0]
["27","PROVIDENCE","PCL","PROVIDENCE COMMUNITY LIBRARY","Buildings/Ground Staff",1,"Head Custodian","",{"v":41891,"d":"$41,891"},40,"No",0,0]
["27","PROVIDENCE","PCL","PROVIDENCE COMMUNITY LIBRARY","Buildings/Ground Staff",2,"Custodian","",{"v":33176,"d":"$33,176"},40,"No",{"$f":"IF(K516=\"yes\",F516,0)","v":0},{"$f":"IF(K516=\"YES\",J516,0)","v":0}]
["27","PROVIDENCE","PRO","PROVIDENCE PUBLIC LIBRARY","53",61,"53",{"v":0,"d":"$0.00"},{"v":42692.71698,"d":"$42,693"},{"v":28.41509,"d":"28.4"},{"$f":"SUM(L518:L570)","v":18},{"$f":"SUM(M518:M570)","v":517.5}]
["27","PROVIDENCE","PRO","PROVIDENCE PUBLIC LIBRARY","Director",1,"Director","",{"v":122402,"d":"$122,402"},37.5,"Yes",1,37.5]
["27","PROVIDENCE","PRO","PROVIDENCE PUBLIC LIBRARY","Deputy/Associate/Assistant Director",1,"Assistant Director","",{"v":91455,"d":"$91,455"},37.5,"Yes",1,37.5]
["27","PROVIDENCE","PRO","PROVIDENCE PUBLIC LIBRARY","Manager/Department Head",1,"Business Manager","",{"v":77532,"d":"$77,532"},37.5,"No",0,0]
["27","PROVIDENCE","PRO","PROVIDENCE PUBLIC LIBRARY","Manager/Department Head",1,"Director of Marketing","",{"v":71858,"d":"$71,858"},37.5,"No",0,0]
["27","PROVIDENCE","PRO","PROVIDENCE PUBLIC LIBRARY","Manager/Department Head",1,"Facilities Manager","",{"v":67642,"d":"$67,642"},40,"No",0,0]
["27","PROVIDENCE","PRO","PROVIDENCE PUBLIC LIBRARY","Library Associate",1,"Library Clerk","",{"v":2552,"d":"$2,552"},4,"No",0,0]
["27","PROVIDENCE","PRO","PROVIDENCE PUBLIC LIBRARY","Manager/Department Head",1,"Children\\'s Dept. Head","",{"v":61991,"d":"$61,991"},37.5,"Yes",1,37.5]
["27","PROVIDENCE","PRO","PROVIDENCE PUBLIC LIBRARY","Reference/Information Librarian",1,"Librarian","",{"v":2016,"d":"$2,016"},2,"Yes",1,2]
["27","PROVIDENCE","PRO","PROVIDENCE PUBLIC LIBRARY","Reference/Information Librarian",1,"Librarian","",{"v":43758,"d":"$43,758"},37.5,"Yes",1,37.5]
["27","PROVIDENCE","PRO","PROVIDENCE PUBLIC LIBRARY","Reference/Information Librarian",2,"Librarian","",{"v":20049,"d":"$20,049"},18,"Yes",2,18]
["27","PROVIDENCE","PRO","PROVIDENCE PUBLIC LIBRARY","Manager/Department Head",1,"Program Coordinator","",{"v":68543,"d":"$68,543"},37.5,"No",0,0]
["27","PROVIDENCE","PRO","PROVIDENCE PUBLIC LIBRARY","Library Associate",1,"Citizenship Coord. Lead ESOL Teacher","",{"v":42003,"d":"$42,003"},37.5,"No",0,0]
["27","PROVIDENCE","PRO","PROVIDENCE PUBLIC LIBRARY","Library Associate",1,"Lead ESOL Teacher","",{"v":38961,"d":"$38,961"},37.5,"No",0,0]
["27","PROVIDENCE","PRO","PROVIDENCE PUBLIC LIBRARY","Library Associate",4,"Library Clerk","",{"v":36660,"d":"$36,660"},37.5,"No",0,0]
["27","PROVIDENCE","PRO","PROVIDENCE PUBLIC LIBRARY","Manager/Department Head",1,"RI Collection Librarian","",{"v":57233,"d":"$57,233"},37.5,"Yes",1,37.5]
["27","PROVIDENCE","PRO","PROVIDENCE PUBLIC LIBRARY","Manager/Department Head",1,"Business Services Head","",{"v":61913,"d":"$61,913"},37.5,"Yes",1,37.5]
["27","PROVIDENCE","PRO","PROVIDENCE PUBLIC LIBRARY","Manager/Department Head",1,"Circulation Head","",{"v":47658,"d":"$47,658"},37.5,"No",0,0]
["27","PROVIDENCE","PRO","PROVIDENCE PUBLIC LIBRARY","Manager/Department Head",1,"Lead ESOL Teacher","",{"v":48867,"d":"$48,867"},37.5,"No",0,0]
["27","PROVIDENCE","PRO","PROVIDENCE PUBLIC LIBRARY","Manager/Department Head",1,"Special Collections Librarian","",{"v":63375,"d":"$63,375"},37.5,"Yes",1,37.5]
["27","PROVIDENCE","PRO","PROVIDENCE PUBLIC LIBRARY","Childrens and/or Young Adult Services Librarian",1,"Early Childhood Specialist","",{"v":57740,"d":"$57,740"},37.5,"No",0,0]
["27","PROVIDENCE","PRO","PROVIDENCE PUBLIC LIBRARY","Manager/Department Head",1,"Dir. RIFLI Adult Literacy","",{"v":53430,"d":"$53,430"},37.5,"No",0,0]
["27","PROVIDENCE","PRO","PROVIDENCE PUBLIC LIBRARY","Library Associate",1,"Children\\'s Teacher Coord.","",{"v":3230,"d":"$3,230"},4,"No",0,0]
["27","PROVIDENCE","PRO","PROVIDENCE PUBLIC LIBRARY","Office Staff",1,"Sr. H.R. Administrator","",{"v":61328,"d":"$61,328"},37.5,"No",0,0]
["27","PROVIDENCE","PRO","PROVIDENCE PUBLIC LIBRARY","Manager/Department Head",1,"Technical Services Head","",{"v":64935,"d":"$64,935"},37.5,"Yes",1,37.5]
["27","PROVIDENCE","PRO","PROVIDENCE PUBLIC LIBRARY","Library Technician",1,"Computer Support Specialist","",{"v":59027,"d":"$59,027"},37.5,"No",0,0]
["27","PROVIDENCE","PRO","PROVIDENCE PUBLIC LIBRARY","Buildings/Ground Staff",2,"Maintenance Staff","",{"v":56389,"d":"$56,389"},40,"No",0,0]
["27","PROVIDENCE","PRO","PROVIDENCE PUBLIC LIBRARY","Buildings/Ground Staff",1,"Security Supervisor","",{"v":39702,"d":"$39,702"},37.5,"No",0,0]
["27","PROVIDENCE","PRO","PROVIDENCE PUBLIC LIBRARY","Library Associate",1,"Asst. Literacy Coord.","",{"v":25974,"d":"$25,974"},25,"No",0,0]
["27","PROVIDENCE","PRO","PROVIDENCE PUBLIC LIBRARY","Buildings/Ground Staff",2,"Maintenance Asst.","",{"v":7049,"d":"$7,049"},5,"No",0,0]
["27","PROVIDENCE","PRO","PROVIDENCE PUBLIC LIBRARY","Office Staff",1,"Exec. Admin. Asst.","",{"v":50135,"d":"$50,135"},37.5,"No",0,0]
["27","PROVIDENCE","PRO","PROVIDENCE PUBLIC LIBRARY","Technical Services Librarian",2,"Cataloger","",{"v":10821,"d":"$10,821"},10,"Yes",2,10]
["27","PROVIDENCE","PRO","PROVIDENCE PUBLIC LIBRARY","Library Technician",1,"Tech Trainer","",{"v":28567,"d":"$28,567"},24,"No",0,0]
["27","PROVIDENCE","PRO","PROVIDENCE PUBLIC LIBRARY","Aide/Page",1,"Library Outreach","",{"v":4160,"d":"$4,160"},8,"No",0,0]
["27","PROVIDENCE","PRO","PROVIDENCE PUBLIC LIBRARY","Library Associate",1,"Clerical Supervisor","",{"v":19552,"d":"$19,552"},20,"No",0,0]
["27","PROVIDENCE","PRO","PROVIDENCE PUBLIC LIBRARY","Library Associate",1,"Stack Clerk","",{"v":28041,"d":"$28,041"},37.5,"No",0,0]
["27","PROVIDENCE","PRO","PROVIDENCE PUBLIC LIBRARY","Office Staff",1,"Senior Accountant","",{"v":55302,"d":"$55,302"},37.5,"No",0,0]
["27","PROVIDENCE","PRO","PROVIDENCE PUBLIC LIBRARY","Manager/Department Head",1,"Reference Head","",{"v":65364,"d":"$65,364"},37.5,"Yes",1,37.5]
["27","PROVIDENCE","PRO","PROVIDENCE PUBLIC LIBRARY","Library Associate",1,"Lead ESOL Teacher","",{"v":38961,"d":"$38,961"},37.5,"No",0,0]
["27","PROVIDENCE","PRO","PROVIDENCE PUBLIC LIBRARY","Library Associate",1,"Asst. Citizenship Teacher","",{"v":3120,"d":"$3,120"},4,"No",0,0]
["27","PROVIDENCE","PRO","PROVIDENCE PUBLIC LIBRARY","Library Associate",1,"Lead ESOL Teacher","",{"v":7992,"d":"$7,992"},8,"No",0,0]
["27","PROVIDENCE","PRO","PROVIDENCE PUBLIC LIBRARY","Library Associate",1,"Lead ESOL Teacher","",{"v":20374,"d":"$20,374"},20,"No",0,0]
["27","PROVIDENCE","PRO","PROVIDENCE PUBLIC LIBRARY","Library Associate",2,"Lead ESOL Teacher","",{"v":4075,"d":"$4,075"},4,"No",0,0]
["27","PROVIDENCE","PRO","PROVIDENCE PUBLIC LIBRARY","Manager/Department Head",1,"Director of Development","",{"v":92996,"d":"$92,996"},37.5,"No",0,0]
["27","PROVIDENCE","PRO","PROVIDENCE PUBLIC LIBRARY","Office Staff",1,"Adm. Asst.","",{"v":12480,"d":"$12,480"},15,"No",0,0]
["27","PROVIDENCE","PRO","PROVIDENCE PUBLIC LIBRARY","Library Associate",1,"Lead ESOL Teacher","",{"v":17981,"d":"$17,981"},18,"No",0,0]
["27","PROVIDENCE","PRO","PROVIDENCE PUBLIC LIBRARY","Library Associate",1,"Curotorial Asst.","",{"v":48009,"d":"$48,009"},37.5,"Yes",1,37.5]
["27","PROVIDENCE","PRO","PROVIDENCE PUBLIC LIBRARY","Library Associate",1,"Teen Edu. Librarian","",{"v":60996,"d":"$60,996"},37.5,"Yes",1,37.5]
["27","PROVIDENCE","PRO","PROVIDENCE PUBLIC LIBRARY","Library Associate",1,"Lead ESOL Teacher","",{"v":24973,"d":"$24,973"},20,"No",0,0]
["27","PROVIDENCE","PRO","PROVIDENCE PUBLIC LIBRARY","Library Technician",1,"Digital Producer","",{"v":55068,"d":"$55,068"},37.5,"Yes",1,37.5]
["27","PROVIDENCE","PRO","PROVIDENCE PUBLIC LIBRARY","Library Associate",1,"Grant Writer","",{"v":64994,"d":"$64,994"},37.5,"No",0,0]
["27","PROVIDENCE","PRO","PROVIDENCE PUBLIC LIBRARY","Manager/Department Head",1,"Tech Director","",{"v":76499,"d":"$76,499"},37.5,"Yes",1,37.5]
["27","PROVIDENCE","PRO","PROVIDENCE PUBLIC LIBRARY","Library Associate",1,"Citizens Teacher","",{"v":5994,"d":"$5,994"},6,"No",0,0]
["27","PROVIDENCE","PRO","PROVIDENCE PUBLIC LIBRARY","Library Associate",1,"Lead ESOL Teacher","",{"v":10988,"d":"$10,988"},11,"No",0,0]
["28","RICHMOND","CLA","CLARK MEMORIAL LIBRARY","7",7,"7",{"v":14.96833,"d":"$14.97"},{"v":33293,"d":"$33,293"},{"v":13.07143,"d":"13.1"},{"$f":"SUM(L572:L578)","v":1},{"$f":"SUM(M572:M578)","v":25}]
["28","RICHMOND","CLA","CLARK MEMORIAL LIBRARY","Director",1,"director","",{"v":33293,"d":"$33,293"},25,"Yes",1,25]
["28","RICHMOND","CLA","CLARK MEMORIAL LIBRARY","Deputy/Associate/Assistant Director",1,"assistant director",{"v":19.21,"d":"$19.21"},"",14,"No",0,0]
["28","RICHMOND","CLA","CLARK MEMORIAL LIBRARY","Library Associate",1,"library associate",{"v":16.39,"d":"$16.39"},"",7.5,"No",0,0]
["28","RICHMOND","CLA","CLARK MEMORIAL LIBRARY","Library Associate",1,"library associate",{"v":12.31,"d":"$12.31"},"",13,"No",0,0]
["28","RICHMOND","CLA","CLARK MEMORIAL LIBRARY","Library Associate",1,"library associate",{"v":15.19,"d":"$15.19"},"",20,"No",0,0]
["28","RICHMOND","CLA","CLARK MEMORIAL LIBRARY","Library Associate",1,"children\\'s specialist",{"v":11.72,"d":"$11.72"},"",10,"No",0,0]
["28","RICHMOND","CLA","CLARK MEMORIAL LIBRARY","Office Staff",1,"bookkeeper",{"v":14.99,"d":"$14.99"},"",2,"No",0,0]
["29","SCITUATE","HPE","HOPE LIBRARY","12",12,"12",{"v":14.38583,"d":"$14.39"},"",{"v":16.375,"d":"16.4"},{"$f":"SUM(L580:L591)","v":3},{"$f":"SUM(M580:M591)","v":76.5}]
["29","SCITUATE","HPE","HOPE LIBRARY","Director",1,"Director",{"v":31,"d":"$31.00"},"",35,"Yes",{"$f":"IF(K580=\"yes\",F580,0)","v":1},{"$f":"IF(K580=\"YES\",J580,0)","v":35}]
["29","SCITUATE","HPE","HOPE LIBRARY","Childrens and/or Young Adult Services Librarian",1,"Children\\'s Librarian",{"v":22,"d":"$22.00"},"",35,"Yes",1,35]
["29","SCITUATE","HPE","HOPE LIBRARY","Childrens and/or Young Adult Services Librarian",1,"Young Adult Librarian",{"v":17.5,"d":"$17.50"},"",24,"No",0,0]
["29","SCITUATE","HPE","HOPE LIBRARY","Childrens and/or Young Adult Services Librarian",1,"Children\\'s Librarian",{"v":16.8,"d":"$16.80"},"",6.5,"Yes",1,6.5]
["29","SCITUATE","HPE","HOPE LIBRARY","Library Technician",1,"Librarian Technician",{"v":10,"d":"$10.00"},"",14,"No",0,0]
["29","SCITUATE","HPE","HOPE LIBRARY","Library Technician",1,"Librarian Technician",{"v":10.75,"d":"$10.75"},"",6,"No",0,0]
["29","SCITUATE","HPE","HOPE LIBRARY","Library Technician",1,"Librarian Technician",{"v":10.25,"d":"$10.25"},"",15,"No",0,0]
["29","SCITUATE","HPE","HOPE LIBRARY","Library Technician",1,"Librarian Technician",{"v":11,"d":"$11.00"},"",8,"No",0,0]
["29","SCITUATE","HPE","HOPE LIBRARY","Library Technician",1,"Librarian Technician",{"v":10,"d":"$10.00"},"",15,"No",0,0]
["29","SCITUATE","HPE","HOPE LIBRARY","Library Technician",1,"Librarian Technician",{"v":10.75,"d":"$10.75"},"",18,"No",0,0]
["29","SCITUATE","HPE","HOPE LIBRARY","Buildings/Ground Staff",1,"Custodian",{"v":11.83,"d":"$11.83"},"",10,"No",0,0]
["29","SCITUATE","HPE","HOPE LIBRARY","Buildings/Ground Staff",1,"Custodian",{"v":10.75,"d":"$10.75"},"",10,"No",0,0]
["29","SCITUATE","SCI","NORTH SCITUATE PUBLIC LIBRARY","13",13,"13",{"v":14.3,"d":"$14.30"},{"v":59000,"d":"$59,000"},{"v":16.19231,"d":"16.2"},{"$f":"SUM(L593:L605)","v":5},{"$f":"SUM(M593:M605)","v":84}]
["29","SCITUATE","SCI","NORTH SCITUATE PUBLIC LIBRARY","Director",1,"Director","",{"v":59000,"d":"$59,000"},35,"Yes",1,35]
["29","SCITUATE","SCI","NORTH SCITUATE PUBLIC LIBRARY","Childrens and/or Young Adult Services Librarian",1,"Youth Services Librarian",{"v":25,"d":"$25.00"},"",23,"Yes",1,23]
["29","SCITUATE","SCI","NORTH SCITUATE PUBLIC LIBRARY","Reference/Information Librarian",1,"Reference Librarian",{"v":19.75,"d":"$19.75"},"",20,"Yes",1,20]
["29","SCITUATE","SCI","NORTH SCITUATE PUBLIC LIBRARY","Reference/Information Librarian",1,"Weekend Reference Librarian",{"v":15,"d":"$15.00"},"",3,"Yes",1,3]
["29","SCITUATE","SCI","NORTH SCITUATE PUBLIC LIBRARY","Reference/Information Librarian",1,"Weekend Reference Librarian",{"v":14.5,"d":"$14.50"},"",3,"Yes",1,3]
["29","SCITUATE","SCI","NORTH SCITUATE PUBLIC LIBRARY","Manager/Department Head",1,"Circulation Supervisor",{"v":17,"d":"$17.00"},"",32.5,"No",0,0]
["29","SCITUATE","SCI","NORTH SCITUATE PUBLIC LIBRARY","Office Staff",1,"Administrative Assistant/Cataloger",{"v":17.5,"d":"$17.50"},"",18,"No",0,0]
["29","SCITUATE","SCI","NORTH SCITUATE PUBLIC LIBRARY","Library Technician",1,"Circulation Assistant",{"v":13,"d":"$13.00"},"",32,"No",0,0]
["29","SCITUATE","SCI","NORTH SCITUATE PUBLIC LIBRARY","Library Technician",1,"Circulation Assistant",{"v":10,"d":"$10.00"},"",19,"No",0,0]
["29","SCITUATE","SCI","NORTH SCITUATE PUBLIC LIBRARY","Library Technician",1,"Circulation Assistant",{"v":9.6,"d":"$9.60"},"",11,"No",0,0]
["29","SCITUATE","SCI","NORTH SCITUATE PUBLIC LIBRARY","Library Technician",1,"Circulation Assistant",{"v":10,"d":"$10.00"},"",7,"No",0,0]
["29","SCITUATE","SCI","NORTH SCITUATE PUBLIC LIBRARY","Library Technician",1,"Circulation Assistant",{"v":10,"d":"$10.00"},"",4,"No",0,0]
["29","SCITUATE","SCI","NORTH SCITUATE PUBLIC LIBRARY","Library Technician",1,"Circulation Assistant",{"v":10.25,"d":"$10.25"},"",3,"No",0,0]
["30","SMITHFIELD","ESM","EAST SMITHFIELD PUBLIC LIBRARY","16",16,"16",{"v":18.99813,"d":"$19.00"},{"v":25004.0625,"d":"$25,004"},{"v":23.625,"d":"23.6"},{"$f":"SUM(L607:L622)","v":3},{"$f":"SUM(M607:M622)","v":92}]
["30","SMITHFIELD","ESM","EAST SMITHFIELD PUBLIC LIBRARY","Director",1,"Director",{"v":46.82,"d":"$46.82"},{"v":55997,"d":"$55,997"},23,"No",0,0]
["30","SMITHFIELD","ESM","EAST SMITHFIELD PUBLIC LIBRARY","Deputy/Associate/Assistant Director",1,"Assistant Director",{"v":36.64,"d":"$36.64"},{"v":70495,"d":"$70,495"},37,"Yes",1,37]
["30","SMITHFIELD","ESM","EAST SMITHFIELD PUBLIC LIBRARY","Manager/Department Head",1,"Manager",{"v":29.97,"d":"$29.97"},{"v":62296,"d":"$62,296"},40,"Yes",1,40]
["30","SMITHFIELD","ESM","EAST SMITHFIELD PUBLIC LIBRARY","Childrens and/or Young Adult Services Librarian",1,"Children\\'s/Young Adult Services Librarian",{"v":19.01,"d":"$19.01"},{"v":28667,"d":"$28,667"},29,"No",0,0]
["30","SMITHFIELD","ESM","EAST SMITHFIELD PUBLIC LIBRARY","Childrens and/or Young Adult Services Librarian",1,"Children\\'s/Young Adult Services Librarian",{"v":17.27,"d":"$17.27"},{"v":13471,"d":"$13,471"},15,"Yes",1,15]
["30","SMITHFIELD","ESM","EAST SMITHFIELD PUBLIC LIBRARY","Technical Services Librarian",1,"Technical Services Librarian",{"v":15.68,"d":"$15.68"},{"v":13046,"d":"$13,046"},16,"No",0,0]
["30","SMITHFIELD","ESM","EAST SMITHFIELD PUBLIC LIBRARY","Library Associate",1,"Library Associate",{"v":22.05,"d":"$22.05"},{"v":40131,"d":"$40,131"},35,"No",0,0]
["30","SMITHFIELD","ESM","EAST SMITHFIELD PUBLIC LIBRARY","Library Associate",1,"Library Associate",{"v":15.71,"d":"$15.71"},{"v":28592,"d":"$28,592"},35,"No",0,0]
["30","SMITHFIELD","ESM","EAST SMITHFIELD PUBLIC LIBRARY","Library Technician",1,"Library Technician",{"v":11.55,"d":"$11.55"},{"v":18018,"d":"$18,018"},30,"No",0,0]
["30","SMITHFIELD","ESM","EAST SMITHFIELD PUBLIC LIBRARY","Library Technician",1,"Library Technician",{"v":11.19,"d":"$11.19"},{"v":18038,"d":"$18,038"},31,"No",0,0]
["30","SMITHFIELD","ESM","EAST SMITHFIELD PUBLIC LIBRARY","Aide/Page",1,"Aide/Page",{"v":9,"d":"$9.00"},{"v":6318,"d":"$6,318"},13.5,"No",0,0]
["30","SMITHFIELD","ESM","EAST SMITHFIELD PUBLIC LIBRARY","Aide/Page",1,"Aide/Page",{"v":9,"d":"$9.00"},{"v":7488,"d":"$7,488"},16,"No",0,0]
["30","SMITHFIELD","ESM","EAST SMITHFIELD PUBLIC LIBRARY","Aide/Page",1,"Aide/Page",{"v":9,"d":"$9.00"},{"v":7020,"d":"$7,020"},14,"No",0,0]
["30","SMITHFIELD","ESM","EAST SMITHFIELD PUBLIC LIBRARY","Aide/Page",1,"Aide/Page",{"v":9.33,"d":"$9.33"},{"v":10188,"d":"$10,188"},21,"No",0,0]
["30","SMITHFIELD","ESM","EAST SMITHFIELD PUBLIC LIBRARY","Office Staff",1,"Bookeeper",{"v":27.77,"d":"$27.77"},{"v":7942,"d":"$7,942"},5.5,"No",0,0]
["30","SMITHFIELD","ESM","EAST SMITHFIELD PUBLIC LIBRARY","Buildings/Ground Staff",1,"Custodian",{"v":13.98,"d":"$13.98"},{"v":12358,"d":"$12,358"},17,"No",0,0]
["30","SMITHFIELD","GVL","GREENVILLE PUBLIC LIBRARY","20",20,"20","",{"v":25795.85,"d":"$25,796"},22.6,{"$f":"SUM(L624:L643)","v":10},{"$f":"SUM(M624:M643)","v":277}]
["30","SMITHFIELD","GVL","GREENVILLE PUBLIC LIBRARY","Director",1,"Director","",{"v":84474,"d":"$84,474"},38,"Yes",1,38]
["30","SMITHFIELD","GVL","GREENVILLE PUBLIC LIBRARY","Deputy/Associate/Assistant Director",1,"Assistant Director","",{"v":61789,"d":"$61,789"},35,"Yes",1,35]
["30","SMITHFIELD","GVL","GREENVILLE PUBLIC LIBRARY","Childrens and/or Young Adult Services Librarian",1,"Children\\'s","",{"v":51506,"d":"$51,506"},35,"Yes",1,35]
["30","SMITHFIELD","GVL","GREENVILLE PUBLIC LIBRARY","Childrens and/or Young Adult Services Librarian",1,"Young Adult ","",{"v":44335,"d":"$44,335"},35,"Yes",1,35]
["30","SMITHFIELD","GVL","GREENVILLE PUBLIC LIBRARY","Childrens and/or Young Adult Services Librarian",1,"Children\\'s Librarian Assistant","",{"v":28000,"d":"$28,000"},27,"Yes",1,27]
["30","SMITHFIELD","GVL","GREENVILLE PUBLIC LIBRARY","Childrens and/or Young Adult Services Librarian",1,"Children\\'s Reference Librarian","",{"v":16224,"d":"$16,224"},15,"Yes",1,15]
["30","SMITHFIELD","GVL","GREENVILLE PUBLIC LIBRARY","Reference/Information Librarian",1,"Reference Librarian","",{"v":8135,"d":"$8,135"},7,"Yes",1,7]
["30","SMITHFIELD","GVL","GREENVILLE PUBLIC LIBRARY","Reference/Information Librarian",1,"Reference Librarian","",{"v":14001,"d":"$14,001"},15,"Yes",1,15]
["30","SMITHFIELD","GVL","GREENVILLE PUBLIC LIBRARY","Technical Services Librarian",1,"Technical Services Librarian","",{"v":38238,"d":"$38,238"},35,"Yes",1,35]
["30","SMITHFIELD","GVL","GREENVILLE PUBLIC LIBRARY","Reference/Information Librarian",1,"Technology Coordinator","",{"v":53053,"d":"$53,053"},35,"Yes",1,35]
["30","SMITHFIELD","GVL","GREENVILLE PUBLIC LIBRARY","Manager/Department Head",1,"Head of Circulation","",{"v":38442,"d":"$38,442"},37,"No",0,0]
["30","SMITHFIELD","GVL","GREENVILLE PUBLIC LIBRARY","Library Associate",1,"Library Assistant","",{"v":13717,"d":"$13,717"},22,"No",0,0]
["30","SMITHFIELD","GVL","GREENVILLE PUBLIC LIBRARY","Library Associate",1,"Library Assistant","",{"v":9079,"d":"$9,079"},13,"No",0,0]
["30","SMITHFIELD","GVL","GREENVILLE PUBLIC LIBRARY","Library Associate",1,"Library Assistant","",{"v":7415,"d":"$7,415"},10,"No",0,0]
["30","SMITHFIELD","GVL","GREENVILLE PUBLIC LIBRARY","Library Associate",1,"Library Assistant","",{"v":11481,"d":"$11,481"},19,"No",0,0]
["30","SMITHFIELD","GVL","GREENVILLE PUBLIC LIBRARY","Library Associate",1,"Library Assistant","",{"v":14664,"d":"$14,664"},30,"No",0,0]
["30","SMITHFIELD","GVL","GREENVILLE PUBLIC LIBRARY","Library Associate",1,"Library Assistant","",{"v":9547,"d":"$9,547"},20,"No",0,0]
["30","SMITHFIELD","GVL","GREENVILLE PUBLIC LIBRARY","Aide/Page",1,"Library Page","",{"v":3510,"d":"$3,510"},7.5,"No",0,0]
["30","SMITHFIELD","GVL","GREENVILLE PUBLIC LIBRARY","Aide/Page",1,"Library Page","",{"v":4212,"d":"$4,212"},9,"No",0,0]
["30","SMITHFIELD","GVL","GREENVILLE PUBLIC LIBRARY","Aide/Page",1,"Library Page","",{"v":4095,"d":"$4,095"},7.5,"No",0,0]
["31","SOUTH KINGSTOWN","SKI","SOUTH KINGSTOWN PUBLIC LIBRARY","27",32,"27",{"v":14.98263,"d":"$14.98"},{"v":50715.125,"d":"$50,715"},{"v":19.66667,"d":"19.7"},{"$f":"SUM(L645:L671)","v":11},{"$f":"SUM(M645:M671)","v":233}]
["31","SOUTH KINGSTOWN","SKI","SOUTH KINGSTOWN PUBLIC LIBRARY","Director",1,"Library Director","",{"v":76247,"d":"$76,247"},35,"Yes",{"$f":"IF(K645=\"yes\",F645,0)","v":1},{"$f":"IF(K645=\"YES\",J645,0)","v":35}]
["31","SOUTH KINGSTOWN","SKI","SOUTH KINGSTOWN PUBLIC LIBRARY","Manager/Department Head",1,"Central Library Services Manager","",{"v":58298,"d":"$58,298"},35,"Yes",1,35]
["31","SOUTH KINGSTOWN","SKI","SOUTH KINGSTOWN PUBLIC LIBRARY","Manager/Department Head",1,"Circ Supervisor","",{"v":40389,"d":"$40,389"},35,"No",0,0]
["31","SOUTH KINGSTOWN","SKI","SOUTH KINGSTOWN PUBLIC LIBRARY","Branch Librarian",1,"Branch Librarian","",{"v":50773,"d":"$50,773"},35,"Yes",1,35]
["31","SOUTH KINGSTOWN","SKI","SOUTH KINGSTOWN PUBLIC LIBRARY","Childrens and/or Young Adult Services Librarian",3,"Youth Services Librarian","",{"v":46157,"d":"$46,157"},35,"Yes",3,35]
["31","SOUTH KINGSTOWN","SKI","SOUTH KINGSTOWN PUBLIC LIBRARY","Reference/Information Librarian",1,"Reference Librarian","",{"v":46157,"d":"$46,157"},35,"Yes",1,35]
["31","SOUTH KINGSTOWN","SKI","SOUTH KINGSTOWN PUBLIC LIBRARY","Library Associate",1,"Library Associatete","",{"v":43850,"d":"$43,850"},35,"No",0,0]
["31","SOUTH KINGSTOWN","SKI","SOUTH KINGSTOWN PUBLIC LIBRARY","Buildings/Ground Staff",1,"Facilitie Manager","",{"v":43850,"d":"$43,850"},40,"No",0,0]
["31","SOUTH KINGSTOWN","SKI","SOUTH KINGSTOWN PUBLIC LIBRARY","Reference/Information Librarian",1,"Reference Librarian",{"v":24.15,"d":"$24.15"},"",30,"Yes",1,30]
["31","SOUTH KINGSTOWN","SKI","SOUTH KINGSTOWN PUBLIC LIBRARY","Reference/Information Librarian",1,"Reference Librarian",{"v":23.5,"d":"$23.50"},"",3.5,"Yes",1,3.5]
["31","SOUTH KINGSTOWN","SKI","SOUTH KINGSTOWN PUBLIC LIBRARY","Reference/Information Librarian",1,"Reference Librarian",{"v":24.15,"d":"$24.15"},"",6.5,"Yes",1,6.5]
["31","SOUTH KINGSTOWN","SKI","SOUTH KINGSTOWN PUBLIC LIBRARY","Library Technician",1,"Library Technial Asst",{"v":18.38,"d":"$18.38"},"",11.5,"No",0,0]
["31","SOUTH KINGSTOWN","SKI","SOUTH KINGSTOWN PUBLIC LIBRARY","Library Technician",1,"Library Technial Ast",{"v":17.75,"d":"$17.75"},"",21,"No",0,0]
["31","SOUTH KINGSTOWN","SKI","SOUTH KINGSTOWN PUBLIC LIBRARY","Library Technician",1,"Library Technical Ast",{"v":20.15,"d":"$20.15"},"",13,"No",0,0]
["31","SOUTH KINGSTOWN","SKI","SOUTH KINGSTOWN PUBLIC LIBRARY","Library Technician",1,"Library Technical Asst",{"v":18.38,"d":"$18.38"},"",28,"No",0,0]
["31","SOUTH KINGSTOWN","SKI","SOUTH KINGSTOWN PUBLIC LIBRARY","Library Technician",1,"Library Asst",{"v":11.65,"d":"$11.65"},"",19,"No",0,0]
["31","SOUTH KINGSTOWN","SKI","SOUTH KINGSTOWN PUBLIC LIBRARY","Library Technician",1,"Library Asst",{"v":11.91,"d":"$11.91"},"",15,"No",0,0]
["31","SOUTH KINGSTOWN","SKI","SOUTH KINGSTOWN PUBLIC LIBRARY","Library Technician",1,"Library Asst",{"v":10.74,"d":"$10.74"},"",16,"No",0,0]
["31","SOUTH KINGSTOWN","SKI","SOUTH KINGSTOWN PUBLIC LIBRARY","Library Technician",1,"Library Asst",{"v":10.74,"d":"$10.74"},"",18,"Yes",1,18]
["31","SOUTH KINGSTOWN","SKI","SOUTH KINGSTOWN PUBLIC LIBRARY","Library Technician",1,"Library Asst",{"v":11.91,"d":"$11.91"},"",6,"No",0,0]
["31","SOUTH KINGSTOWN","SKI","SOUTH KINGSTOWN PUBLIC LIBRARY","Library Technician",1,"Library Asst",{"v":12.85,"d":"$12.85"},"",9,"No",0,0]
["31","SOUTH KINGSTOWN","SKI","SOUTH KINGSTOWN PUBLIC LIBRARY","Aide/Page",2,"Aide",{"v":9,"d":"$9.00"},"",10,"No",0,0]
["31","SOUTH KINGSTOWN","SKI","SOUTH KINGSTOWN PUBLIC LIBRARY","Aide/Page",2,"Aide",{"v":9,"d":"$9.00"},"",8,"No",0,0]
["31","SOUTH KINGSTOWN","SKI","SOUTH KINGSTOWN PUBLIC LIBRARY","Aide/Page",1,"Aide",{"v":9,"d":"$9.00"},"",12.5,"No",0,0]
["31","SOUTH KINGSTOWN","SKI","SOUTH KINGSTOWN PUBLIC LIBRARY","Aide/Page",2,"Aide",{"v":9,"d":"$9.00"},"",5,"No",0,0]
["31","SOUTH KINGSTOWN","SKI","SOUTH KINGSTOWN PUBLIC LIBRARY","Buildings/Ground Staff",1,"Custodian",{"v":16,"d":"$16.00"},"",12,"No",0,0]
["31","SOUTH KINGSTOWN","SKI","SOUTH KINGSTOWN PUBLIC LIBRARY","Buildings/Ground Staff",1,"Custodian",{"v":16.41,"d":"$16.41"},"",2,"No",0,0]
["32","TIVERTON","TIV","ESSEX PUBLIC LIBRARY","15",17,"15",{"v":18.35286,"d":"$18.35"},{"v":65793,"d":"$65,793"},25.2,{"$f":"SUM(L673:L687)","v":3},{"$f":"SUM(M673:M687)","v":105}]
["32","TIVERTON","TIV","ESSEX PUBLIC LIBRARY","Director",1,"Library Director","",{"v":65793,"d":"$65,793"},35,"Yes",1,35]
["32","TIVERTON","TIV","ESSEX PUBLIC LIBRARY","Reference/Information Librarian",1,"Adult Services Librarian",{"v":26.05,"d":"$26.05"},"",35,"Yes",1,35]
["32","TIVERTON","TIV","ESSEX PUBLIC LIBRARY","Childrens and/or Young Adult Services Librarian",1,"Youth Services Librarian",{"v":25.25,"d":"$25.25"},"",35,"Yes",1,35]
["32","TIVERTON","TIV","ESSEX PUBLIC LIBRARY","Childrens and/or Young Adult Services Librarian",1,"Children\\'s Services Librarian",{"v":25.25,"d":"$25.25"},"",35,"No",0,0]
["32","TIVERTON","TIV","ESSEX PUBLIC LIBRARY","Manager/Department Head",1,"Circulation Librarian",{"v":24.88,"d":"$24.88"},"",35,"No",0,0]
["32","TIVERTON","TIV","ESSEX PUBLIC LIBRARY","Manager/Department Head",1,"Technology Coordinator",{"v":19,"d":"$19.00"},"",35,"No",0,0]
["32","TIVERTON","TIV","ESSEX PUBLIC LIBRARY","Office Staff",1,"Office Assistant",{"v":18,"d":"$18.00"},"",15,"No",0,0]
["32","TIVERTON","TIV","ESSEX PUBLIC LIBRARY","Branch Librarian",1,"Branch Librarian",{"v":17.88,"d":"$17.88"},"",35,"No",0,0]
["32","TIVERTON","TIV","ESSEX PUBLIC LIBRARY","Library Associate",1,"Library Assistant",{"v":17.38,"d":"$17.38"},"",25,"No",0,0]
["32","TIVERTON","TIV","ESSEX PUBLIC LIBRARY","Library Associate",1,"Library Assistant",{"v":17.38,"d":"$17.38"},"",15,"No",0,0]
["32","TIVERTON","TIV","ESSEX PUBLIC LIBRARY","Library Associate",1,"Library Assistant",{"v":16.62,"d":"$16.62"},"",19,"No",0,0]
["32","TIVERTON","TIV","ESSEX PUBLIC LIBRARY","Library Associate",1,"Library Assistant",{"v":15.5,"d":"$15.50"},"",19,"No",0,0]
["32","TIVERTON","TIV","ESSEX PUBLIC LIBRARY","Library Associate",1,"Library Assistant",{"v":15.5,"d":"$15.50"},"",12,"No",0,0]
["32","TIVERTON","TIV","ESSEX PUBLIC LIBRARY","Aide/Page",3,"Page",{"v":8.75,"d":"$8.75"},"",9,"No",0,0]
["32","TIVERTON","TIV","ESSEX PUBLIC LIBRARY","Library Associate",1,"on call Library Assistant",{"v":9.5,"d":"$9.50"},"",19,"No",0,0]
["33","WARREN","WRR","GEORGE HAIL FREE LIBRARY","6",8,"6",{"v":14.8925,"d":"$14.89"},{"v":51853.5,"d":"$51,854"},{"v":25.83333,"d":"25.8"},{"$f":"SUM(L689:L694)","v":2},{"$f":"SUM(M689:M694)","v":68}]
["33","WARREN","WRR","GEORGE HAIL FREE LIBRARY","Director",1,"Library Director","",{"v":60503,"d":"$60,503"},38,"Yes",1,38]
["33","WARREN","WRR","GEORGE HAIL FREE LIBRARY","Childrens and/or Young Adult Services Librarian",1,"Children\\'s Librarian","",{"v":43204,"d":"$43,204"},38,"No",0,0]
["33","WARREN","WRR","GEORGE HAIL FREE LIBRARY","Reference/Information Librarian",1,"Reference Librarian",{"v":21.97,"d":"$21.97"},"",30,"Yes",1,30]
["33","WARREN","WRR","GEORGE HAIL FREE LIBRARY","Library Associate",3,"Circulation Assistant",{"v":13.27,"d":"$13.27"},"",19,"No",0,0]
["33","WARREN","WRR","GEORGE HAIL FREE LIBRARY","Library Associate",1,"Circulation Assistant",{"v":11.94,"d":"$11.94"},"",15,"No",0,0]
["33","WARREN","WRR","GEORGE HAIL FREE LIBRARY","Library Associate",1,"Circulation Assistant",{"v":12.39,"d":"$12.39"},"",15,"No",0,0]
["34","WARWICK","WPO","PONTIAC FREE LIBRARY","3",5,"3",{"v":10,"d":"$10.00"},{"v":20280,"d":"$20,280"},{"v":17.66667,"d":"17.7"},{"$f":"SUM(L696:L698)","v":1},{"$f":"SUM(M696:M698)","v":25}]
["34","WARWICK","WPO","PONTIAC FREE LIBRARY","Director",1,"Director","",{"v":26000,"d":"$26,000"},25,"Yes",1,25]
["34","WARWICK","WPO","PONTIAC FREE LIBRARY","Library Associate",1,"Assistant Librarian","",{"v":14560,"d":"$14,560"},20,"No",0,0]
["34","WARWICK","WPO","PONTIAC FREE LIBRARY","Library Associate",3,"Library Assistants",{"v":10,"d":"$10.00"},"",8,"No",0,0]
["34","WARWICK","WAR","WARWICK PUBLIC LIBRARY","26",50,"26",{"v":16.19077,"d":"$16.19"},{"v":52493.46154,"d":"$52,493"},{"v":25.42308,"d":"25.4"},{"$f":"SUM(L700:L725)","v":16},{"$f":"SUM(M700:M725)","v":263}]
["34","WARWICK","WAR","WARWICK PUBLIC LIBRARY","Director",1,"director","",{"v":97793,"d":"$97,793"},37.5,"Yes",1,37.5]
["34","WARWICK","WAR","WARWICK PUBLIC LIBRARY","Deputy/Associate/Assistant Director",1,"deputy director","",{"v":86002,"d":"$86,002"},37.5,"Yes",1,37.5]
["34","WARWICK","WAR","WARWICK PUBLIC LIBRARY","Manager/Department Head",5,"Librarian II","",{"v":65978,"d":"$65,978"},37.5,"Yes",5,37.5]
["34","WARWICK","WAR","WARWICK PUBLIC LIBRARY","Branch Librarian",3,"Library Technician","",{"v":37755,"d":"$37,755"},35,"No",0,0]
["34","WARWICK","WAR","WARWICK PUBLIC LIBRARY","Reference/Information Librarian",2,"ReferenceLibI","",{"v":53306,"d":"$53,306"},37.5,"Yes",2,37.5]
["34","WARWICK","WAR","WARWICK PUBLIC LIBRARY","Reference/Information Librarian",3,"Reference Lib I","",{"v":56921,"d":"$56,921"},37.5,"Yes",3,37.5]
["34","WARWICK","WAR","WARWICK PUBLIC LIBRARY","Reference/Information Librarian",2,"Reference Lib I",{"v":27.34,"d":"$27.34"},"",19,"Yes",2,19]
["34","WARWICK","WAR","WARWICK PUBLIC LIBRARY","Reference/Information Librarian",1,"Reference LibI",{"v":23.62,"d":"$23.62"},"",19,"Yes",1,19]
["34","WARWICK","WAR","WARWICK PUBLIC LIBRARY","Childrens and/or Young Adult Services Librarian",1,"childrens","",{"v":53306,"d":"$53,306"},37.5,"Yes",{"$f":"IF(K708=\"yes\",F708,0)","v":1},{"$f":"IF(K708=\"YES\",J708,0)","v":37.5}]
["34","WARWICK","WAR","WARWICK PUBLIC LIBRARY","Technical Services Librarian",2,"Circ. Aide","",{"v":35055,"d":"$35,055"},35,"No",0,0]
["34","WARWICK","WAR","WARWICK PUBLIC LIBRARY","Manager/Department Head",1,"Circ.Tech.Supervisor","",{"v":34287,"d":"$34,287"},35,"No",0,0]
["34","WARWICK","WAR","WARWICK PUBLIC LIBRARY","Library Associate",5,"Circ Aide","",{"v":35055,"d":"$35,055"},35,"No",0,0]
["34","WARWICK","WAR","WARWICK PUBLIC LIBRARY","Library Technician",6,"Circ Aide",{"v":18.69,"d":"$18.69"},"",19,"No",0,0]
["34","WARWICK","WAR","WARWICK PUBLIC LIBRARY","Library Technician",1,"Circ Aide",{"v":14.8,"d":"$14.80"},"",19,"No",0,0]
["34","WARWICK","WAR","WARWICK PUBLIC LIBRARY","Library Technician",1,"Circ Aide",{"v":18.69,"d":"$18.69"},"",6,"No",0,0]
["34","WARWICK","WAR","WARWICK PUBLIC LIBRARY","Library Technician",3,"Circ Aide",{"v":14.8,"d":"$14.80"},"",19,"No",0,0]
["34","WARWICK","WAR","WARWICK PUBLIC LIBRARY","Library Technician",1,"Circ Aide",{"v":18.69,"d":"$18.69"},"",10,"No",0,0]
["34","WARWICK","WAR","WARWICK PUBLIC LIBRARY","Library Technician",1,"Circ Aide",{"v":14.8,"d":"$14.80"},"",12,"No",0,0]
["34","WARWICK","WAR","WARWICK PUBLIC LIBRARY","Aide/Page",1,"Page",{"v":11.81,"d":"$11.81"},"",13,"No",0,0]
["34","WARWICK","WAR","WARWICK PUBLIC LIBRARY","Aide/Page",1,"Page",{"v":11.81,"d":"$11.81"},"",8,"No",0,0]
["34","WARWICK","WAR","WARWICK PUBLIC LIBRARY","Aide/Page",2,"Page",{"v":11.81,"d":"$11.81"},"",16,"No",0,0]
["34","WARWICK","WAR","WARWICK PUBLIC LIBRARY","Aide/Page",1,"Page",{"v":11.81,"d":"$11.81"},"",11,"No",0,0]
["34","WARWICK","WAR","WARWICK PUBLIC LIBRARY","Aide/Page",1,"Page",{"v":11.81,"d":"$11.81"},"",10,"No",0,0]
["34","WARWICK","WAR","WARWICK PUBLIC LIBRARY","Office Staff",1,"Adm.Mgr","",{"v":42714,"d":"$42,714"},35,"No",0,0]
["34","WARWICK","WAR","WARWICK PUBLIC LIBRARY","Buildings/Ground Staff",2,"Maintenance","",{"v":36465,"d":"$36,465"},40,"No",0,0]
["34","WARWICK","WAR","WARWICK PUBLIC LIBRARY","Buildings/Ground Staff",1,"Maintenance","",{"v":47778,"d":"$47,778"},40,"No",0,0]
["35","WEST GREENWICH","WGR","LOUTTIT MEMORIAL LIBRARY","6",6,"6",{"v":16.38,"d":"$16.38"},"",19.2,{"$f":"SUM(L727:L732)","v":2},{"$f":"SUM(M727:M732)","v":46}]
["35","WEST GREENWICH","WGR","LOUTTIT MEMORIAL LIBRARY","Director",1,"Director",{"v":26.52,"d":"$26.52"},"",27,"Yes",1,27]
["35","WEST GREENWICH","WGR","LOUTTIT MEMORIAL LIBRARY","Childrens and/or Young Adult Services Librarian",1,"Children\\'s Librarian",{"v":21.22,"d":"$21.22"},"",19,"Yes",1,19]
["35","WEST GREENWICH","WGR","LOUTTIT MEMORIAL LIBRARY","Library Associate",1,"Circulation Head",{"v":16.04,"d":"$16.04"},"",20,"No",0,0]
["35","WEST GREENWICH","WGR","LOUTTIT MEMORIAL LIBRARY","Library Associate",1,"Circ Asst/ILL",{"v":12.5,"d":"$12.50"},"",17,"No",0,0]
["35","WEST GREENWICH","WGR","LOUTTIT MEMORIAL LIBRARY","Library Associate",1,"Circ Asst",{"v":11.5,"d":"$11.50"},"",13,"No",0,0]
["35","WEST GREENWICH","WGR","LOUTTIT MEMORIAL LIBRARY","Library Associate",1,"Circ Substitute",{"v":10.5,"d":"$10.50"},"","","No",0,0]
["36","WEST WARWICK","WWA","WEST WARWICK PUBLIC LIBRARY","18",19,"18",{"v":13.574,"d":"$13.57"},{"v":38202.125,"d":"$38,202"},{"v":26.76471,"d":"26.8"},{"$f":"SUM(L734:L751)","v":6},{"$f":"SUM(M734:M751)","v":210}]
["36","WEST WARWICK","WWA","WEST WARWICK PUBLIC LIBRARY","Director",1,"Library Director","",{"v":58500,"d":"$58,500"},35,"Yes",1,35]
["36","WEST WARWICK","WWA","WEST WARWICK PUBLIC LIBRARY","Manager/Department Head",1,"Head of Youth Services","",{"v":45705,"d":"$45,705"},35,"Yes",1,35]
["36","WEST WARWICK","WWA","WEST WARWICK PUBLIC LIBRARY","Manager/Department Head",1,"Head of Information Services","",{"v":38746,"d":"$38,746"},35,"Yes",1,35]
["36","WEST WARWICK","WWA","WEST WARWICK PUBLIC LIBRARY","Manager/Department Head",1,"Head of Circulation","",{"v":31527,"d":"$31,527"},35,"No",0,0]
["36","WEST WARWICK","WWA","WEST WARWICK PUBLIC LIBRARY","Childrens and/or Young Adult Services Librarian",1,"Young Adult Services Librarian","",{"v":31751,"d":"$31,751"},35,"Yes",1,35]
["36","WEST WARWICK","WWA","WEST WARWICK PUBLIC LIBRARY","Reference/Information Librarian",1,"Information Services Librarian",{"v":17.05,"d":"$17.05"},"",35,"Yes",1,35]
["36","WEST WARWICK","WWA","WEST WARWICK PUBLIC LIBRARY","Library Associate",1,"Reference Assistant",{"v":10,"d":"$10.00"},"",17,"No",0,0]
["36","WEST WARWICK","WWA","WEST WARWICK PUBLIC LIBRARY","Library Associate",2,"Youth Services Assistant",{"v":10,"d":"$10.00"},"",19,"No",0,0]
["36","WEST WARWICK","WWA","WEST WARWICK PUBLIC LIBRARY","Library Associate",1,"Reference Assistant",{"v":15,"d":"$15.00"},"",19,"No",0,0]
["36","WEST WARWICK","WWA","WEST WARWICK PUBLIC LIBRARY","Library Technician",1,"Circulation Assistant/Tech Services",{"v":13.84,"d":"$13.84"},"",19,"No",0,0]
["36","WEST WARWICK","WWA","WEST WARWICK PUBLIC LIBRARY","Library Technician",1,"Circulation Assistant/Cataloging",{"v":12.81,"d":"$12.81"},"",19,"No",0,0]
["36","WEST WARWICK","WWA","WEST WARWICK PUBLIC LIBRARY","Manager/Department Head",1,"ESL Coordinator","",{"v":31013,"d":"$31,013"},35,"No",0,0]
["36","WEST WARWICK","WWA","WEST WARWICK PUBLIC LIBRARY","Buildings/Ground Staff",1,"Custodian",{"v":15.76,"d":"$15.76"},"",35,"No",0,0]
["36","WEST WARWICK","WWA","WEST WARWICK PUBLIC LIBRARY","Office Staff",1,"Administrative Assistant","",{"v":30464,"d":"$30,464"},35,"No",0,0]
["36","WEST WARWICK","WWA","WEST WARWICK PUBLIC LIBRARY","Technical Services Librarian",1,"Technology Coordinator","",{"v":37911,"d":"$37,911"},35,"Yes",1,35]
["36","WEST WARWICK","WWA","WEST WARWICK PUBLIC LIBRARY","Library Associate",1,"ESL Teacher",{"v":15,"d":"$15.00"},"",8,"No",0,0]
["36","WEST WARWICK","WWA","WEST WARWICK PUBLIC LIBRARY","Library Associate",1,"ESL Teacher",{"v":15,"d":"$15.00"},"",4,"No",0,0]
["36","WEST WARWICK","WWA","WEST WARWICK PUBLIC LIBRARY","Library Associate",1,"Children\\'s ESL Teacher",{"v":11.28,"d":"$11.28"},"","","No",0,0]
["37","WESTERLY","WES","WESTERLY PUBLIC LIBRARY","18",42,"18",{"v":0,"d":"$0.00"},{"v":60075.16667,"d":"$60,075"},{"v":40.23529,"d":"40.2"},{"$f":"SUM(L753:L770)","v":13},{"$f":"SUM(M753:M770)","v":321}]
["37","WESTERLY","WES","WESTERLY PUBLIC LIBRARY","Director",1,"Executive Director","",{"v":65967,"d":"$65,967"},35,"Yes",1,35]
["37","WESTERLY","WES","WESTERLY PUBLIC LIBRARY","Buildings/Ground Staff",1,"Park Superintendent","",{"v":72344,"d":"$72,344"},35,"No",0,0]
["37","WESTERLY","WES","WESTERLY PUBLIC LIBRARY","Manager/Department Head",1,"Administrative Services Manager","",{"v":52953,"d":"$52,953"},35,"No",0,0]
["37","WESTERLY","WES","WESTERLY PUBLIC LIBRARY","Childrens and/or Young Adult Services Librarian",1,"Children\\'s Librarian","",{"v":46955,"d":"$46,955"},35,"Yes",1,35]
["37","WESTERLY","WES","WESTERLY PUBLIC LIBRARY","Manager/Department Head",1,"Children\\'s Dept Head","",{"v":62433,"d":"$62,433"},35,"N/A",0,0]
["37","WESTERLY","WES","WESTERLY PUBLIC LIBRARY","Childrens and/or Young Adult Services Librarian",1,"YA Librarian","",{"v":31172,"d":"$31,172"},35,"Yes",1,35]
["37","WESTERLY","WES","WESTERLY PUBLIC LIBRARY","Manager/Department Head",1,"Collection Management Librarian","",{"v":62433,"d":"$62,433"},35,"Yes",1,35]
["37","WESTERLY","WES","WESTERLY PUBLIC LIBRARY","Manager/Department Head",1,"Circulation Manager","",{"v":47485,"d":"$47,485"},35,"Yes",1,35]
["37","WESTERLY","WES","WESTERLY PUBLIC LIBRARY","Reference/Information Librarian",3,"Reference Librarian","",{"v":159777,"d":"$159,777"},105,"Yes",3,105]
["37","WESTERLY","WES","WESTERLY PUBLIC LIBRARY","Reference/Information Librarian",1,"Reference Librarian","",{"v":21582,"d":"$21,582"},16,"Yes",1,16]
["37","WESTERLY","WES","WESTERLY PUBLIC LIBRARY","Aide/Page",2,"Pages","",{"v":7918,"d":"$7,918"},"","No",0,0]
["37","WESTERLY","WES","WESTERLY PUBLIC LIBRARY","Buildings/Ground Staff",1,"Facilities Manager","",{"v":60933,"d":"$60,933"},35,"No",0,0]
["37","WESTERLY","WES","WESTERLY PUBLIC LIBRARY","Library Associate",4,"Associates","",{"v":23672,"d":"$23,672"},25,"Yes",4,25]
["37","WESTERLY","WES","WESTERLY PUBLIC LIBRARY","Library Associate",2,"Collection Management Associates","",{"v":70687,"d":"$70,687"},70,"No",0,0]
["37","WESTERLY","WES","WESTERLY PUBLIC LIBRARY","Office Staff",2,"Development/Bookkeeper","",{"v":47057,"d":"$47,057"},47,"No",0,0]
["37","WESTERLY","WES","WESTERLY PUBLIC LIBRARY","Buildings/Ground Staff",2,"Groundskeepers","",{"v":50033,"d":"$50,033"},70,"No",0,0]
["37","WESTERLY","WES","WESTERLY PUBLIC LIBRARY","Buildings/Ground Staff",1,"Security Officer","",{"v":22786,"d":"$22,786"},24,"No",0,0]
["37","WESTERLY","WES","WESTERLY PUBLIC LIBRARY","Library Associate",16,"Associates","",{"v":175166,"d":"$175,166"},12,"No",0,0]
["38","WOONSOCKET","WNS","WOONSOCKET HARRIS PUBLIC LIBRARY","20",24,"20",{"v":11.97571,"d":"$11.98"},{"v":37068.46154,"d":"$37,068"},{"v":26.85,"d":"26.9"},{"$f":"SUM(L772:L791)","v":7},{"$f":"SUM(M772:M791)","v":220}]
["38","WOONSOCKET","WNS","WOONSOCKET HARRIS PUBLIC LIBRARY","Director",1,"Library Director","",{"v":57923,"d":"$57,923"},35,"Yes",{"$f":"IF(K772=\"yes\",F772,0)","v":1},{"$f":"IF(K772=\"YES\",J772,0)","v":35}]
["38","WOONSOCKET","WNS","WOONSOCKET HARRIS PUBLIC LIBRARY","Deputy/Associate/Assistant Director",1,"Assistant Library Director/Technology Services Coordinator","",{"v":51095,"d":"$51,095"},35,"Yes",1,35]
["38","WOONSOCKET","WNS","WOONSOCKET HARRIS PUBLIC LIBRARY","Manager/Department Head",1,"Chief Reference & Adult Services Librarian","",{"v":50017,"d":"$50,017"},35,"Yes",1,35]
["38","WOONSOCKET","WNS","WOONSOCKET HARRIS PUBLIC LIBRARY","Manager/Department Head",1,"Chief Children\\'s & Youth Services Librarian","",{"v":49079,"d":"$49,079"},35,"Yes",1,35]
["38","WOONSOCKET","WNS","WOONSOCKET HARRIS PUBLIC LIBRARY","Reference/Information Librarian",1,"Reference & Adult Services Librarian","",{"v":40133,"d":"$40,133"},35,"Yes",1,35]
["38","WOONSOCKET","WNS","WOONSOCKET HARRIS PUBLIC LIBRARY","Childrens and/or Young Adult Services Librarian",1,"Youth/Adolescent Services Librarian","",{"v":40133,"d":"$40,133"},35,"Yes",1,35]
["38","WOONSOCKET","WNS","WOONSOCKET HARRIS PUBLIC LIBRARY","Childrens and/or Young Adult Services Librarian",1,"Assistant Children\\'s Librarian","",{"v":25617,"d":"$25,617"},35,"No",0,0]
["38","WOONSOCKET","WNS","WOONSOCKET HARRIS PUBLIC LIBRARY","Reference/Information Librarian",1,"Reader\\'s Advisor","",{"v":30883,"d":"$30,883"},35,"No",0,0]
["38","WOONSOCKET","WNS","WOONSOCKET HARRIS PUBLIC LIBRARY","Library Associate",1,"Library Technical Aide","",{"v":28696,"d":"$28,696"},35,"No",0,0]
["38","WOONSOCKET","WNS","WOONSOCKET HARRIS PUBLIC LIBRARY","Library Associate",1,"Paraprofessional","",{"v":26399,"d":"$26,399"},35,"No",0,0]
["38","WOONSOCKET","WNS","WOONSOCKET HARRIS PUBLIC LIBRARY","Library Associate",1,"Senior Library Assistant","",{"v":26672,"d":"$26,672"},35,"No",0,0]
["38","WOONSOCKET","WNS","WOONSOCKET HARRIS PUBLIC LIBRARY","Library Associate",1,"Junior Library Assistant","",{"v":25338,"d":"$25,338"},35,"No",0,0]
["38","WOONSOCKET","WNS","WOONSOCKET HARRIS PUBLIC LIBRARY","Buildings/Ground Staff",1,"Janitor/Security","",{"v":29905,"d":"$29,905"},40,"No",0,0]
["38","WOONSOCKET","WNS","WOONSOCKET HARRIS PUBLIC LIBRARY","Library Associate",2,"Library Assistant/Part Time",{"v":10.12,"d":"$10.12"},"",19.5,"No",0,0]
["38","WOONSOCKET","WNS","WOONSOCKET HARRIS PUBLIC LIBRARY","Library Associate",1,"Library Assistant/Part Time",{"v":10.12,"d":"$10.12"},"",8,"No",0,0]
["38","WOONSOCKET","WNS","WOONSOCKET HARRIS PUBLIC LIBRARY","Library Associate",1,"Library Assistant/Part Time",{"v":10.12,"d":"$10.12"},"",7.5,"No",0,0]
["38","WOONSOCKET","WNS","WOONSOCKET HARRIS PUBLIC LIBRARY","Library Associate",1,"Computer Literacy Coordinator",{"v":20.87,"d":"$20.87"},"",4,"No",0,0]
["38","WOONSOCKET","WNS","WOONSOCKET HARRIS PUBLIC LIBRARY","Reference/Information Librarian",1,"Reference Librarian/Part Time",{"v":15.5,"d":"$15.50"},"",10,"Yes",1,10]
["38","WOONSOCKET","WNS","WOONSOCKET HARRIS PUBLIC LIBRARY","Aide/Page",1,"Library Page",{"v":9,"d":"$9.00"},"",16,"No",0,0]
["38","WOONSOCKET","WNS","WOONSOCKET HARRIS PUBLIC LIBRARY","Aide/Page",4,"Library Page",{"v":8.1,"d":"$8.10"},"",12,"No",0,0]
[null,null,""]
[null,"TOTALS",""]

{"sheet":"salariesHourly","index":2,"n_rows":745,"n_cols":12,"rows_kept":745}
["2b. City/Town File #","8. City","1. Library ID","Location","160. Job Category","161. Number of Staff","162. Official Title(s) at Library","163. Hourly Rate","Calculated?","163a. Annual Salary","164. Hours Worked per Week","165. MLS?"]
["1","BARRINGTON","BAR","BARRINGTON PUBLIC LIBRARY","Director",1,"Library Director",{"$f":"IF(J2>0,(J2/(K2*52)),\"  \")","v":{"v":47.78901098901099,"d":"$47.79"}},{"$f":"IF(J2>0,\"Y\",\" N\")","v":"Y"},{"v":86976,"d":"$86,976"},35,"Yes"]
["1","BARRINGTON","BAR","BARRINGTON PUBLIC LIBRARY","Deputy/Associate/Assistant Director",1,"assistant director/head of children\\'s dept",{"$f":"IF(J3>0,(J3/(K3*52)),\"  \")","v":{"v":38.02527472527473,"d":"$38.03"}},{"$f":"IF(J3>0,\"Y\",\" N\")","v":"Y"},{"v":69206,"d":"$69,206"},35,"Yes"]
["1","BARRINGTON","BAR","BARRINGTON PUBLIC LIBRARY","Manager/Department Head",1,"head of technical services",{"v":35.878571428571426,"d":"$35.88"},"Y",{"v":65299,"d":"$65,299"},35,"Yes"]
["1","BARRINGTON","BAR","BARRINGTON PUBLIC LIBRARY","Manager/Department Head",1,"head of reference",{"v":34.57142857142857,"d":"$34.57"},"Y",{"v":62920,"d":"$62,920"},35,"Yes"]
["1","BARRINGTON","BAR","BARRINGTON PUBLIC LIBRARY","Childrens and/or Young Adult Services Librarian",1,"YA librarian",{"v":28.296703296703296,"d":"$28.30"},"Y",{"v":51500,"d":"$51,500"},35,"Yes"]
["1","BARRINGTON","BAR","BARRINGTON PUBLIC LIBRARY","Manager/Department Head",1,"community services librarian",{"v":28.296703296703296,"d":"$28.30"},"Y",{"v":51500,"d":"$51,500"},35,"Yes"]
["1","BARRINGTON","BAR","BARRINGTON PUBLIC LIBRARY","Library Associate",1,"Administrative assistant II",{"v":26.732417582417582,"d":"$26.73"},"Y",{"v":48653,"d":"$48,653"},35,"No"]
["1","BARRINGTON","BAR","BARRINGTON PUBLIC LIBRARY","Library Associate",3,"Library assistant I",{"v":26.732417582417582,"d":"$26.73"},"Y",{"v":48653,"d":"$48,653"},35,"No"]
["1","BARRINGTON","BAR","BARRINGTON PUBLIC LIBRARY","Library Associate",1,"Library assistant I",{"v":24.060439560439562,"d":"$24.06"},"Y",{"v":43790,"d":"$43,790"},35,"No"]
["1","BARRINGTON","BAR","BARRINGTON PUBLIC LIBRARY","Library Technician",1,"Library assistant II",{"v":19.736813186813187,"d":"$19.74"},"Y",{"v":35921,"d":"$35,921"},35,"No"]
["1","BARRINGTON","BAR","BARRINGTON PUBLIC LIBRARY","Library Technician",1,"Library assistant II",{"v":18.878021978021977,"d":"$18.88"},"Y",{"v":34358,"d":"$34,358"},35,"No"]
["1","BARRINGTON","BAR","BARRINGTON PUBLIC LIBRARY","Manager/Department Head",1,"Technology Coordinator",{"v":27.568681318681318,"d":"$27.57"},"Y",{"v":50175,"d":"$50,175"},35,"No"]
["1","BARRINGTON","BAR","BARRINGTON PUBLIC LIBRARY","Buildings/Ground Staff",1,"head custodian",{"v":22.774175824175824,"d":"$22.77"},{"$f":"IF(J14>0,\"Y\",\" N\")","v":"Y"},{"v":41449,"d":"$41,449"},35,"No"]
["1","BARRINGTON","BAR","BARRINGTON PUBLIC LIBRARY","Library Associate",10,"Library assistant ",{"v":16.19,"d":"$16.19"}," N",null,15,"No"]
["1","BARRINGTON","BAR","BARRINGTON PUBLIC LIBRARY","Buildings/Ground Staff",3,"custodians",{"v":10.82,"d":"$10.82"}," N",null,12,"No"]
["1","BARRINGTON","BAR","BARRINGTON PUBLIC LIBRARY","Aide/Page",6,"pages",{"v":8.26,"d":"$8.26"}," N",null,9,"No"]
["2","BRISTOL","BRI","ROGERS FREE LIBRARY","Director",1,"Director",{"$f":"IF(J18>0,(J18/(K18*52)),\"  \")","v":{"v":34.917582417582416,"d":"$34.92"}},{"$f":"IF(J18>0,\"Y\",\" N\")","v":"Y"},{"v":63550,"d":"$63,550"},35,"Yes"]
["2","BRISTOL","BRI","ROGERS FREE LIBRARY","Deputy/Associate/Assistant Director",1,"Asst. Director",{"v":24.175824175824175,"d":"$24.18"},"Y",{"v":44000,"d":"$44,000"},35,"No"]
["2","BRISTOL","BRI","ROGERS FREE LIBRARY","Childrens and/or Young Adult Services Librarian",1,"Youth services librarian",{"v":23.076923076923077,"d":"$23.08"},"Y",{"v":42000,"d":"$42,000"},35,"Yes"]
["2","BRISTOL","BRI","ROGERS FREE LIBRARY","Reference/Information Librarian",2,"Ref/info/outreach librarian",{"v":23.076923076923077,"d":"$23.08"},"Y",{"v":42000,"d":"$42,000"},35,"Yes"]
["2","BRISTOL","BRI","ROGERS FREE LIBRARY","Library Associate",1,"Liby assoc/technology",{"v":20.32967032967033,"d":"$20.33"},"Y",{"v":37000,"d":"$37,000"},35,"No"]
["2","BRISTOL","BRI","ROGERS FREE LIBRARY","Library Associate",1,"Circulation supervisor",{"v":17.582417582417584,"d":"$17.58"},"Y",{"v":32000,"d":"$32,000"},35,"No"]
["2","BRISTOL","BRI","ROGERS FREE LIBRARY","Library Associate",13,"Circ associates",{"v":15.04,"d":"$15.04"}," N",null,24,"No"]
["2","BRISTOL","BRI","ROGERS FREE LIBRARY","Aide/Page",2,"Page",{"v":8.69,"d":"$8.69"}," N",null,10,"No"]
["2","BRISTOL","BRI","ROGERS FREE LIBRARY","Buildings/Ground Staff",1,"Custodian",{"$f":"IF(J26>0,(J26/(K26*52)),\"  \")","v":{"v":17.224725274725273,"d":"$17.22"}},{"$f":"IF(J26>0,\"Y\",\" N\")","v":"Y"},{"v":31349,"d":"$31,349"},35,"No"]
["3","BURRILLVILLE","BUR","JESSE M. SMITH MEMORIAL LIBRARY","Buildings/Ground Staff",1,"Building and Grounds Supervisor",{"v":19.69,"d":"$19.69"}," N",null,40,"No"]
["3","BURRILLVILLE","BUR","JESSE M. SMITH MEMORIAL LIBRARY","Aide/Page",2,"Page",{"v":9,"d":"$9.00"}," N",null,14,"No"]
["3","BURRILLVILLE","BUR","JESSE M. SMITH MEMORIAL LIBRARY","Childrens and/or Young Adult Services Librarian",1,"Head Children\\'s Librarian",{"v":22.52,"d":"$22.52"}," N",null,35,"Yes"]
["3","BURRILLVILLE","BUR","JESSE M. SMITH MEMORIAL LIBRARY","Childrens and/or Young Adult Services Librarian",1,"Children\\'s Librarian",{"v":19.42,"d":"$19.42"}," N",null,19,"Yes"]
["3","BURRILLVILLE","BUR","JESSE M. SMITH MEMORIAL LIBRARY","Director",1,"Director",{"v":31.87,"d":"$31.87"}," N",null,35,"Yes"]
["3","BURRILLVILLE","BUR","JESSE M. SMITH MEMORIAL LIBRARY","Deputy/Associate/Assistant Director",1,"Assistant Director",{"v":26.43,"d":"$26.43"}," N",null,35,"Yes"]
["3","BURRILLVILLE","BUR","JESSE M. SMITH MEMORIAL LIBRARY","Library Associate",1,"Children\\'s Paraprofessional",{"v":13.99,"d":"$13.99"}," N",null,18,"No"]
["3","BURRILLVILLE","BUR","JESSE M. SMITH MEMORIAL LIBRARY","Library Associate",1,"Children\\'s Paraprofessional",{"v":15.17,"d":"$15.17"}," N",null,18,"No"]
["3","BURRILLVILLE","BUR","JESSE M. SMITH MEMORIAL LIBRARY","Library Associate",1,"Reference Paraprofessioanl",{"v":13.99,"d":"$13.99"}," N",null,19.5,"No"]
["3","BURRILLVILLE","BUR","JESSE M. SMITH MEMORIAL LIBRARY","Technical Services Librarian",1,"Head of Circulation",{"v":21.78,"d":"$21.78"}," N",null,35,"No"]
["3","BURRILLVILLE","BUR","JESSE M. SMITH MEMORIAL LIBRARY","Reference/Information Librarian",1,"Reference Specialist",{"v":21.78,"d":"$21.78"}," N",null,35,"No"]
["3","BURRILLVILLE","BUR","JESSE M. SMITH MEMORIAL LIBRARY","Library Technician",1,"Library Assistant (Circulation II)",{"v":11.42,"d":"$11.42"}," N",null,14.5,"No"]
["3","BURRILLVILLE","BUR","JESSE M. SMITH MEMORIAL LIBRARY","Library Technician",1,"Library Assistant (Circulation II)",{"v":12.68,"d":"$12.68"}," N",null,18,"No"]
["3","BURRILLVILLE","BUR","JESSE M. SMITH MEMORIAL LIBRARY","Library Technician",1,"Library Assistant (Circulation II)",{"v":12,"d":"$12.00"}," N",null,14,"No"]
["3","BURRILLVILLE","BUR","JESSE M. SMITH MEMORIAL LIBRARY","Library Associate",1,"Library Assistant (Circulation III)",{"v":13.46,"d":"$13.46"}," N",null,19.5,"No"]
["3","BURRILLVILLE","BUR","JESSE M. SMITH MEMORIAL LIBRARY","Library Technician",1,"Library Assistant (Circulation III)/Admin. Assistant",{"v":16.62,"d":"$16.62"}," N",null,35,"No"]
["3","BURRILLVILLE","BUR","JESSE M. SMITH MEMORIAL LIBRARY","Library Technician",1,"Library Assistant (Circulation III)",{"v":14.8,"d":"$14.80"}," N",null,35,"No"]
["3","BURRILLVILLE","BUR","JESSE M. SMITH MEMORIAL LIBRARY","Office Staff",1,"Technology Specialist/Admin. Assistant",{"v":21.12,"d":"$21.12"}," N",null,19.5,"No"]
["3","PASCOAG","PAS","PASCOAG FREE PUBLIC LIBRARY","Director",1,"Director",{"v":15.06,"d":"$15.06"},"N",{"v":20361,"d":"$20,361"},26,"Yes"]
["3","PASCOAG","PAS","PASCOAG FREE PUBLIC LIBRARY","Deputy/Associate/Assistant Director",1,"Library Manager",{"v":15.06,"d":"$15.06"},"N",{"v":20361,"d":"$20,361"},26,"No"]
["3","PASCOAG","PAS","PASCOAG FREE PUBLIC LIBRARY","Library Associate",1,"Cataloger",{"v":10.5,"d":"$10.50"},"N",{"v":7644,"d":"$7,644"},14,"No"]
["3","PASCOAG","PAS","PASCOAG FREE PUBLIC LIBRARY","Technical Services Librarian",1,"Library Technician",{"v":10.24,"d":"$10.24"},"N",{"v":6502,"d":"$6,502"},11,"No"]
["3","PASCOAG","PAS","PASCOAG FREE PUBLIC LIBRARY","Library Associate",1,"Library Assistant",{"v":9.18,"d":"$9.18"},"N",{"v":5728,"d":"$5,728"},12,"No"]
["3","PASCOAG","PAS","PASCOAG FREE PUBLIC LIBRARY","Library Associate",1,"Library Assistant",{"v":10.24,"d":"$10.24"},"N",{"v":2520,"d":"$2,520"},3,"No"]
["3","PASCOAG","PAS","PASCOAG FREE PUBLIC LIBRARY","Office Staff",1,"Bookkeeper",{"$f":"IF(J51>0,(J51/(K51*52)),\"  \")","v":{"v":16.153846153846153,"d":"$16.15"}},{"$f":"IF(J51>0,\"Y\",\" N\")","v":"Y"},{"v":2520,"d":"$2,520"},3,"No"]
["3","PASCOAG","PAS","PASCOAG FREE PUBLIC LIBRARY","Buildings/Ground Staff",1,"Janitor",{"$f":"IF(J52>0,(J52/(K52*52)),\"  \")","v":{"v":13.615384615384615,"d":"$13.62"}},"Y",{"v":2832,"d":"$2,832"},4,"No"]
["4","CENTRAL FALLS","CFA","CENTRAL FALLS FREE PUBLIC LIBRARY","Director",1,"Acting Director",{"$f":"IF(J53>0,(J53/(K53*52)),\"  \")","v":{"v":24.03846153846154,"d":"$24.04"}},"Y",{"v":50000,"d":"$50,000"},40,"Yes"]
["4","CENTRAL FALLS","CFA","CENTRAL FALLS FREE PUBLIC LIBRARY","Manager/Department Head",1,"Head of Circulation",{"v":9,"d":"$9.00"}," N",null,22,"No"]
["4","CENTRAL FALLS","CFA","CENTRAL FALLS FREE PUBLIC LIBRARY","Library Technician",1,"Library Aide",{"v":9,"d":"$9.00"}," N",null,25,"No"]
["5","CHARLESTOWN","CHA","CROSS' MILLS PUBLIC LIBRARY","Director",1,"Director",{"$f":"IF(J56>0,(J56/(K56*52)),\"  \")","v":{"v":31.878846153846155,"d":"$31.88"}},{"$f":"IF(J56>0,\"Y\",\" N\")","v":"Y"},{"v":66308,"d":"$66,308"},40,"Yes"]
["5","CHARLESTOWN","CHA","CROSS' MILLS PUBLIC LIBRARY","Deputy/Associate/Assistant Director",1,"Assistant Director",{"$f":"IF(J57>0,(J57/(K57*52)),\"  \")","v":{"v":22.978021978021978,"d":"$22.98"}},"Y",{"v":41820,"d":"$41,820"},35,"Yes"]
["5","CHARLESTOWN","CHA","CROSS' MILLS PUBLIC LIBRARY","Library Associate",1,"Public Relations & Programming",{"v":14,"d":"$14.00"},{"$f":"IF(J58>0,\"Y\",\"N\")","v":"N"},null,28,"Yes"]
["5","CHARLESTOWN","CHA","CROSS' MILLS PUBLIC LIBRARY","Technical Services Librarian",1,"Technical Librarian",{"v":20.51,"d":"$20.51"},{"$f":"IF(J59>0,\"Y\",\"N\")","v":"N"},null,8.5,"Yes"]
["5","CHARLESTOWN","CHA","CROSS' MILLS PUBLIC LIBRARY","Library Associate",1,"Circulation Clerk",{"v":12,"d":"$12.00"},"N",null,13,"No"]
["5","CHARLESTOWN","CHA","CROSS' MILLS PUBLIC LIBRARY","Library Associate",1,"Circulation Clerk",{"v":12,"d":"$12.00"},"N",null,17.5,"No"]
["5","CHARLESTOWN","CHA","CROSS' MILLS PUBLIC LIBRARY","Library Associate",1,"Circulation Clerk",{"v":12.35,"d":"$12.35"},"N",null,8,"No"]
["5","CHARLESTOWN","CHA","CROSS' MILLS PUBLIC LIBRARY","Manager/Department Head",1,"Musical Programming",{"v":17.58,"d":"$17.58"},"N",null,10,"No"]
["5","CHARLESTOWN","CHA","CROSS' MILLS PUBLIC LIBRARY","Library Associate",1,"Circulation Clerk",{"v":11,"d":"$11.00"},"N",null,20,"No"]
["5","CHARLESTOWN","CHA","CROSS' MILLS PUBLIC LIBRARY","Aide/Page",1,"Shelver",{"v":10,"d":"$10.00"},"N",null,11,"No"]
["5","CHARLESTOWN","CHA","CROSS' MILLS PUBLIC LIBRARY","Buildings/Ground Staff",1,"Maintenance",{"v":15.59,"d":"$15.59"},"N",null,12,"No"]
["5","CHARLESTOWN","CHA","CROSS' MILLS PUBLIC LIBRARY","Buildings/Ground Staff",1,"Custodian",{"v":20.18,"d":"$20.18"},"N",null,4,"No"]
["5","CHARLESTOWN","CHA","CROSS' MILLS PUBLIC LIBRARY","Aide/Page",1,"Shelver",{"v":8.5,"d":"$8.50"},"N",null,6,"No"]
["6","COVENTRY","COV","COVENTRY PUBLIC LIBRARY","Director",1,"Library Director",{"$f":"IF(J69>0,(J69/(K69*52)),\"  \")","v":{"v":39.533516483516486,"d":"$39.53"}},{"$f":"IF(J69>0,\"Y\",\" N\")","v":"Y"},{"v":71951,"d":"$71,951"},35,"Yes"]
["6","COVENTRY","COV","COVENTRY PUBLIC LIBRARY","Deputy/Associate/Assistant Director",1,"Assistant Director",{"$f":"IF(J70>0,(J70/(K70*52)),\"  \")","v":{"v":32.283516483516486,"d":"$32.28"}},{"$f":"IF(J70>0,\"Y\",\" N\")","v":"Y"},{"v":58756,"d":"$58,756"},35,"Yes"]
["6","COVENTRY","COV","COVENTRY PUBLIC LIBRARY","Manager/Department Head",1,"Adult Services",{"v":27.087362637362638,"d":"$27.09"},"Y",{"v":49299,"d":"$49,299"},35,"Yes"]
["6","COVENTRY","COV","COVENTRY PUBLIC LIBRARY","Manager/Department Head",1,"Youth Services",{"v":32.61978021978022,"d":"$32.62"},"Y",{"v":59368,"d":"$59,368"},35,"Yes"]
["6","COVENTRY","COV","COVENTRY PUBLIC LIBRARY","Manager/Department Head",1,"Technical Services",{"v":29.88131868131868,"d":"$29.88"},"Y",{"v":54384,"d":"$54,384"},35,"Yes"]
["6","COVENTRY","COV","COVENTRY PUBLIC LIBRARY","Manager/Department Head",1,"Circulation Manager",{"v":25.33131868131868,"d":"$25.33"},"Y",{"v":46103,"d":"$46,103"},35,"No"]
["6","COVENTRY","COV","COVENTRY PUBLIC LIBRARY","Buildings/Ground Staff",1,"Building Maintenance",{"v":20.097115384615385,"d":"$20.10"},"Y",{"v":20901,"d":"$20,901"},20,"No"]
["6","COVENTRY","COV","COVENTRY PUBLIC LIBRARY","Buildings/Ground Staff",1,"Custodian",{"v":17.224038461538463,"d":"$17.22"},"Y",{"v":17913,"d":"$17,913"},20,"No"]
["6","COVENTRY","COV","COVENTRY PUBLIC LIBRARY","Library Technician",1,"Technology Coordinator",{"v":24.147252747252747,"d":"$24.15"},"Y",{"v":21974,"d":"$21,974"},17.5,"No"]
["6","COVENTRY","COV","COVENTRY PUBLIC LIBRARY","Reference/Information Librarian",5,"Part-time Reference Librarians",{"v":19.26,"d":"$19.26"}," N",null,15,"Yes"]
["6","COVENTRY","COV","COVENTRY PUBLIC LIBRARY","Branch Librarian",1,"Part-time Branch Librarian",{"v":18.03,"d":"$18.03"}," N",null,18,"Yes"]
["6","COVENTRY","COV","COVENTRY PUBLIC LIBRARY","Childrens and/or Young Adult Services Librarian",2,"Part-time Youth Services Librarians",{"v":19.52,"d":"$19.52"}," N",null,20,"Yes"]
["6","COVENTRY","COV","COVENTRY PUBLIC LIBRARY","Library Technician",10,"Part-time Circulation/Youth Services Assistants",{"v":13.35,"d":"$13.35"}," N",null,19,"No"]
["6","COVENTRY","COV","COVENTRY PUBLIC LIBRARY","Library Technician",1,"Technical Assistant",{"v":11.91,"d":"$11.91"}," N",null,19,"No"]
["6","COVENTRY","COV","COVENTRY PUBLIC LIBRARY","Aide/Page",2,"Library Aides",{"v":11.76,"d":"$11.76"}," N",null,15,"No"]
["6","COVENTRY","COV","COVENTRY PUBLIC LIBRARY","Library Technician",1,"Homebound Coordinator",{"v":11.76,"d":"$11.76"}," N",null,15,"No"]
["7","CRANSTON","CRA","CRANSTON PUBLIC LIBRARY","Director",1,"Library Director",{"$f":"IF(J85>0,(J85/(K85*52)),\"  \")","v":{"v":49.395604395604394,"d":"$49.40"}},{"$f":"IF(J85>0,\"Y\",\" N\")","v":"Y"},{"v":89900,"d":"$89,900"},35,"Yes"]
["7","CRANSTON","CRA","CRANSTON PUBLIC LIBRARY","Deputy/Associate/Assistant Director",1,"Assistant Library Director",{"$f":"IF(J86>0,(J86/(K86*52)),\"  \")","v":{"v":37.91208791208791,"d":"$37.91"}},{"$f":"IF(J86>0,\"Y\",\" N\")","v":"Y"},{"v":69000,"d":"$69,000"},35,"Yes"]
["7","CRANSTON","CRA","CRANSTON PUBLIC LIBRARY","Manager/Department Head",1,"Coordinator of Adult Services",{"v":41.16263736263736,"d":"$41.16"},"Y",{"v":74916,"d":"$74,916"},35,"Yes"]
["7","CRANSTON","CRA","CRANSTON PUBLIC LIBRARY","Manager/Department Head",1,"Coordinator of youth Services",{"v":34.21208791208791,"d":"$34.21"},"Y",{"v":62266,"d":"$62,266"},35,"Yes"]
["7","CRANSTON","CRA","CRANSTON PUBLIC LIBRARY","Manager/Department Head",1,"Coordinator of Technical Services",{"v":35.67197802197802,"d":"$35.67"},"Y",{"v":64923,"d":"$64,923"},35,"Yes"]
["7","CRANSTON","CRA","CRANSTON PUBLIC LIBRARY","Branch Librarian",1,"Branch Librarian",{"v":36.034065934065936,"d":"$36.03"},"Y",{"v":65582,"d":"$65,582"},35,"Yes"]
["7","CRANSTON","CRA","CRANSTON PUBLIC LIBRARY","Childrens and/or Young Adult Services Librarian",1,"Head of Teen Services",{"v":36.034065934065936,"d":"$36.03"},"Y",{"v":65582,"d":"$65,582"},35,"Yes"]
["7","CRANSTON","CRA","CRANSTON PUBLIC LIBRARY","Childrens and/or Young Adult Services Librarian",2,"Youth Services Librarian",{"v":30.61978021978022,"d":"$30.62"},"Y",{"v":55728,"d":"$55,728"},35,"Yes"]
["7","CRANSTON","CRA","CRANSTON PUBLIC LIBRARY","Childrens and/or Young Adult Services Librarian",2,"Youth Services Librarian",{"v":23.72747252747253,"d":"$23.73"},"Y",{"v":43184,"d":"$43,184"},35,"Yes"]
["7","CRANSTON","CRA","CRANSTON PUBLIC LIBRARY","Reference/Information Librarian",1,"Information Services Librarian",{"v":30.062637362637364,"d":"$30.06"},"Y",{"v":54714,"d":"$54,714"},35,"Yes"]
["7","CRANSTON","CRA","CRANSTON PUBLIC LIBRARY","Reference/Information Librarian",1,"Information Services Librarian",{"v":23.72747252747253,"d":"$23.73"},"Y",{"v":43184,"d":"$43,184"},35,"Yes"]
["7","CRANSTON","CRA","CRANSTON PUBLIC LIBRARY","Reference/Information Librarian",1,"Information Services Librarian",{"v":30.342307692307692,"d":"$30.34"},"Y",{"v":55223,"d":"$55,223"},35,"Yes"]
["7","CRANSTON","CRA","CRANSTON PUBLIC LIBRARY","Branch Librarian",1,"Branch Librarian",{"v":29.49945054945055,"d":"$29.50"},"Y",{"v":53689,"d":"$53,689"},35,"Yes"]
["7","CRANSTON","CRA","CRANSTON PUBLIC LIBRARY","Branch Librarian",1,"Branch Librarian",{"v":32.79725274725275,"d":"$32.80"},"Y",{"v":59691,"d":"$59,691"},35,"Yes"]
["7","CRANSTON","CRA","CRANSTON PUBLIC LIBRARY","Branch Librarian",1,"Branch Librarian",{"v":30.61978021978022,"d":"$30.62"},"Y",{"v":55728,"d":"$55,728"},35,"Yes"]
["7","CRANSTON","CRA","CRANSTON PUBLIC LIBRARY","Manager/Department Head",1,"Head of Circulation",{"v":24.21868131868132,"d":"$24.22"},"Y",{"v":44078,"d":"$44,078"},35,"No"]
["7","CRANSTON","CRA","CRANSTON PUBLIC LIBRARY","Manager/Department Head",1,"Office Manager",{"v":24.21868131868132,"d":"$24.22"},"Y",{"v":44078,"d":"$44,078"},35,"No"]
["7","CRANSTON","CRA","CRANSTON PUBLIC LIBRARY","Buildings/Ground Staff",1,"Custodian",{"v":20.976923076923075,"d":"$20.98"},"Y",{"v":38178,"d":"$38,178"},35,"No"]
["7","CRANSTON","CRA","CRANSTON PUBLIC LIBRARY","Library Associate",3,"Library Assistant II",{"v":20.498901098901097,"d":"$20.50"},"Y",{"v":37308,"d":"$37,308"},35,"No"]
["7","CRANSTON","CRA","CRANSTON PUBLIC LIBRARY","Library Associate",4,"Library Assistant II",{"v":20.875274725274725,"d":"$20.88"},"Y",{"v":37993,"d":"$37,993"},35,"No"]
["7","CRANSTON","CRA","CRANSTON PUBLIC LIBRARY","Library Associate",1,"Library Assistant II",{"v":20.68791208791209,"d":"$20.69"},"Y",{"v":37652,"d":"$37,652"},35,"No"]
["7","CRANSTON","CRA","CRANSTON PUBLIC LIBRARY","Office Staff",1,"Administrative Assistant",{"v":20.68791208791209,"d":"$20.69"},"Y",{"v":37652,"d":"$37,652"},35,"No"]
["7","CRANSTON","CRA","CRANSTON PUBLIC LIBRARY","Library Associate",1,"Library Assistant II",{"v":15.814835164835165,"d":"$15.81"},"Y",{"v":28783,"d":"$28,783"},35,"No"]
["7","CRANSTON","CRA","CRANSTON PUBLIC LIBRARY","Buildings/Ground Staff",1,"Driver",{"v":15.672307692307692,"d":"$15.67"},"Y",{"v":20374,"d":"$20,374"},25,"No"]
["7","CRANSTON","CRA","CRANSTON PUBLIC LIBRARY","Office Staff",1,"Community Engagment Mgr",{"v":16.355494505494505,"d":"$16.36"},"Y",{"v":29767,"d":"$29,767"},35,"No"]
["7","CRANSTON","CRA","CRANSTON PUBLIC LIBRARY","Library Technician",4,"Library Aide",{"v":9,"d":"$9.00"},{"$f":"IF(J110>0,\"Y\",\" N\")","v":" N"},null,3,"No"]
["7","CRANSTON","CRA","CRANSTON PUBLIC LIBRARY","Library Technician",2,"Library Aide",{"v":9,"d":"$9.00"},{"$f":"IF(J111>0,\"Y\",\" N\")","v":" N"},null,5,"No"]
["7","CRANSTON","CRA","CRANSTON PUBLIC LIBRARY","Library Technician",4,"Library Aide",{"v":9,"d":"$9.00"}," N",null,12,"No"]
["7","CRANSTON","CRA","CRANSTON PUBLIC LIBRARY","Library Technician",2,"Library Aide",{"v":9,"d":"$9.00"}," N",null,16,"No"]
["7","CRANSTON","CRA","CRANSTON PUBLIC LIBRARY","Library Technician",3,"Library Aide",{"v":9,"d":"$9.00"}," N",null,4,"No"]
["7","CRANSTON","CRA","CRANSTON PUBLIC LIBRARY","Library Technician",2,"Library Aide",{"v":9,"d":"$9.00"}," N",null,8,"No"]
["7","CRANSTON","CRA","CRANSTON PUBLIC LIBRARY","Library Technician",2,"Library Aide",{"v":9,"d":"$9.00"}," N",null,18,"No"]
["7","CRANSTON","CRA","CRANSTON PUBLIC LIBRARY","Library Technician",2,"Library Aide",{"v":9,"d":"$9.00"}," N",null,20,"No"]
["7","CRANSTON","CRA","CRANSTON PUBLIC LIBRARY","Library Technician",3,"Library Aide",{"v":9,"d":"$9.00"}," N",null,15,"No"]
["7","CRANSTON","CRA","CRANSTON PUBLIC LIBRARY","Library Technician",2,"Library Aide",{"v":9,"d":"$9.00"}," N",null,21,"No"]
["7","CRANSTON","CRA","CRANSTON PUBLIC LIBRARY","Buildings/Ground Staff",1,"Custodian",{"v":10,"d":"$10.00"}," N",null,14,"No"]
["7","CRANSTON","CRA","CRANSTON PUBLIC LIBRARY","Buildings/Ground Staff",2,"Custodian",{"v":10,"d":"$10.00"}," N",null,25,"No"]
["7","CRANSTON","CRA","CRANSTON PUBLIC LIBRARY","Buildings/Ground Staff",1,"Security",{"v":9,"d":"$9.00"}," N",null,12,"No"]
["7","CRANSTON","CRA","CRANSTON PUBLIC LIBRARY","Reference/Information Librarian",1,"Librarian",{"v":17.5,"d":"$17.50"}," N",null,6,"Yes"]
["7","CRANSTON","CRA","CRANSTON PUBLIC LIBRARY","Reference/Information Librarian",1,"Librarian",{"v":16.5,"d":"$16.50"}," N",null,30,"Yes"]
["7","CRANSTON","CRA","CRANSTON PUBLIC LIBRARY","Childrens and/or Young Adult Services Librarian",1,"Librarian",{"v":16.5,"d":"$16.50"}," N",null,3.5,"Yes"]
["7","CRANSTON","CRA","CRANSTON PUBLIC LIBRARY","Childrens and/or Young Adult Services Librarian",1,"Librarian",{"v":16.5,"d":"$16.50"}," N",null,20,"Yes"]
["7","CRANSTON","CRA","CRANSTON PUBLIC LIBRARY","Reference/Information Librarian",3,"Librarian",{"v":16.5,"d":"$16.50"}," N",null,6,"Yes"]
["7","CRANSTON","CRA","CRANSTON PUBLIC LIBRARY","Library Associate",2,"Library Assistant",{"v":9,"d":"$9.00"}," N",null,7,"No"]
["7","CRANSTON","CRA","CRANSTON PUBLIC LIBRARY","Library Associate",1,"Library Assistant",{"v":10.25,"d":"$10.25"}," N",null,7,"No"]
["7","CRANSTON","CRA","CRANSTON PUBLIC LIBRARY","Library Associate",1,"Library Assistant",{"v":10.25,"d":"$10.25"}," N",null,23,"No"]
["7","CRANSTON","CRA","CRANSTON PUBLIC LIBRARY","Library Associate",1,"Library Assistant",{"v":10.25,"d":"$10.25"}," N",null,4,"No"]
["7","CRANSTON","CRA","CRANSTON PUBLIC LIBRARY","Library Associate",1,"Library Assistant",{"v":10.25,"d":"$10.25"}," N",null,12,"No"]
["7","CRANSTON","CRA","CRANSTON PUBLIC LIBRARY","Buildings/Ground Staff",1,"Custodian",{"v":9.35,"d":"$9.35"}," N",null,9,"No"]
["7","CRANSTON","CRA","CRANSTON PUBLIC LIBRARY","Buildings/Ground Staff",1,"Custodian",{"v":12.35,"d":"$12.35"}," N",null,20,"No"]
["7","CRANSTON","CRA","CRANSTON PUBLIC LIBRARY","Library Technician",1,"Library Aide",{"v":9.75,"d":"$9.75"}," N",null,25,"No"]
["7","CRANSTON","CRA","CRANSTON PUBLIC LIBRARY","Library Technician",1,"Library Aide",{"v":11.55,"d":"$11.55"}," N",null,18,"No"]
["7","CRANSTON","CRA","CRANSTON PUBLIC LIBRARY","Library Associate",1,"Library Assistant",{"v":12.05,"d":"$12.05"}," N",null,20,"No"]
["7","CRANSTON","CRA","CRANSTON PUBLIC LIBRARY","Library Associate",1,"Library Assistant",{"v":11.1,"d":"$11.10"}," N",null,10,"No"]
["7","CRANSTON","CRA","CRANSTON PUBLIC LIBRARY","Library Associate",1,"Library Assistant",{"v":11.1,"d":"$11.10"}," N",null,18,"No"]
["7","CRANSTON","CRA","CRANSTON PUBLIC LIBRARY","Library Associate",1,"Library Assistant",{"v":13.6,"d":"$13.60"}," N",null,3,"No"]
["7","CRANSTON","CRA","CRANSTON PUBLIC LIBRARY","Library Associate",1,"Library Assistant",{"v":12.3,"d":"$12.30"}," N",null,6,"No"]
["7","CRANSTON","CRA","CRANSTON PUBLIC LIBRARY","Library Associate",1,"Library Assistant",{"v":12.3,"d":"$12.30"}," N",null,20,"No"]
["7","CRANSTON","CRA","CRANSTON PUBLIC LIBRARY","Aide/Page",3,"Page",{"v":9,"d":"$9.00"}," N",null,8,"No"]
["7","CRANSTON","CRA","CRANSTON PUBLIC LIBRARY","Aide/Page",1,"Page",{"v":9,"d":"$9.00"}," N",null,20,"No"]
["7","CRANSTON","CRA","CRANSTON PUBLIC LIBRARY","Buildings/Ground Staff",1,"Security",{"v":10.1,"d":"$10.10"}," N",null,3,"No"]
["7","CRANSTON","CRA","CRANSTON PUBLIC LIBRARY","Buildings/Ground Staff",1,"Security",{"v":9.35,"d":"$9.35"}," N",null,5,"No"]
["7","CRANSTON","CRA","CRANSTON PUBLIC LIBRARY","Office Staff",1,"Secretary to Board",{"v":13.3,"d":"$13.30"}," N",null,1.5,"No"]
["7","CRANSTON","CRA","CRANSTON PUBLIC LIBRARY","Library Associate",1,"Library Assistant",{"v":12.3,"d":"$12.30"}," N",null,7,"No"]
["8","CUMBERLAND","CUM","CUMBERLAND PUBLIC LIBRARY","Director",1,"Library Director",{"$f":"IF(J149>0,(J149/(K149*52)),\"  \")","v":{"v":41.98186813186813,"d":"$41.98"}},"Y",{"v":76407,"d":"$76,407"},35,"Yes"]
["8","CUMBERLAND","CUM","CUMBERLAND PUBLIC LIBRARY","Deputy/Associate/Assistant Director",1,"Assistant Director/Technology Coordinator",{"v":33.32857142857143,"d":"$33.33"},"Y",{"v":60658,"d":"$60,658"},35,"Yes"]
["8","CUMBERLAND","CUM","CUMBERLAND PUBLIC LIBRARY","Manager/Department Head",1,"Reference Services Coordinator",{"v":29.04725274725275,"d":"$29.05"},"Y",{"v":52866,"d":"$52,866"},35,"Yes"]
["8","CUMBERLAND","CUM","CUMBERLAND PUBLIC LIBRARY","Manager/Department Head",1,"Adult Services Coordinator",{"v":29.337912087912088,"d":"$29.34"},"Y",{"v":53395,"d":"$53,395"},35,"Yes"]
["8","CUMBERLAND","CUM","CUMBERLAND PUBLIC LIBRARY","Manager/Department Head",1,"Children\\'s Services Coordinator",{"v":28.411538461538463,"d":"$28.41"},"Y",{"v":51709,"d":"$51,709"},35,"Yes"]
["8","CUMBERLAND","CUM","CUMBERLAND PUBLIC LIBRARY","Manager/Department Head",1,"Technical Services/Homebound Librarian",{"v":28.411538461538463,"d":"$28.41"},"Y",{"v":51709,"d":"$51,709"},35,"Yes"]
["8","CUMBERLAND","CUM","CUMBERLAND PUBLIC LIBRARY","Childrens and/or Young Adult Services Librarian",1,"Young Adult Reference Librarian",{"v":27.26978021978022,"d":"$27.27"},"Y",{"v":49631,"d":"$49,631"},35,"Yes"]
["8","CUMBERLAND","CUM","CUMBERLAND PUBLIC LIBRARY","Childrens and/or Young Adult Services Librarian",1,"Part-time Children\\'s Librarian",{"v":24.73,"d":"$24.73"}," N",null,12.5,"Yes"]
["8","CUMBERLAND","CUM","CUMBERLAND PUBLIC LIBRARY","Manager/Department Head",1,"Circulation Supervisor",{"v":21.02,"d":"$21.02"}," N",null,35,"No"]
["8","CUMBERLAND","CUM","CUMBERLAND PUBLIC LIBRARY","Office Staff",1,"Administrative Assistant",{"v":21.82,"d":"$21.82"}," N",null,35,"No"]
["8","CUMBERLAND","CUM","CUMBERLAND PUBLIC LIBRARY","Office Staff",1,"Bookkeeper",{"v":17.21,"d":"$17.21"}," N",null,4,"No"]
["8","CUMBERLAND","CUM","CUMBERLAND PUBLIC LIBRARY","Library Associate",1,"Full-time Children\\'s Assistant",{"v":18.01,"d":"$18.01"}," N",null,35,"No"]
["8","CUMBERLAND","CUM","CUMBERLAND PUBLIC LIBRARY","Library Associate",1,"Part-time Children\\'s Assistant",{"v":16.28,"d":"$16.28"}," N",null,19.5,"No"]
["8","CUMBERLAND","CUM","CUMBERLAND PUBLIC LIBRARY","Library Associate",1,"Part-time Children\\'s Assistant",{"v":15.58,"d":"$15.58"}," N",null,19.5,"No"]
["8","CUMBERLAND","CUM","CUMBERLAND PUBLIC LIBRARY","Library Associate",2,"Part-time Reference Assistant",{"v":15.58,"d":"$15.58"}," N",null,19.5,"No"]
["8","CUMBERLAND","CUM","CUMBERLAND PUBLIC LIBRARY","Library Associate",1,"Information Services Specialist",{"v":15.58,"d":"$15.58"}," N",null,19.5,"No"]
["8","CUMBERLAND","CUM","CUMBERLAND PUBLIC LIBRARY","Library Associate",1,"Part-time Reference Assistant",{"v":15.58,"d":"$15.58"}," N",null,6,"No"]
["8","CUMBERLAND","CUM","CUMBERLAND PUBLIC LIBRARY","Library Associate",2,"Part-time Desk Assistant",{"v":15.42,"d":"$15.42"}," N",null,19.5,"No"]
["8","CUMBERLAND","CUM","CUMBERLAND PUBLIC LIBRARY","Library Associate",1,"Part-time Desk Assistant",{"v":15.27,"d":"$15.27"}," N",null,19.5,"No"]
["8","CUMBERLAND","CUM","CUMBERLAND PUBLIC LIBRARY","Library Associate",2,"Part-time Desk Assistant",{"v":14.52,"d":"$14.52"}," N",null,19.5,"No"]
["8","CUMBERLAND","CUM","CUMBERLAND PUBLIC LIBRARY","Library Associate",2,"Part-time Desk Assistant",{"v":14.52,"d":"$14.52"}," N",null,16.5,"No"]
["8","CUMBERLAND","CUM","CUMBERLAND PUBLIC LIBRARY","Library Technician",1,"Part-time Catalog Assistant",{"v":15.27,"d":"$15.27"}," N",null,19.5,"No"]
["8","CUMBERLAND","CUM","CUMBERLAND PUBLIC LIBRARY","Library Technician",1,"Part-time Catalog Assistant",{"v":14.52,"d":"$14.52"}," N",null,19.5,"No"]
["8","CUMBERLAND","CUM","CUMBERLAND PUBLIC LIBRARY","Aide/Page",1,"Part-time Library Page",{"v":10.51,"d":"$10.51"}," N",null,15,"No"]
["8","CUMBERLAND","CUM","CUMBERLAND PUBLIC LIBRARY","Aide/Page",3,"Part-time Library Page",{"v":9.54,"d":"$9.54"}," N",null,15,"No"]
["8","CUMBERLAND","CUM","CUMBERLAND PUBLIC LIBRARY","Buildings/Ground Staff",1,"Facility Manager",{"v":20.43,"d":"$20.43"}," N",null,40,"No"]
["8","CUMBERLAND","CUM","CUMBERLAND PUBLIC LIBRARY","Buildings/Ground Staff",1,"Part-time Custodian",{"v":16.91,"d":"$16.91"},{"$f":"IF(J175>0,\"Y\",\" N\")","v":" N"},null,18,"No"]
["8","CUMBERLAND","CUM","CUMBERLAND PUBLIC LIBRARY","Buildings/Ground Staff",1,"Part-time Custodial Assistant",{"v":16.25,"d":"$16.25"}," N",null,19.5,"No"]
["8","CUMBERLAND","CUM","CUMBERLAND PUBLIC LIBRARY","Buildings/Ground Staff",1,"Part-time Custodial Assistant",{"v":15.7,"d":"$15.70"}," N",null,8,"No"]
["9","EAST GREENWICH","EGR","EAST GREENWICH FREE LIBRARY","Director",1,"Director",{"v":41.43,"d":"$41.43"}," N",null,35,"Yes"]
["9","EAST GREENWICH","EGR","EAST GREENWICH FREE LIBRARY","Manager/Department Head",1,"Head of Refernce and Information Services",{"v":29.82,"d":"$29.82"}," N",null,35,"Yes"]
["9","EAST GREENWICH","EGR","EAST GREENWICH FREE LIBRARY","Manager/Department Head",1,"Head of Children\\'s Services",{"v":28.4,"d":"$28.40"}," N",null,35,"Yes"]
["9","EAST GREENWICH","EGR","EAST GREENWICH FREE LIBRARY","Manager/Department Head",1,"Head of Cirulation",{"v":20.22,"d":"$20.22"}," N",null,35,"No"]
["9","EAST GREENWICH","EGR","EAST GREENWICH FREE LIBRARY","Library Associate",1,"Circulation clerk",{"v":20.22,"d":"$20.22"}," N",null,15,"No"]
["9","EAST GREENWICH","EGR","EAST GREENWICH FREE LIBRARY","Childrens and/or Young Adult Services Librarian",1,"childrens librarian",{"v":21.5,"d":"$21.50"}," N",null,16,"Yes"]
["9","EAST GREENWICH","EGR","EAST GREENWICH FREE LIBRARY","Childrens and/or Young Adult Services Librarian",1,"children\\'s librarian",{"v":18.07,"d":"$18.07"}," N",null,10,"No"]
["9","EAST GREENWICH","EGR","EAST GREENWICH FREE LIBRARY","Reference/Information Librarian",1,"Reference librarian",{"v":20.5,"d":"$20.50"}," N",null,12,"Yes"]
["9","EAST GREENWICH","EGR","EAST GREENWICH FREE LIBRARY","Reference/Information Librarian",1,"Reference librarian",{"v":19.53,"d":"$19.53"}," N",null,20,"Yes"]
["9","EAST GREENWICH","EGR","EAST GREENWICH FREE LIBRARY","Library Associate",3,"circulation clerk",{"v":11.62,"d":"$11.62"}," N",null,56,"No"]
["9","EAST GREENWICH","EGR","EAST GREENWICH FREE LIBRARY","Office Staff",1,"administrative assistant",{"v":17.86,"d":"$17.86"}," N",null,24,"No"]
["9","EAST GREENWICH","EGR","EAST GREENWICH FREE LIBRARY","Technical Services Librarian",1,"technical services",{"v":12.29,"d":"$12.29"}," N",null,9,"No"]
["9","EAST GREENWICH","EGR","EAST GREENWICH FREE LIBRARY","Aide/Page",1,"page",{"v":9.09,"d":"$9.09"}," N",null,20,"No"]
["9","EAST GREENWICH","EGR","EAST GREENWICH FREE LIBRARY","Buildings/Ground Staff",1,"maintenace",{"v":20.22,"d":"$20.22"}," N",null,15,"No"]
["9","EAST GREENWICH","EGR","EAST GREENWICH FREE LIBRARY","Technical Services Librarian",1,"technical services",{"v":20.22,"d":"$20.22"}," N",null,5,"No"]
["10","EAST PROVIDENCE","EPL","EAST PROVIDENCE PUBLIC LIBRARY","Director",1,"Director of Library Services",{"$f":"IF(J193>0,(J193/(K193*52)),\"  \")","v":{"v":46.24010989010989,"d":"$46.24"}},"Y",{"v":84157,"d":"$84,157"},35,"Yes"]
["10","EAST PROVIDENCE","EPL","EAST PROVIDENCE PUBLIC LIBRARY","Manager/Department Head",1,"Information Services",{"$f":"IF(J194>0,(J194/(K194*52)),\"  \")","v":{"v":31.0478021978022,"d":"$31.05"}},"Y",{"v":56507,"d":"$56,507"},35,"Yes"]
["10","EAST PROVIDENCE","EPL","EAST PROVIDENCE PUBLIC LIBRARY","Childrens and/or Young Adult Services Librarian",1,"Children\\'s Librarian",{"v":31.0478021978022,"d":"$31.05"},"Y",{"v":56507,"d":"$56,507"},35,"Yes"]
["10","EAST PROVIDENCE","EPL","EAST PROVIDENCE PUBLIC LIBRARY","Branch Librarian",1,"Branch Librarian",{"v":31.0478021978022,"d":"$31.05"},"Y",{"v":56507,"d":"$56,507"},35,"Yes"]
["10","EAST PROVIDENCE","EPL","EAST PROVIDENCE PUBLIC LIBRARY","Childrens and/or Young Adult Services Librarian",1,"Teen Librarian",{"v":31.0478021978022,"d":"$31.05"},"Y",{"v":56507,"d":"$56,507"},35,"Yes"]
["10","EAST PROVIDENCE","EPL","EAST PROVIDENCE PUBLIC LIBRARY","Technical Services Librarian",1,"Cataloging and Acq",{"v":29.703846153846154,"d":"$29.70"},"Y",{"v":54061,"d":"$54,061"},35,"Yes"]
["10","EAST PROVIDENCE","EPL","EAST PROVIDENCE PUBLIC LIBRARY","Manager/Department Head",1,"Systems Librarian",{"v":31.0478021978022,"d":"$31.05"},"Y",{"v":56507,"d":"$56,507"},35,"Yes"]
["10","EAST PROVIDENCE","EPL","EAST PROVIDENCE PUBLIC LIBRARY","Manager/Department Head",1,"Neighborhood and Community Services",{"v":31.0478021978022,"d":"$31.05"},"Y",{"v":56507,"d":"$56,507"},35,"Yes"]
["10","EAST PROVIDENCE","EPL","EAST PROVIDENCE PUBLIC LIBRARY","Technical Services Librarian",1,"Digital Services",{"v":24.88021978021978,"d":"$24.88"},"Y",{"v":45282,"d":"$45,282"},35,"Yes"]
["10","EAST PROVIDENCE","EPL","EAST PROVIDENCE PUBLIC LIBRARY","Manager/Department Head",1,"Adult Services",{"v":31.0478021978022,"d":"$31.05"},"Y",{"v":56507,"d":"$56,507"},35,"Yes"]
["10","EAST PROVIDENCE","EPL","EAST PROVIDENCE PUBLIC LIBRARY","Library Associate",1,"Circulation Coordinator",{"v":22.358241758241757,"d":"$22.36"},"Y",{"v":40692,"d":"$40,692"},35,"No"]
["10","EAST PROVIDENCE","EPL","EAST PROVIDENCE PUBLIC LIBRARY","Library Associate",1,"Technical Services Assistant",{"v":22.358241758241757,"d":"$22.36"},"Y",{"v":40692,"d":"$40,692"},35,"No"]
["10","EAST PROVIDENCE","EPL","EAST PROVIDENCE PUBLIC LIBRARY","Library Associate",1,"Youth Services Assistant",{"v":20.493956043956043,"d":"$20.49"},"Y",{"v":37299,"d":"$37,299"},35,"Yes"]
["10","EAST PROVIDENCE","EPL","EAST PROVIDENCE PUBLIC LIBRARY","Library Technician",7,"Library Aide",{"v":19.625274725274725,"d":"$19.63"},"Y",{"v":35718,"d":"$35,718"},35,"No"]
["10","EAST PROVIDENCE","EPL","EAST PROVIDENCE PUBLIC LIBRARY","Manager/Department Head",1,"Literacy Coordinator",{"v":26.624725274725275,"d":"$26.62"},"Y",{"v":48457,"d":"$48,457"},35,"No"]
["10","EAST PROVIDENCE","EPL","EAST PROVIDENCE PUBLIC LIBRARY","Aide/Page",3,"P/T 10.00",null,null,"",15,"No"]
[10.5,"EXETER","EXE","EXETER PUBLIC LIBRARY","Director",1,"Library Director",{"v":32.44835164835165,"d":"$32.45"},"Y",{"v":59056,"d":"$59,056"},35,"Yes"]
[10.5,"EXETER","EXE","EXETER PUBLIC LIBRARY","Childrens and/or Young Adult Services Librarian",1,"Youth Services / Assistant Director",{"v":22.6,"d":"$22.60"},{"$f":"IF(J210>0,\"Y\",\" N\")","v":" N"},null,25,"N/A"]
[10.5,"EXETER","EXE","EXETER PUBLIC LIBRARY","Library Technician",1,"Library Assistant",{"v":12.5,"d":"$12.50"}," N",null,12,"N/A"]
[10.5,"EXETER","EXE","EXETER PUBLIC LIBRARY","Library Technician",2,"Library Assistant",{"v":9,"d":"$9.00"}," N",null,12,"No"]
[10.5,"EXETER","EXE","EXETER PUBLIC LIBRARY","Library Technician",1,"Library Assistant",{"v":9,"d":"$9.00"}," N",null,18,"N/A"]
[10.5,"EXETER","EXE","EXETER PUBLIC LIBRARY","Library Technician",1,"Library Assistant",{"v":9.27,"d":"$9.27"}," N",null,11,"No"]
["11","FOSTER","FOS","LIBRARIES OF FOSTER","Director",1,"Director",{"$f":"IF(J215>0,(J215/(K215*52)),\"  \")","v":{"v":22.185576923076923,"d":"$22.19"}},"Y",{"v":46146,"d":"$46,146"},40,"Yes"]
["11","FOSTER","FOS","LIBRARIES OF FOSTER","Reference/Information Librarian",1,"Special Collections/Reference",{"v":12.86,"d":"$12.86"}," N",null,18,"No"]
["11","FOSTER","FOS","LIBRARIES OF FOSTER","Childrens and/or Young Adult Services Librarian",1,"Youth Services Librarian",{"v":15,"d":"$15.00"},{"$f":"IF(J217>0,\"Y\",\" N\")","v":" N"},null,36,"No"]
["11","FOSTER","FOS","LIBRARIES OF FOSTER","Technical Services Librarian",1,"Cataloger",{"v":9.97,"d":"$9.97"}," N",null,8,"No"]
["11","FOSTER","FOS","LIBRARIES OF FOSTER","Library Associate",1,"Circulation Clerk",{"v":9.66,"d":"$9.66"}," N",null,21,"No"]
["11","FOSTER","FOS","LIBRARIES OF FOSTER","Library Associate",1,"Circulation Clerk",{"v":13.42,"d":"$13.42"}," N",null,6,"No"]
["11","FOSTER","FOS","LIBRARIES OF FOSTER","Library Associate",1,"Circulation Clerk",{"v":11.51,"d":"$11.51"}," N",null,7,"No"]
["11","FOSTER","FOS","LIBRARIES OF FOSTER","Library Associate",1,"Circulation Clerk",{"v":9,"d":"$9.00"}," N",null,12,"No"]
["11","FOSTER","FOS","LIBRARIES OF FOSTER","Library Associate",1,"Circulation Clerk",{"v":9,"d":"$9.00"}," N",null,8,"No"]
["11","FOSTER","FOS","LIBRARIES OF FOSTER","Library Associate",1,"Circulation Clerk",{"v":9,"d":"$9.00"}," N",null,4,"No"]
["12","GLOCESTER","GLO","GLOCESTER MANTON FREE PUBLIC LIBRARY","Director",1,"Director, Adult Services",{"$f":"IF(J225>0,(J225/(K225*52)),\"  \")","v":{"v":23.7125,"d":"$23.71"}},{"$f":"IF(J225>0,\"Y\",\" N\")","v":"Y"},{"v":49322,"d":"$49,322"},40,"Yes"]
["12","GLOCESTER","GLO","GLOCESTER MANTON FREE PUBLIC LIBRARY","Childrens and/or Young Adult Services Librarian",1,"Children\\'s Assistant",{"v":15.35,"d":"$15.35"}," N",null,30,"No"]
["12","GLOCESTER","GLO","GLOCESTER MANTON FREE PUBLIC LIBRARY","Library Technician",1,"Circulation Assistant",{"v":10.86,"d":"$10.86"}," N",null,15,"No"]
["12","GLOCESTER","GLO","GLOCESTER MANTON FREE PUBLIC LIBRARY","Library Technician",1,"Circulation Head",{"v":11.91,"d":"$11.91"}," N",null,15,"No"]
["12","GLOCESTER","GLO","GLOCESTER MANTON FREE PUBLIC LIBRARY","Library Technician",1,"Library Technician",{"v":10.89,"d":"$10.89"}," N",null,15,"No"]
["12","GLOCESTER","GLO","GLOCESTER MANTON FREE PUBLIC LIBRARY","Library Technician",1,"Library Technician",{"v":10.58,"d":"$10.58"}," N",null,20,"No"]
["12","GLOCESTER","GLO","GLOCESTER MANTON FREE PUBLIC LIBRARY","Office Staff",1,"Bookkeeper",{"$f":"IF(J231>0,(J231/(K231*52)),\"  \")","v":{"v":11.25,"d":"$11.25"}},{"$f":"IF(J231>0,\"Y\",\" N\")","v":"Y"},{"v":2340,"d":"$2,340"},4,"No"]
["12","GLOCESTER","HAR","HARMONY LIBRARY","Childrens and/or Young Adult Services Librarian",1,"Glocester Childrens Services Coordinator",{"$f":"IF(J232>0,(J232/(K232*52)),\"  \")","v":{"v":23.14065934065934,"d":"$23.14"}},"Y",{"v":42116,"d":"$42,116"},35,"Yes"]
["12","GLOCESTER","HAR","HARMONY LIBRARY","Reference/Information Librarian",1,"Reference/Technology Libraries",{"v":22.41,"d":"$22.41"}," N",null,26,"Yes"]
["12","GLOCESTER","HAR","HARMONY LIBRARY","Reference/Information Librarian",1,"Adult Services Librarian",{"v":19.63,"d":"$19.63"}," N",null,13,"Yes"]
["12","GLOCESTER","HAR","HARMONY LIBRARY","Library Technician",1,"Circulation Assistant",{"v":11.51,"d":"$11.51"}," N",null,21,"No"]
["12","GLOCESTER","HAR","HARMONY LIBRARY","Library Technician",1,"Circulation Assistant",{"v":10.3,"d":"$10.30"}," N",null,8,"No"]
["12","GLOCESTER","HAR","HARMONY LIBRARY","Library Technician",1,"Circulation Assistant",{"v":11.67,"d":"$11.67"}," N",null,23,"No"]
["12","GLOCESTER","HAR","HARMONY LIBRARY","Library Technician",1,"Circulation Head",{"v":14.94,"d":"$14.94"}," N",null,24,"No"]
["12","GLOCESTER","HAR","HARMONY LIBRARY","Aide/Page",2,"Page",{"v":9.27,"d":"$9.27"}," N",null,4,"No"]
["12","GLOCESTER","HAR","HARMONY LIBRARY","Office Staff",1,"Bookkeeper",{"$f":"IF(J240>0,(J240/(K240*52)),\"  \")","v":{"v":24.610576923076923,"d":"$24.61"}},"Y",{"v":5119,"d":"$5,119"},4,"No"]
["13","HOPKINTON","ASH","ASHAWAY FREE LIBRARY","Director",1,"Head Librarian",{"v":24.41,"d":"$24.41"}," N",null,30,"Yes"]
["13","HOPKINTON","ASH","ASHAWAY FREE LIBRARY","Aide/Page",1,"Story Hour Assistant",{"v":21.65,"d":"$21.65"}," N",null,1,"No"]
["13","HOPKINTON","ASH","ASHAWAY FREE LIBRARY","Office Staff",1,"Bookkeeper",{"v":15,"d":"$15.00"}," N",null,2,"No"]
["13","HOPKINTON","ASH","ASHAWAY FREE LIBRARY","Library Associate",1,"Staff Librarian",{"v":13.45,"d":"$13.45"}," N",null,8,"Yes"]
["13","HOPKINTON","ASH","ASHAWAY FREE LIBRARY","Library Technician",3,"Staff Librarian",{"v":11.65,"d":"$11.65"}," N",null,13,"No"]
["13","HOPKINTON","ASH","ASHAWAY FREE LIBRARY","Library Technician",1,"Substitute Librarian",{"v":15.2,"d":"$15.20"}," N",null,2,"No"]
["13","HOPKINTON","LAN","LANGWORTHY PUBLIC LIBRARY","Director",1,"Director",{"v":22,"d":"$22.00"}," N",null,20,"Yes"]
["13","HOPKINTON","LAN","LANGWORTHY PUBLIC LIBRARY","Deputy/Associate/Assistant Director",1,"Assistant Director",{"v":19,"d":"$19.00"}," N",null,12,"Yes"]
["13","HOPKINTON","LAN","LANGWORTHY PUBLIC LIBRARY","Manager/Department Head",1,"Circulation Manager",{"v":12,"d":"$12.00"}," N",null,18,"No"]
["13","HOPKINTON","LAN","LANGWORTHY PUBLIC LIBRARY","Library Associate",1,"Circulation Clerk",{"v":9.5,"d":"$9.50"}," N",null,12,"No"]
["13","HOPKINTON","LAN","LANGWORTHY PUBLIC LIBRARY","Library Associate",5,"Circulation Clerk",{"v":9,"d":"$9.00"}," N",null,15,"No"]
["13","HOPKINTON","LAN","LANGWORTHY PUBLIC LIBRARY","Reference/Information Librarian",1,"Circulation Librarian",{"v":9,"d":"$9.00"}," N",null,4,"Yes"]
["14","JAMESTOWN","JAM","JAMESTOWN PHILOMENIAN LIBRARY","Director",1,"Director",{"$f":"IF(J253>0,(J253/(K253*52)),\"  \")","v":{"v":33.61586538461538,"d":"$33.62"}},"Y",{"v":69921,"d":"$69,921"},40,"Yes"]
["14","JAMESTOWN","JAM","JAMESTOWN PHILOMENIAN LIBRARY","Childrens and/or Young Adult Services Librarian",1,"Children\\'s Librarian ",{"v":21.18,"d":"$21.18"}," N",null,40,"Yes"]
["14","JAMESTOWN","JAM","JAMESTOWN PHILOMENIAN LIBRARY","Reference/Information Librarian",1,"Referrence Librarian",{"v":26.16,"d":"$26.16"}," N",null,40,"Yes"]
["14","JAMESTOWN","JAM","JAMESTOWN PHILOMENIAN LIBRARY","Library Associate",1,"Para-Professional ",{"v":12.5,"d":"$12.50"}," N",null,35,"No"]
["14","JAMESTOWN","JAM","JAMESTOWN PHILOMENIAN LIBRARY","Technical Services Librarian",1,"Cataloger ",{"v":11.21,"d":"$11.21"}," N",null,35,"No"]
["14","JAMESTOWN","JAM","JAMESTOWN PHILOMENIAN LIBRARY","Library Associate",1,"Library Associate ",{"v":12,"d":"$12.00"}," N",null,19,"No"]
["14","JAMESTOWN","JAM","JAMESTOWN PHILOMENIAN LIBRARY","Library Associate",1,"Library Associate ",{"v":10,"d":"$10.00"}," N",null,19,"No"]
["14","JAMESTOWN","JAM","JAMESTOWN PHILOMENIAN LIBRARY","Library Associate",1,"library Assoicate ",{"v":10.51,"d":"$10.51"}," N",null,14,"No"]
["14","JAMESTOWN","JAM","JAMESTOWN PHILOMENIAN LIBRARY","Library Associate",1,"Library Associate ",{"v":13.59,"d":"$13.59"}," N",null,10,"No"]
["14","JAMESTOWN","JAM","JAMESTOWN PHILOMENIAN LIBRARY","Technical Services Librarian",1,"Tech Librarian",{"v":12.94,"d":"$12.94"}," N",null,16,"No"]
["14","JAMESTOWN","JAM","JAMESTOWN PHILOMENIAN LIBRARY","Aide/Page",1,"aide",{"v":9,"d":"$9.00"}," N",null,12,"No"]
["15","JOHNSTON","JOH","MARIAN J. MOHR MEMORIAL LIBRARY","Director",1,"Library Director",{"$f":"IF(J264>0,(J264/(K264*52)),\"  \")","v":{"v":30.76923076923077,"d":"$30.77"}},"Y",{"v":56000,"d":"$56,000"},35,"Yes"]
["15","JOHNSTON","JOH","MARIAN J. MOHR MEMORIAL LIBRARY","Deputy/Associate/Assistant Director",1,"Associate Director",{"$f":"IF(J265>0,(J265/(K265*52)),\"  \")","v":{"v":24.725274725274726,"d":"$24.73"}},"Y",{"v":45000,"d":"$45,000"},35,"Yes"]
["15","JOHNSTON","JOH","MARIAN J. MOHR MEMORIAL LIBRARY","Childrens and/or Young Adult Services Librarian",1,"Children\\'s Librarian",{"$f":"IF(J266>0,(J266/(K266*52)),\"  \")","v":{"v":21.978021978021978,"d":"$21.98"}},"Y",{"v":40000,"d":"$40,000"},35,"Yes"]
["15","JOHNSTON","JOH","MARIAN J. MOHR MEMORIAL LIBRARY","Reference/Information Librarian",1,"Reference Librarian",{"v":18,"d":"$18.00"}," N",null,19,"Yes"]
["15","JOHNSTON","JOH","MARIAN J. MOHR MEMORIAL LIBRARY","Childrens and/or Young Adult Services Librarian",1,"Young Adult Librarian",{"v":18,"d":"$18.00"}," N",null,19,"Yes"]
["15","JOHNSTON","JOH","MARIAN J. MOHR MEMORIAL LIBRARY","Reference/Information Librarian",1,"Reference Librarian",{"v":18,"d":"$18.00"}," N",null,14,"Yes"]
["15","JOHNSTON","JOH","MARIAN J. MOHR MEMORIAL LIBRARY","Reference/Information Librarian",1,"Reference Librarian",{"v":18,"d":"$18.00"}," N",null,8,"Yes"]
["15","JOHNSTON","JOH","MARIAN J. MOHR MEMORIAL LIBRARY","Buildings/Ground Staff",1,"Custodian",{"v":9,"d":"$9.00"}," N",null,19,"No"]
["15","JOHNSTON","JOH","MARIAN J. MOHR MEMORIAL LIBRARY","Library Technician",1,"Aide/Technician",{"v":9.46,"d":"$9.46"}," N",null,19,"No"]
["15","JOHNSTON","JOH","MARIAN J. MOHR MEMORIAL LIBRARY","Aide/Page",1,"Library Aide",{"v":9,"d":"$9.00"}," N",null,19,"No"]
["15","JOHNSTON","JOH","MARIAN J. MOHR MEMORIAL LIBRARY","Library Technician",1,"Aide/Technician",{"v":9,"d":"$9.00"}," N",null,19,"No"]
["15","JOHNSTON","JOH","MARIAN J. MOHR MEMORIAL LIBRARY","Library Associate",1,"Aide/Desk Assistant",{"v":10,"d":"$10.00"}," N",null,19,"No"]
["15","JOHNSTON","JOH","MARIAN J. MOHR MEMORIAL LIBRARY","Library Technician",1,"Library Assistant",{"v":9,"d":"$9.00"}," N",null,9,"No"]
["15","JOHNSTON","JOH","MARIAN J. MOHR MEMORIAL LIBRARY","Library Associate",1,"Desk Assistant & Administrative Assistant",{"v":14.07,"d":"$14.07"}," N",null,35,"No"]
["15","JOHNSTON","JOH","MARIAN J. MOHR MEMORIAL LIBRARY","Library Associate",1,"Desk Assistant & Program Specialist",{"v":14.07,"d":"$14.07"}," N",null,35,"No"]
["15","JOHNSTON","JOH","MARIAN J. MOHR MEMORIAL LIBRARY","Library Associate",1,"Children\\'s Associate",{"v":13.93,"d":"$13.93"}," N",null,35,"No"]
["15","JOHNSTON","JOH","MARIAN J. MOHR MEMORIAL LIBRARY","Library Associate",1,"Aide/Children\\'s Associate",{"v":10,"d":"$10.00"}," N",null,19,"No"]
["15","JOHNSTON","JOH","MARIAN J. MOHR MEMORIAL LIBRARY","Manager/Department Head",1,"Head of Circulation & Fiction Specialist",{"v":16.08,"d":"$16.08"}," N",null,35,"No"]
["16","LINCOLN","LIN","LINCOLN PUBLIC LIBRARY","Director",1,"Director",{"$f":"IF(J282>0,(J282/(K282*52)),\"  \")","v":{"v":34.37802197802198,"d":"$34.38"}},"Y",{"v":62568,"d":"$62,568"},35,"Yes"]
["16","LINCOLN","LIN","LINCOLN PUBLIC LIBRARY","Deputy/Associate/Assistant Director",1,"Assistant Director",{"$f":"IF(J283>0,(J283/(K283*52)),\"  \")","v":{"v":27.934065934065934,"d":"$27.93"}},"Y",{"v":50840,"d":"$50,840"},35,"Yes"]
["16","LINCOLN","LIN","LINCOLN PUBLIC LIBRARY","Technical Services Librarian",1,"Electronic Resources Librarian",{"v":26.98,"d":"$26.98"}," N",null,35,"Yes"]
["16","LINCOLN","LIN","LINCOLN PUBLIC LIBRARY","Reference/Information Librarian",1,"Reference/YA",{"v":24.77,"d":"$24.77"}," N",null,35,"Yes"]
["16","LINCOLN","LIN","LINCOLN PUBLIC LIBRARY","Childrens and/or Young Adult Services Librarian",1,"Children\\'s Librarian",{"v":26.01,"d":"$26.01"}," N",null,35,"Yes"]
["16","LINCOLN","LIN","LINCOLN PUBLIC LIBRARY","Office Staff",1,"Bookkeeper/Secretary",{"v":16.84,"d":"$16.84"}," N",null,35,"No"]
["16","LINCOLN","LIN","LINCOLN PUBLIC LIBRARY","Library Associate",1,"Tech 3 TS",{"v":18.15,"d":"$18.15"}," N",null,35,"No"]
["16","LINCOLN","LIN","LINCOLN PUBLIC LIBRARY","Library Associate",1,"Tech 3 PS",{"v":18.15,"d":"$18.15"}," N",null,35,"No"]
["16","LINCOLN","LIN","LINCOLN PUBLIC LIBRARY","Library Technician",3,"Tech 2 PS",{"v":15.35,"d":"$15.35"}," N",null,35,"No"]
["16","LINCOLN","LIN","LINCOLN PUBLIC LIBRARY","Library Technician",1,"Tech 1 PS",{"v":14.34,"d":"$14.34"}," N",null,35,"No"]
["16","LINCOLN","LIN","LINCOLN PUBLIC LIBRARY","Library Technician",1,"Part time Circulation",{"v":11.31,"d":"$11.31"}," N",null,12,"No"]
["16","LINCOLN","LIN","LINCOLN PUBLIC LIBRARY","Library Technician",1,"Part time Circulation",{"v":10.69,"d":"$10.69"}," N",null,14,"No"]
["16","LINCOLN","LIN","LINCOLN PUBLIC LIBRARY","Library Technician",1,"Part time Circulation",{"v":10.69,"d":"$10.69"}," N",null,11.5,"No"]
["16","LINCOLN","LIN","LINCOLN PUBLIC LIBRARY","Childrens and/or Young Adult Services Librarian",1,"Reference LibrarianChildren\\'s Librarian",{"v":17.81,"d":"$17.81"},{"$f":"IF(J295>0,\"Y\",\" N\")","v":" N"},null,16,"Yes"]
["16","LINCOLN","LIN","LINCOLN PUBLIC LIBRARY","Childrens and/or Young Adult Services Librarian",1,"Reference LibrarianChildren\\'s Librarian",{"v":18.79,"d":"$18.79"}," N",null,12,"Yes"]
["16","LINCOLN","LIN","LINCOLN PUBLIC LIBRARY","Reference/Information Librarian",1,"Reference Librarian",{"v":17.81,"d":"$17.81"}," N",null,12,"Yes"]
["16","LINCOLN","LIN","LINCOLN PUBLIC LIBRARY","Aide/Page",1,"Page",{"v":9,"d":"$9.00"}," N",null,18,"No"]
["16","LINCOLN","LIN","LINCOLN PUBLIC LIBRARY","Aide/Page",1,"Page",{"v":9,"d":"$9.00"}," N",null,9,"No"]
["16","LINCOLN","LIN","LINCOLN PUBLIC LIBRARY","Aide/Page",1,"Page",{"v":9,"d":"$9.00"}," N",null,8,"No"]
["16","LINCOLN","LIN","LINCOLN PUBLIC LIBRARY","Buildings/Ground Staff",1,"Maintenance",{"v":17.5,"d":"$17.50"}," N",null,23.5,"No"]
["17","LITTLE COMPTON","LCO","BROWNELL LIBRARY, HOME OF LITTLE COMPTON","Director",1,"Director",{"v":24.91,"d":"$24.91"}," N",null,35,"No"]
["17","LITTLE COMPTON","LCO","BROWNELL LIBRARY, HOME OF LITTLE COMPTON","Childrens and/or Young Adult Services Librarian",1,"Youth Services Librarian",{"v":19,"d":"$19.00"}," N",null,35,"Yes"]
["17","LITTLE COMPTON","LCO","BROWNELL LIBRARY, HOME OF LITTLE COMPTON","Technical Services Librarian",1,"Technical Services Librarian",{"v":14.11,"d":"$14.11"}," N",null,28.5,"No"]
["17","LITTLE COMPTON","LCO","BROWNELL LIBRARY, HOME OF LITTLE COMPTON","Library Associate",1,"Head of Circulation",{"v":14.11,"d":"$14.11"}," N",null,21,"No"]
["18","MIDDLETOWN","MID","MIDDLETOWN PUBLIC LIBRARY","Director",1,"Library Director",{"v":35.45,"d":"$35.45"}," N",null,35,"Yes"]
["18","MIDDLETOWN","MID","MIDDLETOWN PUBLIC LIBRARY","Manager/Department Head",1,"Head of Reference",{"v":27.45,"d":"$27.45"}," N",null,35,"Yes"]
["18","MIDDLETOWN","MID","MIDDLETOWN PUBLIC LIBRARY","Manager/Department Head",1,"Head of Children\\'s Services",{"v":23.12,"d":"$23.12"}," N",null,35,"Yes"]
["18","MIDDLETOWN","MID","MIDDLETOWN PUBLIC LIBRARY","Manager/Department Head",1,"Head of Technical Services",{"v":22.84,"d":"$22.84"}," N",null,35,"No"]
["18","MIDDLETOWN","MID","MIDDLETOWN PUBLIC LIBRARY","Manager/Department Head",1,"Circulation Supervisor",{"v":22.84,"d":"$22.84"}," N",null,35,"No"]
["18","MIDDLETOWN","MID","MIDDLETOWN PUBLIC LIBRARY","Library Associate",1,"Library Assistant",{"v":15.3,"d":"$15.30"}," N",null,35,"No"]
["18","MIDDLETOWN","MID","MIDDLETOWN PUBLIC LIBRARY","Library Associate",7,"Library Assistant",{"v":12.75,"d":"$12.75"}," N",null,20,"No"]
["19","NARRAGANSETT","NAR","MAURY LOONTJENS MEMORIAL LIBRARY (NARRAGANSETT)","Director",1,"Library Director",{"$f":"IF(J313>0,(J313/(K313*52)),\"  \")","v":{"v":37.760096153846156,"d":"$37.76"}},"Y",{"v":78541,"d":"$78,541"},40,"Yes"]
["19","NARRAGANSETT","NAR","MAURY LOONTJENS MEMORIAL LIBRARY (NARRAGANSETT)","Childrens and/or Young Adult Services Librarian",1,"Children\\'s Librarian",{"$f":"IF(J314>0,(J314/(K314*52)),\"  \")","v":{"v":24.52019230769231,"d":"$24.52"}},"Y",{"v":51002,"d":"$51,002"},40,"Yes"]
["19","NARRAGANSETT","NAR","MAURY LOONTJENS MEMORIAL LIBRARY (NARRAGANSETT)","Reference/Information Librarian",1,"Reference Librarian",{"v":15.3,"d":"$15.30"}," N",null,25,"Yes"]
["19","NARRAGANSETT","NAR","MAURY LOONTJENS MEMORIAL LIBRARY (NARRAGANSETT)","Manager/Department Head",1,"Circulation Supervisor",{"$f":"IF(J316>0,(J316/(K316*52)),\"  \")","v":{"v":15.507692307692308,"d":"$15.51"}},{"$f":"IF(J316>0,\"Y\",\" N\")","v":"Y"},{"v":32256,"d":"$32,256"},40,"No"]
["19","NARRAGANSETT","NAR","MAURY LOONTJENS MEMORIAL LIBRARY (NARRAGANSETT)","Deputy/Associate/Assistant Director",1,"Childen\\'s Assistant",{"$f":"IF(J317>0,(J317/(K317*52)),\"  \")","v":{"v":16.6,"d":"$16.60"}},"Y",{"v":30212,"d":"$30,212"},35,"No"]
["19","NARRAGANSETT","NAR","MAURY LOONTJENS MEMORIAL LIBRARY (NARRAGANSETT)","Deputy/Associate/Assistant Director",1,"Adult Services",{"$f":"IF(J318>0,(J318/(K318*52)),\"  \")","v":{"v":25.55,"d":"$25.55"}},"Y",{"v":53144,"d":"$53,144"},40,"Yes"]
["19","NARRAGANSETT","NAR","MAURY LOONTJENS MEMORIAL LIBRARY (NARRAGANSETT)","Library Technician",2,"Library Clerk",{"v":9,"d":"$9.00"}," N",null,41,"No"]
["19","NARRAGANSETT","NAR","MAURY LOONTJENS MEMORIAL LIBRARY (NARRAGANSETT)","Library Technician",1,"Library Clerk",{"v":9,"d":"$9.00"}," N",null,16,"Yes"]
["19","NARRAGANSETT","NAR","MAURY LOONTJENS MEMORIAL LIBRARY (NARRAGANSETT)","Library Technician",1,"Library Clerk",{"v":9.39,"d":"$9.39"}," N",null,8,"No"]
["19","NARRAGANSETT","NAR","MAURY LOONTJENS MEMORIAL LIBRARY (NARRAGANSETT)","Library Technician",1,"Library Clerk",{"v":10.97,"d":"$10.97"}," N",null,15,"No"]
["19","NARRAGANSETT","NAR","MAURY LOONTJENS MEMORIAL LIBRARY (NARRAGANSETT)","Library Technician",1,"library Clerk",{"v":9,"d":"$9.00"}," N",null,4,"No"]
["19","NARRAGANSETT","NAR","MAURY LOONTJENS MEMORIAL LIBRARY (NARRAGANSETT)","Library Technician",1,"Library Clerk",{"v":9.25,"d":"$9.25"}," N",null,25,"No"]
["19","NARRAGANSETT","NAR","MAURY LOONTJENS MEMORIAL LIBRARY (NARRAGANSETT)","Aide/Page",1,"Library Page",{"v":9,"d":"$9.00"}," N",null,16,"No"]
["19","NARRAGANSETT","NAR","MAURY LOONTJENS MEMORIAL LIBRARY (NARRAGANSETT)","Library Technician",1,"Library Clerk",{"v":13.64,"d":"$13.64"}," N",null,25,"No"]
["19","NARRAGANSETT","NAR","MAURY LOONTJENS MEMORIAL LIBRARY (NARRAGANSETT)","Library Technician",1,"Library clerk",{"v":15.35,"d":"$15.35"}," N",null,18,"No"]
["19","NARRAGANSETT","NAR","MAURY LOONTJENS MEMORIAL LIBRARY (NARRAGANSETT)","Library Technician",1,"Library Clerk",{"v":12.15,"d":"$12.15"}," N",null,12,"No"]
["19","NARRAGANSETT","NAR","MAURY LOONTJENS MEMORIAL LIBRARY (NARRAGANSETT)","Technical Services Librarian",1,"Computer Tech",{"v":25,"d":"$25.00"}," N",null,1.5,"No"]
["20","NEW SHOREHAM","NSH","ISLAND FREE LIBRARY","Director",1,"Director",{"$f":"IF(J330>0,(J330/(K330*52)),\"  \")","v":{"v":28.753846153846155,"d":"$28.75"}},"Y",{"v":59808,"d":"$59,808"},40,"Yes"]
["20","NEW SHOREHAM","NSH","ISLAND FREE LIBRARY","Technical Services Librarian",1,"Technical Services",{"v":20.9,"d":"$20.90"}," N",null,38,"No"]
["20","NEW SHOREHAM","NSH","ISLAND FREE LIBRARY","Childrens and/or Young Adult Services Librarian",1,"Childrens Services",{"v":13.35,"d":"$13.35"}," N",null,38,"No"]
["20","NEW SHOREHAM","NSH","ISLAND FREE LIBRARY","Reference/Information Librarian",1,"Circulation Clerk",{"v":12.9,"d":"$12.90"}," N",null,38,"No"]
["20","NEW SHOREHAM","NSH","ISLAND FREE LIBRARY","Reference/Information Librarian",1,"Circulation/ILL Clerk",{"v":16.57,"d":"$16.57"}," N",null,38,"No"]
["21","NEWPORT","NPT","NEWPORT PUBLIC LIBRARY","Director",1,"Director",{"$f":"IF(J335>0,(J335/(K335*52)),\"  \")","v":{"v":51.05769230769231,"d":"$51.06"}},"Y",{"v":92925,"d":"$92,925"},35,"Yes"]
["21","NEWPORT","NPT","NEWPORT PUBLIC LIBRARY","Deputy/Associate/Assistant Director",1,"Assistant Director/Head of Collection Management",{"$f":"IF(J336>0,(J336/(K336*52)),\"  \")","v":{"v":37.33021978021978,"d":"$37.33"}},"Y",{"v":67941,"d":"$67,941"},35,"Yes"]
["21","NEWPORT","NPT","NEWPORT PUBLIC LIBRARY","Office Staff",1,"Secretary",{"v":22.541208791208792,"d":"$22.54"},"Y",{"v":41025,"d":"$41,025"},35,"No"]
["21","NEWPORT","NPT","NEWPORT PUBLIC LIBRARY","Office Staff",1,"Bookkeeper",{"v":25.926923076923078,"d":"$25.93"},"Y",{"v":47187,"d":"$47,187"},35,"No"]
["21","NEWPORT","NPT","NEWPORT PUBLIC LIBRARY","Buildings/Ground Staff",1,"Property Manager",{"v":25.926666666666666,"d":"$25.93"},"Y",{"v":50557,"d":"$50,557"},37.5,"No"]
["21","NEWPORT","NPT","NEWPORT PUBLIC LIBRARY","Buildings/Ground Staff",1,"Custodian",{"v":21.917435897435897,"d":"$21.92"},"Y",{"v":42739,"d":"$42,739"},37.5,"No"]
["21","NEWPORT","NPT","NEWPORT PUBLIC LIBRARY","Library Associate",1,"Library Aide",{"v":20.424725274725276,"d":"$20.42"},"Y",{"v":37173,"d":"$37,173"},35,"No"]
["21","NEWPORT","NPT","NEWPORT PUBLIC LIBRARY","Library Associate",1,"Library Aide",{"v":14.89065934065934,"d":"$14.89"},"Y",{"v":27101,"d":"$27,101"},35,"No"]
["21","NEWPORT","NPT","NEWPORT PUBLIC LIBRARY","Manager/Department Head",1,"Circulation Supervisor",{"v":21.34065934065934,"d":"$21.34"},"Y",{"v":38840,"d":"$38,840"},35,"No"]
["21","NEWPORT","NPT","NEWPORT PUBLIC LIBRARY","Manager/Department Head",1,"Head of Children\\'s Services",{"v":30.995604395604396,"d":"$31.00"},"Y",{"v":56412,"d":"$56,412"},35,"Yes"]
["21","NEWPORT","NPT","NEWPORT PUBLIC LIBRARY","Childrens and/or Young Adult Services Librarian",1,"Children\\'s Librarian",{"v":25.123626373626372,"d":"$25.12"},"Y",{"v":45725,"d":"$45,725"},35,"Yes"]
["21","NEWPORT","NPT","NEWPORT PUBLIC LIBRARY","Library Associate",1,"Technical Services Aide",{"v":19.38791208791209,"d":"$19.39"},"Y",{"v":35286,"d":"$35,286"},35,"No"]
["21","NEWPORT","NPT","NEWPORT PUBLIC LIBRARY","Manager/Department Head",1,"Head of Adult Services",{"v":30.995604395604396,"d":"$31.00"},"Y",{"v":56412,"d":"$56,412"},35,"Yes"]
["21","NEWPORT","NPT","NEWPORT PUBLIC LIBRARY","Library Associate",1,"Outreach Coordinator",{"v":25.041208791208792,"d":"$25.04"},"Y",{"v":45575,"d":"$45,575"},35,"No"]
["21","NEWPORT","NPT","NEWPORT PUBLIC LIBRARY","Library Associate",1,"Cataloger",{"v":25.926923076923078,"d":"$25.93"},"Y",{"v":47187,"d":"$47,187"},35,"No"]
["21","NEWPORT","NPT","NEWPORT PUBLIC LIBRARY","Buildings/Ground Staff",1,"Custodian/Security Guard",{"v":17.472820512820512,"d":"$17.47"},"Y",{"v":34072,"d":"$34,072"},37.5,"No"]
["21","NEWPORT","NPT","NEWPORT PUBLIC LIBRARY","Reference/Information Librarian",1,"Reference Librarian",{"v":23.73956043956044,"d":"$23.74"},"Y",{"v":43206,"d":"$43,206"},35,"Yes"]
["21","NEWPORT","NPT","NEWPORT PUBLIC LIBRARY","Reference/Information Librarian",1,"Reference Librarian",{"v":25.123626373626372,"d":"$25.12"},"Y",{"v":45725,"d":"$45,725"},35,"Yes"]
["21","NEWPORT","NPT","NEWPORT PUBLIC LIBRARY","Buildings/Ground Staff",1,"Custodian part time",{"v":14.42,"d":"$14.42"},{"$f":"IF(J353>0,\"Y\",\" N\")","v":" N"},null,25,"No"]
["21","NEWPORT","NPT","NEWPORT PUBLIC LIBRARY","Childrens and/or Young Adult Services Librarian",1,"Young Adult Librarian",{"v":24.33,"d":"$24.33"}," N",null,18,"Yes"]
["21","NEWPORT","NPT","NEWPORT PUBLIC LIBRARY","Library Associate",1,"Reference Assistant",{"v":18.78,"d":"$18.78"}," N",null,15,"No"]
["21","NEWPORT","NPT","NEWPORT PUBLIC LIBRARY","Library Technician",1,"Library Aide part time",{"v":14.42,"d":"$14.42"}," N",null,25,"No"]
["21","NEWPORT","NPT","NEWPORT PUBLIC LIBRARY","Childrens and/or Young Adult Services Librarian",1,"Children\\'s Librarian Part Time",{"v":24.33,"d":"$24.33"}," N",null,18,"Yes"]
["21","NEWPORT","NPT","NEWPORT PUBLIC LIBRARY","Library Associate",1,"Technology Aide",{"v":22.52,"d":"$22.52"}," N",null,15,"No"]
["21","NEWPORT","NPT","NEWPORT PUBLIC LIBRARY","Childrens and/or Young Adult Services Librarian",1,"Young Adult Librarian",{"v":24.33,"d":"$24.33"}," N",null,20,"Yes"]
["21","NEWPORT","NPT","NEWPORT PUBLIC LIBRARY","Library Technician",1,"Technical Services Aide",{"v":14.42,"d":"$14.42"}," N",null,20,"No"]
["21","NEWPORT","NPT","NEWPORT PUBLIC LIBRARY","Library Technician",1,"Library Technician",{"v":14.42,"d":"$14.42"}," N",null,25,"No"]
["21","NEWPORT","NPT","NEWPORT PUBLIC LIBRARY","Library Associate",1,"Children\\'s Aide",{"v":18.78,"d":"$18.78"}," N",null,20,"No"]
["21","NEWPORT","NPT","NEWPORT PUBLIC LIBRARY","Aide/Page",9,"Page",{"v":9.5,"d":"$9.50"}," N",null,120,"No"]
["22","NORTH KINGSTOWN","DPL","DAVISVILLE FREE LIBRARY","Director",1,"Director",{"v":28.28,"d":"$28.28"}," N",null,17,"Yes"]
["22","NORTH KINGSTOWN","DPL","DAVISVILLE FREE LIBRARY","Deputy/Associate/Assistant Director",1,"Asst. Director",{"v":14,"d":"$14.00"}," N",null,18,"Yes"]
["22","NORTH KINGSTOWN","DPL","DAVISVILLE FREE LIBRARY","Library Associate",2,"Library Assistant",{"v":11,"d":"$11.00"}," N",null,4.5,"No"]
["22","NORTH KINGSTOWN","NKI","NORTH KINGSTOWN FREE LIBRARY","Director",1,"Library Director",{"$f":"IF(J367>0,(J367/(K367*52)),\"  \")","v":{"v":42.61153846153846,"d":"$42.61"}},"Y",{"v":77553,"d":"$77,553"},35,"Yes"]
["22","NORTH KINGSTOWN","NKI","NORTH KINGSTOWN FREE LIBRARY","Deputy/Associate/Assistant Director",1,"Deputy Director",{"v":40.176373626373625,"d":"$40.18"},"Y",{"v":73121,"d":"$73,121"},35,"Yes"]
["22","NORTH KINGSTOWN","NKI","NORTH KINGSTOWN FREE LIBRARY","Manager/Department Head",1,"Reference & Nonfiction Coordinator",{"v":30.654945054945056,"d":"$30.65"},"Y",{"v":55792,"d":"$55,792"},35,"Yes"]
["22","NORTH KINGSTOWN","NKI","NORTH KINGSTOWN FREE LIBRARY","Manager/Department Head",1,"Young Readers & Teens Coordinator",{"v":29.380769230769232,"d":"$29.38"},"Y",{"v":53473,"d":"$53,473"},35,"No"]
["22","NORTH KINGSTOWN","NKI","NORTH KINGSTOWN FREE LIBRARY","Manager/Department Head",1,"Community Outreach Coordinator",{"v":30.654945054945056,"d":"$30.65"},"Y",{"v":55792,"d":"$55,792"},35,"No"]
["22","NORTH KINGSTOWN","NKI","NORTH KINGSTOWN FREE LIBRARY","Deputy/Associate/Assistant Director",1,"Fiction & Readers\\' Advisor Coordinator",{"v":26.588461538461537,"d":"$26.59"},"Y",{"v":48391,"d":"$48,391"},35,"Yes"]
["22","NORTH KINGSTOWN","NKI","NORTH KINGSTOWN FREE LIBRARY","Manager/Department Head",1,"Technology Coordinator",{"v":26.588461538461537,"d":"$26.59"},"Y",{"v":48391,"d":"$48,391"},35,"No"]
["22","NORTH KINGSTOWN","NKI","NORTH KINGSTOWN FREE LIBRARY","Reference/Information Librarian",1,"Reference & Local History Librarian",{"v":26.276373626373626,"d":"$26.28"},"Y",{"v":47823,"d":"$47,823"},35,"Yes"]
["22","NORTH KINGSTOWN","NKI","NORTH KINGSTOWN FREE LIBRARY","Childrens and/or Young Adult Services Librarian",1,"Young Adult/Assistant Children\\'s Librarian",{"v":21.383516483516484,"d":"$21.38"},"Y",{"v":38918,"d":"$38,918"},35,"Yes"]
["22","NORTH KINGSTOWN","NKI","NORTH KINGSTOWN FREE LIBRARY","Library Associate",1,"ILL/Acquisitions",{"v":22.67967032967033,"d":"$22.68"},"Y",{"v":41277,"d":"$41,277"},35,"No"]
["22","NORTH KINGSTOWN","NKI","NORTH KINGSTOWN FREE LIBRARY","Library Associate",1,"Circulation Supervisor",{"v":21.14010989010989,"d":"$21.14"},"Y",{"v":38475,"d":"$38,475"},35,"No"]
["22","NORTH KINGSTOWN","NKI","NORTH KINGSTOWN FREE LIBRARY","Library Technician",1,"Circulation ",{"v":21.21153846153846,"d":"$21.21"},"Y",{"v":38605,"d":"$38,605"},35,"No"]
["22","NORTH KINGSTOWN","NKI","NORTH KINGSTOWN FREE LIBRARY","Library Technician",1,"Circulation",{"v":19.64065934065934,"d":"$19.64"},"Y",{"v":35746,"d":"$35,746"},35,"No"]
["22","NORTH KINGSTOWN","NKI","NORTH KINGSTOWN FREE LIBRARY","Aide/Page",1,"Senior Library Clerk",{"v":17.30824175824176,"d":"$17.31"},"Y",{"v":31501,"d":"$31,501"},35,"Yes"]
["22","NORTH KINGSTOWN","NKI","NORTH KINGSTOWN FREE LIBRARY","Aide/Page",1,"Library Clerk",{"v":15.91,"d":"$15.91"},{"$f":"IF(J381>0,\"Y\",\" N\")","v":" N"},null,30,"Yes"]
["22","NORTH KINGSTOWN","NKI","NORTH KINGSTOWN FREE LIBRARY","Aide/Page",4,"Intern",{"v":13,"d":"$13.00"}," N",null,10,"No"]
["22","NORTH KINGSTOWN","NKI","NORTH KINGSTOWN FREE LIBRARY","Buildings/Ground Staff",1,"Morning Custodian",{"v":19.49,"d":"$19.49"}," N",null,20,"No"]
["22","NORTH KINGSTOWN","NKI","NORTH KINGSTOWN FREE LIBRARY","Buildings/Ground Staff",1,"EveningCustodian",{"v":19.49,"d":"$19.49"}," N",null,28,"No"]
["22","NORTH KINGSTOWN","WIL","WILLETT FREE LIBRARY","Director",1,"Director",{"v":22.35,"d":"$22.35"},"Y",{"v":27602,"d":"$27,602"},25,"Yes"]
["22","NORTH KINGSTOWN","WIL","WILLETT FREE LIBRARY","Branch Librarian",1,"Librarian",{"v":15,"d":"$15.00"},"Y",{"v":8745,"d":"$8,745"},11.5,"Yes"]
["22","NORTH KINGSTOWN","WIL","WILLETT FREE LIBRARY","Library Associate",1,"Library Assistant",{"v":9,"d":"$9.00"},"Y",{"v":4590,"d":"$4,590"},10,"No"]
["23","NORTH PROVIDENCE","WIL","NORTH PROVIDENCE UNION FREE","Director",1,"Director",{"$f":"IF(J388>0,(J388/(K388*52)),\"  \")","v":{"v":38.55769230769231,"d":"$38.56"}},"Y",{"v":70175,"d":"$70,175"},35,"Yes"]
["23","NORTH PROVIDENCE","NPR","NORTH PROVIDENCE UNION FREE","Deputy/Associate/Assistant Director",1,"Information Technology",{"$f":"IF(J389>0,(J389/(K389*52)),\"  \")","v":{"v":22.636813186813185,"d":"$22.64"}},"Y",{"v":41199,"d":"$41,199"},35,"No"]
["23","NORTH PROVIDENCE","NPR","NORTH PROVIDENCE UNION FREE","Manager/Department Head",1,"Youth Services Librarian",{"$f":"IF(J390>0,(J390/(K390*52)),\"  \")","v":{"v":25.458791208791208,"d":"$25.46"}},"Y",{"v":46335,"d":"$46,335"},35,"Yes"]
["23","NORTH PROVIDENCE","NPR","NORTH PROVIDENCE UNION FREE","Manager/Department Head",1,"Collection Development Librarian",{"$f":"IF(J391>0,(J391/(K391*52)),\"  \")","v":{"v":20.52857142857143,"d":"$20.53"}},"Y",{"v":37362,"d":"$37,362"},35,"Yes"]
["23","NORTH PROVIDENCE","NPR","NORTH PROVIDENCE UNION FREE","Manager/Department Head",1,"Circulation Manager",{"$f":"IF(J392>0,(J392/(K392*52)),\"  \")","v":{"v":21.467582417582417,"d":"$21.47"}},"Y",{"v":39071,"d":"$39,071"},35,"No"]
["23","NORTH PROVIDENCE","NPR","NORTH PROVIDENCE UNION FREE","Manager/Department Head",1,"Circulation Supervisor",{"v":12.89,"d":"$12.89"}," N",null,19,"No"]
["23","NORTH PROVIDENCE","NPR","NORTH PROVIDENCE UNION FREE","Manager/Department Head",1,"Assistant Circulation Manager",{"$f":"IF(J394>0,(J394/(K394*52)),\"  \")","v":{"v":17.555494505494504,"d":"$17.56"}},"Y",{"v":31951,"d":"$31,951"},35,"No"]
["23","NORTH PROVIDENCE","NPR","NORTH PROVIDENCE UNION FREE","Manager/Department Head",1,"Reference Department Head",{"$f":"IF(J395>0,(J395/(K395*52)),\"  \")","v":{"v":28.11758241758242,"d":"$28.12"}},"Y",{"v":51174,"d":"$51,174"},35,"Yes"]
["23","NORTH PROVIDENCE","NPR","NORTH PROVIDENCE UNION FREE","Childrens and/or Young Adult Services Librarian",1,"Children\\'s Program Assistant",{"v":14.82,"d":"$14.82"}," N",null,19,"Yes"]
["23","NORTH PROVIDENCE","NPR","NORTH PROVIDENCE UNION FREE","Reference/Information Librarian",1,"Reference/Information Librarian",{"v":10.43,"d":"$10.43"}," N",null,15,"Yes"]
["23","NORTH PROVIDENCE","NPR","NORTH PROVIDENCE UNION FREE","Reference/Information Librarian",1,"Reference/Information Librarian",{"$f":"IF(J398>0,(J398/(K398*52)),\"  \")","v":{"v":24.505494505494507,"d":"$24.51"}},"Y",{"v":44600,"d":"$44,600"},35,"Yes"]
["23","NORTH PROVIDENCE","NPR","NORTH PROVIDENCE UNION FREE","Library Technician",1,"Circulation Associate",{"v":9.39,"d":"$9.39"}," N",null,17,"No"]
["23","NORTH PROVIDENCE","NPR","NORTH PROVIDENCE UNION FREE","Library Technician",1,"Circulation Associate",{"v":10.21,"d":"$10.21"}," N",null,15,"No"]
["23","NORTH PROVIDENCE","NPR","NORTH PROVIDENCE UNION FREE","Library Technician",1,"Circulation Associate",{"v":9.66,"d":"$9.66"}," N",null,15,"No"]
["23","NORTH PROVIDENCE","NPR","NORTH PROVIDENCE UNION FREE","Library Technician",1,"Circulation Associate",{"v":11.43,"d":"$11.43"}," N",null,12,"No"]
["23","NORTH PROVIDENCE","NPR","NORTH PROVIDENCE UNION FREE","Library Technician",1,"Circulation Associate",{"v":11.82,"d":"$11.82"}," N",null,19,"No"]
["23","NORTH PROVIDENCE","NPR","NORTH PROVIDENCE UNION FREE","Library Technician",1,"Reference Associate",{"v":11.43,"d":"$11.43"}," N",null,18,"No"]
["23","NORTH PROVIDENCE","NPR","NORTH PROVIDENCE UNION FREE","Library Technician",1,"Reference Associate",{"v":9.63,"d":"$9.63"}," N",null,15,"No"]
["23","NORTH PROVIDENCE","NPR","NORTH PROVIDENCE UNION FREE","Library Technician",1,"Reference Associate",{"v":9,"d":"$9.00"}," N",null,18,"No"]
["23","NORTH PROVIDENCE","NPR","NORTH PROVIDENCE UNION FREE","Library Technician",1,"Sr. Children\\'s Associate",{"v":12.59,"d":"$12.59"}," N",null,16,"No"]
["23","NORTH PROVIDENCE","NPR","NORTH PROVIDENCE UNION FREE","Office Staff",1,"Executive Assistant",{"$f":"IF(J408>0,(J408/(K408*52)),\"  \")","v":{"v":22.01043956043956,"d":"$22.01"}},"Y",{"v":40059,"d":"$40,059"},35,"No"]
["23","NORTH PROVIDENCE","NPR","NORTH PROVIDENCE UNION FREE","Buildings/Ground Staff",1,"Maintenance/Custodian",{"$f":"IF(J409>0,(J409/(K409*52)),\"  \")","v":{"v":21.182905982905982,"d":"$21.18"}},"Y",{"v":24784,"d":"$24,784"},22.5,"No"]
["23","NORTH PROVIDENCE","NPR","NORTH PROVIDENCE UNION FREE","Buildings/Ground Staff",1,"Maintenance/Assistance",{"v":12.55,"d":"$12.55"}," N",null,19.5,"No"]
["23","NORTH PROVIDENCE","NPR","NORTH PROVIDENCE UNION FREE","Library Technician",2,"Circulation Associate",{"v":9,"d":"$9.00"}," N",null,17,"No"]
["23","NORTH PROVIDENCE","NPR","NORTH PROVIDENCE UNION FREE","Library Technician",3,"Children\\'s Associate",{"v":9.39,"d":"$9.39"}," N",null,15,"No"]
["23","NORTH PROVIDENCE","NPR","NORTH PROVIDENCE UNION FREE","Library Technician",1,"Circulation Associate",{"v":9,"d":"$9.00"}," N",null,15,"No"]
["24","NORTH SMITHFIELD","NPR","NORTH SMITHFIELD PUBLIC LIBRARY","Director",1,"DIRECTOR",{"$f":"IF(J414>0,(J414/(K414*52)),\"  \")","v":{"v":29.8,"d":"$29.80"}},"Y",{"v":61984,"d":"$61,984"},40,"Yes"]
["24","NORTH SMITHFIELD","NSM","NORTH SMITHFIELD PUBLIC LIBRARY","Childrens and/or Young Adult Services Librarian",1,"YOUTH SERVICES",{"$f":"IF(J415>0,(J415/(K415*52)),\"  \")","v":{"v":24.40989010989011,"d":"$24.41"}},"Y",{"v":44426,"d":"$44,426"},35,"Yes"]
["24","NORTH SMITHFIELD","NSM","NORTH SMITHFIELD PUBLIC LIBRARY","Reference/Information Librarian",1,"REFERENCE",{"$f":"IF(J416>0,(J416/(K416*52)),\"  \")","v":{"v":20,"d":"$20.00"}},"Y",{"v":36400,"d":"$36,400"},35,"Yes"]
["24","NORTH SMITHFIELD","NSM","NORTH SMITHFIELD PUBLIC LIBRARY","Technical Services Librarian",1,"CATALOGER",{"v":18.17,"d":"$18.17"}," N",null,30,"No"]
["24","NORTH SMITHFIELD","NSM","NORTH SMITHFIELD PUBLIC LIBRARY","Library Associate",1,"CIRCULATION",{"v":13.12,"d":"$13.12"}," N",null,21,"No"]
["24","NORTH SMITHFIELD","NSM","NORTH SMITHFIELD PUBLIC LIBRARY","Library Associate",1,"CIRCULATION",{"v":11.14,"d":"$11.14"}," N",null,21,"No"]
["24","NORTH SMITHFIELD","NSM","NORTH SMITHFIELD PUBLIC LIBRARY","Library Associate",1,"CIRCULATION",{"v":11.33,"d":"$11.33"}," N",null,26,"No"]
["24","NORTH SMITHFIELD","NSM","NORTH SMITHFIELD PUBLIC LIBRARY","Library Associate",1,"CIRCULATION",{"v":10,"d":"$10.00"}," N",null,10,"No"]
["24","NORTH SMITHFIELD","NSM","NORTH SMITHFIELD PUBLIC LIBRARY","Library Associate",1,"CIRCULATION",{"v":11,"d":"$11.00"}," N",null,5,"No"]
["25","PAWTUCKET","PAW","PAWTUCKET PUBLIC LIBRARY","Director",1,"Director",{"$f":"IF(J423>0,(J423/(K423*52)),\"  \")","v":{"v":38.17802197802198,"d":"$38.18"}},"Y",{"v":69484,"d":"$69,484"},35,"Yes"]
["25","PAWTUCKET","PAW","PAWTUCKET PUBLIC LIBRARY","Deputy/Associate/Assistant Director",1,"Assistant Director",{"v":35.68,"d":"$35.68"},"Y",{"v":64938,"d":"$64,938"},35,"Yes"]
["25","PAWTUCKET","PAW","PAWTUCKET PUBLIC LIBRARY","Manager/Department Head",3,"Coordinator",{"v":31.88,"d":"$31.88"},"Y",{"v":58017,"d":"$58,017"},35,"Yes"]
["25","PAWTUCKET","PAW","PAWTUCKET PUBLIC LIBRARY","Reference/Information Librarian",2,"Reference Librarian",{"v":28.05,"d":"$28.05"},"Y",{"v":51060,"d":"$51,060"},35,"Yes"]
["25","PAWTUCKET","PAW","PAWTUCKET PUBLIC LIBRARY","Technical Services Librarian",1,"Technical Services Librarian",{"v":28.05,"d":"$28.05"},"Y",{"v":51060,"d":"$51,060"},35,"Yes"]
["25","PAWTUCKET","PAW","PAWTUCKET PUBLIC LIBRARY","Childrens and/or Young Adult Services Librarian",1,"Children\\'s Librarian",{"v":28.05,"d":"$28.05"},"Y",{"v":51060,"d":"$51,060"},35,"Yes"]
["25","PAWTUCKET","PAW","PAWTUCKET PUBLIC LIBRARY","Childrens and/or Young Adult Services Librarian",1,"Children\\'s Librarian",{"v":28.05,"d":"$28.05"},"Y",{"v":27718,"d":"$27,718"},19,"Yes"]
["25","PAWTUCKET","PAW","PAWTUCKET PUBLIC LIBRARY","Manager/Department Head",1,"Circulation Supervisor",{"v":23.95,"d":"$23.95"},"Y",{"v":43589,"d":"$43,589"},35,"No"]
["25","PAWTUCKET","PAW","PAWTUCKET PUBLIC LIBRARY","Library Technician",1,"Library Assistant I Circ ",{"v":17.52,"d":"$17.52"},"Y",{"v":31880,"d":"$31,880"},35,"No"]
["25","PAWTUCKET","PAW","PAWTUCKET PUBLIC LIBRARY","Library Technician",2,"Library Assistant II Circ",{"v":18.9,"d":"$18.90"},"Y",{"v":34402,"d":"$34,402"},35,"No"]
["25","PAWTUCKET","PAW","PAWTUCKET PUBLIC LIBRARY","Library Associate",1,"BiLingual Computer Technician",{"v":19.93,"d":"$19.93"},"Y",{"v":36272,"d":"$36,272"},35,"No"]
["25","PAWTUCKET","PAW","PAWTUCKET PUBLIC LIBRARY","Library Associate",1,"Library Assistant III",{"v":19.93,"d":"$19.93"},"Y",{"v":36272,"d":"$36,272"},35,"No"]
["25","PAWTUCKET","PAW","PAWTUCKET PUBLIC LIBRARY","Library Associate",2,"Bookmobile Operator/Clerk",{"v":19.93,"d":"$19.93"},"Y",{"v":19690,"d":"$19,690"},19,"No"]
["25","PAWTUCKET","PAW","PAWTUCKET PUBLIC LIBRARY","Library Technician",2,"Library Assistant I",{"v":16.95,"d":"$16.95"},"Y",{"v":16743,"d":"$16,743"},19,"No"]
["25","PAWTUCKET","PAW","PAWTUCKET PUBLIC LIBRARY","Library Technician",1,"Library Assistant II",{"v":18.47,"d":"$18.47"},"Y",{"v":33611,"d":"$33,611"},35,"No"]
["25","PAWTUCKET","PAW","PAWTUCKET PUBLIC LIBRARY","Aide/Page",3,"Library Senior Page",{"v":11.37,"d":"$11.37"},"Y",{"v":11234,"d":"$11,234"},19,"No"]
["25","PAWTUCKET","PAW","PAWTUCKET PUBLIC LIBRARY","Aide/Page",2,"Library Page",{"v":10.5,"d":"$10.50"},"Y",{"v":10379,"d":"$10,379"},19,"No"]
["25","PAWTUCKET","PAW","PAWTUCKET PUBLIC LIBRARY","Office Staff",1,"Secretary",{"v":21.42,"d":"$21.42"},"Y",{"v":44543,"d":"$44,543"},40,"No"]
["25","PAWTUCKET","PAW","PAWTUCKET PUBLIC LIBRARY","Buildings/Ground Staff",1,"Custodian",{"v":15.93,"d":"$15.93"},"Y",{"v":33125,"d":"$33,125"},40,"No"]
["25","PAWTUCKET","PAW","PAWTUCKET PUBLIC LIBRARY","Childrens and/or Young Adult Services Librarian",1,"Teen Librarian",{"v":28.05,"d":"$28.05"},"Y",{"v":51060,"d":"$51,060"},35,"Yes"]
["25","PAWTUCKET","PAW","PAWTUCKET PUBLIC LIBRARY","Manager/Department Head",1,"Literacy Coordinator",{"$f":"IF(J443>0,(J443/(K443*52)),\"  \")","v":{"v":19.594505494505494,"d":"$19.59"}},"Y",{"v":35662,"d":"$35,662"},35,"No"]
["25","PAWTUCKET","PAW","PAWTUCKET PUBLIC LIBRARY","Buildings/Ground Staff",1,"Security Guard",{"v":13.25,"d":"$13.25"},{"$f":"IF(J444>0,\"Y\",\" N\")","v":"Y"},{"v":8480,"d":"$8,480"},16,"No"]
["26","PORTSMOUTH","POR","PORTSMOUTH FREE PUBLIC LIBRARY","Director",1,"Director",{"$f":"IF(J445>0,(J445/(K445*52)),\"  \")","v":{"v":32.927472527472524,"d":"$32.93"}},"Y",{"v":59928,"d":"$59,928"},35,"Yes"]
["26","PORTSMOUTH","POR","PORTSMOUTH FREE PUBLIC LIBRARY","Childrens and/or Young Adult Services Librarian",1,"Children\\'s Librarian",{"$f":"IF(J446>0,(J446/(K446*52)),\"  \")","v":{"v":24.695604395604395,"d":"$24.70"}},"Y",{"v":44946,"d":"$44,946"},35,"Yes"]
["26","PORTSMOUTH","POR","PORTSMOUTH FREE PUBLIC LIBRARY","Reference/Information Librarian",1,"Reference/Young Adult",{"$f":"IF(J447>0,(J447/(K447*52)),\"  \")","v":{"v":24.695604395604395,"d":"$24.70"}},"Y",{"v":44946,"d":"$44,946"},35,"Yes"]
["26","PORTSMOUTH","POR","PORTSMOUTH FREE PUBLIC LIBRARY","Library Associate",1,"Library Assistant Refernece",{"v":16.19,"d":"$16.19"}," N",null,35,"No"]
["26","PORTSMOUTH","POR","PORTSMOUTH FREE PUBLIC LIBRARY","Library Technician",1,"Senior Library Assistant",{"v":17.27,"d":"$17.27"}," N",null,35,"No"]
["26","PORTSMOUTH","POR","PORTSMOUTH FREE PUBLIC LIBRARY","Buildings/Ground Staff",1,"Custodian",{"v":13.7,"d":"$13.70"}," N",null,35,"No"]
["26","PORTSMOUTH","POR","PORTSMOUTH FREE PUBLIC LIBRARY","Office Staff",1,"Office Manager",{"$f":"IF(J451>0,(J451/(K451*52)),\"  \")","v":{"v":19.23076923076923,"d":"$19.23"}},"Y",{"v":35000,"d":"$35,000"},35,"No"]
["26","PORTSMOUTH","POR","PORTSMOUTH FREE PUBLIC LIBRARY","Library Associate",3,"Library Assistant Sunday",{"v":12,"d":"$12.00"}," N",null,4,"No"]
["26","PORTSMOUTH","POR","PORTSMOUTH FREE PUBLIC LIBRARY","Reference/Information Librarian",2,"Reference Librarian Sunday",{"v":26,"d":"$26.00"}," N",null,4,"No"]
["26","PORTSMOUTH","POR","PORTSMOUTH FREE PUBLIC LIBRARY","Library Associate",5,"Library Assistant Children\\'s",{"v":12.05,"d":"$12.05"}," N",null,"","No"]
["26","PORTSMOUTH","POR","PORTSMOUTH FREE PUBLIC LIBRARY","Library Associate",1,"Library Assistant Circulation Full Time",{"v":16.19,"d":"$16.19"}," N",null,35,"No"]
["26","PORTSMOUTH","POR","PORTSMOUTH FREE PUBLIC LIBRARY","Library Associate",1,"Library Assistant Circulation Part Time",{"v":13.75,"d":"$13.75"}," N",null,27,"No"]
["26","PORTSMOUTH","POR","PORTSMOUTH FREE PUBLIC LIBRARY","Library Associate",1,"Library Assistant Circulation Part Time",{"v":12.05,"d":"$12.05"}," N",null,22,"No"]
["26","PORTSMOUTH","POR","PORTSMOUTH FREE PUBLIC LIBRARY","Library Associate",1,"Sunday Library Assistant",{"v":14.5,"d":"$14.50"}," N",null,4,"No"]
["27","PROVIDENCE","PCL","PROVIDENCE COMMUNITY LIBRARY","Director",1,"Executive Director",{"$f":"IF(J459>0,(J459/(K459*52)),\"  \")","v":{"v":43.26923076923077,"d":"$43.27"}},"Y",{"v":90000,"d":"$90,000"},40,"Yes"]
["27","PROVIDENCE","PCL","PROVIDENCE COMMUNITY LIBRARY","Manager/Department Head",1,"Business Director",{"v":38.46153846153846,"d":"$38.46"},"Y",{"v":80000,"d":"$80,000"},40,"No"]
["27","PROVIDENCE","PCL","PROVIDENCE COMMUNITY LIBRARY","Manager/Department Head",1,"Development Director",{"v":40.86538461538461,"d":"$40.87"},"Y",{"v":85000,"d":"$85,000"},40,"No"]
["27","PROVIDENCE","PCL","PROVIDENCE COMMUNITY LIBRARY","Office Staff",1,"Human Resources Specialist",{"v":24.03846153846154,"d":"$24.04"},"Y",{"v":50000,"d":"$50,000"},40,"No"]
["27","PROVIDENCE","PCL","PROVIDENCE COMMUNITY LIBRARY","Office Staff",1,"Administrative Assistant",{"v":19.23076923076923,"d":"$19.23"},"Y",{"v":40000,"d":"$40,000"},40,"No"]
["27","PROVIDENCE","PCL","PROVIDENCE COMMUNITY LIBRARY","Manager/Department Head",1,"IT Director",{"v":29.807692307692307,"d":"$29.81"},"Y",{"v":62000,"d":"$62,000"},40,"No"]
["27","PROVIDENCE","PCL","PROVIDENCE COMMUNITY LIBRARY","Manager/Department Head",1,"Web/Computer Training Specialist",{"v":24.853365384615383,"d":"$24.85"},"Y",{"v":51695,"d":"$51,695"},40,"No"]
["27","PROVIDENCE","PCL","PROVIDENCE COMMUNITY LIBRARY","Manager/Department Head",1,"Program Coordinator",{"v":31.72980769230769,"d":"$31.73"},"Y",{"v":65998,"d":"$65,998"},40,"No"]
["27","PROVIDENCE","PCL","PROVIDENCE COMMUNITY LIBRARY","Manager/Department Head",1,"Youth Program Coordinator",{"v":32.378571428571426,"d":"$32.38"},"Y",{"v":58929,"d":"$58,929"},35,"Yes"]
["27","PROVIDENCE","PCL","PROVIDENCE COMMUNITY LIBRARY","Manager/Department Head",1,"Latino Program Coordinator",{"v":22.770256410256412,"d":"$22.77"},"Y",{"v":44402,"d":"$44,402"},37.5,"No"]
["27","PROVIDENCE","PCL","PROVIDENCE COMMUNITY LIBRARY","Manager/Department Head",1,"IMLS  coordinator",{"v":17.307692307692307,"d":"$17.31"},"Y",{"v":18000,"d":"$18,000"},20,"No"]
["27","PROVIDENCE","PCL","PROVIDENCE COMMUNITY LIBRARY","Branch Librarian",6,"Library Manager",{"v":25.555897435897435,"d":"$25.56"},"Y",{"v":49834,"d":"$49,834"},37.5,"Yes"]
["27","PROVIDENCE","PCL","PROVIDENCE COMMUNITY LIBRARY","Manager/Department Head",3,"Regional Librarian",{"v":27.325,"d":"$27.33"},"Y",{"v":56836,"d":"$56,836"},40,"Yes"]
["27","PROVIDENCE","PCL","PROVIDENCE COMMUNITY LIBRARY","Reference/Information Librarian",6,"Adult Services Librarian",{"v":42.28988603988604,"d":"$42.29"},"Y",{"v":59375,"d":"$59,375"},27,"Yes"]
["27","PROVIDENCE","PCL","PROVIDENCE COMMUNITY LIBRARY","Library Associate",19,"Library Clerk",{"v":18.89854727316028,"d":"$18.90"},"Y",{"v":31742,"d":"$31,742"},32.3,"No"]
["27","PROVIDENCE","PCL","PROVIDENCE COMMUNITY LIBRARY","Library Associate",3,"Library Clerk Supervisor",{"v":19.272820512820513,"d":"$19.27"},"Y",{"v":37582,"d":"$37,582"},37.5,"No"]
["27","PROVIDENCE","PCL","PROVIDENCE COMMUNITY LIBRARY","Childrens and/or Young Adult Services Librarian",3,"Children\\'s Librarian",{"v":23.326666666666668,"d":"$23.33"},"Y",{"v":45487,"d":"$45,487"},37.5,"Yes"]
["27","PROVIDENCE","PCL","PROVIDENCE COMMUNITY LIBRARY","Library Associate",8,"Children\\'s Specialist",{"v":22.984102564102564,"d":"$22.98"},"Y",{"v":44819,"d":"$44,819"},37.5,"No"]
["27","PROVIDENCE","PCL","PROVIDENCE COMMUNITY LIBRARY","Technical Services Librarian",1,"Head of Collection Management Services",{"v":25.877403846153847,"d":"$25.88"},"Y",{"v":53825,"d":"$53,825"},40,"Yes"]
["27","PROVIDENCE","PCL","PROVIDENCE COMMUNITY LIBRARY","Library Associate",1,"Collection Management Services Spoecialist",{"v":23.475,"d":"$23.48"},"Y",{"v":48828,"d":"$48,828"},40,"No"]
["27","PROVIDENCE","PCL","PROVIDENCE COMMUNITY LIBRARY","Library Associate",1,"AV Tech. Library Clerk",{"v":17.88,"d":"$17.88"},"Y",{"v":34866,"d":"$34,866"},37.5,"No"]
["27","PROVIDENCE","PCL","PROVIDENCE COMMUNITY LIBRARY","Manager/Department Head",1,"Head of Maintenance",{"v":33.12019230769231,"d":"$33.12"},"Y",{"v":68890,"d":"$68,890"},40,"No"]
["27","PROVIDENCE","PCL","PROVIDENCE COMMUNITY LIBRARY","Buildings/Ground Staff",2,"Maintenance Worker",{"v":27.10528846153846,"d":"$27.11"},"Y",{"v":56379,"d":"$56,379"},40,"No"]
["27","PROVIDENCE","PCL","PROVIDENCE COMMUNITY LIBRARY","Buildings/Ground Staff",1,"Head Custodian",{"v":20.139903846153846,"d":"$20.14"},"Y",{"v":41891,"d":"$41,891"},40,"No"]
["27","PROVIDENCE","PCL","PROVIDENCE COMMUNITY LIBRARY","Buildings/Ground Staff",2,"Custodian",{"v":15.95,"d":"$15.95"},"Y",{"v":33176,"d":"$33,176"},40,"No"]
["27","PROVIDENCE","PRO","PROVIDENCE PUBLIC LIBRARY","Director",1,"Director",{"v":62.77025641025641,"d":"$62.77"},"Y",{"v":122402,"d":"$122,402"},37.5,"Yes"]
["27","PROVIDENCE","PRO","PROVIDENCE PUBLIC LIBRARY","Deputy/Associate/Assistant Director",1,"Assistant Director",{"v":46.9,"d":"$46.90"},"Y",{"v":91455,"d":"$91,455"},37.5,"Yes"]
["27","PROVIDENCE","PRO","PROVIDENCE PUBLIC LIBRARY","Manager/Department Head",1,"Business Manager",{"v":39.76,"d":"$39.76"},"Y",{"v":77532,"d":"$77,532"},37.5,"No"]
["27","PROVIDENCE","PRO","PROVIDENCE PUBLIC LIBRARY","Manager/Department Head",1,"Director of Marketing",{"v":36.850256410256414,"d":"$36.85"},"Y",{"v":71858,"d":"$71,858"},37.5,"No"]
["27","PROVIDENCE","PRO","PROVIDENCE PUBLIC LIBRARY","Manager/Department Head",1,"Facilities Manager",{"v":32.520192307692305,"d":"$32.52"},"Y",{"v":67642,"d":"$67,642"},40,"No"]
["27","PROVIDENCE","PRO","PROVIDENCE PUBLIC LIBRARY","Library Associate",1,"Library Clerk",{"v":12.26923076923077,"d":"$12.27"},"Y",{"v":2552,"d":"$2,552"},4,"No"]
["27","PROVIDENCE","PRO","PROVIDENCE PUBLIC LIBRARY","Manager/Department Head",1,"Children\\'s Dept. Head",{"v":31.79025641025641,"d":"$31.79"},"Y",{"v":61991,"d":"$61,991"},37.5,"Yes"]
["27","PROVIDENCE","PRO","PROVIDENCE PUBLIC LIBRARY","Reference/Information Librarian",1,"Librarian",{"v":19.384615384615383,"d":"$19.38"},"Y",{"v":2016,"d":"$2,016"},2,"Yes"]
["27","PROVIDENCE","PRO","PROVIDENCE PUBLIC LIBRARY","Reference/Information Librarian",1,"Librarian",{"v":22.44,"d":"$22.44"},"Y",{"v":43758,"d":"$43,758"},37.5,"Yes"]
["27","PROVIDENCE","PRO","PROVIDENCE PUBLIC LIBRARY","Reference/Information Librarian",2,"Librarian",{"v":21.419871794871796,"d":"$21.42"},"Y",{"v":20049,"d":"$20,049"},18,"Yes"]
["27","PROVIDENCE","PRO","PROVIDENCE PUBLIC LIBRARY","Manager/Department Head",1,"Program Coordinator",{"v":35.15025641025641,"d":"$35.15"},"Y",{"v":68543,"d":"$68,543"},37.5,"No"]
["27","PROVIDENCE","PRO","PROVIDENCE PUBLIC LIBRARY","Library Associate",1,"Citizenship Coord. Lead ESOL Teacher",{"v":21.54,"d":"$21.54"},"Y",{"v":42003,"d":"$42,003"},37.5,"No"]
["27","PROVIDENCE","PRO","PROVIDENCE PUBLIC LIBRARY","Library Associate",1,"Lead ESOL Teacher",{"v":19.98,"d":"$19.98"},"Y",{"v":38961,"d":"$38,961"},37.5,"No"]
["27","PROVIDENCE","PRO","PROVIDENCE PUBLIC LIBRARY","Library Associate",4,"Library Clerk",{"v":18.8,"d":"$18.80"},"Y",{"v":36660,"d":"$36,660"},37.5,"No"]
["27","PROVIDENCE","PRO","PROVIDENCE PUBLIC LIBRARY","Manager/Department Head",1,"RI Collection Librarian",{"v":29.35025641025641,"d":"$29.35"},"Y",{"v":57233,"d":"$57,233"},37.5,"Yes"]
["27","PROVIDENCE","PRO","PROVIDENCE PUBLIC LIBRARY","Manager/Department Head",1,"Business Services Head",{"v":31.75025641025641,"d":"$31.75"},"Y",{"v":61913,"d":"$61,913"},37.5,"Yes"]
["27","PROVIDENCE","PRO","PROVIDENCE PUBLIC LIBRARY","Manager/Department Head",1,"Circulation Head",{"v":24.44,"d":"$24.44"},"Y",{"v":47658,"d":"$47,658"},37.5,"No"]
["27","PROVIDENCE","PRO","PROVIDENCE PUBLIC LIBRARY","Manager/Department Head",1,"Lead ESOL Teacher",{"v":25.06,"d":"$25.06"},"Y",{"v":48867,"d":"$48,867"},37.5,"No"]
["27","PROVIDENCE","PRO","PROVIDENCE PUBLIC LIBRARY","Manager/Department Head",1,"Special Collections Librarian",{"v":32.5,"d":"$32.50"},"Y",{"v":63375,"d":"$63,375"},37.5,"Yes"]
["27","PROVIDENCE","PRO","PROVIDENCE PUBLIC LIBRARY","Childrens and/or Young Adult Services Librarian",1,"Early Childhood Specialist",{"v":29.61025641025641,"d":"$29.61"},"Y",{"v":57740,"d":"$57,740"},37.5,"No"]
["27","PROVIDENCE","PRO","PROVIDENCE PUBLIC LIBRARY","Manager/Department Head",1,"Dir. RIFLI Adult Literacy",{"v":27.4,"d":"$27.40"},"Y",{"v":53430,"d":"$53,430"},37.5,"No"]
["27","PROVIDENCE","PRO","PROVIDENCE PUBLIC LIBRARY","Library Associate",1,"Children\\'s Teacher Coord.",{"v":15.528846153846153,"d":"$15.53"},"Y",{"v":3230,"d":"$3,230"},4,"No"]
["27","PROVIDENCE","PRO","PROVIDENCE PUBLIC LIBRARY","Office Staff",1,"Sr. H.R. Administrator",{"v":31.45025641025641,"d":"$31.45"},"Y",{"v":61328,"d":"$61,328"},37.5,"No"]
["27","PROVIDENCE","PRO","PROVIDENCE PUBLIC LIBRARY","Manager/Department Head",1,"Technical Services Head",{"v":33.3,"d":"$33.30"},"Y",{"v":64935,"d":"$64,935"},37.5,"Yes"]
["27","PROVIDENCE","PRO","PROVIDENCE PUBLIC LIBRARY","Library Technician",1,"Computer Support Specialist",{"v":30.270256410256412,"d":"$30.27"},{"$f":"IF(J508>0,\"Y\",\" N\")","v":"Y"},{"v":59027,"d":"$59,027"},37.5,"No"]
["27","PROVIDENCE","PRO","PROVIDENCE PUBLIC LIBRARY","Buildings/Ground Staff",2,"Maintenance Staff",{"v":27.110096153846154,"d":"$27.11"},"Y",{"v":56389,"d":"$56,389"},40,"No"]
["27","PROVIDENCE","PRO","PROVIDENCE PUBLIC LIBRARY","Buildings/Ground Staff",1,"Security Supervisor",{"v":20.36,"d":"$20.36"},"Y",{"v":39702,"d":"$39,702"},37.5,"No"]
["27","PROVIDENCE","PRO","PROVIDENCE PUBLIC LIBRARY","Library Associate",1,"Asst. Literacy Coord.",{"v":19.98,"d":"$19.98"},"Y",{"v":25974,"d":"$25,974"},25,"No"]
["27","PROVIDENCE","PRO","PROVIDENCE PUBLIC LIBRARY","Buildings/Ground Staff",2,"Maintenance Asst.",{"v":27.111538461538462,"d":"$27.11"},"Y",{"v":7049,"d":"$7,049"},5,"No"]
["27","PROVIDENCE","PRO","PROVIDENCE PUBLIC LIBRARY","Office Staff",1,"Exec. Admin. Asst.",{"v":25.71025641025641,"d":"$25.71"},"Y",{"v":50135,"d":"$50,135"},37.5,"No"]
["27","PROVIDENCE","PRO","PROVIDENCE PUBLIC LIBRARY","Technical Services Librarian",2,"Cataloger",{"v":20.809615384615384,"d":"$20.81"},"Y",{"v":10821,"d":"$10,821"},10,"Yes"]
["27","PROVIDENCE","PRO","PROVIDENCE PUBLIC LIBRARY","Library Technician",1,"Tech Trainer",{"v":22.890224358974358,"d":"$22.89"},"Y",{"v":28567,"d":"$28,567"},24,"No"]
["27","PROVIDENCE","PRO","PROVIDENCE PUBLIC LIBRARY","Aide/Page",1,"Library Outreach",{"v":10,"d":"$10.00"},"Y",{"v":4160,"d":"$4,160"},8,"No"]
["27","PROVIDENCE","PRO","PROVIDENCE PUBLIC LIBRARY","Library Associate",1,"Clerical Supervisor",{"v":18.8,"d":"$18.80"},"Y",{"v":19552,"d":"$19,552"},20,"No"]
["27","PROVIDENCE","PRO","PROVIDENCE PUBLIC LIBRARY","Library Associate",1,"Stack Clerk",{"v":14.38,"d":"$14.38"},"Y",{"v":28041,"d":"$28,041"},37.5,"No"]
["27","PROVIDENCE","PRO","PROVIDENCE PUBLIC LIBRARY","Office Staff",1,"Senior Accountant",{"v":28.36,"d":"$28.36"},"Y",{"v":55302,"d":"$55,302"},37.5,"No"]
["27","PROVIDENCE","PRO","PROVIDENCE PUBLIC LIBRARY","Manager/Department Head",1,"Reference Head",{"v":33.52,"d":"$33.52"},"Y",{"v":65364,"d":"$65,364"},37.5,"Yes"]
["27","PROVIDENCE","PRO","PROVIDENCE PUBLIC LIBRARY","Library Associate",1,"Lead ESOL Teacher",{"v":19.98,"d":"$19.98"},"Y",{"v":38961,"d":"$38,961"},37.5,"No"]
["27","PROVIDENCE","PRO","PROVIDENCE PUBLIC LIBRARY","Library Associate",1,"Asst. Citizenship Teacher",{"v":15,"d":"$15.00"},"Y",{"v":3120,"d":"$3,120"},4,"No"]
["27","PROVIDENCE","PRO","PROVIDENCE PUBLIC LIBRARY","Library Associate",1,"Lead ESOL Teacher",{"$f":"IF(J523>0,(J523/(K523*52)),\"  \")","v":{"v":19.21153846153846,"d":"$19.21"}},"Y",{"v":7992,"d":"$7,992"},8,"No"]
["27","PROVIDENCE","PRO","PROVIDENCE PUBLIC LIBRARY","Library Associate",1,"Lead ESOL Teacher",{"v":19.590384615384615,"d":"$19.59"},"Y",{"v":20374,"d":"$20,374"},20,"No"]
["27","PROVIDENCE","PRO","PROVIDENCE PUBLIC LIBRARY","Library Associate",2,"Lead ESOL Teacher",{"v":19.591346153846153,"d":"$19.59"},"Y",{"v":4075,"d":"$4,075"},4,"No"]
["27","PROVIDENCE","PRO","PROVIDENCE PUBLIC LIBRARY","Manager/Department Head",1,"Director of Development",{"v":47.69025641025641,"d":"$47.69"},"Y",{"v":92996,"d":"$92,996"},37.5,"No"]
["27","PROVIDENCE","PRO","PROVIDENCE PUBLIC LIBRARY","Office Staff",1,"Adm. Asst.",{"v":16,"d":"$16.00"},"Y",{"v":12480,"d":"$12,480"},15,"No"]
["27","PROVIDENCE","PRO","PROVIDENCE PUBLIC LIBRARY","Library Associate",1,"Lead ESOL Teacher",{"v":19.210470085470085,"d":"$19.21"},"Y",{"v":17981,"d":"$17,981"},18,"No"]
["27","PROVIDENCE","PRO","PROVIDENCE PUBLIC LIBRARY","Library Associate",1,"Curotorial Asst.",{"v":24.62,"d":"$24.62"},"Y",{"v":48009,"d":"$48,009"},37.5,"Yes"]
["27","PROVIDENCE","PRO","PROVIDENCE PUBLIC LIBRARY","Library Associate",1,"Teen Edu. Librarian",{"v":31.28,"d":"$31.28"},"Y",{"v":60996,"d":"$60,996"},37.5,"Yes"]
["27","PROVIDENCE","PRO","PROVIDENCE PUBLIC LIBRARY","Library Associate",1,"Lead ESOL Teacher",{"v":24.0125,"d":"$24.01"},"Y",{"v":24973,"d":"$24,973"},20,"No"]
["27","PROVIDENCE","PRO","PROVIDENCE PUBLIC LIBRARY","Library Technician",1,"Digital Producer",{"v":28.24,"d":"$28.24"},"Y",{"v":55068,"d":"$55,068"},37.5,"Yes"]
["27","PROVIDENCE","PRO","PROVIDENCE PUBLIC LIBRARY","Library Associate",1,"Grant Writer",{"v":33.33025641025641,"d":"$33.33"},"Y",{"v":64994,"d":"$64,994"},37.5,"No"]
["27","PROVIDENCE","PRO","PROVIDENCE PUBLIC LIBRARY","Manager/Department Head",1,"Tech Director",{"v":39.23025641025641,"d":"$39.23"},"Y",{"v":76499,"d":"$76,499"},37.5,"Yes"]
["27","PROVIDENCE","PRO","PROVIDENCE PUBLIC LIBRARY","Library Associate",1,"Citizens Teacher",{"v":19.21153846153846,"d":"$19.21"},"Y",{"v":5994,"d":"$5,994"},6,"No"]
["27","PROVIDENCE","PRO","PROVIDENCE PUBLIC LIBRARY","Library Associate",1,"Lead ESOL Teacher",{"v":19.20979020979021,"d":"$19.21"},"Y",{"v":10988,"d":"$10,988"},11,"No"]
["28","RICHMOND","CLA","CLARK MEMORIAL LIBRARY","Director",1,"director",{"v":25.61,"d":"$25.61"},"Y",{"v":33293,"d":"$33,293"},25,"Yes"]
["28","RICHMOND","CLA","CLARK MEMORIAL LIBRARY","Deputy/Associate/Assistant Director",1,"assistant director",{"v":19.21,"d":"$19.21"}," N",null,14,"No"]
["28","RICHMOND","CLA","CLARK MEMORIAL LIBRARY","Library Associate",1,"library associate",{"v":16.39,"d":"$16.39"}," N",null,7.5,"No"]
["28","RICHMOND","CLA","CLARK MEMORIAL LIBRARY","Library Associate",1,"library associate",{"v":12.31,"d":"$12.31"}," N",null,13,"No"]
["28","RICHMOND","CLA","CLARK MEMORIAL LIBRARY","Library Associate",1,"library associate",{"v":15.19,"d":"$15.19"}," N",null,20,"No"]
["28","RICHMOND","CLA","CLARK MEMORIAL LIBRARY","Library Associate",1,"children\\'s specialist",{"v":11.72,"d":"$11.72"}," N",null,10,"No"]
["28","RICHMOND","CLA","CLARK MEMORIAL LIBRARY","Office Staff",1,"bookkeeper",{"v":14.99,"d":"$14.99"}," N",null,2,"No"]
["29","SCITUATE","HPE","HOPE LIBRARY","Director",1,"Director",{"v":31,"d":"$31.00"}," N",null,35,"Yes"]
["29","SCITUATE","HPE","HOPE LIBRARY","Childrens and/or Young Adult Services Librarian",1,"Children\\'s Librarian",{"v":22,"d":"$22.00"}," N",null,35,"Yes"]
["29","SCITUATE","HPE","HOPE LIBRARY","Childrens and/or Young Adult Services Librarian",1,"Young Adult Librarian",{"v":17.5,"d":"$17.50"}," N",null,24,"No"]
["29","SCITUATE","HPE","HOPE LIBRARY","Childrens and/or Young Adult Services Librarian",1,"Children\\'s Librarian",{"v":16.8,"d":"$16.80"}," N",null,6.5,"Yes"]
["29","SCITUATE","HPE","HOPE LIBRARY","Library Technician",1,"Librarian Technician",{"v":10,"d":"$10.00"}," N",null,14,"No"]
["29","SCITUATE","HPE","HOPE LIBRARY","Library Technician",1,"Librarian Technician",{"v":10.75,"d":"$10.75"}," N",null,6,"No"]
["29","SCITUATE","HPE","HOPE LIBRARY","Library Technician",1,"Librarian Technician",{"v":10.25,"d":"$10.25"}," N",null,15,"No"]
["29","SCITUATE","HPE","HOPE LIBRARY","Library Technician",1,"Librarian Technician",{"v":11,"d":"$11.00"}," N",null,8,"No"]
["29","SCITUATE","HPE","HOPE LIBRARY","Library Technician",1,"Librarian Technician",{"v":10,"d":"$10.00"}," N",null,15,"No"]
["29","SCITUATE","HPE","HOPE LIBRARY","Library Technician",1,"Librarian Technician",{"v":10.75,"d":"$10.75"}," N",null,18,"No"]
["29","SCITUATE","HPE","HOPE LIBRARY","Buildings/Ground Staff",1,"Custodian",{"v":11.83,"d":"$11.83"}," N",null,10,"No"]
["29","SCITUATE","HPE","HOPE LIBRARY","Buildings/Ground Staff",1,"Custodian",{"v":10.75,"d":"$10.75"}," N",null,10,"No"]
["29","SCITUATE","SCI","NORTH SCITUATE PUBLIC LIBRARY","Director",1,"Director",{"$f":"IF(J556>0,(J556/(K556*52)),\"  \")","v":{"v":32.417582417582416,"d":"$32.42"}},"Y",{"v":59000,"d":"$59,000"},35,"Yes"]
["29","SCITUATE","SCI","NORTH SCITUATE PUBLIC LIBRARY","Childrens and/or Young Adult Services Librarian",1,"Youth Services Librarian",{"v":25,"d":"$25.00"}," N",null,23,"Yes"]
["29","SCITUATE","SCI","NORTH SCITUATE PUBLIC LIBRARY","Reference/Information Librarian",1,"Reference Librarian",{"v":19.75,"d":"$19.75"}," N",null,20,"Yes"]
["29","SCITUATE","SCI","NORTH SCITUATE PUBLIC LIBRARY","Reference/Information Librarian",1,"Weekend Reference Librarian",{"v":15,"d":"$15.00"}," N",null,3,"Yes"]
["29","SCITUATE","SCI","NORTH SCITUATE PUBLIC LIBRARY","Reference/Information Librarian",1,"Weekend Reference Librarian",{"v":14.5,"d":"$14.50"}," N",null,3,"Yes"]
["29","SCITUATE","SCI","NORTH SCITUATE PUBLIC LIBRARY","Manager/Department Head",1,"Circulation Supervisor",{"v":17,"d":"$17.00"}," N",null,32.5,"No"]
["29","SCITUATE","SCI","NORTH SCITUATE PUBLIC LIBRARY","Office Staff",1,"Administrative Assistant/Cataloger",{"v":17.5,"d":"$17.50"}," N",null,18,"No"]
["29","SCITUATE","SCI","NORTH SCITUATE PUBLIC LIBRARY","Library Technician",1,"Circulation Assistant",{"v":13,"d":"$13.00"}," N",null,32,"No"]
["29","SCITUATE","SCI","NORTH SCITUATE PUBLIC LIBRARY","Library Technician",1,"Circulation Assistant",{"v":10,"d":"$10.00"}," N",null,19,"No"]
["29","SCITUATE","SCI","NORTH SCITUATE PUBLIC LIBRARY","Library Technician",1,"Circulation Assistant",{"v":9.6,"d":"$9.60"}," N",null,11,"No"]
["29","SCITUATE","SCI","NORTH SCITUATE PUBLIC LIBRARY","Library Technician",1,"Circulation Assistant",{"v":10,"d":"$10.00"}," N",null,7,"No"]
["29","SCITUATE","SCI","NORTH SCITUATE PUBLIC LIBRARY","Library Technician",1,"Circulation Assistant",{"v":10,"d":"$10.00"}," N",null,4,"No"]
["29","SCITUATE","SCI","NORTH SCITUATE PUBLIC LIBRARY","Library Technician",1,"Circulation Assistant",{"v":10.25,"d":"$10.25"}," N",null,3,"No"]
["30","SMITHFIELD","ESM","EAST SMITHFIELD PUBLIC LIBRARY","Director",1,"Director",{"v":46.82,"d":"$46.82"},"N",{"v":55997,"d":"$55,997"},23,"No"]
["30","SMITHFIELD","ESM","EAST SMITHFIELD PUBLIC LIBRARY","Deputy/Associate/Assistant Director",1,"Assistant Director",{"v":36.64,"d":"$36.64"},"N",{"v":70495,"d":"$70,495"},37,"Yes"]
["30","SMITHFIELD","ESM","EAST SMITHFIELD PUBLIC LIBRARY","Manager/Department Head",1,"Manager",{"v":29.97,"d":"$29.97"},"N",{"v":62296,"d":"$62,296"},40,"Yes"]
["30","SMITHFIELD","ESM","EAST SMITHFIELD PUBLIC LIBRARY","Childrens and/or Young Adult Services Librarian",1,"Children\\'s/Young Adult Services Librarian",{"v":19.01,"d":"$19.01"},"N",{"v":28667,"d":"$28,667"},29,"No"]
["30","SMITHFIELD","ESM","EAST SMITHFIELD PUBLIC LIBRARY","Childrens and/or Young Adult Services Librarian",1,"Children\\'s/Young Adult Services Librarian",{"v":17.27,"d":"$17.27"},"N",{"v":13471,"d":"$13,471"},15,"Yes"]
["30","SMITHFIELD","ESM","EAST SMITHFIELD PUBLIC LIBRARY","Technical Services Librarian",1,"Technical Services Librarian",{"v":15.68,"d":"$15.68"},"N",{"v":13046,"d":"$13,046"},16,"No"]
["30","SMITHFIELD","ESM","EAST SMITHFIELD PUBLIC LIBRARY","Library Associate",1,"Library Associate",{"v":22.05,"d":"$22.05"},"N",{"v":40131,"d":"$40,131"},35,"No"]
["30","SMITHFIELD","ESM","EAST SMITHFIELD PUBLIC LIBRARY","Library Associate",1,"Library Associate",{"v":15.71,"d":"$15.71"},"N",{"v":28592,"d":"$28,592"},35,"No"]
["30","SMITHFIELD","ESM","EAST SMITHFIELD PUBLIC LIBRARY","Library Technician",1,"Library Technician",{"v":11.55,"d":"$11.55"},"N",{"v":18018,"d":"$18,018"},30,"No"]
["30","SMITHFIELD","ESM","EAST SMITHFIELD PUBLIC LIBRARY","Library Technician",1,"Library Technician",{"v":11.19,"d":"$11.19"},"N",{"v":18038,"d":"$18,038"},31,"No"]
["30","SMITHFIELD","ESM","EAST SMITHFIELD PUBLIC LIBRARY","Aide/Page",1,"Aide/Page",{"v":9,"d":"$9.00"},"N",{"v":6318,"d":"$6,318"},13.5,"No"]
["30","SMITHFIELD","ESM","EAST SMITHFIELD PUBLIC LIBRARY","Aide/Page",1,"Aide/Page",{"v":9,"d":"$9.00"},"N",{"v":7488,"d":"$7,488"},16,"No"]
["30","SMITHFIELD","ESM","EAST SMITHFIELD PUBLIC LIBRARY","Aide/Page",1,"Aide/Page",{"v":9,"d":"$9.00"},"N",{"v":7020,"d":"$7,020"},14,"No"]
["30","SMITHFIELD","ESM","EAST SMITHFIELD PUBLIC LIBRARY","Aide/Page",1,"Aide/Page",{"v":9.33,"d":"$9.33"},"N",{"v":10188,"d":"$10,188"},21,"No"]
["30","SMITHFIELD","ESM","EAST SMITHFIELD PUBLIC LIBRARY","Office Staff",1,"Bookeeper",{"v":27.77,"d":"$27.77"},"N",{"v":7942,"d":"$7,942"},5.5,"No"]
["30","SMITHFIELD","ESM","EAST SMITHFIELD PUBLIC LIBRARY","Buildings/Ground Staff",1,"Custodian",{"v":13.98,"d":"$13.98"},"N",{"v":12358,"d":"$12,358"},17,"No"]
["30","SMITHFIELD","GVL","GREENVILLE PUBLIC LIBRARY","Director",1,"Director",{"$f":"IF(J585>0,(J585/(K585*52)),\"  \")","v":{"v":42.75,"d":"$42.75"}},{"$f":"IF(J585>0,\"Y\",\" N\")","v":"Y"},{"v":84474,"d":"$84,474"},38,"Yes"]
["30","SMITHFIELD","GVL","GREENVILLE PUBLIC LIBRARY","Deputy/Associate/Assistant Director",1,"Assistant Director",{"v":33.95,"d":"$33.95"},"Y",{"v":61789,"d":"$61,789"},35,"Yes"]
["30","SMITHFIELD","GVL","GREENVILLE PUBLIC LIBRARY","Childrens and/or Young Adult Services Librarian",1,"Children\\'s",{"v":28.3,"d":"$28.30"},"Y",{"v":51506,"d":"$51,506"},35,"Yes"]
["30","SMITHFIELD","GVL","GREENVILLE PUBLIC LIBRARY","Childrens and/or Young Adult Services Librarian",1,"Young Adult ",{"v":24.35989010989011,"d":"$24.36"},"Y",{"v":44335,"d":"$44,335"},35,"Yes"]
["30","SMITHFIELD","GVL","GREENVILLE PUBLIC LIBRARY","Childrens and/or Young Adult Services Librarian",1,"Children\\'s Librarian Assistant",{"v":19.943019943019944,"d":"$19.94"},"Y",{"v":28000,"d":"$28,000"},27,"Yes"]
["30","SMITHFIELD","GVL","GREENVILLE PUBLIC LIBRARY","Childrens and/or Young Adult Services Librarian",1,"Children\\'s Reference Librarian",{"v":20.8,"d":"$20.80"},"Y",{"v":16224,"d":"$16,224"},15,"Yes"]
["30","SMITHFIELD","GVL","GREENVILLE PUBLIC LIBRARY","Reference/Information Librarian",1,"Reference Librarian",{"v":22.3489010989011,"d":"$22.35"},"Y",{"v":8135,"d":"$8,135"},7,"Yes"]
["30","SMITHFIELD","GVL","GREENVILLE PUBLIC LIBRARY","Reference/Information Librarian",1,"Reference Librarian",{"v":17.95,"d":"$17.95"},"Y",{"v":14001,"d":"$14,001"},15,"Yes"]
["30","SMITHFIELD","GVL","GREENVILLE PUBLIC LIBRARY","Technical Services Librarian",1,"Technical Services Librarian",{"v":21.00989010989011,"d":"$21.01"},"Y",{"v":38238,"d":"$38,238"},35,"Yes"]
["30","SMITHFIELD","GVL","GREENVILLE PUBLIC LIBRARY","Reference/Information Librarian",1,"Technology Coordinator",{"v":29.15,"d":"$29.15"},"Y",{"v":53053,"d":"$53,053"},35,"Yes"]
["30","SMITHFIELD","GVL","GREENVILLE PUBLIC LIBRARY","Manager/Department Head",1,"Head of Circulation",{"v":19.98024948024948,"d":"$19.98"},"Y",{"v":38442,"d":"$38,442"},37,"No"]
["30","SMITHFIELD","GVL","GREENVILLE PUBLIC LIBRARY","Library Associate",1,"Library Assistant",{"v":11.990384615384615,"d":"$11.99"},"Y",{"v":13717,"d":"$13,717"},22,"No"]
["30","SMITHFIELD","GVL","GREENVILLE PUBLIC LIBRARY","Library Associate",1,"Library Assistant",{"v":13.430473372781066,"d":"$13.43"},"Y",{"v":9079,"d":"$9,079"},13,"No"]
["30","SMITHFIELD","GVL","GREENVILLE PUBLIC LIBRARY","Library Associate",1,"Library Assistant",{"v":14.259615384615385,"d":"$14.26"},"Y",{"v":7415,"d":"$7,415"},10,"No"]
["30","SMITHFIELD","GVL","GREENVILLE PUBLIC LIBRARY","Library Associate",1,"Library Assistant",{"v":11.620445344129555,"d":"$11.62"},"Y",{"v":11481,"d":"$11,481"},19,"No"]
["30","SMITHFIELD","GVL","GREENVILLE PUBLIC LIBRARY","Library Associate",1,"Library Assistant",{"v":9.4,"d":"$9.40"},"Y",{"v":14664,"d":"$14,664"},30,"No"]
["30","SMITHFIELD","GVL","GREENVILLE PUBLIC LIBRARY","Library Associate",1,"Library Assistant",{"v":9.179807692307692,"d":"$9.18"},"Y",{"v":9547,"d":"$9,547"},20,"No"]
["30","SMITHFIELD","GVL","GREENVILLE PUBLIC LIBRARY","Aide/Page",1,"Library Page",{"v":9,"d":"$9.00"},"Y",{"v":3510,"d":"$3,510"},7.5,"No"]
["30","SMITHFIELD","GVL","GREENVILLE PUBLIC LIBRARY","Aide/Page",1,"Library Page",{"v":9,"d":"$9.00"},"Y",{"v":4212,"d":"$4,212"},9,"No"]
["30","SMITHFIELD","GVL","GREENVILLE PUBLIC LIBRARY","Aide/Page",1,"Library Page",{"v":10.5,"d":"$10.50"},"Y",{"v":4095,"d":"$4,095"},7.5,"No"]
["31","SOUTH KINGSTOWN","SKI","SOUTH KINGSTOWN PUBLIC LIBRARY","Director",1,"Library Director",{"v":41.893956043956045,"d":"$41.89"},"Y",{"v":76247,"d":"$76,247"},35,"Yes"]
["31","SOUTH KINGSTOWN","SKI","SOUTH KINGSTOWN PUBLIC LIBRARY","Manager/Department Head",1,"Central Library Services Manager",{"v":32.03186813186813,"d":"$32.03"},"Y",{"v":58298,"d":"$58,298"},35,"Yes"]
["31","SOUTH KINGSTOWN","SKI","SOUTH KINGSTOWN PUBLIC LIBRARY","Manager/Department Head",1,"Circ Supervisor",{"v":22.19175824175824,"d":"$22.19"},"Y",{"v":40389,"d":"$40,389"},35,"No"]
["31","SOUTH KINGSTOWN","SKI","SOUTH KINGSTOWN PUBLIC LIBRARY","Branch Librarian",1,"Branch Librarian",{"v":27.897252747252747,"d":"$27.90"},"Y",{"v":50773,"d":"$50,773"},35,"Yes"]
["31","SOUTH KINGSTOWN","SKI","SOUTH KINGSTOWN PUBLIC LIBRARY","Childrens and/or Young Adult Services Librarian",3,"Youth Services Librarian",{"v":25.360989010989012,"d":"$25.36"},"Y",{"v":46157,"d":"$46,157"},35,"Yes"]
["31","SOUTH KINGSTOWN","SKI","SOUTH KINGSTOWN PUBLIC LIBRARY","Reference/Information Librarian",1,"Reference Librarian",{"v":25.360989010989012,"d":"$25.36"},"Y",{"v":46157,"d":"$46,157"},35,"Yes"]
["31","SOUTH KINGSTOWN","SKI","SOUTH KINGSTOWN PUBLIC LIBRARY","Library Associate",1,"Library Associatete",{"v":24.093406593406595,"d":"$24.09"},"Y",{"v":43850,"d":"$43,850"},35,"No"]
["31","SOUTH KINGSTOWN","SKI","SOUTH KINGSTOWN PUBLIC LIBRARY","Buildings/Ground Staff",1,"Facilitie Manager",{"v":21.08173076923077,"d":"$21.08"},"Y",{"v":43850,"d":"$43,850"},40,"No"]
["31","SOUTH KINGSTOWN","SKI","SOUTH KINGSTOWN PUBLIC LIBRARY","Reference/Information Librarian",1,"Reference Librarian",{"v":24.15,"d":"$24.15"}," N",null,30,"Yes"]
["31","SOUTH KINGSTOWN","SKI","SOUTH KINGSTOWN PUBLIC LIBRARY","Reference/Information Librarian",1,"Reference Librarian",{"v":23.5,"d":"$23.50"}," N",null,3.5,"Yes"]
["31","SOUTH KINGSTOWN","SKI","SOUTH KINGSTOWN PUBLIC LIBRARY","Reference/Information Librarian",1,"Reference Librarian",{"v":24.15,"d":"$24.15"}," N",null,6.5,"Yes"]
["31","SOUTH KINGSTOWN","SKI","SOUTH KINGSTOWN PUBLIC LIBRARY","Library Technician",1,"Library Technial Asst",{"v":18.38,"d":"$18.38"}," N",null,11.5,"No"]
["31","SOUTH KINGSTOWN","SKI","SOUTH KINGSTOWN PUBLIC LIBRARY","Library Technician",1,"Library Technial Ast",{"v":17.75,"d":"$17.75"}," N",null,21,"No"]
["31","SOUTH KINGSTOWN","SKI","SOUTH KINGSTOWN PUBLIC LIBRARY","Library Technician",1,"Library Technical Ast",{"v":20.15,"d":"$20.15"}," N",null,13,"No"]
["31","SOUTH KINGSTOWN","SKI","SOUTH KINGSTOWN PUBLIC LIBRARY","Library Technician",1,"Library Technical Asst",{"v":18.38,"d":"$18.38"}," N",null,28,"No"]
["31","SOUTH KINGSTOWN","SKI","SOUTH KINGSTOWN PUBLIC LIBRARY","Library Technician",1,"Library Asst",{"v":11.65,"d":"$11.65"}," N",null,19,"No"]
["31","SOUTH KINGSTOWN","SKI","SOUTH KINGSTOWN PUBLIC LIBRARY","Library Technician",1,"Library Asst",{"v":11.91,"d":"$11.91"}," N",null,15,"No"]
["31","SOUTH KINGSTOWN","SKI","SOUTH KINGSTOWN PUBLIC LIBRARY","Library Technician",1,"Library Asst",{"v":10.74,"d":"$10.74"}," N",null,16,"No"]
["31","SOUTH KINGSTOWN","SKI","SOUTH KINGSTOWN PUBLIC LIBRARY","Library Technician",1,"Library Asst",{"v":10.74,"d":"$10.74"}," N",null,18,"Yes"]
["31","SOUTH KINGSTOWN","SKI","SOUTH KINGSTOWN PUBLIC LIBRARY","Library Technician",1,"Library Asst",{"v":11.91,"d":"$11.91"}," N",null,6,"No"]
["31","SOUTH KINGSTOWN","SKI","SOUTH KINGSTOWN PUBLIC LIBRARY","Library Technician",1,"Library Asst",{"v":12.85,"d":"$12.85"}," N",null,9,"No"]
["31","SOUTH KINGSTOWN","SKI","SOUTH KINGSTOWN PUBLIC LIBRARY","Aide/Page",2,"Aide",{"v":9,"d":"$9.00"}," N",null,10,"No"]
["31","SOUTH KINGSTOWN","SKI","SOUTH KINGSTOWN PUBLIC LIBRARY","Aide/Page",2,"Aide",{"v":9,"d":"$9.00"}," N",null,8,"No"]
["31","SOUTH KINGSTOWN","SKI","SOUTH KINGSTOWN PUBLIC LIBRARY","Aide/Page",1,"Aide",{"v":9,"d":"$9.00"}," N",null,12.5,"No"]
["31","SOUTH KINGSTOWN","SKI","SOUTH KINGSTOWN PUBLIC LIBRARY","Aide/Page",2,"Aide",{"v":9,"d":"$9.00"}," N",null,5,"No"]
["31","SOUTH KINGSTOWN","SKI","SOUTH KINGSTOWN PUBLIC LIBRARY","Buildings/Ground Staff",1,"Custodian",{"v":16,"d":"$16.00"}," N",null,12,"No"]
["31","SOUTH KINGSTOWN","SKI","SOUTH KINGSTOWN PUBLIC LIBRARY","Buildings/Ground Staff",1,"Custodian",{"v":16.41,"d":"$16.41"}," N",null,2,"No"]
["32","TIVERTON","TIV","ESSEX PUBLIC LIBRARY","Director",1,"Library Director",{"$f":"IF(J632>0,(J632/(K632*52)),\"  \")","v":{"v":36.15,"d":"$36.15"}},"Y",{"v":65793,"d":"$65,793"},35,"Yes"]
["32","TIVERTON","TIV","ESSEX PUBLIC LIBRARY","Reference/Information Librarian",1,"Adult Services Librarian",{"v":26.05,"d":"$26.05"}," N",null,35,"Yes"]
["32","TIVERTON","TIV","ESSEX PUBLIC LIBRARY","Childrens and/or Young Adult Services Librarian",1,"Youth Services Librarian",{"v":25.25,"d":"$25.25"}," N",null,35,"Yes"]
["32","TIVERTON","TIV","ESSEX PUBLIC LIBRARY","Childrens and/or Young Adult Services Librarian",1,"Children\\'s Services Librarian",{"v":25.25,"d":"$25.25"}," N",null,35,"No"]
["32","TIVERTON","TIV","ESSEX PUBLIC LIBRARY","Manager/Department Head",1,"Circulation Librarian",{"v":24.88,"d":"$24.88"},{"$f":"IF(J636>0,\"Y\",\" N\")","v":" N"},null,35,"No"]
["32","TIVERTON","TIV","ESSEX PUBLIC LIBRARY","Manager/Department Head",1,"Technology Coordinator",{"v":19,"d":"$19.00"}," N",null,35,"No"]
["32","TIVERTON","TIV","ESSEX PUBLIC LIBRARY","Office Staff",1,"Office Assistant",{"v":18,"d":"$18.00"}," N",null,15,"No"]
["32","TIVERTON","TIV","ESSEX PUBLIC LIBRARY","Branch Librarian",1,"Branch Librarian",{"v":17.88,"d":"$17.88"}," N",null,35,"No"]
["32","TIVERTON","TIV","ESSEX PUBLIC LIBRARY","Library Associate",1,"Library Assistant",{"v":17.38,"d":"$17.38"}," N",null,25,"No"]
["32","TIVERTON","TIV","ESSEX PUBLIC LIBRARY","Library Associate",1,"Library Assistant",{"v":17.38,"d":"$17.38"}," N",null,15,"No"]
["32","TIVERTON","TIV","ESSEX PUBLIC LIBRARY","Library Associate",1,"Library Assistant",{"v":16.62,"d":"$16.62"}," N",null,19,"No"]
["32","TIVERTON","TIV","ESSEX PUBLIC LIBRARY","Library Associate",1,"Library Assistant",{"v":15.5,"d":"$15.50"}," N",null,19,"No"]
["32","TIVERTON","TIV","ESSEX PUBLIC LIBRARY","Library Associate",1,"Library Assistant",{"v":15.5,"d":"$15.50"}," N",null,12,"No"]
["32","TIVERTON","TIV","ESSEX PUBLIC LIBRARY","Aide/Page",3,"Page",{"v":8.75,"d":"$8.75"}," N",null,9,"No"]
["32","TIVERTON","TIV","ESSEX PUBLIC LIBRARY","Library Associate",1,"on call Library Assistant",{"v":9.5,"d":"$9.50"}," N",null,19,"No"]
["33","WARREN","WRR","GEORGE HAIL FREE LIBRARY","Director",1,"Library Director",{"$f":"IF(J647>0,(J647/(K647*52)),\"  \")","v":{"v":30.618927125506072,"d":"$30.62"}},"Y",{"v":60503,"d":"$60,503"},38,"Yes"]
["33","WARREN","WRR","GEORGE HAIL FREE LIBRARY","Childrens and/or Young Adult Services Librarian",1,"Children\\'s Librarian",{"$f":"IF(J648>0,(J648/(K648*52)),\"  \")","v":{"v":21.864372469635626,"d":"$21.86"}},"Y",{"v":43204,"d":"$43,204"},38,"No"]
["33","WARREN","WRR","GEORGE HAIL FREE LIBRARY","Reference/Information Librarian",1,"Reference Librarian",{"v":21.97,"d":"$21.97"}," N",null,30,"Yes"]
["33","WARREN","WRR","GEORGE HAIL FREE LIBRARY","Library Associate",3,"Circulation Assistant",{"v":13.27,"d":"$13.27"}," N",null,19,"No"]
["33","WARREN","WRR","GEORGE HAIL FREE LIBRARY","Library Associate",1,"Circulation Assistant",{"v":11.94,"d":"$11.94"}," N",null,15,"No"]
["33","WARREN","WRR","GEORGE HAIL FREE LIBRARY","Library Associate",1,"Circulation Assistant",{"v":12.39,"d":"$12.39"}," N",null,15,"No"]
["34","WARWICK","WPO","PONTIAC FREE LIBRARY","Director",1,"Director",{"$f":"IF(J653>0,(J653/(K653*52)),\"  \")","v":{"v":20,"d":"$20.00"}},"Y",{"v":26000,"d":"$26,000"},25,"Yes"]
["34","WARWICK","WPO","PONTIAC FREE LIBRARY","Library Associate",1,"Assistant Librarian",{"$f":"IF(J654>0,(J654/(K654*52)),\"  \")","v":{"v":14,"d":"$14.00"}},"Y",{"v":14560,"d":"$14,560"},20,"No"]
["34","WARWICK","WPO","PONTIAC FREE LIBRARY","Library Associate",3,"Library Assistants",{"v":10,"d":"$10.00"}," N",null,8,"No"]
["34","WARWICK","WAR","WARWICK PUBLIC LIBRARY","Director",1,"director",{"$f":"IF(J656>0,(J656/(K656*52)),\"  \")","v":{"v":50.15025641025641,"d":"$50.15"}},"Y",{"v":97793,"d":"$97,793"},37.5,"Yes"]
["34","WARWICK","WAR","WARWICK PUBLIC LIBRARY","Deputy/Associate/Assistant Director",1,"deputy director",{"v":44.103589743589744,"d":"$44.10"},"Y",{"v":86002,"d":"$86,002"},37.5,"Yes"]
["34","WARWICK","WAR","WARWICK PUBLIC LIBRARY","Manager/Department Head",5,"Librarian II",{"v":33.834871794871795,"d":"$33.83"},"Y",{"v":65978,"d":"$65,978"},37.5,"Yes"]
["34","WARWICK","WAR","WARWICK PUBLIC LIBRARY","Branch Librarian",3,"Library Technician",{"v":20.744505494505493,"d":"$20.74"},"Y",{"v":37755,"d":"$37,755"},35,"No"]
["34","WARWICK","WAR","WARWICK PUBLIC LIBRARY","Reference/Information Librarian",2,"ReferenceLibI",{"v":27.336410256410257,"d":"$27.34"},"Y",{"v":53306,"d":"$53,306"},37.5,"Yes"]
["34","WARWICK","WAR","WARWICK PUBLIC LIBRARY","Reference/Information Librarian",3,"Reference Lib I",{"v":29.19025641025641,"d":"$29.19"},"Y",{"v":56921,"d":"$56,921"},37.5,"Yes"]
["34","WARWICK","WAR","WARWICK PUBLIC LIBRARY","Reference/Information Librarian",2,"Reference Lib I",{"v":27.34,"d":"$27.34"}," N",null,19,"Yes"]
["34","WARWICK","WAR","WARWICK PUBLIC LIBRARY","Reference/Information Librarian",1,"Reference LibI",{"v":23.62,"d":"$23.62"}," N",null,19,"Yes"]
["34","WARWICK","WAR","WARWICK PUBLIC LIBRARY","Childrens and/or Young Adult Services Librarian",1,"childrens",{"$f":"IF(J664>0,(J664/(K664*52)),\"  \")","v":{"v":27.336410256410257,"d":"$27.34"}},"Y",{"v":53306,"d":"$53,306"},37.5,"Yes"]
["34","WARWICK","WAR","WARWICK PUBLIC LIBRARY","Technical Services Librarian",2,"Circ. Aide",{"$f":"IF(J665>0,(J665/(K665*52)),\"  \")","v":{"v":19.26098901098901,"d":"$19.26"}},"Y",{"v":35055,"d":"$35,055"},35,"No"]
["34","WARWICK","WAR","WARWICK PUBLIC LIBRARY","Manager/Department Head",1,"Circ.Tech.Supervisor",{"$f":"IF(J666>0,(J666/(K666*52)),\"  \")","v":{"v":18.83901098901099,"d":"$18.84"}},"Y",{"v":34287,"d":"$34,287"},35,"No"]
["34","WARWICK","WAR","WARWICK PUBLIC LIBRARY","Library Associate",5,"Circ Aide",{"$f":"IF(J667>0,(J667/(K667*52)),\"  \")","v":{"v":19.26098901098901,"d":"$19.26"}},"Y",{"v":35055,"d":"$35,055"},35,"No"]
["34","WARWICK","WAR","WARWICK PUBLIC LIBRARY","Library Technician",6,"Circ Aide",{"v":18.69,"d":"$18.69"}," N",null,19,"No"]
["34","WARWICK","WAR","WARWICK PUBLIC LIBRARY","Library Technician",1,"Circ Aide",{"v":14.8,"d":"$14.80"}," N",null,19,"No"]
["34","WARWICK","WAR","WARWICK PUBLIC LIBRARY","Library Technician",1,"Circ Aide",{"v":18.69,"d":"$18.69"}," N",null,6,"No"]
["34","WARWICK","WAR","WARWICK PUBLIC LIBRARY","Library Technician",3,"Circ Aide",{"v":14.8,"d":"$14.80"}," N",null,19,"No"]
["34","WARWICK","WAR","WARWICK PUBLIC LIBRARY","Library Technician",1,"Circ Aide",{"v":18.69,"d":"$18.69"}," N",null,10,"No"]
["34","WARWICK","WAR","WARWICK PUBLIC LIBRARY","Library Technician",1,"Circ Aide",{"v":14.8,"d":"$14.80"}," N",null,12,"No"]
["34","WARWICK","WAR","WARWICK PUBLIC LIBRARY","Aide/Page",1,"Page",{"v":11.81,"d":"$11.81"}," N",null,13,"No"]
["34","WARWICK","WAR","WARWICK PUBLIC LIBRARY","Aide/Page",1,"Page",{"v":11.81,"d":"$11.81"}," N",null,8,"No"]
["34","WARWICK","WAR","WARWICK PUBLIC LIBRARY","Aide/Page",2,"Page",{"v":11.81,"d":"$11.81"}," N",null,16,"No"]
["34","WARWICK","WAR","WARWICK PUBLIC LIBRARY","Aide/Page",1,"Page",{"v":11.81,"d":"$11.81"}," N",null,11,"No"]
["34","WARWICK","WAR","WARWICK PUBLIC LIBRARY","Aide/Page",1,"Page",{"v":11.81,"d":"$11.81"}," N",null,10,"No"]
["34","WARWICK","WAR","WARWICK PUBLIC LIBRARY","Office Staff",1,"Adm.Mgr",{"$f":"IF(J679>0,(J679/(K679*52)),\"  \")","v":{"v":23.46923076923077,"d":"$23.47"}},"Y",{"v":42714,"d":"$42,714"},35,"No"]
["34","WARWICK","WAR","WARWICK PUBLIC LIBRARY","Buildings/Ground Staff",2,"Maintenance",{"$f":"IF(J680>0,(J680/(K680*52)),\"  \")","v":{"v":17.53125,"d":"$17.53"}},"Y",{"v":36465,"d":"$36,465"},40,"No"]
["34","WARWICK","WAR","WARWICK PUBLIC LIBRARY","Buildings/Ground Staff",1,"Maintenance",{"$f":"IF(J681>0,(J681/(K681*52)),\"  \")","v":{"v":22.970192307692308,"d":"$22.97"}},"Y",{"v":47778,"d":"$47,778"},40,"No"]
["35","WEST GREENWICH","WGR","LOUTTIT MEMORIAL LIBRARY","Director",1,"Director",{"v":26.52,"d":"$26.52"}," N",null,27,"Yes"]
["35","WEST GREENWICH","WGR","LOUTTIT MEMORIAL LIBRARY","Childrens and/or Young Adult Services Librarian",1,"Children\\'s Librarian",{"v":21.22,"d":"$21.22"}," N",null,19,"Yes"]
["35","WEST GREENWICH","WGR","LOUTTIT MEMORIAL LIBRARY","Library Associate",1,"Circulation Head",{"v":16.04,"d":"$16.04"}," N",null,20,"No"]
["35","WEST GREENWICH","WGR","LOUTTIT MEMORIAL LIBRARY","Library Associate",1,"Circ Asst/ILL",{"v":12.5,"d":"$12.50"}," N",null,17,"No"]
["35","WEST GREENWICH","WGR","LOUTTIT MEMORIAL LIBRARY","Library Associate",1,"Circ Asst",{"v":11.5,"d":"$11.50"}," N",null,13,"No"]
["35","WEST GREENWICH","WGR","LOUTTIT MEMORIAL LIBRARY","Library Associate",1,"Circ Substitute",{"v":10.5,"d":"$10.50"}," N",null,"","No"]
["36","WEST WARWICK","WWA","WEST WARWICK PUBLIC LIBRARY","Director",1,"Library Director",{"$f":"IF(J688>0,(J688/(K688*52)),\"  \")","v":{"v":32.142857142857146,"d":"$32.14"}},"Y",{"v":58500,"d":"$58,500"},35,"Yes"]
["36","WEST WARWICK","WWA","WEST WARWICK PUBLIC LIBRARY","Manager/Department Head",1,"Head of Youth Services",{"$f":"IF(J689>0,(J689/(K689*52)),\"  \")","v":{"v":25.11263736263736,"d":"$25.11"}},"Y",{"v":45705,"d":"$45,705"},35,"Yes"]
["36","WEST WARWICK","WWA","WEST WARWICK PUBLIC LIBRARY","Manager/Department Head",1,"Head of Information Services",{"$f":"IF(J690>0,(J690/(K690*52)),\"  \")","v":{"v":21.28901098901099,"d":"$21.29"}},"Y",{"v":38746,"d":"$38,746"},35,"Yes"]
["36","WEST WARWICK","WWA","WEST WARWICK PUBLIC LIBRARY","Manager/Department Head",1,"Head of Circulation",{"$f":"IF(J691>0,(J691/(K691*52)),\"  \")","v":{"v":17.322527472527472,"d":"$17.32"}},"Y",{"v":31527,"d":"$31,527"},35,"No"]
["36","WEST WARWICK","WWA","WEST WARWICK PUBLIC LIBRARY","Childrens and/or Young Adult Services Librarian",1,"Young Adult Services Librarian",{"$f":"IF(J692>0,(J692/(K692*52)),\"  \")","v":{"v":17.445604395604395,"d":"$17.45"}},"Y",{"v":31751,"d":"$31,751"},35,"Yes"]
["36","WEST WARWICK","WWA","WEST WARWICK PUBLIC LIBRARY","Reference/Information Librarian",1,"Information Services Librarian",{"v":17.05,"d":"$17.05"}," N",null,35,"Yes"]
["36","WEST WARWICK","WWA","WEST WARWICK PUBLIC LIBRARY","Library Associate",1,"Reference Assistant",{"v":10,"d":"$10.00"}," N",null,17,"No"]
["36","WEST WARWICK","WWA","WEST WARWICK PUBLIC LIBRARY","Library Associate",2,"Youth Services Assistant",{"v":10,"d":"$10.00"}," N",null,19,"No"]
["36","WEST WARWICK","WWA","WEST WARWICK PUBLIC LIBRARY","Library Associate",1,"Reference Assistant",{"v":15,"d":"$15.00"}," N",null,19,"No"]
["36","WEST WARWICK","WWA","WEST WARWICK PUBLIC LIBRARY","Library Technician",1,"Circulation Assistant/Tech Services",{"v":13.84,"d":"$13.84"}," N",null,19,"No"]
["36","WEST WARWICK","WWA","WEST WARWICK PUBLIC LIBRARY","Library Technician",1,"Circulation Assistant/Cataloging",{"v":12.81,"d":"$12.81"}," N",null,19,"No"]
["36","WEST WARWICK","WWA","WEST WARWICK PUBLIC LIBRARY","Manager/Department Head",1,"ESL Coordinator",{"$f":"IF(J699>0,(J699/(K699*52)),\"  \")","v":{"v":17.04010989010989,"d":"$17.04"}},"Y",{"v":31013,"d":"$31,013"},35,"No"]
["36","WEST WARWICK","WWA","WEST WARWICK PUBLIC LIBRARY","Buildings/Ground Staff",1,"Custodian",{"v":15.76,"d":"$15.76"},{"$f":"IF(J700>0,\"Y\",\" N\")","v":" N"},null,35,"No"]
["36","WEST WARWICK","WWA","WEST WARWICK PUBLIC LIBRARY","Office Staff",1,"Administrative Assistant",{"$f":"IF(J701>0,(J701/(K701*52)),\"  \")","v":{"v":16.73846153846154,"d":"$16.74"}},"Y",{"v":30464,"d":"$30,464"},35,"No"]
["36","WEST WARWICK","WWA","WEST WARWICK PUBLIC LIBRARY","Technical Services Librarian",1,"Technology Coordinator",{"$f":"IF(J702>0,(J702/(K702*52)),\"  \")","v":{"v":20.83021978021978,"d":"$20.83"}},"Y",{"v":37911,"d":"$37,911"},35,"Yes"]
["36","WEST WARWICK","WWA","WEST WARWICK PUBLIC LIBRARY","Library Associate",1,"ESL Teacher",{"v":15,"d":"$15.00"}," N",null,8,"No"]
["36","WEST WARWICK","WWA","WEST WARWICK PUBLIC LIBRARY","Library Associate",1,"ESL Teacher",{"v":15,"d":"$15.00"}," N",null,4,"No"]
["36","WEST WARWICK","WWA","WEST WARWICK PUBLIC LIBRARY","Library Associate",1,"Children\\'s ESL Teacher",{"v":11.28,"d":"$11.28"}," N",null,"",""]
["37","WESTERLY","WES","WESTERLY PUBLIC LIBRARY","Director",1,"Executive Director",{"$f":"IF(J706>0,(J706/(K706*52)),\"  \")","v":{"v":36.245604395604396,"d":"$36.25"}},"Y",{"v":65967,"d":"$65,967"},35,"Yes"]
["37","WESTERLY","WES","WESTERLY PUBLIC LIBRARY","Buildings/Ground Staff",1,"Park Superintendent",{"v":39.74945054945055,"d":"$39.75"},"Y",{"v":72344,"d":"$72,344"},35,"No"]
["37","WESTERLY","WES","WESTERLY PUBLIC LIBRARY","Manager/Department Head",1,"Administrative Services Manager",{"v":29.095054945054944,"d":"$29.10"},"Y",{"v":52953,"d":"$52,953"},35,"No"]
["37","WESTERLY","WES","WESTERLY PUBLIC LIBRARY","Childrens and/or Young Adult Services Librarian",1,"Children\\'s Librarian",{"v":25.79945054945055,"d":"$25.80"},"Y",{"v":46955,"d":"$46,955"},35,"Yes"]
["37","WESTERLY","WES","WESTERLY PUBLIC LIBRARY","Manager/Department Head",1,"Children\\'s Dept Head",{"v":34.30384615384615,"d":"$34.30"},"Y",{"v":62433,"d":"$62,433"},35,"N/A"]
["37","WESTERLY","WES","WESTERLY PUBLIC LIBRARY","Childrens and/or Young Adult Services Librarian",1,"YA Librarian",{"v":17.127472527472527,"d":"$17.13"},"Y",{"v":31172,"d":"$31,172"},35,"Yes"]
["37","WESTERLY","WES","WESTERLY PUBLIC LIBRARY","Manager/Department Head",1,"Collection Management Librarian",{"v":34.30384615384615,"d":"$34.30"},"Y",{"v":62433,"d":"$62,433"},35,"Yes"]
["37","WESTERLY","WES","WESTERLY PUBLIC LIBRARY","Manager/Department Head",1,"Circulation Manager",{"v":26.09065934065934,"d":"$26.09"},"Y",{"v":47485,"d":"$47,485"},35,"Yes"]
["37","WESTERLY","WES","WESTERLY PUBLIC LIBRARY","Reference/Information Librarian",3,"Reference Librarian",{"v":29.263186813186813,"d":"$29.26"},"Y",{"v":159777,"d":"$159,777"},105,"Yes"]
["37","WESTERLY","WES","WESTERLY PUBLIC LIBRARY","Reference/Information Librarian",1,"Reference Librarian",{"v":25.939903846153847,"d":"$25.94"},"Y",{"v":21582,"d":"$21,582"},16,"Yes"]
["37","WESTERLY","WES","WESTERLY PUBLIC LIBRARY","Aide/Page",2,"Pages",null,"Y",{"v":7918,"d":"$7,918"},null,"No"]
["37","WESTERLY","WES","WESTERLY PUBLIC LIBRARY","Buildings/Ground Staff",1,"Facilities Manager",{"v":33.47967032967033,"d":"$33.48"},"Y",{"v":60933,"d":"$60,933"},35,"No"]
["37","WESTERLY","WES","WESTERLY PUBLIC LIBRARY","Library Associate",4,"Associates",{"v":18.209230769230768,"d":"$18.21"},"Y",{"v":23672,"d":"$23,672"},25,"Yes"]
["37","WESTERLY","WES","WESTERLY PUBLIC LIBRARY","Library Associate",2,"Collection Management Associates",{"v":19.419505494505493,"d":"$19.42"},"Y",{"v":70687,"d":"$70,687"},70,"No"]
["37","WESTERLY","WES","WESTERLY PUBLIC LIBRARY","Office Staff",2,"Development/Bookkeeper",{"v":19.254091653027825,"d":"$19.25"},"Y",{"v":47057,"d":"$47,057"},47,"No"]
["37","WESTERLY","WES","WESTERLY PUBLIC LIBRARY","Buildings/Ground Staff",2,"Groundskeepers",{"v":13.74532967032967,"d":"$13.75"},"Y",{"v":50033,"d":"$50,033"},70,"No"]
["37","WESTERLY","WES","WESTERLY PUBLIC LIBRARY","Buildings/Ground Staff",1,"Security Officer",{"v":18.25801282051282,"d":"$18.26"},"Y",{"v":22786,"d":"$22,786"},24,"No"]
["37","WESTERLY","WES","WESTERLY PUBLIC LIBRARY","Library Associate",16,"Associates",{"$f":"J723/(F723*(K723*52))","v":{"v":17.544671474358974,"d":"$17.54"}},"Y",{"v":175166,"d":"$175,166"},12,"No"]
["38","WOONSOCKET","WNS","WOONSOCKET HARRIS PUBLIC LIBRARY","Director",1,"Library Director",{"v":31.825824175824177,"d":"$31.83"},"Y",{"v":57923,"d":"$57,923"},35,"Yes"]
["38","WOONSOCKET","WNS","WOONSOCKET HARRIS PUBLIC LIBRARY","Deputy/Associate/Assistant Director",1,"Assistant Library Director/Technology Services Coordinator",{"v":28.074175824175825,"d":"$28.07"},"Y",{"v":51095,"d":"$51,095"},35,"Yes"]
["38","WOONSOCKET","WNS","WOONSOCKET HARRIS PUBLIC LIBRARY","Manager/Department Head",1,"Chief Reference & Adult Services Librarian",{"v":27.481868131868133,"d":"$27.48"},"Y",{"v":50017,"d":"$50,017"},35,"Yes"]
["38","WOONSOCKET","WNS","WOONSOCKET HARRIS PUBLIC LIBRARY","Manager/Department Head",1,"Chief Children\\'s & Youth Services Librarian",{"v":26.966483516483517,"d":"$26.97"},"Y",{"v":49079,"d":"$49,079"},35,"Yes"]
["38","WOONSOCKET","WNS","WOONSOCKET HARRIS PUBLIC LIBRARY","Reference/Information Librarian",1,"Reference & Adult Services Librarian",{"v":22.0510989010989,"d":"$22.05"},"Y",{"v":40133,"d":"$40,133"},35,"Yes"]
["38","WOONSOCKET","WNS","WOONSOCKET HARRIS PUBLIC LIBRARY","Childrens and/or Young Adult Services Librarian",1,"Youth/Adolescent Services Librarian",{"v":22.0510989010989,"d":"$22.05"},"Y",{"v":40133,"d":"$40,133"},35,"Yes"]
["38","WOONSOCKET","WNS","WOONSOCKET HARRIS PUBLIC LIBRARY","Childrens and/or Young Adult Services Librarian",1,"Assistant Children\\'s Librarian",{"v":14.075274725274726,"d":"$14.08"},"Y",{"v":25617,"d":"$25,617"},35,"No"]
["38","WOONSOCKET","WNS","WOONSOCKET HARRIS PUBLIC LIBRARY","Reference/Information Librarian",1,"Reader\\'s Advisor",{"v":16.96868131868132,"d":"$16.97"},"Y",{"v":30883,"d":"$30,883"},35,"No"]
["38","WOONSOCKET","WNS","WOONSOCKET HARRIS PUBLIC LIBRARY","Library Associate",1,"Library Technical Aide",{"v":15.767032967032968,"d":"$15.77"},"Y",{"v":28696,"d":"$28,696"},35,"No"]
["38","WOONSOCKET","WNS","WOONSOCKET HARRIS PUBLIC LIBRARY","Library Associate",1,"Paraprofessional",{"v":14.504945054945056,"d":"$14.50"},"Y",{"v":26399,"d":"$26,399"},35,"No"]
["38","WOONSOCKET","WNS","WOONSOCKET HARRIS PUBLIC LIBRARY","Library Associate",1,"Senior Library Assistant",{"v":14.654945054945054,"d":"$14.65"},"Y",{"v":26672,"d":"$26,672"},35,"No"]
["38","WOONSOCKET","WNS","WOONSOCKET HARRIS PUBLIC LIBRARY","Library Associate",1,"Junior Library Assistant",{"v":13.921978021978022,"d":"$13.92"},"Y",{"v":25338,"d":"$25,338"},35,"No"]
["38","WOONSOCKET","WNS","WOONSOCKET HARRIS PUBLIC LIBRARY","Buildings/Ground Staff",1,"Janitor/Security",{"v":14.377403846153847,"d":"$14.38"},"Y",{"v":29905,"d":"$29,905"},40,"No"]
["38","WOONSOCKET","WNS","WOONSOCKET HARRIS PUBLIC LIBRARY","Library Associate",2,"Library Assistant/Part Time",{"v":10.12,"d":"$10.12"}," N",null,19.5,"No"]
["38","WOONSOCKET","WNS","WOONSOCKET HARRIS PUBLIC LIBRARY","Library Associate",1,"Library Assistant/Part Time",{"v":10.12,"d":"$10.12"}," N",null,8,"No"]
["38","WOONSOCKET","WNS","WOONSOCKET HARRIS PUBLIC LIBRARY","Library Associate",1,"Library Assistant/Part Time",{"v":10.12,"d":"$10.12"}," N",null,7.5,"No"]
["38","WOONSOCKET","WNS","WOONSOCKET HARRIS PUBLIC LIBRARY","Library Associate",1,"Computer Literacy Coordinator",{"v":20.87,"d":"$20.87"}," N",null,4,"No"]
["38","WOONSOCKET","WNS","WOONSOCKET HARRIS PUBLIC LIBRARY","Reference/Information Librarian",1,"Reference Librarian/Part Time",{"v":15.5,"d":"$15.50"}," N",null,10,"Yes"]
["38","WOONSOCKET","WNS","WOONSOCKET HARRIS PUBLIC LIBRARY","Aide/Page",1,"Library Page",{"v":9,"d":"$9.00"}," N",null,16,"No"]
["38","WOONSOCKET","WNS","WOONSOCKET HARRIS PUBLIC LIBRARY","Aide/Page",4,"Library Page",{"v":8.1,"d":"$8.10"}," N",null,12,"No"]
[null,null,""]
[null,null,""]

{"sheet":"salariesbyPosition","index":3,"n_rows":745,"n_cols":12,"rows_kept":745}
["2b. City/Town File #","8. City","1. Library ID","Location","160. Job Category","161. Number of Staff","162. Official Title(s) at Library","163. Hourly Rate","Calculated?","163a. Annual Salary","164. Hours Worked per Week","165. MLS?"]
["13","HOPKINTON","ASH","ASHAWAY FREE LIBRARY","Aide/Page",1,"Story Hour Assistant",{"v":21.65,"d":"$21.65"},{"$f":"IF(J2>0,\"Y\",\" N\")","v":" N"},null,1,"No"]
["1","BARRINGTON","BAR","BARRINGTON PUBLIC LIBRARY","Aide/Page",6,"pages",{"v":8.26,"d":"$8.26"},{"$f":"IF(J3>0,\"Y\",\" N\")","v":" N"},null,9,"No"]
["6","COVENTRY","COV","COVENTRY PUBLIC LIBRARY","Aide/Page",2,"Library Aides",{"v":11.76,"d":"$11.76"},{"$f":"IF(J4>0,\"Y\",\" N\")","v":" N"},null,15,"No"]
["7","CRANSTON","CRA","CRANSTON PUBLIC LIBRARY","Aide/Page",3,"Page",{"v":9,"d":"$9.00"},{"$f":"IF(J5>0,\"Y\",\" N\")","v":" N"},null,8,"No"]
["7","CRANSTON","CRA","CRANSTON PUBLIC LIBRARY","Aide/Page",1,"Page",{"v":9,"d":"$9.00"},{"$f":"IF(J6>0,\"Y\",\" N\")","v":" N"},null,20,"No"]
["5","CHARLESTOWN","CHA","CROSS' MILLS PUBLIC LIBRARY","Aide/Page",1,"Shelver",{"v":10,"d":"$10.00"},{"$f":"IF(J7>0,\"Y\",\"N\")","v":"N"},null,11,"No"]
["5","CHARLESTOWN","CHA","CROSS' MILLS PUBLIC LIBRARY","Aide/Page",1,"Shelver",{"v":8.5,"d":"$8.50"},{"$f":"IF(J8>0,\"Y\",\"N\")","v":"N"},null,6,"No"]
["8","CUMBERLAND","CUM","CUMBERLAND PUBLIC LIBRARY","Aide/Page",1,"Part-time Library Page",{"v":10.51,"d":"$10.51"},{"$f":"IF(J9>0,\"Y\",\" N\")","v":" N"},null,15,"No"]
["8","CUMBERLAND","CUM","CUMBERLAND PUBLIC LIBRARY","Aide/Page",3,"Part-time Library Page",{"v":9.54,"d":"$9.54"},{"$f":"IF(J10>0,\"Y\",\" N\")","v":" N"},null,15,"No"]
["9","EAST GREENWICH","EGR","EAST GREENWICH FREE LIBRARY","Aide/Page",1,"page",{"v":9.09,"d":"$9.09"},{"$f":"IF(J11>0,\"Y\",\" N\")","v":" N"},null,20,"No"]
["10","EAST PROVIDENCE","EPL","EAST PROVIDENCE PUBLIC LIBRARY","Aide/Page",3,"P/T 10.00",null,null,"",15,"No"]
["30","SMITHFIELD","ESM","EAST SMITHFIELD PUBLIC LIBRARY","Aide/Page",1,"Aide/Page",{"v":9,"d":"$9.00"},"N",{"v":6318,"d":"$6,318"},13.5,"No"]
["30","SMITHFIELD","ESM","EAST SMITHFIELD PUBLIC LIBRARY","Aide/Page",1,"Aide/Page",{"v":9,"d":"$9.00"},"N",{"v":7488,"d":"$7,488"},16,"No"]
["30","SMITHFIELD","ESM","EAST SMITHFIELD PUBLIC LIBRARY","Aide/Page",1,"Aide/Page",{"v":9,"d":"$9.00"},"N",{"v":7020,"d":"$7,020"},14,"No"]
["30","SMITHFIELD","ESM","EAST SMITHFIELD PUBLIC LIBRARY","Aide/Page",1,"Aide/Page",{"v":9.33,"d":"$9.33"},"N",{"v":10188,"d":"$10,188"},21,"No"]
["32","TIVERTON","TIV","ESSEX PUBLIC LIBRARY","Aide/Page",3,"Page",{"v":8.75,"d":"$8.75"},{"$f":"IF(J17>0,\"Y\",\" N\")","v":" N"},null,9,"No"]
["30","SMITHFIELD","GVL","GREENVILLE PUBLIC LIBRARY","Aide/Page",1,"Library Page",{"$f":"IF(J18>0,(J18/(K18*52)),\"  \")","v":{"v":9,"d":"$9.00"}},"Y",{"v":3510,"d":"$3,510"},7.5,"No"]
["30","SMITHFIELD","GVL","GREENVILLE PUBLIC LIBRARY","Aide/Page",1,"Library Page",{"$f":"IF(J19>0,(J19/(K19*52)),\"  \")","v":{"v":9,"d":"$9.00"}},"Y",{"v":4212,"d":"$4,212"},9,"No"]
["30","SMITHFIELD","GVL","GREENVILLE PUBLIC LIBRARY","Aide/Page",1,"Library Page",{"$f":"IF(J20>0,(J20/(K20*52)),\"  \")","v":{"v":10.5,"d":"$10.50"}},"Y",{"v":4095,"d":"$4,095"},7.5,"No"]
["12","GLOCESTER","HAR","HARMONY LIBRARY","Aide/Page",2,"Page",{"v":9.27,"d":"$9.27"}," N",null,4,"No"]
["14","JAMESTOWN","JAM","JAMESTOWN PHILOMENIAN LIBRARY","Aide/Page",1,"aide",{"v":9,"d":"$9.00"}," N",null,12,"No"]
["3","BURRILLVILLE","BUR","JESSE M. SMITH MEMORIAL LIBRARY","Aide/Page",2,"Page",{"v":9,"d":"$9.00"}," N",null,14,"No"]
["16","LINCOLN","LIN","LINCOLN PUBLIC LIBRARY","Aide/Page",1,"Page",{"v":9,"d":"$9.00"}," N",null,18,"No"]
["16","LINCOLN","LIN","LINCOLN PUBLIC LIBRARY","Aide/Page",1,"Page",{"v":9,"d":"$9.00"}," N",null,9,"No"]
["16","LINCOLN","LIN","LINCOLN PUBLIC LIBRARY","Aide/Page",1,"Page",{"v":9,"d":"$9.00"}," N",null,8,"No"]
["15","JOHNSTON","JOH","MARIAN J. MOHR MEMORIAL LIBRARY","Aide/Page",1,"Library Aide",{"v":9,"d":"$9.00"}," N",null,19,"No"]
["19","NARRAGANSETT","NAR","MAURY LOONTJENS MEMORIAL LIBRARY (NARRAGANSETT)","Aide/Page",1,"Library Page",{"v":9,"d":"$9.00"}," N",null,16,"No"]
["21","NEWPORT","NPT","NEWPORT PUBLIC LIBRARY","Aide/Page",9,"Page",{"v":9.5,"d":"$9.50"}," N",null,120,"No"]
["22","NORTH KINGSTOWN","NKI","NORTH KINGSTOWN FREE LIBRARY","Aide/Page",1,"Senior Library Clerk",{"$f":"IF(J30>0,(J30/(K30*52)),\"  \")","v":{"v":17.30824175824176,"d":"$17.31"}},"Y",{"v":31501,"d":"$31,501"},35,"Yes"]
["22","NORTH KINGSTOWN","NKI","NORTH KINGSTOWN FREE LIBRARY","Aide/Page",1,"Library Clerk",{"v":15.91,"d":"$15.91"},{"$f":"IF(J31>0,\"Y\",\" N\")","v":" N"},null,30,"Yes"]
["22","NORTH KINGSTOWN","NKI","NORTH KINGSTOWN FREE LIBRARY","Aide/Page",4,"Intern",{"v":13,"d":"$13.00"}," N",null,10,"No"]
["25","PAWTUCKET","PAW","PAWTUCKET PUBLIC LIBRARY","Aide/Page",3,"Library Senior Page",{"v":11.37,"d":"$11.37"},"Y",{"v":11234,"d":"$11,234"},19,"No"]
["25","PAWTUCKET","PAW","PAWTUCKET PUBLIC LIBRARY","Aide/Page",2,"Library Page",{"v":10.5,"d":"$10.50"},"Y",{"v":10379,"d":"$10,379"},19,"No"]
["27","PROVIDENCE","PRO","PROVIDENCE PUBLIC LIBRARY","Aide/Page",1,"Library Outreach",{"$f":"IF(J35>0,(J35/(K35*52)),\"  \")","v":{"v":10,"d":"$10.00"}},"Y",{"v":4160,"d":"$4,160"},8,"No"]
["2","BRISTOL","BRI","ROGERS FREE LIBRARY","Aide/Page",2,"Page",{"v":8.69,"d":"$8.69"}," N",null,10,"No"]
["31","SOUTH KINGSTOWN","SKI","SOUTH KINGSTOWN PUBLIC LIBRARY","Aide/Page",2,"Aide",{"v":9,"d":"$9.00"}," N",null,10,"No"]
["31","SOUTH KINGSTOWN","SKI","SOUTH KINGSTOWN PUBLIC LIBRARY","Aide/Page",2,"Aide",{"v":9,"d":"$9.00"}," N",null,8,"No"]
["31","SOUTH KINGSTOWN","SKI","SOUTH KINGSTOWN PUBLIC LIBRARY","Aide/Page",1,"Aide",{"v":9,"d":"$9.00"}," N",null,12.5,"No"]
["31","SOUTH KINGSTOWN","SKI","SOUTH KINGSTOWN PUBLIC LIBRARY","Aide/Page",2,"Aide",{"v":9,"d":"$9.00"}," N",null,5,"No"]
["34","WARWICK","WAR","WARWICK PUBLIC LIBRARY","Aide/Page",1,"Page",{"v":11.81,"d":"$11.81"}," N",null,13,"No"]
["34","WARWICK","WAR","WARWICK PUBLIC LIBRARY","Aide/Page",1,"Page",{"v":11.81,"d":"$11.81"}," N",null,8,"No"]
["34","WARWICK","WAR","WARWICK PUBLIC LIBRARY","Aide/Page",2,"Page",{"v":11.81,"d":"$11.81"}," N",null,16,"No"]
["34","WARWICK","WAR","WARWICK PUBLIC LIBRARY","Aide/Page",1,"Page",{"v":11.81,"d":"$11.81"}," N",null,11,"No"]
["34","WARWICK","WAR","WARWICK PUBLIC LIBRARY","Aide/Page",1,"Page",{"v":11.81,"d":"$11.81"}," N",null,10,"No"]
["37","WESTERLY","WES","WESTERLY PUBLIC LIBRARY","Aide/Page",2,"Pages",null,"Y",{"v":7918,"d":"$7,918"},null,"No"]
["38","WOONSOCKET","WNS","WOONSOCKET HARRIS PUBLIC LIBRARY","Aide/Page",1,"Library Page",{"v":9,"d":"$9.00"}," N",null,16,"No"]
["38","WOONSOCKET","WNS","WOONSOCKET HARRIS PUBLIC LIBRARY","Aide/Page",4,"Library Page",{"v":8.1,"d":"$8.10"}," N",null,12,"No"]
["6","COVENTRY","COV","COVENTRY PUBLIC LIBRARY","Branch Librarian",1,"Part-time Branch Librarian",{"v":18.03,"d":"$18.03"}," N",null,18,"Yes"]
["7","CRANSTON","CRA","CRANSTON PUBLIC LIBRARY","Branch Librarian",1,"Branch Librarian",{"$f":"IF(J50>0,(J50/(K50*52)),\"  \")","v":{"v":36.034065934065936,"d":"$36.03"}},"Y",{"v":65582,"d":"$65,582"},35,"Yes"]
["7","CRANSTON","CRA","CRANSTON PUBLIC LIBRARY","Branch Librarian",1,"Branch Librarian",{"$f":"IF(J51>0,(J51/(K51*52)),\"  \")","v":{"v":29.49945054945055,"d":"$29.50"}},"Y",{"v":53689,"d":"$53,689"},35,"Yes"]
["7","CRANSTON","CRA","CRANSTON PUBLIC LIBRARY","Branch Librarian",1,"Branch Librarian",{"$f":"IF(J52>0,(J52/(K52*52)),\"  \")","v":{"v":32.79725274725275,"d":"$32.80"}},"Y",{"v":59691,"d":"$59,691"},35,"Yes"]
["7","CRANSTON","CRA","CRANSTON PUBLIC LIBRARY","Branch Librarian",1,"Branch Librarian",{"$f":"IF(J53>0,(J53/(K53*52)),\"  \")","v":{"v":30.61978021978022,"d":"$30.62"}},"Y",{"v":55728,"d":"$55,728"},35,"Yes"]
["10","EAST PROVIDENCE","EPL","EAST PROVIDENCE PUBLIC LIBRARY","Branch Librarian",1,"Branch Librarian",{"$f":"IF(J54>0,(J54/(K54*52)),\"  \")","v":{"v":31.0478021978022,"d":"$31.05"}},"Y",{"v":56507,"d":"$56,507"},35,"Yes"]
["32","TIVERTON","TIV","ESSEX PUBLIC LIBRARY","Branch Librarian",1,"Branch Librarian",{"v":17.88,"d":"$17.88"}," N",null,35,"No"]
["27","PROVIDENCE","PCL","PROVIDENCE COMMUNITY LIBRARY","Branch Librarian",6,"Library Manager",{"$f":"IF(J56>0,(J56/(K56*52)),\"  \")","v":{"v":25.555897435897435,"d":"$25.56"}},"Y",{"v":49834,"d":"$49,834"},37.5,"Yes"]
["31","SOUTH KINGSTOWN","SKI","SOUTH KINGSTOWN PUBLIC LIBRARY","Branch Librarian",1,"Branch Librarian",{"$f":"IF(J57>0,(J57/(K57*52)),\"  \")","v":{"v":27.897252747252747,"d":"$27.90"}},"Y",{"v":50773,"d":"$50,773"},35,"Yes"]
["34","WARWICK","WAR","WARWICK PUBLIC LIBRARY","Branch Librarian",3,"Library Technician",{"$f":"IF(J58>0,(J58/(K58*52)),\"  \")","v":{"v":20.744505494505493,"d":"$20.74"}},"Y",{"v":37755,"d":"$37,755"},35,"No"]
["22","NORTH KINGSTOWN","WIL","WILLETT FREE LIBRARY","Branch Librarian",1,"Librarian",{"v":15,"d":"$15.00"},"Y",{"v":8745,"d":"$8,745"},11.5,"Yes"]
["1","BARRINGTON","BAR","BARRINGTON PUBLIC LIBRARY","Buildings/Ground Staff",1,"head custodian",{"$f":"IF(J60>0,(J60/(K60*52)),\"  \")","v":{"v":22.774175824175824,"d":"$22.77"}},"Y",{"v":41449,"d":"$41,449"},35,"No"]
["1","BARRINGTON","BAR","BARRINGTON PUBLIC LIBRARY","Buildings/Ground Staff",3,"custodians",{"v":10.82,"d":"$10.82"},null,"",12,"No"]
["6","COVENTRY","COV","COVENTRY PUBLIC LIBRARY","Buildings/Ground Staff",1,"Building Maintenance",{"$f":"IF(J62>0,(J62/(K62*52)),\"  \")","v":{"v":20.097115384615385,"d":"$20.10"}},{"$f":"IF(J62>0,\"Y\",\" N\")","v":"Y"},{"v":20901,"d":"$20,901"},20,"No"]
["6","COVENTRY","COV","COVENTRY PUBLIC LIBRARY","Buildings/Ground Staff",1,"Custodian",{"$f":"IF(J63>0,(J63/(K63*52)),\"  \")","v":{"v":17.224038461538463,"d":"$17.22"}},"Y",{"v":17913,"d":"$17,913"},20,"No"]
["7","CRANSTON","CRA","CRANSTON PUBLIC LIBRARY","Buildings/Ground Staff",1,"Custodian",{"$f":"IF(J64>0,(J64/(K64*52)),\"  \")","v":{"v":20.976923076923075,"d":"$20.98"}},"Y",{"v":38178,"d":"$38,178"},35,"No"]
["7","CRANSTON","CRA","CRANSTON PUBLIC LIBRARY","Buildings/Ground Staff",1,"Driver",{"$f":"IF(J65>0,(J65/(K65*52)),\"  \")","v":{"v":15.672307692307692,"d":"$15.67"}},"Y",{"v":20374,"d":"$20,374"},25,"No"]
["7","CRANSTON","CRA","CRANSTON PUBLIC LIBRARY","Buildings/Ground Staff",1,"Custodian",{"v":10,"d":"$10.00"}," N",null,14,"No"]
["7","CRANSTON","CRA","CRANSTON PUBLIC LIBRARY","Buildings/Ground Staff",2,"Custodian",{"v":10,"d":"$10.00"}," N",null,25,"No"]
["7","CRANSTON","CRA","CRANSTON PUBLIC LIBRARY","Buildings/Ground Staff",1,"Security",{"v":9,"d":"$9.00"}," N",null,12,"No"]
["7","CRANSTON","CRA","CRANSTON PUBLIC LIBRARY","Buildings/Ground Staff",1,"Custodian",{"v":9.35,"d":"$9.35"}," N",null,9,"No"]
["7","CRANSTON","CRA","CRANSTON PUBLIC LIBRARY","Buildings/Ground Staff",1,"Custodian",{"v":12.35,"d":"$12.35"}," N",null,20,"No"]
["7","CRANSTON","CRA","CRANSTON PUBLIC LIBRARY","Buildings/Ground Staff",1,"Security",{"v":10.1,"d":"$10.10"}," N",null,3,"No"]
["7","CRANSTON","CRA","CRANSTON PUBLIC LIBRARY","Buildings/Ground Staff",1,"Security",{"v":9.35,"d":"$9.35"}," N",null,5,"No"]
["5","CHARLESTOWN","CHA","CROSS' MILLS PUBLIC LIBRARY","Buildings/Ground Staff",1,"Maintenance",{"v":15.59,"d":"$15.59"},{"$f":"IF(J73>0,\"Y\",\"N\")","v":"N"},null,12,"No"]
["5","CHARLESTOWN","CHA","CROSS' MILLS PUBLIC LIBRARY","Buildings/Ground Staff",1,"Custodian",{"v":20.18,"d":"$20.18"},{"$f":"IF(J74>0,\"Y\",\"N\")","v":"N"},null,4,"No"]
["8","CUMBERLAND","CUM","CUMBERLAND PUBLIC LIBRARY","Buildings/Ground Staff",1,"Facility Manager",{"v":20.43,"d":"$20.43"},{"$f":"IF(J75>0,\"Y\",\" N\")","v":" N"},null,40,"No"]
["8","CUMBERLAND","CUM","CUMBERLAND PUBLIC LIBRARY","Buildings/Ground Staff",1,"Part-time Custodian",{"v":16.91,"d":"$16.91"},{"$f":"IF(J76>0,\"Y\",\" N\")","v":" N"},null,18,"No"]
["8","CUMBERLAND","CUM","CUMBERLAND PUBLIC LIBRARY","Buildings/Ground Staff",1,"Part-time Custodial Assistant",{"v":16.25,"d":"$16.25"},{"$f":"IF(J77>0,\"Y\",\" N\")","v":" N"},null,19.5,"No"]
["8","CUMBERLAND","CUM","CUMBERLAND PUBLIC LIBRARY","Buildings/Ground Staff",1,"Part-time Custodial Assistant",{"v":15.7,"d":"$15.70"},{"$f":"IF(J78>0,\"Y\",\" N\")","v":" N"},null,8,"No"]
["9","EAST GREENWICH","EGR","EAST GREENWICH FREE LIBRARY","Buildings/Ground Staff",1,"maintenace",{"v":20.22,"d":"$20.22"},{"$f":"IF(J79>0,\"Y\",\" N\")","v":" N"},null,15,"No"]
["30","SMITHFIELD","ESM","EAST SMITHFIELD PUBLIC LIBRARY","Buildings/Ground Staff",1,"Custodian",{"v":13.98,"d":"$13.98"},"N",{"v":12358,"d":"$12,358"},17,"No"]
["29","SCITUATE","HPE","HOPE LIBRARY","Buildings/Ground Staff",1,"Custodian",{"v":11.83,"d":"$11.83"},{"$f":"IF(J81>0,\"Y\",\" N\")","v":" N"},null,10,"No"]
["29","SCITUATE","HPE","HOPE LIBRARY","Buildings/Ground Staff",1,"Custodian",{"v":10.75,"d":"$10.75"},{"$f":"IF(J82>0,\"Y\",\" N\")","v":" N"},null,10,"No"]
["3","BURRILLVILLE","BUR","JESSE M. SMITH MEMORIAL LIBRARY","Buildings/Ground Staff",1,"Building and Grounds Supervisor",{"v":19.69,"d":"$19.69"},{"$f":"IF(J83>0,\"Y\",\" N\")","v":" N"},null,40,"No"]
["16","LINCOLN","LIN","LINCOLN PUBLIC LIBRARY","Buildings/Ground Staff",1,"Maintenance",{"v":17.5,"d":"$17.50"},{"$f":"IF(J84>0,\"Y\",\" N\")","v":" N"},null,23.5,"No"]
["15","JOHNSTON","JOH","MARIAN J. MOHR MEMORIAL LIBRARY","Buildings/Ground Staff",1,"Custodian",{"v":9,"d":"$9.00"},{"$f":"IF(J85>0,\"Y\",\" N\")","v":" N"},null,19,"No"]
["21","NEWPORT","NPT","NEWPORT PUBLIC LIBRARY","Buildings/Ground Staff",1,"Property Manager",{"$f":"IF(J86>0,(J86/(K86*52)),\"  \")","v":{"v":25.926666666666666,"d":"$25.93"}},"Y",{"v":50557,"d":"$50,557"},37.5,"No"]
["21","NEWPORT","NPT","NEWPORT PUBLIC LIBRARY","Buildings/Ground Staff",1,"Custodian",{"$f":"IF(J87>0,(J87/(K87*52)),\"  \")","v":{"v":21.917435897435897,"d":"$21.92"}},"Y",{"v":42739,"d":"$42,739"},37.5,"No"]
["21","NEWPORT","NPT","NEWPORT PUBLIC LIBRARY","Buildings/Ground Staff",1,"Custodian/Security Guard",{"$f":"IF(J88>0,(J88/(K88*52)),\"  \")","v":{"v":17.472820512820512,"d":"$17.47"}},"Y",{"v":34072,"d":"$34,072"},37.5,"No"]
["21","NEWPORT","NPT","NEWPORT PUBLIC LIBRARY","Buildings/Ground Staff",1,"Custodian part time",{"v":14.42,"d":"$14.42"},{"$f":"IF(J89>0,\"Y\",\" N\")","v":" N"},null,25,"No"]
["22","NORTH KINGSTOWN","NKI","NORTH KINGSTOWN FREE LIBRARY","Buildings/Ground Staff",1,"Morning Custodian",{"v":19.49,"d":"$19.49"}," N",null,20,"No"]
["22","NORTH KINGSTOWN","NKI","NORTH KINGSTOWN FREE LIBRARY","Buildings/Ground Staff",1,"EveningCustodian",{"v":19.49,"d":"$19.49"}," N",null,28,"No"]
["23","NORTH PROVIDENCE","NPR","NORTH PROVIDENCE UNION FREE","Buildings/Ground Staff",1,"Maintenance/Custodian",{"$f":"IF(J92>0,(J92/(K92*52)),\"  \")","v":{"v":21.182905982905982,"d":"$21.18"}},"Y",{"v":24784,"d":"$24,784"},22.5,"No"]
["23","NORTH PROVIDENCE","NPR","NORTH PROVIDENCE UNION FREE","Buildings/Ground Staff",1,"Maintenance/Assistance",{"v":12.55,"d":"$12.55"}," N",null,19.5,"No"]
["3","PASCOAG","PAS","PASCOAG FREE PUBLIC LIBRARY","Buildings/Ground Staff",1,"Janitor",{"$f":"IF(J94>0,(J94/(K94*52)),\"  \")","v":{"v":13.615384615384615,"d":"$13.62"}},"Y",{"v":2832,"d":"$2,832"},4,"No"]
["25","PAWTUCKET","PAW","PAWTUCKET PUBLIC LIBRARY","Buildings/Ground Staff",1,"Custodian",{"v":15.93,"d":"$15.93"},"Y",{"v":33125,"d":"$33,125"},40,"No"]
["25","PAWTUCKET","PAW","PAWTUCKET PUBLIC LIBRARY","Buildings/Ground Staff",1,"Security Guard",{"v":13.25,"d":"$13.25"},"Y",{"v":8480,"d":"$8,480"},16,"No"]
["26","PORTSMOUTH","POR","PORTSMOUTH FREE PUBLIC LIBRARY","Buildings/Ground Staff",1,"Custodian",{"v":13.7,"d":"$13.70"}," N",null,35,"No"]
["27","PROVIDENCE","PCL","PROVIDENCE COMMUNITY LIBRARY","Buildings/Ground Staff",2,"Maintenance Worker",{"$f":"IF(J98>0,(J98/(K98*52)),\"  \")","v":{"v":27.10528846153846,"d":"$27.11"}},"Y",{"v":56379,"d":"$56,379"},40,"No"]
["27","PROVIDENCE","PCL","PROVIDENCE COMMUNITY LIBRARY","Buildings/Ground Staff",1,"Head Custodian",{"v":20.139903846153846,"d":"$20.14"},"Y",{"v":41891,"d":"$41,891"},40,"No"]
["27","PROVIDENCE","PCL","PROVIDENCE COMMUNITY LIBRARY","Buildings/Ground Staff",2,"Custodian",{"v":15.95,"d":"$15.95"},"Y",{"v":33176,"d":"$33,176"},40,"No"]
["27","PROVIDENCE","PRO","PROVIDENCE PUBLIC LIBRARY","Buildings/Ground Staff",2,"Maintenance Staff",{"v":27.110096153846154,"d":"$27.11"},"Y",{"v":56389,"d":"$56,389"},40,"No"]
["27","PROVIDENCE","PRO","PROVIDENCE PUBLIC LIBRARY","Buildings/Ground Staff",1,"Security Supervisor",{"v":20.36,"d":"$20.36"},"Y",{"v":39702,"d":"$39,702"},37.5,"No"]
["27","PROVIDENCE","PRO","PROVIDENCE PUBLIC LIBRARY","Buildings/Ground Staff",2,"Maintenance Asst.",{"v":27.111538461538462,"d":"$27.11"},"Y",{"v":7049,"d":"$7,049"},5,"No"]
["2","BRISTOL","BRI","ROGERS FREE LIBRARY","Buildings/Ground Staff",1,"Custodian",{"v":17.224725274725273,"d":"$17.22"},"Y",{"v":31349,"d":"$31,349"},35,"No"]
["31","SOUTH KINGSTOWN","SKI","SOUTH KINGSTOWN PUBLIC LIBRARY","Buildings/Ground Staff",1,"Facilitie Manager",{"v":21.08173076923077,"d":"$21.08"},"Y",{"v":43850,"d":"$43,850"},40,"No"]
["31","SOUTH KINGSTOWN","SKI","SOUTH KINGSTOWN PUBLIC LIBRARY","Buildings/Ground Staff",1,"Custodian",{"v":16,"d":"$16.00"}," N",null,12,"No"]
["31","SOUTH KINGSTOWN","SKI","SOUTH KINGSTOWN PUBLIC LIBRARY","Buildings/Ground Staff",1,"Custodian",{"v":16.41,"d":"$16.41"}," N",null,2,"No"]
["34","WARWICK","WAR","WARWICK PUBLIC LIBRARY","Buildings/Ground Staff",2,"Maintenance",{"$f":"IF(J108>0,(J108/(K108*52)),\"  \")","v":{"v":17.53125,"d":"$17.53"}},"Y",{"v":36465,"d":"$36,465"},40,"No"]
["34","WARWICK","WAR","WARWICK PUBLIC LIBRARY","Buildings/Ground Staff",1,"Maintenance",{"$f":"IF(J109>0,(J109/(K109*52)),\"  \")","v":{"v":22.970192307692308,"d":"$22.97"}},"Y",{"v":47778,"d":"$47,778"},40,"No"]
["36","WEST WARWICK","WWA","WEST WARWICK PUBLIC LIBRARY","Buildings/Ground Staff",1,"Custodian",{"v":15.76,"d":"$15.76"}," N",null,35,"No"]
["37","WESTERLY","WES","WESTERLY PUBLIC LIBRARY","Buildings/Ground Staff",1,"Park Superintendent",{"$f":"IF(J111>0,(J111/(K111*52)),\"  \")","v":{"v":39.74945054945055,"d":"$39.75"}},"Y",{"v":72344,"d":"$72,344"},35,"No"]
["37","WESTERLY","WES","WESTERLY PUBLIC LIBRARY","Buildings/Ground Staff",1,"Facilities Manager",{"v":33.47967032967033,"d":"$33.48"},"Y",{"v":60933,"d":"$60,933"},35,"No"]
["37","WESTERLY","WES","WESTERLY PUBLIC LIBRARY","Buildings/Ground Staff",2,"Groundskeepers",{"v":13.74532967032967,"d":"$13.75"},"Y",{"v":50033,"d":"$50,033"},70,"No"]
["37","WESTERLY","WES","WESTERLY PUBLIC LIBRARY","Buildings/Ground Staff",1,"Security Officer",{"v":18.25801282051282,"d":"$18.26"},"Y",{"v":22786,"d":"$22,786"},24,"No"]
["38","WOONSOCKET","WNS","WOONSOCKET HARRIS PUBLIC LIBRARY","Buildings/Ground Staff",1,"Janitor/Security",{"v":14.377403846153847,"d":"$14.38"},"Y",{"v":29905,"d":"$29,905"},40,"No"]
["1","BARRINGTON","BAR","BARRINGTON PUBLIC LIBRARY","Childrens and/or Young Adult Services Librarian",1,"YA librarian",{"v":28.296703296703296,"d":"$28.30"},"Y",{"v":51500,"d":"$51,500"},35,"Yes"]
["17","LITTLE COMPTON","LCO","BROWNELL LIBRARY, HOME OF LITTLE COMPTON","Childrens and/or Young Adult Services Librarian",1,"Youth Services Librarian",{"v":19,"d":"$19.00"}," N",null,35,"Yes"]
["6","COVENTRY","COV","COVENTRY PUBLIC LIBRARY","Childrens and/or Young Adult Services Librarian",2,"Part-time Youth Services Librarians",{"v":19.52,"d":"$19.52"}," N",null,20,"Yes"]
["7","CRANSTON","CRA","CRANSTON PUBLIC LIBRARY","Childrens and/or Young Adult Services Librarian",1,"Head of Teen Services",{"$f":"IF(J119>0,(J119/(K119*52)),\"  \")","v":{"v":36.034065934065936,"d":"$36.03"}},"Y",{"v":65582,"d":"$65,582"},35,"Yes"]
["7","CRANSTON","CRA","CRANSTON PUBLIC LIBRARY","Childrens and/or Young Adult Services Librarian",2,"Youth Services Librarian",{"$f":"IF(J120>0,(J120/(K120*52)),\"  \")","v":{"v":30.61978021978022,"d":"$30.62"}},"Y",{"v":55728,"d":"$55,728"},35,"Yes"]
["7","CRANSTON","CRA","CRANSTON PUBLIC LIBRARY","Childrens and/or Young Adult Services Librarian",2,"Youth Services Librarian",{"$f":"IF(J121>0,(J121/(K121*52)),\"  \")","v":{"v":23.72747252747253,"d":"$23.73"}},"Y",{"v":43184,"d":"$43,184"},35,"Yes"]
["7","CRANSTON","CRA","CRANSTON PUBLIC LIBRARY","Childrens and/or Young Adult Services Librarian",1,"Librarian",{"v":16.5,"d":"$16.50"}," N",null,3.5,"Yes"]
["7","CRANSTON","CRA","CRANSTON PUBLIC LIBRARY","Childrens and/or Young Adult Services Librarian",1,"Librarian",{"v":16.5,"d":"$16.50"}," N",null,20,"Yes"]
["8","CUMBERLAND","CUM","CUMBERLAND PUBLIC LIBRARY","Childrens and/or Young Adult Services Librarian",1,"Young Adult Reference Librarian",{"$f":"IF(J124>0,(J124/(K124*52)),\"  \")","v":{"v":27.26978021978022,"d":"$27.27"}},"Y",{"v":49631,"d":"$49,631"},35,"Yes"]
["8","CUMBERLAND","CUM","CUMBERLAND PUBLIC LIBRARY","Childrens and/or Young Adult Services Librarian",1,"Part-time Children\\'s Librarian",{"v":24.73,"d":"$24.73"}," N",null,12.5,"Yes"]
["9","EAST GREENWICH","EGR","EAST GREENWICH FREE LIBRARY","Childrens and/or Young Adult Services Librarian",1,"childrens librarian",{"v":21.5,"d":"$21.50"}," N",null,16,"Yes"]
["9","EAST GREENWICH","EGR","EAST GREENWICH FREE LIBRARY","Childrens and/or Young Adult Services Librarian",1,"children\\'s librarian",{"v":18.07,"d":"$18.07"}," N",null,10,"No"]
["10","EAST PROVIDENCE","EPL","EAST PROVIDENCE PUBLIC LIBRARY","Childrens and/or Young Adult Services Librarian",1,"Children\\'s Librarian",{"$f":"IF(J128>0,(J128/(K128*52)),\"  \")","v":{"v":31.0478021978022,"d":"$31.05"}},"Y",{"v":56507,"d":"$56,507"},35,"Yes"]
["10","EAST PROVIDENCE","EPL","EAST PROVIDENCE PUBLIC LIBRARY","Childrens and/or Young Adult Services Librarian",1,"Teen Librarian",{"$f":"IF(J129>0,(J129/(K129*52)),\"  \")","v":{"v":31.0478021978022,"d":"$31.05"}},"Y",{"v":56507,"d":"$56,507"},35,"Yes"]
["30","SMITHFIELD","ESM","EAST SMITHFIELD PUBLIC LIBRARY","Childrens and/or Young Adult Services Librarian",1,"Children\\'s/Young Adult Services Librarian",{"v":19.01,"d":"$19.01"},"N",{"v":28667,"d":"$28,667"},29,"No"]
["30","SMITHFIELD","ESM","EAST SMITHFIELD PUBLIC LIBRARY","Childrens and/or Young Adult Services Librarian",1,"Children\\'s/Young Adult Services Librarian",{"v":17.27,"d":"$17.27"},"N",{"v":13471,"d":"$13,471"},15,"Yes"]
["32","TIVERTON","TIV","ESSEX PUBLIC LIBRARY","Childrens and/or Young Adult Services Librarian",1,"Youth Services Librarian",{"v":25.25,"d":"$25.25"},{"$f":"IF(J132>0,\"Y\",\" N\")","v":" N"},null,35,"Yes"]
["32","TIVERTON","TIV","ESSEX PUBLIC LIBRARY","Childrens and/or Young Adult Services Librarian",1,"Children\\'s Services Librarian",{"v":25.25,"d":"$25.25"}," N",null,35,"No"]
[10.5,"EXETER","EXE","EXETER PUBLIC LIBRARY","Childrens and/or Young Adult Services Librarian",1,"Youth Services / Assistant Director",{"v":22.6,"d":"$22.60"}," N",null,25,"No"]
["33","WARREN","WRR","GEORGE HAIL FREE LIBRARY","Childrens and/or Young Adult Services Librarian",1,"Children\\'s Librarian",{"$f":"IF(J135>0,(J135/(K135*52)),\"  \")","v":{"v":21.864372469635626,"d":"$21.86"}},"Y",{"v":43204,"d":"$43,204"},38,"No"]
["12","GLOCESTER","GLO","GLOCESTER MANTON FREE PUBLIC LIBRARY","Childrens and/or Young Adult Services Librarian",1,"Children\\'s Assistant",{"v":15.35,"d":"$15.35"}," N",null,30,"No"]
["30","SMITHFIELD","GVL","GREENVILLE PUBLIC LIBRARY","Childrens and/or Young Adult Services Librarian",1,"Children\\'s",{"$f":"IF(J137>0,(J137/(K137*52)),\"  \")","v":{"v":28.3,"d":"$28.30"}},"Y",{"v":51506,"d":"$51,506"},35,"Yes"]
["30","SMITHFIELD","GVL","GREENVILLE PUBLIC LIBRARY","Childrens and/or Young Adult Services Librarian",1,"Young Adult ",{"$f":"IF(J138>0,(J138/(K138*52)),\"  \")","v":{"v":24.35989010989011,"d":"$24.36"}},"Y",{"v":44335,"d":"$44,335"},35,"Yes"]
["30","SMITHFIELD","GVL","GREENVILLE PUBLIC LIBRARY","Childrens and/or Young Adult Services Librarian",1,"Children\\'s Librarian Assistant",{"$f":"IF(J139>0,(J139/(K139*52)),\"  \")","v":{"v":19.943019943019944,"d":"$19.94"}},"Y",{"v":28000,"d":"$28,000"},27,"Yes"]
["30","SMITHFIELD","GVL","GREENVILLE PUBLIC LIBRARY","Childrens and/or Young Adult Services Librarian",1,"Children\\'s Reference Librarian",{"$f":"IF(J140>0,(J140/(K140*52)),\"  \")","v":{"v":20.8,"d":"$20.80"}},"Y",{"v":16224,"d":"$16,224"},15,"Yes"]
["12","GLOCESTER","HAR","HARMONY LIBRARY","Childrens and/or Young Adult Services Librarian",1,"Glocester Childrens Services Coordinator",{"$f":"IF(J141>0,(J141/(K141*52)),\"  \")","v":{"v":23.14065934065934,"d":"$23.14"}},"Y",{"v":42116,"d":"$42,116"},35,"Yes"]
["29","SCITUATE","HPE","HOPE LIBRARY","Childrens and/or Young Adult Services Librarian",1,"Children\\'s Librarian",{"v":22,"d":"$22.00"}," N",null,35,"Yes"]
["29","SCITUATE","HPE","HOPE LIBRARY","Childrens and/or Young Adult Services Librarian",1,"Young Adult Librarian",{"v":17.5,"d":"$17.50"}," N",null,24,"No"]
["29","SCITUATE","HPE","HOPE LIBRARY","Childrens and/or Young Adult Services Librarian",1,"Children\\'s Librarian",{"v":16.8,"d":"$16.80"}," N",null,6.5,"Yes"]
["20","NEW SHOREHAM","NSH","ISLAND FREE LIBRARY","Childrens and/or Young Adult Services Librarian",1,"Childrens Services",{"v":13.35,"d":"$13.35"}," N",null,38,"No"]
["14","JAMESTOWN","JAM","JAMESTOWN PHILOMENIAN LIBRARY","Childrens and/or Young Adult Services Librarian",1,"Children\\'s Librarian ",{"v":21.18,"d":"$21.18"}," N",null,40,"Yes"]
["3","BURRILLVILLE","BUR","JESSE M. SMITH MEMORIAL LIBRARY","Childrens and/or Young Adult Services Librarian",1,"Head Children\\'s Librarian",{"v":22.52,"d":"$22.52"}," N",null,35,"Yes"]
["3","BURRILLVILLE","BUR","JESSE M. SMITH MEMORIAL LIBRARY","Childrens and/or Young Adult Services Librarian",1,"Children\\'s Librarian",{"v":19.42,"d":"$19.42"}," N",null,19,"Yes"]
["11","FOSTER","FOS","LIBRARIES OF FOSTER","Childrens and/or Young Adult Services Librarian",1,"Youth Services Librarian",{"v":15,"d":"$15.00"}," N",null,36,"No"]
["16","LINCOLN","LIN","LINCOLN PUBLIC LIBRARY","Childrens and/or Young Adult Services Librarian",1,"Children\\'s Librarian",{"v":26.01,"d":"$26.01"}," N",null,35,"Yes"]
["16","LINCOLN","LIN","LINCOLN PUBLIC LIBRARY","Childrens and/or Young Adult Services Librarian",1,"Reference LibrarianChildren\\'s Librarian",{"v":17.81,"d":"$17.81"}," N",null,16,"Yes"]
["16","LINCOLN","LIN","LINCOLN PUBLIC LIBRARY","Childrens and/or Young Adult Services Librarian",1,"Reference LibrarianChildren\\'s Librarian",{"v":18.79,"d":"$18.79"}," N",null,12,"Yes"]
["35","WEST GREENWICH","WGR","LOUTTIT MEMORIAL LIBRARY","Childrens and/or Young Adult Services Librarian",1,"Children\\'s Librarian",{"v":21.22,"d":"$21.22"}," N",null,19,"Yes"]
["15","JOHNSTON","JOH","MARIAN J. MOHR MEMORIAL LIBRARY","Childrens and/or Young Adult Services Librarian",1,"Children\\'s Librarian",{"$f":"IF(J154>0,(J154/(K154*52)),\"  \")","v":{"v":21.978021978021978,"d":"$21.98"}},"Y",{"v":40000,"d":"$40,000"},35,"Yes"]
["15","JOHNSTON","JOH","MARIAN J. MOHR MEMORIAL LIBRARY","Childrens and/or Young Adult Services Librarian",1,"Young Adult Librarian",{"v":18,"d":"$18.00"}," N",null,19,"Yes"]
["19","NARRAGANSETT","NAR","MAURY LOONTJENS MEMORIAL LIBRARY (NARRAGANSETT)","Childrens and/or Young Adult Services Librarian",1,"Children\\'s Librarian",{"$f":"IF(J156>0,(J156/(K156*52)),\"  \")","v":{"v":24.52019230769231,"d":"$24.52"}},"Y",{"v":51002,"d":"$51,002"},40,"Yes"]
["21","NEWPORT","NPT","NEWPORT PUBLIC LIBRARY","Childrens and/or Young Adult Services Librarian",1,"Children\\'s Librarian",{"$f":"IF(J157>0,(J157/(K157*52)),\"  \")","v":{"v":25.123626373626372,"d":"$25.12"}},"Y",{"v":45725,"d":"$45,725"},35,"Yes"]
["21","NEWPORT","NPT","NEWPORT PUBLIC LIBRARY","Childrens and/or Young Adult Services Librarian",1,"Young Adult Librarian",{"v":24.33,"d":"$24.33"},{"$f":"IF(J158>0,\"Y\",\" N\")","v":" N"},null,18,"Yes"]
["21","NEWPORT","NPT","NEWPORT PUBLIC LIBRARY","Childrens and/or Young Adult Services Librarian",1,"Children\\'s Librarian Part Time",{"v":24.33,"d":"$24.33"},{"$f":"IF(J159>0,\"Y\",\" N\")","v":" N"},null,18,"Yes"]
["21","NEWPORT","NPT","NEWPORT PUBLIC LIBRARY","Childrens and/or Young Adult Services Librarian",1,"Young Adult Librarian",{"v":24.33,"d":"$24.33"},{"$f":"IF(J160>0,\"Y\",\" N\")","v":" N"},null,20,"Yes"]
["22","NORTH KINGSTOWN","NKI","NORTH KINGSTOWN FREE LIBRARY","Childrens and/or Young Adult Services Librarian",1,"Young Adult/Assistant Children\\'s Librarian",{"$f":"IF(J161>0,(J161/(K161*52)),\"  \")","v":{"v":21.383516483516484,"d":"$21.38"}},"Y",{"v":38918,"d":"$38,918"},35,"Yes"]
["23","NORTH PROVIDENCE","NPR","NORTH PROVIDENCE UNION FREE","Childrens and/or Young Adult Services Librarian",1,"Children\\'s Program Assistant",{"v":14.82,"d":"$14.82"},{"$f":"IF(J162>0,\"Y\",\" N\")","v":" N"},null,19,"Yes"]
["29","SCITUATE","SCI","NORTH SCITUATE PUBLIC LIBRARY","Childrens and/or Young Adult Services Librarian",1,"Youth Services Librarian",{"v":25,"d":"$25.00"}," N",null,23,"Yes"]
["24","NORTH SMITHFIELD","NSM","NORTH SMITHFIELD PUBLIC LIBRARY","Childrens and/or Young Adult Services Librarian",1,"YOUTH SERVICES",{"$f":"IF(J164>0,(J164/(K164*52)),\"  \")","v":{"v":24.40989010989011,"d":"$24.41"}},"Y",{"v":44426,"d":"$44,426"},35,"Yes"]
["25","PAWTUCKET","PAW","PAWTUCKET PUBLIC LIBRARY","Childrens and/or Young Adult Services Librarian",1,"Children\\'s Librarian",{"v":28.05,"d":"$28.05"},"Y",{"v":51060,"d":"$51,060"},35,"Yes"]
["25","PAWTUCKET","PAW","PAWTUCKET PUBLIC LIBRARY","Childrens and/or Young Adult Services Librarian",1,"Children\\'s Librarian",{"v":28.05,"d":"$28.05"},"Y",{"v":27718,"d":"$27,718"},19,"Yes"]
["25","PAWTUCKET","PAW","PAWTUCKET PUBLIC LIBRARY","Childrens and/or Young Adult Services Librarian",1,"Teen Librarian",{"v":28.05,"d":"$28.05"},"Y",{"v":51060,"d":"$51,060"},35,"Yes"]
["26","PORTSMOUTH","POR","PORTSMOUTH FREE PUBLIC LIBRARY","Childrens and/or Young Adult Services Librarian",1,"Children\\'s Librarian",{"$f":"IF(J168>0,(J168/(K168*52)),\"  \")","v":{"v":24.695604395604395,"d":"$24.70"}},"Y",{"v":44946,"d":"$44,946"},35,"Yes"]
["27","PROVIDENCE","PCL","PROVIDENCE COMMUNITY LIBRARY","Childrens and/or Young Adult Services Librarian",3,"Children\\'s Librarian",{"v":23.326666666666668,"d":"$23.33"},"Y",{"v":45487,"d":"$45,487"},37.5,"Yes"]
["27","PROVIDENCE","PRO","PROVIDENCE PUBLIC LIBRARY","Childrens and/or Young Adult Services Librarian",1,"Early Childhood Specialist",{"v":29.61025641025641,"d":"$29.61"},"Y",{"v":57740,"d":"$57,740"},37.5,"No"]
["2","BRISTOL","BRI","ROGERS FREE LIBRARY","Childrens and/or Young Adult Services Librarian",1,"Youth services librarian",{"v":23.076923076923077,"d":"$23.08"},"Y",{"v":42000,"d":"$42,000"},35,"Yes"]
["31","SOUTH KINGSTOWN","SKI","SOUTH KINGSTOWN PUBLIC LIBRARY","Childrens and/or Young Adult Services Librarian",3,"Youth Services Librarian",{"v":25.360989010989012,"d":"$25.36"},"Y",{"v":46157,"d":"$46,157"},35,"Yes"]
["34","WARWICK","WAR","WARWICK PUBLIC LIBRARY","Childrens and/or Young Adult Services Librarian",1,"childrens",{"v":27.336410256410257,"d":"$27.34"},"Y",{"v":53306,"d":"$53,306"},37.5,"Yes"]
["36","WEST WARWICK","WWA","WEST WARWICK PUBLIC LIBRARY","Childrens and/or Young Adult Services Librarian",1,"Young Adult Services Librarian",{"v":17.445604395604395,"d":"$17.45"},"Y",{"v":31751,"d":"$31,751"},35,"Yes"]
["37","WESTERLY","WES","WESTERLY PUBLIC LIBRARY","Childrens and/or Young Adult Services Librarian",1,"Children\\'s Librarian",{"v":25.79945054945055,"d":"$25.80"},"Y",{"v":46955,"d":"$46,955"},35,"Yes"]
["37","WESTERLY","WES","WESTERLY PUBLIC LIBRARY","Childrens and/or Young Adult Services Librarian",1,"YA Librarian",{"v":17.127472527472527,"d":"$17.13"},"Y",{"v":31172,"d":"$31,172"},35,"Yes"]
["38","WOONSOCKET","WNS","WOONSOCKET HARRIS PUBLIC LIBRARY","Childrens and/or Young Adult Services Librarian",1,"Youth/Adolescent Services Librarian",{"v":22.0510989010989,"d":"$22.05"},"Y",{"v":40133,"d":"$40,133"},35,"Yes"]
["38","WOONSOCKET","WNS","WOONSOCKET HARRIS PUBLIC LIBRARY","Childrens and/or Young Adult Services Librarian",1,"Assistant Children\\'s Librarian",{"v":14.075274725274726,"d":"$14.08"},"Y",{"v":25617,"d":"$25,617"},35,"No"]
["1","BARRINGTON","BAR","BARRINGTON PUBLIC LIBRARY","Deputy/Associate/Assistant Director",1,"assistant director/head of children\\'s dept",{"v":38.02527472527473,"d":"$38.03"},"Y",{"v":69206,"d":"$69,206"},35,"Yes"]
["28","RICHMOND","CLA","CLARK MEMORIAL LIBRARY","Deputy/Associate/Assistant Director",1,"assistant director",{"v":19.21,"d":"$19.21"}," N",null,14,"No"]
["6","COVENTRY","COV","COVENTRY PUBLIC LIBRARY","Deputy/Associate/Assistant Director",1,"Assistant Director",{"$f":"IF(J181>0,(J181/(K181*52)),\"  \")","v":{"v":32.283516483516486,"d":"$32.28"}},"Y",{"v":58756,"d":"$58,756"},35,"Yes"]
["7","CRANSTON","CRA","CRANSTON PUBLIC LIBRARY","Deputy/Associate/Assistant Director",1,"Assistant Library Director",{"$f":"IF(J182>0,(J182/(K182*52)),\"  \")","v":{"v":37.91208791208791,"d":"$37.91"}},"Y",{"v":69000,"d":"$69,000"},35,"Yes"]
["5","CHARLESTOWN","CHA","CROSS' MILLS PUBLIC LIBRARY","Deputy/Associate/Assistant Director",1,"Assistant Director",{"$f":"IF(J183>0,(J183/(K183*52)),\"  \")","v":{"v":22.978021978021978,"d":"$22.98"}},"Y",{"v":41820,"d":"$41,820"},35,"Yes"]
["8","CUMBERLAND","CUM","CUMBERLAND PUBLIC LIBRARY","Deputy/Associate/Assistant Director",1,"Assistant Director/Technology Coordinator",{"$f":"IF(J184>0,(J184/(K184*52)),\"  \")","v":{"v":33.32857142857143,"d":"$33.33"}},"Y",{"v":60658,"d":"$60,658"},35,"Yes"]
["22","NORTH KINGSTOWN","DPL","DAVISVILLE FREE LIBRARY","Deputy/Associate/Assistant Director",1,"Asst. Director",{"v":14,"d":"$14.00"}," N",null,18,"Yes"]
["30","SMITHFIELD","ESM","EAST SMITHFIELD PUBLIC LIBRARY","Deputy/Associate/Assistant Director",1,"Assistant Director",{"v":36.64,"d":"$36.64"},"N",{"v":70495,"d":"$70,495"},37,"Yes"]
["30","SMITHFIELD","GVL","GREENVILLE PUBLIC LIBRARY","Deputy/Associate/Assistant Director",1,"Assistant Director",{"$f":"IF(J187>0,(J187/(K187*52)),\"  \")","v":{"v":33.95,"d":"$33.95"}},{"$f":"IF(J187>0,\"Y\",\" N\")","v":"Y"},{"v":61789,"d":"$61,789"},35,"Yes"]
["3","BURRILLVILLE","BUR","JESSE M. SMITH MEMORIAL LIBRARY","Deputy/Associate/Assistant Director",1,"Assistant Director",{"v":26.43,"d":"$26.43"}," N",null,35,"Yes"]
["13","HOPKINTON","LAN","LANGWORTHY PUBLIC LIBRARY","Deputy/Associate/Assistant Director",1,"Assistant Director",{"v":19,"d":"$19.00"}," N",null,12,"Yes"]
["16","LINCOLN","LIN","LINCOLN PUBLIC LIBRARY","Deputy/Associate/Assistant Director",1,"Assistant Director",{"$f":"IF(J190>0,(J190/(K190*52)),\"  \")","v":{"v":27.934065934065934,"d":"$27.93"}},"Y",{"v":50840,"d":"$50,840"},35,"Yes"]
["15","JOHNSTON","JOH","MARIAN J. MOHR MEMORIAL LIBRARY","Deputy/Associate/Assistant Director",1,"Associate Director",{"v":24.725274725274726,"d":"$24.73"},"Y",{"v":45000,"d":"$45,000"},35,"Yes"]
["19","NARRAGANSETT","NAR","MAURY LOONTJENS MEMORIAL LIBRARY (NARRAGANSETT)","Deputy/Associate/Assistant Director",1,"Childen\\'s Assistant",{"v":16.6,"d":"$16.60"},"Y",{"v":30212,"d":"$30,212"},35,"No"]
["19","NARRAGANSETT","NAR","MAURY LOONTJENS MEMORIAL LIBRARY (NARRAGANSETT)","Deputy/Associate/Assistant Director",1,"Adult Services",{"v":25.55,"d":"$25.55"},"Y",{"v":53144,"d":"$53,144"},40,"Yes"]
["21","NEWPORT","NPT","NEWPORT PUBLIC LIBRARY","Deputy/Associate/Assistant Director",1,"Assistant Director/Head of Collection Management",{"v":37.33021978021978,"d":"$37.33"},"Y",{"v":67941,"d":"$67,941"},35,"Yes"]
["22","NORTH KINGSTOWN","NKI","NORTH KINGSTOWN FREE LIBRARY","Deputy/Associate/Assistant Director",1,"Deputy Director",{"v":40.176373626373625,"d":"$40.18"},"Y",{"v":73121,"d":"$73,121"},35,"Yes"]
["22","NORTH KINGSTOWN","NKI","NORTH KINGSTOWN FREE LIBRARY","Deputy/Associate/Assistant Director",1,"Fiction & Readers\\' Advisor Coordinator",{"v":26.588461538461537,"d":"$26.59"},"Y",{"v":48391,"d":"$48,391"},35,"Yes"]
["23","NORTH PROVIDENCE","NPR","NORTH PROVIDENCE UNION FREE","Deputy/Associate/Assistant Director",1,"Information Technology",{"v":22.636813186813185,"d":"$22.64"},{"$f":"IF(J197>0,\"Y\",\" N\")","v":"Y"},{"v":41199,"d":"$41,199"},35,"No"]
["3","PASCOAG","PAS","PASCOAG FREE PUBLIC LIBRARY","Deputy/Associate/Assistant Director",1,"Library Manager",{"v":15.06,"d":"$15.06"},"N",{"v":20361,"d":"$20,361"},26,"No"]
["25","PAWTUCKET","PAW","PAWTUCKET PUBLIC LIBRARY","Deputy/Associate/Assistant Director",1,"Assistant Director",{"v":35.68,"d":"$35.68"},{"$f":"IF(J199>0,\"Y\",\" N\")","v":"Y"},{"v":64938,"d":"$64,938"},35,"Yes"]
["27","PROVIDENCE","PRO","PROVIDENCE PUBLIC LIBRARY","Deputy/Associate/Assistant Director",1,"Assistant Director",{"$f":"IF(J200>0,(J200/(K200*52)),\"  \")","v":{"v":46.9,"d":"$46.90"}},"Y",{"v":91455,"d":"$91,455"},37.5,"Yes"]
["2","BRISTOL","BRI","ROGERS FREE LIBRARY","Deputy/Associate/Assistant Director",1,"Asst. Director",{"$f":"IF(J201>0,(J201/(K201*52)),\"  \")","v":{"v":24.175824175824175,"d":"$24.18"}},"Y",{"v":44000,"d":"$44,000"},35,"No"]
["34","WARWICK","WAR","WARWICK PUBLIC LIBRARY","Deputy/Associate/Assistant Director",1,"deputy director",{"$f":"IF(J202>0,(J202/(K202*52)),\"  \")","v":{"v":44.103589743589744,"d":"$44.10"}},"Y",{"v":86002,"d":"$86,002"},37.5,"Yes"]
["38","WOONSOCKET","WNS","WOONSOCKET HARRIS PUBLIC LIBRARY","Deputy/Associate/Assistant Director",1,"Assistant Library Director/Technology Services Coordinator",{"$f":"IF(J203>0,(J203/(K203*52)),\"  \")","v":{"v":28.074175824175825,"d":"$28.07"}},"Y",{"v":51095,"d":"$51,095"},35,"Yes"]
["13","HOPKINTON","ASH","ASHAWAY FREE LIBRARY","Director",1,"Head Librarian",{"v":24.41,"d":"$24.41"}," N",null,30,"Yes"]
["1","BARRINGTON","BAR","BARRINGTON PUBLIC LIBRARY","Director",1,"Library Director",{"$f":"IF(J205>0,(J205/(K205*52)),\"  \")","v":{"v":47.78901098901099,"d":"$47.79"}},"Y",{"v":86976,"d":"$86,976"},35,"Yes"]
["17","LITTLE COMPTON","LCO","BROWNELL LIBRARY, HOME OF LITTLE COMPTON","Director",1,"Director",{"v":24.91,"d":"$24.91"}," N",null,35,"No"]
["4","CENTRAL FALLS","CFA","CENTRAL FALLS FREE PUBLIC LIBRARY","Director",1,"Acting Director",{"$f":"IF(J207>0,(J207/(K207*52)),\"  \")","v":{"v":24.03846153846154,"d":"$24.04"}},"Y",{"v":50000,"d":"$50,000"},40,"Yes"]
["28","RICHMOND","CLA","CLARK MEMORIAL LIBRARY","Director",1,"director",{"v":25.61,"d":"$25.61"},"Y",{"v":33293,"d":"$33,293"},25,"Yes"]
["6","COVENTRY","COV","COVENTRY PUBLIC LIBRARY","Director",1,"Library Director",{"v":39.533516483516486,"d":"$39.53"},"Y",{"v":71951,"d":"$71,951"},35,"Yes"]
["7","CRANSTON","CRA","CRANSTON PUBLIC LIBRARY","Director",1,"Library Director",{"v":49.395604395604394,"d":"$49.40"},"Y",{"v":89900,"d":"$89,900"},35,"Yes"]
["5","CHARLESTOWN","CHA","CROSS' MILLS PUBLIC LIBRARY","Director",1,"Director",{"v":31.878846153846155,"d":"$31.88"},"Y",{"v":66308,"d":"$66,308"},40,"Yes"]
["8","CUMBERLAND","CUM","CUMBERLAND PUBLIC LIBRARY","Director",1,"Library Director",{"v":41.98186813186813,"d":"$41.98"},"Y",{"v":76407,"d":"$76,407"},35,"Yes"]
["22","NORTH KINGSTOWN","DPL","DAVISVILLE FREE LIBRARY","Director",1,"Director",{"v":28.28,"d":"$28.28"}," N",null,17,"Yes"]
["9","EAST GREENWICH","EGR","EAST GREENWICH FREE LIBRARY","Director",1,"Director",{"v":41.43,"d":"$41.43"}," N",null,35,"Yes"]
["10","EAST PROVIDENCE","EPL","EAST PROVIDENCE PUBLIC LIBRARY","Director",1,"Director of Library Services",{"$f":"IF(J215>0,(J215/(K215*52)),\"  \")","v":{"v":46.24010989010989,"d":"$46.24"}},"Y",{"v":84157,"d":"$84,157"},35,"Yes"]
["30","SMITHFIELD","ESM","EAST SMITHFIELD PUBLIC LIBRARY","Director",1,"Director",{"v":46.82,"d":"$46.82"},"N",{"v":55997,"d":"$55,997"},23,"No"]
["32","TIVERTON","TIV","ESSEX PUBLIC LIBRARY","Director",1,"Library Director",{"$f":"IF(J217>0,(J217/(K217*52)),\"  \")","v":{"v":36.15,"d":"$36.15"}},{"$f":"IF(J217>0,\"Y\",\" N\")","v":"Y"},{"v":65793,"d":"$65,793"},35,"Yes"]
[10.5,"EXETER","EXE","EXETER PUBLIC LIBRARY","Director",1,"Library Director",{"$f":"IF(J218>0,(J218/(K218*52)),\"  \")","v":{"v":32.44835164835165,"d":"$32.45"}},"Y",{"v":59056,"d":"$59,056"},35,"Yes"]
["33","WARREN","WRR","GEORGE HAIL FREE LIBRARY","Director",1,"Library Director",{"$f":"IF(J219>0,(J219/(K219*52)),\"  \")","v":{"v":30.618927125506072,"d":"$30.62"}},"Y",{"v":60503,"d":"$60,503"},38,"Yes"]
["12","GLOCESTER","GLO","GLOCESTER MANTON FREE PUBLIC LIBRARY","Director",1,"Director, Adult Services",{"$f":"IF(J220>0,(J220/(K220*52)),\"  \")","v":{"v":23.7125,"d":"$23.71"}},"Y",{"v":49322,"d":"$49,322"},40,"Yes"]
["30","SMITHFIELD","GVL","GREENVILLE PUBLIC LIBRARY","Director",1,"Director",{"$f":"IF(J221>0,(J221/(K221*52)),\"  \")","v":{"v":42.75,"d":"$42.75"}},"Y",{"v":84474,"d":"$84,474"},38,"Yes"]
["29","SCITUATE","HPE","HOPE LIBRARY","Director",1,"Director",{"v":31,"d":"$31.00"}," N",null,35,"Yes"]
["20","NEW SHOREHAM","NSH","ISLAND FREE LIBRARY","Director",1,"Director",{"$f":"IF(J223>0,(J223/(K223*52)),\"  \")","v":{"v":28.753846153846155,"d":"$28.75"}},"Y",{"v":59808,"d":"$59,808"},40,"Yes"]
["14","JAMESTOWN","JAM","JAMESTOWN PHILOMENIAN LIBRARY","Director",1,"Director",{"$f":"IF(J224>0,(J224/(K224*52)),\"  \")","v":{"v":33.61586538461538,"d":"$33.62"}},"Y",{"v":69921,"d":"$69,921"},40,"Yes"]
["3","BURRILLVILLE","BUR","JESSE M. SMITH MEMORIAL LIBRARY","Director",1,"Director",{"v":31.87,"d":"$31.87"}," N",null,35,"Yes"]
["13","HOPKINTON","LAN","LANGWORTHY PUBLIC LIBRARY","Director",1,"Director",{"v":22,"d":"$22.00"}," N",null,20,"Yes"]
["11","FOSTER","FOS","LIBRARIES OF FOSTER","Director",1,"Director",{"$f":"IF(J227>0,(J227/(K227*52)),\"  \")","v":{"v":22.185576923076923,"d":"$22.19"}},"Y",{"v":46146,"d":"$46,146"},40,"Yes"]
["16","LINCOLN","LIN","LINCOLN PUBLIC LIBRARY","Director",1,"Director",{"$f":"IF(J228>0,(J228/(K228*52)),\"  \")","v":{"v":34.37802197802198,"d":"$34.38"}},"Y",{"v":62568,"d":"$62,568"},35,"Yes"]
["35","WEST GREENWICH","WGR","LOUTTIT MEMORIAL LIBRARY","Director",1,"Director",{"v":26.52,"d":"$26.52"}," N",null,27,"Yes"]
["15","JOHNSTON","JOH","MARIAN J. MOHR MEMORIAL LIBRARY","Director",1,"Library Director",{"$f":"IF(J230>0,(J230/(K230*52)),\"  \")","v":{"v":30.76923076923077,"d":"$30.77"}},"Y",{"v":56000,"d":"$56,000"},35,"Yes"]
["19","NARRAGANSETT","NAR","MAURY LOONTJENS MEMORIAL LIBRARY (NARRAGANSETT)","Director",1,"Library Director",{"$f":"IF(J231>0,(J231/(K231*52)),\"  \")","v":{"v":37.760096153846156,"d":"$37.76"}},"Y",{"v":78541,"d":"$78,541"},40,"Yes"]
["18","MIDDLETOWN","MID","MIDDLETOWN PUBLIC LIBRARY","Director",1,"Library Director",{"v":35.45,"d":"$35.45"}," N",null,35,"Yes"]
["21","NEWPORT","NPT","NEWPORT PUBLIC LIBRARY","Director",1,"Director",{"$f":"IF(J233>0,(J233/(K233*52)),\"  \")","v":{"v":51.05769230769231,"d":"$51.06"}},"Y",{"v":92925,"d":"$92,925"},35,"Yes"]
["22","NORTH KINGSTOWN","NKI","NORTH KINGSTOWN FREE LIBRARY","Director",1,"Library Director",{"$f":"IF(J234>0,(J234/(K234*52)),\"  \")","v":{"v":42.61153846153846,"d":"$42.61"}},"Y",{"v":77553,"d":"$77,553"},35,"Yes"]
["23","NORTH PROVIDENCE","WIL","NORTH PROVIDENCE UNION FREE","Director",1,"Director",{"$f":"IF(J235>0,(J235/(K235*52)),\"  \")","v":{"v":38.55769230769231,"d":"$38.56"}},{"$f":"IF(J235>0,\"Y\",\" N\")","v":"Y"},{"v":70175,"d":"$70,175"},35,"Yes"]
["29","SCITUATE","SCI","NORTH SCITUATE PUBLIC LIBRARY","Director",1,"Director",{"$f":"IF(J236>0,(J236/(K236*52)),\"  \")","v":{"v":32.417582417582416,"d":"$32.42"}},{"$f":"IF(J236>0,\"Y\",\" N\")","v":"Y"},{"v":59000,"d":"$59,000"},35,"Yes"]
["24","NORTH SMITHFIELD","NPR","NORTH SMITHFIELD PUBLIC LIBRARY","Director",1,"DIRECTOR",{"$f":"IF(J237>0,(J237/(K237*52)),\"  \")","v":{"v":29.8,"d":"$29.80"}},{"$f":"IF(J237>0,\"Y\",\" N\")","v":"Y"},{"v":61984,"d":"$61,984"},40,"Yes"]
["3","PASCOAG","PAS","PASCOAG FREE PUBLIC LIBRARY","Director",1,"Director",{"v":15.06,"d":"$15.06"},"N",{"v":20361,"d":"$20,361"},26,"Yes"]
["25","PAWTUCKET","PAW","PAWTUCKET PUBLIC LIBRARY","Director",1,"Director",{"$f":"IF(J239>0,(J239/(K239*52)),\"  \")","v":{"v":38.17802197802198,"d":"$38.18"}},{"$f":"IF(J239>0,\"Y\",\" N\")","v":"Y"},{"v":69484,"d":"$69,484"},35,"Yes"]
["34","WARWICK","WPO","PONTIAC FREE LIBRARY","Director",1,"Director",{"v":20,"d":"$20.00"},"Y",{"v":26000,"d":"$26,000"},25,"Yes"]
["26","PORTSMOUTH","POR","PORTSMOUTH FREE PUBLIC LIBRARY","Director",1,"Director",{"v":32.927472527472524,"d":"$32.93"},"Y",{"v":59928,"d":"$59,928"},35,"Yes"]
["27","PROVIDENCE","PCL","PROVIDENCE COMMUNITY LIBRARY","Director",1,"Executive Director",{"v":43.26923076923077,"d":"$43.27"},"Y",{"v":90000,"d":"$90,000"},40,"Yes"]
["27","PROVIDENCE","PRO","PROVIDENCE PUBLIC LIBRARY","Director",1,"Director",{"v":62.77025641025641,"d":"$62.77"},"Y",{"v":122402,"d":"$122,402"},37.5,"Yes"]
["2","BRISTOL","BRI","ROGERS FREE LIBRARY","Director",1,"Director",{"v":34.917582417582416,"d":"$34.92"},"Y",{"v":63550,"d":"$63,550"},35,"Yes"]
["31","SOUTH KINGSTOWN","SKI","SOUTH KINGSTOWN PUBLIC LIBRARY","Director",1,"Library Director",{"v":41.893956043956045,"d":"$41.89"},"Y",{"v":76247,"d":"$76,247"},35,"Yes"]
["34","WARWICK","WAR","WARWICK PUBLIC LIBRARY","Director",1,"director",{"v":50.15025641025641,"d":"$50.15"},"Y",{"v":97793,"d":"$97,793"},37.5,"Yes"]
["36","WEST WARWICK","WWA","WEST WARWICK PUBLIC LIBRARY","Director",1,"Library Director",{"v":32.142857142857146,"d":"$32.14"},"Y",{"v":58500,"d":"$58,500"},35,"Yes"]
["37","WESTERLY","WES","WESTERLY PUBLIC LIBRARY","Director",1,"Executive Director",{"v":36.245604395604396,"d":"$36.25"},"Y",{"v":65967,"d":"$65,967"},35,"Yes"]
["22","NORTH KINGSTOWN","WIL","WILLETT FREE LIBRARY","Director",1,"Director",{"v":22.35,"d":"$22.35"},"Y",{"v":27602,"d":"$27,602"},25,"Yes"]
["38","WOONSOCKET","WNS","WOONSOCKET HARRIS PUBLIC LIBRARY","Director",1,"Library Director",{"$f":"IF(J250>0,(J250/(K250*52)),\"  \")","v":{"v":31.825824175824177,"d":"$31.83"}},"Y",{"v":57923,"d":"$57,923"},35,"Yes"]
["13","HOPKINTON","ASH","ASHAWAY FREE LIBRARY","Library Associate",1,"Staff Librarian",{"v":13.45,"d":"$13.45"}," N",null,8,"Yes"]
["1","BARRINGTON","BAR","BARRINGTON PUBLIC LIBRARY","Library Associate",1,"Administrative assistant II",{"$f":"IF(J252>0,(J252/(K252*52)),\"  \")","v":{"v":26.732417582417582,"d":"$26.73"}},"Y",{"v":48653,"d":"$48,653"},35,"No"]
["1","BARRINGTON","BAR","BARRINGTON PUBLIC LIBRARY","Library Associate",3,"Library assistant I",{"$f":"IF(J253>0,(J253/(K253*52)),\"  \")","v":{"v":26.732417582417582,"d":"$26.73"}},"Y",{"v":48653,"d":"$48,653"},35,"No"]
["1","BARRINGTON","BAR","BARRINGTON PUBLIC LIBRARY","Library Associate",1,"Library assistant I",{"$f":"IF(J254>0,(J254/(K254*52)),\"  \")","v":{"v":24.060439560439562,"d":"$24.06"}},"Y",{"v":43790,"d":"$43,790"},35,"No"]
["1","BARRINGTON","BAR","BARRINGTON PUBLIC LIBRARY","Library Associate",10,"Library assistant ",{"v":16.19,"d":"$16.19"},null,"",15,"No"]
["17","LITTLE COMPTON","LCO","BROWNELL LIBRARY, HOME OF LITTLE COMPTON","Library Associate",1,"Head of Circulation",{"v":14.11,"d":"$14.11"},{"$f":"IF(J256>0,\"Y\",\" N\")","v":" N"},null,21,"No"]
["28","RICHMOND","CLA","CLARK MEMORIAL LIBRARY","Library Associate",1,"library associate",{"v":16.39,"d":"$16.39"}," N",null,7.5,"No"]
["28","RICHMOND","CLA","CLARK MEMORIAL LIBRARY","Library Associate",1,"library associate",{"v":12.31,"d":"$12.31"}," N",null,13,"No"]
["28","RICHMOND","CLA","CLARK MEMORIAL LIBRARY","Library Associate",1,"library associate",{"v":15.19,"d":"$15.19"}," N",null,20,"No"]
["28","RICHMOND","CLA","CLARK MEMORIAL LIBRARY","Library Associate",1,"children\\'s specialist",{"v":11.72,"d":"$11.72"}," N",null,10,"No"]
["7","CRANSTON","CRA","CRANSTON PUBLIC LIBRARY","Library Associate",3,"Library Assistant II",{"$f":"IF(J261>0,(J261/(K261*52)),\"  \")","v":{"v":20.498901098901097,"d":"$20.50"}},"Y",{"v":37308,"d":"$37,308"},35,"No"]
["7","CRANSTON","CRA","CRANSTON PUBLIC LIBRARY","Library Associate",4,"Library Assistant II",{"$f":"IF(J262>0,(J262/(K262*52)),\"  \")","v":{"v":20.875274725274725,"d":"$20.88"}},"Y",{"v":37993,"d":"$37,993"},35,"No"]
["7","CRANSTON","CRA","CRANSTON PUBLIC LIBRARY","Library Associate",1,"Library Assistant II",{"$f":"IF(J263>0,(J263/(K263*52)),\"  \")","v":{"v":20.68791208791209,"d":"$20.69"}},"Y",{"v":37652,"d":"$37,652"},35,"No"]
["7","CRANSTON","CRA","CRANSTON PUBLIC LIBRARY","Library Associate",1,"Library Assistant II",{"$f":"IF(J264>0,(J264/(K264*52)),\"  \")","v":{"v":15.814835164835165,"d":"$15.81"}},"Y",{"v":28783,"d":"$28,783"},35,"No"]
["7","CRANSTON","CRA","CRANSTON PUBLIC LIBRARY","Library Associate",2,"Library Assistant",{"v":9,"d":"$9.00"}," N",null,7,"No"]
["7","CRANSTON","CRA","CRANSTON PUBLIC LIBRARY","Library Associate",1,"Library Assistant",{"v":10.25,"d":"$10.25"}," N",null,7,"No"]
["7","CRANSTON","CRA","CRANSTON PUBLIC LIBRARY","Library Associate",1,"Library Assistant",{"v":10.25,"d":"$10.25"}," N",null,23,"No"]
["7","CRANSTON","CRA","CRANSTON PUBLIC LIBRARY","Library Associate",1,"Library Assistant",{"v":10.25,"d":"$10.25"}," N",null,4,"No"]
["7","CRANSTON","CRA","CRANSTON PUBLIC LIBRARY","Library Associate",1,"Library Assistant",{"v":10.25,"d":"$10.25"}," N",null,12,"No"]
["7","CRANSTON","CRA","CRANSTON PUBLIC LIBRARY","Library Associate",1,"Library Assistant",{"v":12.05,"d":"$12.05"}," N",null,20,"No"]
["7","CRANSTON","CRA","CRANSTON PUBLIC LIBRARY","Library Associate",1,"Library Assistant",{"v":11.1,"d":"$11.10"}," N",null,10,"No"]
["7","CRANSTON","CRA","CRANSTON PUBLIC LIBRARY","Library Associate",1,"Library Assistant",{"v":11.1,"d":"$11.10"}," N",null,18,"No"]
["7","CRANSTON","CRA","CRANSTON PUBLIC LIBRARY","Library Associate",1,"Library Assistant",{"v":13.6,"d":"$13.60"}," N",null,3,"No"]
["7","CRANSTON","CRA","CRANSTON PUBLIC LIBRARY","Library Associate",1,"Library Assistant",{"v":12.3,"d":"$12.30"}," N",null,6,"No"]
["7","CRANSTON","CRA","CRANSTON PUBLIC LIBRARY","Library Associate",1,"Library Assistant",{"v":12.3,"d":"$12.30"}," N",null,20,"No"]
["7","CRANSTON","CRA","CRANSTON PUBLIC LIBRARY","Library Associate",1,"Library Assistant",{"v":12.3,"d":"$12.30"}," N",null,7,"No"]
["5","CHARLESTOWN","CHA","CROSS' MILLS PUBLIC LIBRARY","Library Associate",1,"Public Relations & Programming",{"v":14,"d":"$14.00"},{"$f":"IF(J277>0,\"Y\",\"N\")","v":"N"},null,28,"Yes"]
["5","CHARLESTOWN","CHA","CROSS' MILLS PUBLIC LIBRARY","Library Associate",1,"Circulation Clerk",{"v":12,"d":"$12.00"},{"$f":"IF(J278>0,\"Y\",\"N\")","v":"N"},null,13,"No"]
["5","CHARLESTOWN","CHA","CROSS' MILLS PUBLIC LIBRARY","Library Associate",1,"Circulation Clerk",{"v":12,"d":"$12.00"},{"$f":"IF(J279>0,\"Y\",\"N\")","v":"N"},null,17.5,"No"]
["5","CHARLESTOWN","CHA","CROSS' MILLS PUBLIC LIBRARY","Library Associate",1,"Circulation Clerk",{"v":12.35,"d":"$12.35"},{"$f":"IF(J280>0,\"Y\",\"N\")","v":"N"},null,8,"No"]
["5","CHARLESTOWN","CHA","CROSS' MILLS PUBLIC LIBRARY","Library Associate",1,"Circulation Clerk",{"v":11,"d":"$11.00"},{"$f":"IF(J281>0,\"Y\",\"N\")","v":"N"},null,20,"No"]
["8","CUMBERLAND","CUM","CUMBERLAND PUBLIC LIBRARY","Library Associate",1,"Full-time Children\\'s Assistant",{"v":18.01,"d":"$18.01"},{"$f":"IF(J282>0,\"Y\",\" N\")","v":" N"},null,35,"No"]
["8","CUMBERLAND","CUM","CUMBERLAND PUBLIC LIBRARY","Library Associate",1,"Part-time Children\\'s Assistant",{"v":16.28,"d":"$16.28"}," N",null,19.5,"No"]
["8","CUMBERLAND","CUM","CUMBERLAND PUBLIC LIBRARY","Library Associate",1,"Part-time Children\\'s Assistant",{"v":15.58,"d":"$15.58"}," N",null,19.5,"No"]
["8","CUMBERLAND","CUM","CUMBERLAND PUBLIC LIBRARY","Library Associate",2,"Part-time Reference Assistant",{"v":15.58,"d":"$15.58"}," N",null,19.5,"No"]
["8","CUMBERLAND","CUM","CUMBERLAND PUBLIC LIBRARY","Library Associate",1,"Information Services Specialist",{"v":15.58,"d":"$15.58"}," N",null,19.5,"No"]
["8","CUMBERLAND","CUM","CUMBERLAND PUBLIC LIBRARY","Library Associate",1,"Part-time Reference Assistant",{"v":15.58,"d":"$15.58"}," N",null,6,"No"]
["8","CUMBERLAND","CUM","CUMBERLAND PUBLIC LIBRARY","Library Associate",2,"Part-time Desk Assistant",{"v":15.42,"d":"$15.42"}," N",null,19.5,"No"]
["8","CUMBERLAND","CUM","CUMBERLAND PUBLIC LIBRARY","Library Associate",1,"Part-time Desk Assistant",{"v":15.27,"d":"$15.27"}," N",null,19.5,"No"]
["8","CUMBERLAND","CUM","CUMBERLAND PUBLIC LIBRARY","Library Associate",2,"Part-time Desk Assistant",{"v":14.52,"d":"$14.52"}," N",null,19.5,"No"]
["8","CUMBERLAND","CUM","CUMBERLAND PUBLIC LIBRARY","Library Associate",2,"Part-time Desk Assistant",{"v":14.52,"d":"$14.52"}," N",null,16.5,"No"]
["22","NORTH KINGSTOWN","DPL","DAVISVILLE FREE LIBRARY","Library Associate",2,"Library Assistant",{"v":11,"d":"$11.00"}," N",null,4.5,"No"]
["9","EAST GREENWICH","EGR","EAST GREENWICH FREE LIBRARY","Library Associate",1,"Circulation clerk",{"v":20.22,"d":"$20.22"}," N",null,15,"No"]
["9","EAST GREENWICH","EGR","EAST GREENWICH FREE LIBRARY","Library Associate",3,"circulation clerk",{"v":11.62,"d":"$11.62"}," N",null,56,"No"]
["10","EAST PROVIDENCE","EPL","EAST PROVIDENCE PUBLIC LIBRARY","Library Associate",1,"Circulation Coordinator",{"$f":"IF(J295>0,(J295/(K295*52)),\"  \")","v":{"v":22.358241758241757,"d":"$22.36"}},"Y",{"v":40692,"d":"$40,692"},35,"No"]
["10","EAST PROVIDENCE","EPL","EAST PROVIDENCE PUBLIC LIBRARY","Library Associate",1,"Technical Services Assistant",{"$f":"IF(J296>0,(J296/(K296*52)),\"  \")","v":{"v":22.358241758241757,"d":"$22.36"}},"Y",{"v":40692,"d":"$40,692"},35,"No"]
["10","EAST PROVIDENCE","EPL","EAST PROVIDENCE PUBLIC LIBRARY","Library Associate",1,"Youth Services Assistant",{"$f":"IF(J297>0,(J297/(K297*52)),\"  \")","v":{"v":20.493956043956043,"d":"$20.49"}},"Y",{"v":37299,"d":"$37,299"},35,"Yes"]
["30","SMITHFIELD","ESM","EAST SMITHFIELD PUBLIC LIBRARY","Library Associate",1,"Library Associate",{"v":22.05,"d":"$22.05"},"N",{"v":40131,"d":"$40,131"},35,"No"]
["30","SMITHFIELD","ESM","EAST SMITHFIELD PUBLIC LIBRARY","Library Associate",1,"Library Associate",{"v":15.71,"d":"$15.71"},"N",{"v":28592,"d":"$28,592"},35,"No"]
["32","TIVERTON","TIV","ESSEX PUBLIC LIBRARY","Library Associate",1,"Library Assistant",{"v":17.38,"d":"$17.38"},{"$f":"IF(J300>0,\"Y\",\" N\")","v":" N"},null,25,"No"]
["32","TIVERTON","TIV","ESSEX PUBLIC LIBRARY","Library Associate",1,"Library Assistant",{"v":17.38,"d":"$17.38"}," N",null,15,"No"]
["32","TIVERTON","TIV","ESSEX PUBLIC LIBRARY","Library Associate",1,"Library Assistant",{"v":16.62,"d":"$16.62"}," N",null,19,"No"]
["32","TIVERTON","TIV","ESSEX PUBLIC LIBRARY","Library Associate",1,"Library Assistant",{"v":15.5,"d":"$15.50"}," N",null,19,"No"]
["32","TIVERTON","TIV","ESSEX PUBLIC LIBRARY","Library Associate",1,"Library Assistant",{"v":15.5,"d":"$15.50"}," N",null,12,"No"]
["32","TIVERTON","TIV","ESSEX PUBLIC LIBRARY","Library Associate",1,"on call Library Assistant",{"v":9.5,"d":"$9.50"}," N",null,19,"No"]
["33","WARREN","WRR","GEORGE HAIL FREE LIBRARY","Library Associate",3,"Circulation Assistant",{"v":13.27,"d":"$13.27"}," N",null,19,"No"]
["33","WARREN","WRR","GEORGE HAIL FREE LIBRARY","Library Associate",1,"Circulation Assistant",{"v":11.94,"d":"$11.94"}," N",null,15,"No"]
["33","WARREN","WRR","GEORGE HAIL FREE LIBRARY","Library Associate",1,"Circulation Assistant",{"v":12.39,"d":"$12.39"}," N",null,15,"No"]
["30","SMITHFIELD","GVL","GREENVILLE PUBLIC LIBRARY","Library Associate",1,"Library Assistant",{"$f":"IF(J309>0,(J309/(K309*52)),\"  \")","v":{"v":11.990384615384615,"d":"$11.99"}},"Y",{"v":13717,"d":"$13,717"},22,"No"]
["30","SMITHFIELD","GVL","GREENVILLE PUBLIC LIBRARY","Library Associate",1,"Library Assistant",{"v":13.430473372781066,"d":"$13.43"},"Y",{"v":9079,"d":"$9,079"},13,"No"]
["30","SMITHFIELD","GVL","GREENVILLE PUBLIC LIBRARY","Library Associate",1,"Library Assistant",{"v":14.259615384615385,"d":"$14.26"},"Y",{"v":7415,"d":"$7,415"},10,"No"]
["30","SMITHFIELD","GVL","GREENVILLE PUBLIC LIBRARY","Library Associate",1,"Library Assistant",{"v":11.620445344129555,"d":"$11.62"},"Y",{"v":11481,"d":"$11,481"},19,"No"]
["30","SMITHFIELD","GVL","GREENVILLE PUBLIC LIBRARY","Library Associate",1,"Library Assistant",{"v":9.4,"d":"$9.40"},"Y",{"v":14664,"d":"$14,664"},30,"No"]
["30","SMITHFIELD","GVL","GREENVILLE PUBLIC LIBRARY","Library Associate",1,"Library Assistant",{"v":9.179807692307692,"d":"$9.18"},"Y",{"v":9547,"d":"$9,547"},20,"No"]
["14","JAMESTOWN","JAM","JAMESTOWN PHILOMENIAN LIBRARY","Library Associate",1,"Para-Professional ",{"v":12.5,"d":"$12.50"}," N",null,35,"No"]
["14","JAMESTOWN","JAM","JAMESTOWN PHILOMENIAN LIBRARY","Library Associate",1,"Library Associate ",{"v":12,"d":"$12.00"}," N",null,19,"No"]
["14","JAMESTOWN","JAM","JAMESTOWN PHILOMENIAN LIBRARY","Library Associate",1,"Library Associate ",{"v":10,"d":"$10.00"}," N",null,19,"No"]
["14","JAMESTOWN","JAM","JAMESTOWN PHILOMENIAN LIBRARY","Library Associate",1,"library Assoicate ",{"v":10.51,"d":"$10.51"}," N",null,14,"No"]
["14","JAMESTOWN","JAM","JAMESTOWN PHILOMENIAN LIBRARY","Library Associate",1,"Library Associate ",{"v":13.59,"d":"$13.59"}," N",null,10,"No"]
["3","BURRILLVILLE","BUR","JESSE M. SMITH MEMORIAL LIBRARY","Library Associate",1,"Children\\'s Paraprofessional",{"v":13.99,"d":"$13.99"}," N",null,18,"No"]
["3","BURRILLVILLE","BUR","JESSE M. SMITH MEMORIAL LIBRARY","Library Associate",1,"Children\\'s Paraprofessional",{"v":15.17,"d":"$15.17"}," N",null,18,"No"]
["3","BURRILLVILLE","BUR","JESSE M. SMITH MEMORIAL LIBRARY","Library Associate",1,"Reference Paraprofessioanl",{"v":13.99,"d":"$13.99"}," N",null,19.5,"No"]
["3","BURRILLVILLE","BUR","JESSE M. SMITH MEMORIAL LIBRARY","Library Associate",1,"Library Assistant (Circulation III)",{"v":13.46,"d":"$13.46"}," N",null,19.5,"No"]
["13","HOPKINTON","LAN","LANGWORTHY PUBLIC LIBRARY","Library Associate",1,"Circulation Clerk",{"v":9.5,"d":"$9.50"}," N",null,12,"No"]
["13","HOPKINTON","LAN","LANGWORTHY PUBLIC LIBRARY","Library Associate",5,"Circulation Clerk",{"v":9,"d":"$9.00"}," N",null,15,"No"]
["11","FOSTER","FOS","LIBRARIES OF FOSTER","Library Associate",1,"Circulation Clerk",{"v":9.66,"d":"$9.66"}," N",null,21,"No"]
["11","FOSTER","FOS","LIBRARIES OF FOSTER","Library Associate",1,"Circulation Clerk",{"v":13.42,"d":"$13.42"}," N",null,6,"No"]
["11","FOSTER","FOS","LIBRARIES OF FOSTER","Library Associate",1,"Circulation Clerk",{"v":11.51,"d":"$11.51"}," N",null,7,"No"]
["11","FOSTER","FOS","LIBRARIES OF FOSTER","Library Associate",1,"Circulation Clerk",{"v":9,"d":"$9.00"}," N",null,12,"No"]
["11","FOSTER","FOS","LIBRARIES OF FOSTER","Library Associate",1,"Circulation Clerk",{"v":9,"d":"$9.00"}," N",null,8,"No"]
["11","FOSTER","FOS","LIBRARIES OF FOSTER","Library Associate",1,"Circulation Clerk",{"v":9,"d":"$9.00"}," N",null,4,"No"]
["16","LINCOLN","LIN","LINCOLN PUBLIC LIBRARY","Library Associate",1,"Tech 3 TS",{"v":18.15,"d":"$18.15"}," N",null,35,"No"]
["16","LINCOLN","LIN","LINCOLN PUBLIC LIBRARY","Library Associate",1,"Tech 3 PS",{"v":18.15,"d":"$18.15"}," N",null,35,"No"]
["35","WEST GREENWICH","WGR","LOUTTIT MEMORIAL LIBRARY","Library Associate",1,"Circulation Head",{"v":16.04,"d":"$16.04"}," N",null,20,"No"]
["35","WEST GREENWICH","WGR","LOUTTIT MEMORIAL LIBRARY","Library Associate",1,"Circ Asst/ILL",{"v":12.5,"d":"$12.50"}," N",null,17,"No"]
["35","WEST GREENWICH","WGR","LOUTTIT MEMORIAL LIBRARY","Library Associate",1,"Circ Asst",{"v":11.5,"d":"$11.50"}," N",null,13,"No"]
["35","WEST GREENWICH","WGR","LOUTTIT MEMORIAL LIBRARY","Library Associate",1,"Circ Substitute",{"v":10.5,"d":"$10.50"}," N",null,"","No"]
["15","JOHNSTON","JOH","MARIAN J. MOHR MEMORIAL LIBRARY","Library Associate",1,"Aide/Desk Assistant",{"v":10,"d":"$10.00"}," N",null,19,"No"]
["15","JOHNSTON","JOH","MARIAN J. MOHR MEMORIAL LIBRARY","Library Associate",1,"Desk Assistant & Administrative Assistant",{"v":14.07,"d":"$14.07"}," N",null,35,"No"]
["15","JOHNSTON","JOH","MARIAN J. MOHR MEMORIAL LIBRARY","Library Associate",1,"Desk Assistant & Program Specialist",{"v":14.07,"d":"$14.07"}," N",null,35,"No"]
["15","JOHNSTON","JOH","MARIAN J. MOHR MEMORIAL LIBRARY","Library Associate",1,"Children\\'s Associate",{"v":13.93,"d":"$13.93"}," N",null,35,"No"]
["15","JOHNSTON","JOH","MARIAN J. MOHR MEMORIAL LIBRARY","Library Associate",1,"Aide/Children\\'s Associate",{"v":10,"d":"$10.00"}," N",null,19,"No"]
["18","MIDDLETOWN","MID","MIDDLETOWN PUBLIC LIBRARY","Library Associate",1,"Library Assistant",{"v":15.3,"d":"$15.30"}," N",null,35,"No"]
["18","MIDDLETOWN","MID","MIDDLETOWN PUBLIC LIBRARY","Library Associate",7,"Library Assistant",{"v":12.75,"d":"$12.75"}," N",null,20,"No"]
["21","NEWPORT","NPT","NEWPORT PUBLIC LIBRARY","Library Associate",1,"Library Aide",{"$f":"IF(J345>0,(J345/(K345*52)),\"  \")","v":{"v":20.424725274725276,"d":"$20.42"}},"Y",{"v":37173,"d":"$37,173"},35,"No"]
["21","NEWPORT","NPT","NEWPORT PUBLIC LIBRARY","Library Associate",1,"Library Aide",{"$f":"IF(J346>0,(J346/(K346*52)),\"  \")","v":{"v":14.89065934065934,"d":"$14.89"}},"Y",{"v":27101,"d":"$27,101"},35,"No"]
["21","NEWPORT","NPT","NEWPORT PUBLIC LIBRARY","Library Associate",1,"Technical Services Aide",{"$f":"IF(J347>0,(J347/(K347*52)),\"  \")","v":{"v":19.38791208791209,"d":"$19.39"}},"Y",{"v":35286,"d":"$35,286"},35,"No"]
["21","NEWPORT","NPT","NEWPORT PUBLIC LIBRARY","Library Associate",1,"Outreach Coordinator",{"$f":"IF(J348>0,(J348/(K348*52)),\"  \")","v":{"v":25.041208791208792,"d":"$25.04"}},"Y",{"v":45575,"d":"$45,575"},35,"No"]
["21","NEWPORT","NPT","NEWPORT PUBLIC LIBRARY","Library Associate",1,"Cataloger",{"$f":"IF(J349>0,(J349/(K349*52)),\"  \")","v":{"v":25.926923076923078,"d":"$25.93"}},"Y",{"v":47187,"d":"$47,187"},35,"No"]
["21","NEWPORT","NPT","NEWPORT PUBLIC LIBRARY","Library Associate",1,"Reference Assistant",{"v":18.78,"d":"$18.78"},{"$f":"IF(J350>0,\"Y\",\" N\")","v":" N"},null,15,"No"]
["21","NEWPORT","NPT","NEWPORT PUBLIC LIBRARY","Library Associate",1,"Technology Aide",{"v":22.52,"d":"$22.52"},{"$f":"IF(J351>0,\"Y\",\" N\")","v":" N"},null,15,"No"]
["21","NEWPORT","NPT","NEWPORT PUBLIC LIBRARY","Library Associate",1,"Children\\'s Aide",{"v":18.78,"d":"$18.78"},{"$f":"IF(J352>0,\"Y\",\" N\")","v":" N"},null,20,"No"]
["22","NORTH KINGSTOWN","NKI","NORTH KINGSTOWN FREE LIBRARY","Library Associate",1,"ILL/Acquisitions",{"$f":"IF(J353>0,(J353/(K353*52)),\"  \")","v":{"v":22.67967032967033,"d":"$22.68"}},"Y",{"v":41277,"d":"$41,277"},35,"No"]
["22","NORTH KINGSTOWN","NKI","NORTH KINGSTOWN FREE LIBRARY","Library Associate",1,"Circulation Supervisor",{"$f":"IF(J354>0,(J354/(K354*52)),\"  \")","v":{"v":21.14010989010989,"d":"$21.14"}},"Y",{"v":38475,"d":"$38,475"},35,"No"]
["24","NORTH SMITHFIELD","NSM","NORTH SMITHFIELD PUBLIC LIBRARY","Library Associate",1,"CIRCULATION",{"v":13.12,"d":"$13.12"},{"$f":"IF(J355>0,\"Y\",\" N\")","v":" N"},null,21,"No"]
["24","NORTH SMITHFIELD","NSM","NORTH SMITHFIELD PUBLIC LIBRARY","Library Associate",1,"CIRCULATION",{"v":11.14,"d":"$11.14"},{"$f":"IF(J356>0,\"Y\",\" N\")","v":" N"},null,21,"No"]
["24","NORTH SMITHFIELD","NSM","NORTH SMITHFIELD PUBLIC LIBRARY","Library Associate",1,"CIRCULATION",{"v":11.33,"d":"$11.33"},{"$f":"IF(J357>0,\"Y\",\" N\")","v":" N"},null,26,"No"]
["24","NORTH SMITHFIELD","NSM","NORTH SMITHFIELD PUBLIC LIBRARY","Library Associate",1,"CIRCULATION",{"v":10,"d":"$10.00"},{"$f":"IF(J358>0,\"Y\",\" N\")","v":" N"},null,10,"No"]
["24","NORTH SMITHFIELD","NSM","NORTH SMITHFIELD PUBLIC LIBRARY","Library Associate",1,"CIRCULATION",{"v":11,"d":"$11.00"},{"$f":"IF(J359>0,\"Y\",\" N\")","v":" N"},null,5,"No"]
["3","PASCOAG","PAS","PASCOAG FREE PUBLIC LIBRARY","Library Associate",1,"Cataloger",{"v":10.5,"d":"$10.50"},"N",{"v":7644,"d":"$7,644"},14,"No"]
["3","PASCOAG","PAS","PASCOAG FREE PUBLIC LIBRARY","Library Associate",1,"Library Assistant",{"v":9.18,"d":"$9.18"},"N",{"v":5728,"d":"$5,728"},12,"No"]
["3","PASCOAG","PAS","PASCOAG FREE PUBLIC LIBRARY","Library Associate",1,"Library Assistant",{"v":10.24,"d":"$10.24"},"N",{"v":2520,"d":"$2,520"},3,"No"]
["25","PAWTUCKET","PAW","PAWTUCKET PUBLIC LIBRARY","Library Associate",1,"BiLingual Computer Technician",{"v":19.93,"d":"$19.93"},{"$f":"IF(J363>0,\"Y\",\" N\")","v":"Y"},{"v":36272,"d":"$36,272"},35,"No"]
["25","PAWTUCKET","PAW","PAWTUCKET PUBLIC LIBRARY","Library Associate",1,"Library Assistant III",{"v":19.93,"d":"$19.93"},"Y",{"v":36272,"d":"$36,272"},35,"No"]
["25","PAWTUCKET","PAW","PAWTUCKET PUBLIC LIBRARY","Library Associate",2,"Bookmobile Operator/Clerk",{"v":19.93,"d":"$19.93"},"Y",{"v":19690,"d":"$19,690"},19,"No"]
["34","WARWICK","WPO","PONTIAC FREE LIBRARY","Library Associate",1,"Assistant Librarian",{"$f":"IF(J366>0,(J366/(K366*52)),\"  \")","v":{"v":14,"d":"$14.00"}},"Y",{"v":14560,"d":"$14,560"},20,"No"]
["34","WARWICK","WPO","PONTIAC FREE LIBRARY","Library Associate",3,"Library Assistants",{"v":10,"d":"$10.00"}," N",null,8,"No"]
["26","PORTSMOUTH","POR","PORTSMOUTH FREE PUBLIC LIBRARY","Library Associate",1,"Library Assistant Refernece",{"v":16.19,"d":"$16.19"}," N",null,35,"No"]
["26","PORTSMOUTH","POR","PORTSMOUTH FREE PUBLIC LIBRARY","Library Associate",3,"Library Assistant Sunday",{"v":12,"d":"$12.00"}," N",null,4,"No"]
["26","PORTSMOUTH","POR","PORTSMOUTH FREE PUBLIC LIBRARY","Library Associate",5,"Library Assistant Children\\'s",{"v":12.05,"d":"$12.05"}," N",null,"","No"]
["26","PORTSMOUTH","POR","PORTSMOUTH FREE PUBLIC LIBRARY","Library Associate",1,"Library Assistant Circulation Full Time",{"v":16.19,"d":"$16.19"}," N",null,35,"No"]
["26","PORTSMOUTH","POR","PORTSMOUTH FREE PUBLIC LIBRARY","Library Associate",1,"Library Assistant Circulation Part Time",{"v":13.75,"d":"$13.75"}," N",null,27,"No"]
["26","PORTSMOUTH","POR","PORTSMOUTH FREE PUBLIC LIBRARY","Library Associate",1,"Library Assistant Circulation Part Time",{"v":12.05,"d":"$12.05"}," N",null,22,"No"]
["26","PORTSMOUTH","POR","PORTSMOUTH FREE PUBLIC LIBRARY","Library Associate",1,"Sunday Library Assistant",{"v":14.5,"d":"$14.50"}," N",null,4,"No"]
["27","PROVIDENCE","PCL","PROVIDENCE COMMUNITY LIBRARY","Library Associate",19,"Library Clerk",{"$f":"IF(J375>0,(J375/(K375*52)),\"  \")","v":{"v":18.89854727316028,"d":"$18.90"}},"Y",{"v":31742,"d":"$31,742"},32.3,"No"]
["27","PROVIDENCE","PCL","PROVIDENCE COMMUNITY LIBRARY","Library Associate",3,"Library Clerk Supervisor",{"v":19.272820512820513,"d":"$19.27"},"Y",{"v":37582,"d":"$37,582"},37.5,"No"]
["27","PROVIDENCE","PCL","PROVIDENCE COMMUNITY LIBRARY","Library Associate",8,"Children\\'s Specialist",{"v":22.984102564102564,"d":"$22.98"},"Y",{"v":44819,"d":"$44,819"},37.5,"No"]
["27","PROVIDENCE","PCL","PROVIDENCE COMMUNITY LIBRARY","Library Associate",1,"Collection Management Services Spoecialist",{"v":23.475,"d":"$23.48"},"Y",{"v":48828,"d":"$48,828"},40,"No"]
["27","PROVIDENCE","PCL","PROVIDENCE COMMUNITY LIBRARY","Library Associate",1,"AV Tech. Library Clerk",{"v":17.88,"d":"$17.88"},"Y",{"v":34866,"d":"$34,866"},37.5,"No"]
["27","PROVIDENCE","PRO","PROVIDENCE PUBLIC LIBRARY","Library Associate",1,"Library Clerk",{"v":12.26923076923077,"d":"$12.27"},"Y",{"v":2552,"d":"$2,552"},4,"No"]
["27","PROVIDENCE","PRO","PROVIDENCE PUBLIC LIBRARY","Library Associate",1,"Citizenship Coord. Lead ESOL Teacher",{"v":21.54,"d":"$21.54"},"Y",{"v":42003,"d":"$42,003"},37.5,"No"]
["27","PROVIDENCE","PRO","PROVIDENCE PUBLIC LIBRARY","Library Associate",1,"Lead ESOL Teacher",{"v":19.98,"d":"$19.98"},"Y",{"v":38961,"d":"$38,961"},37.5,"No"]
["27","PROVIDENCE","PRO","PROVIDENCE PUBLIC LIBRARY","Library Associate",4,"Library Clerk",{"v":18.8,"d":"$18.80"},"Y",{"v":36660,"d":"$36,660"},37.5,"No"]
["27","PROVIDENCE","PRO","PROVIDENCE PUBLIC LIBRARY","Library Associate",1,"Children\\'s Teacher Coord.",{"v":15.528846153846153,"d":"$15.53"},"Y",{"v":3230,"d":"$3,230"},4,"No"]
["27","PROVIDENCE","PRO","PROVIDENCE PUBLIC LIBRARY","Library Associate",1,"Asst. Literacy Coord.",{"v":19.98,"d":"$19.98"},"Y",{"v":25974,"d":"$25,974"},25,"No"]
["27","PROVIDENCE","PRO","PROVIDENCE PUBLIC LIBRARY","Library Associate",1,"Clerical Supervisor",{"v":18.8,"d":"$18.80"},"Y",{"v":19552,"d":"$19,552"},20,"No"]
["27","PROVIDENCE","PRO","PROVIDENCE PUBLIC LIBRARY","Library Associate",1,"Stack Clerk",{"v":14.38,"d":"$14.38"},"Y",{"v":28041,"d":"$28,041"},37.5,"No"]
["27","PROVIDENCE","PRO","PROVIDENCE PUBLIC LIBRARY","Library Associate",1,"Lead ESOL Teacher",{"v":19.98,"d":"$19.98"},"Y",{"v":38961,"d":"$38,961"},37.5,"No"]
["27","PROVIDENCE","PRO","PROVIDENCE PUBLIC LIBRARY","Library Associate",1,"Asst. Citizenship Teacher",{"v":15,"d":"$15.00"},"Y",{"v":3120,"d":"$3,120"},4,"No"]
["27","PROVIDENCE","PRO","PROVIDENCE PUBLIC LIBRARY","Library Associate",1,"Lead ESOL Teacher",{"v":19.21153846153846,"d":"$19.21"},"Y",{"v":7992,"d":"$7,992"},8,"No"]
["27","PROVIDENCE","PRO","PROVIDENCE PUBLIC LIBRARY","Library Associate",1,"Lead ESOL Teacher",{"v":19.590384615384615,"d":"$19.59"},"Y",{"v":20374,"d":"$20,374"},20,"No"]
["27","PROVIDENCE","PRO","PROVIDENCE PUBLIC LIBRARY","Library Associate",2,"Lead ESOL Teacher",{"v":19.591346153846153,"d":"$19.59"},"Y",{"v":4075,"d":"$4,075"},4,"No"]
["27","PROVIDENCE","PRO","PROVIDENCE PUBLIC LIBRARY","Library Associate",1,"Lead ESOL Teacher",{"v":19.210470085470085,"d":"$19.21"},"Y",{"v":17981,"d":"$17,981"},18,"No"]
["27","PROVIDENCE","PRO","PROVIDENCE PUBLIC LIBRARY","Library Associate",1,"Curotorial Asst.",{"v":24.62,"d":"$24.62"},"Y",{"v":48009,"d":"$48,009"},37.5,"Yes"]
["27","PROVIDENCE","PRO","PROVIDENCE PUBLIC LIBRARY","Library Associate",1,"Teen Edu. Librarian",{"v":31.28,"d":"$31.28"},{"$f":"IF(J395>0,\"Y\",\" N\")","v":"Y"},{"v":60996,"d":"$60,996"},37.5,"Yes"]
["27","PROVIDENCE","PRO","PROVIDENCE PUBLIC LIBRARY","Library Associate",1,"Lead ESOL Teacher",{"v":24.0125,"d":"$24.01"},"Y",{"v":24973,"d":"$24,973"},20,"No"]
["27","PROVIDENCE","PRO","PROVIDENCE PUBLIC LIBRARY","Library Associate",1,"Grant Writer",{"v":33.33025641025641,"d":"$33.33"},"Y",{"v":64994,"d":"$64,994"},37.5,"No"]
["27","PROVIDENCE","PRO","PROVIDENCE PUBLIC LIBRARY","Library Associate",1,"Citizens Teacher",{"v":19.21153846153846,"d":"$19.21"},"Y",{"v":5994,"d":"$5,994"},6,"No"]
["27","PROVIDENCE","PRO","PROVIDENCE PUBLIC LIBRARY","Library Associate",1,"Lead ESOL Teacher",{"v":19.20979020979021,"d":"$19.21"},"Y",{"v":10988,"d":"$10,988"},11,"No"]
["2","BRISTOL","BRI","ROGERS FREE LIBRARY","Library Associate",1,"Liby assoc/technology",{"v":20.32967032967033,"d":"$20.33"},"Y",{"v":37000,"d":"$37,000"},35,"No"]
["2","BRISTOL","BRI","ROGERS FREE LIBRARY","Library Associate",1,"Circulation supervisor",{"v":17.582417582417584,"d":"$17.58"},"Y",{"v":32000,"d":"$32,000"},35,"No"]
["2","BRISTOL","BRI","ROGERS FREE LIBRARY","Library Associate",13,"Circ associates",{"v":15.04,"d":"$15.04"}," N",null,24,"No"]
["31","SOUTH KINGSTOWN","SKI","SOUTH KINGSTOWN PUBLIC LIBRARY","Library Associate",1,"Library Associatete",{"$f":"IF(J403>0,(J403/(K403*52)),\"  \")","v":{"v":24.093406593406595,"d":"$24.09"}},"Y",{"v":43850,"d":"$43,850"},35,"No"]
["34","WARWICK","WAR","WARWICK PUBLIC LIBRARY","Library Associate",5,"Circ Aide",{"$f":"IF(J404>0,(J404/(K404*52)),\"  \")","v":{"v":19.26098901098901,"d":"$19.26"}},"Y",{"v":35055,"d":"$35,055"},35,"No"]
["36","WEST WARWICK","WWA","WEST WARWICK PUBLIC LIBRARY","Library Associate",1,"Reference Assistant",{"v":10,"d":"$10.00"}," N",null,17,"No"]
["36","WEST WARWICK","WWA","WEST WARWICK PUBLIC LIBRARY","Library Associate",2,"Youth Services Assistant",{"v":10,"d":"$10.00"}," N",null,19,"No"]
["36","WEST WARWICK","WWA","WEST WARWICK PUBLIC LIBRARY","Library Associate",1,"Reference Assistant",{"v":15,"d":"$15.00"}," N",null,19,"No"]
["36","WEST WARWICK","WWA","WEST WARWICK PUBLIC LIBRARY","Library Associate",1,"ESL Teacher",{"v":15,"d":"$15.00"}," N",null,8,"No"]
["36","WEST WARWICK","WWA","WEST WARWICK PUBLIC LIBRARY","Library Associate",1,"ESL Teacher",{"v":15,"d":"$15.00"}," N",null,4,"No"]
["36","WEST WARWICK","WWA","WEST WARWICK PUBLIC LIBRARY","Library Associate",1,"Children\\'s ESL Teacher",{"v":11.28,"d":"$11.28"}," N",null,"",""]
["37","WESTERLY","WES","WESTERLY PUBLIC LIBRARY","Library Associate",4,"Associates",{"$f":"IF(J411>0,(J411/(K411*52)),\"  \")","v":{"v":18.209230769230768,"d":"$18.21"}},"Y",{"v":23672,"d":"$23,672"},25,"Yes"]
["37","WESTERLY","WES","WESTERLY PUBLIC LIBRARY","Library Associate",2,"Collection Management Associates",{"$f":"IF(J412>0,(J412/(K412*52)),\"  \")","v":{"v":19.419505494505493,"d":"$19.42"}},"Y",{"v":70687,"d":"$70,687"},70,"No"]
["37","WESTERLY","WES","WESTERLY PUBLIC LIBRARY","Library Associate",16,"Associates",{"$f":"J413/(F413*(K413*52))","v":{"v":17.544671474358974,"d":"$17.54"}},"Y",{"v":175166,"d":"$175,166"},12,"No"]
["22","NORTH KINGSTOWN","WIL","WILLETT FREE LIBRARY","Library Associate",1,"Library Assistant",{"v":9,"d":"$9.00"},"Y",{"v":4590,"d":"$4,590"},10,"No"]
["38","WOONSOCKET","WNS","WOONSOCKET HARRIS PUBLIC LIBRARY","Library Associate",1,"Library Technical Aide",{"$f":"IF(J415>0,(J415/(K415*52)),\"  \")","v":{"v":15.767032967032968,"d":"$15.77"}},"Y",{"v":28696,"d":"$28,696"},35,"No"]
["38","WOONSOCKET","WNS","WOONSOCKET HARRIS PUBLIC LIBRARY","Library Associate",1,"Paraprofessional",{"$f":"IF(J416>0,(J416/(K416*52)),\"  \")","v":{"v":14.504945054945056,"d":"$14.50"}},"Y",{"v":26399,"d":"$26,399"},35,"No"]
["38","WOONSOCKET","WNS","WOONSOCKET HARRIS PUBLIC LIBRARY","Library Associate",1,"Senior Library Assistant",{"$f":"IF(J417>0,(J417/(K417*52)),\"  \")","v":{"v":14.654945054945054,"d":"$14.65"}},"Y",{"v":26672,"d":"$26,672"},35,"No"]
["38","WOONSOCKET","WNS","WOONSOCKET HARRIS PUBLIC LIBRARY","Library Associate",1,"Junior Library Assistant",{"$f":"IF(J418>0,(J418/(K418*52)),\"  \")","v":{"v":13.921978021978022,"d":"$13.92"}},"Y",{"v":25338,"d":"$25,338"},35,"No"]
["38","WOONSOCKET","WNS","WOONSOCKET HARRIS PUBLIC LIBRARY","Library Associate",2,"Library Assistant/Part Time",{"v":10.12,"d":"$10.12"}," N",null,19.5,"No"]
["38","WOONSOCKET","WNS","WOONSOCKET HARRIS PUBLIC LIBRARY","Library Associate",1,"Library Assistant/Part Time",{"v":10.12,"d":"$10.12"}," N",null,8,"No"]
["38","WOONSOCKET","WNS","WOONSOCKET HARRIS PUBLIC LIBRARY","Library Associate",1,"Library Assistant/Part Time",{"v":10.12,"d":"$10.12"}," N",null,7.5,"No"]
["38","WOONSOCKET","WNS","WOONSOCKET HARRIS PUBLIC LIBRARY","Library Associate",1,"Computer Literacy Coordinator",{"v":20.87,"d":"$20.87"}," N",null,4,"No"]
["13","HOPKINTON","ASH","ASHAWAY FREE LIBRARY","Library Technician",3,"Staff Librarian",{"v":11.65,"d":"$11.65"}," N",null,13,"No"]
["13","HOPKINTON","ASH","ASHAWAY FREE LIBRARY","Library Technician",1,"Substitute Librarian",{"v":15.2,"d":"$15.20"}," N",null,2,"No"]
["1","BARRINGTON","BAR","BARRINGTON PUBLIC LIBRARY","Library Technician",1,"Library assistant II",{"$f":"IF(J425>0,(J425/(K425*52)),\"  \")","v":{"v":19.736813186813187,"d":"$19.74"}},"Y",{"v":35921,"d":"$35,921"},35,"No"]
["1","BARRINGTON","BAR","BARRINGTON PUBLIC LIBRARY","Library Technician",1,"Library assistant II",{"$f":"IF(J426>0,(J426/(K426*52)),\"  \")","v":{"v":18.878021978021977,"d":"$18.88"}},"Y",{"v":34358,"d":"$34,358"},35,"No"]
["4","CENTRAL FALLS","CFA","CENTRAL FALLS FREE PUBLIC LIBRARY","Library Technician",1,"Library Aide",{"v":9,"d":"$9.00"},{"$f":"IF(J427>0,\"Y\",\" N\")","v":" N"},null,25,"No"]
["6","COVENTRY","COV","COVENTRY PUBLIC LIBRARY","Library Technician",1,"Technology Coordinator",{"$f":"IF(J428>0,(J428/(K428*52)),\"  \")","v":{"v":24.147252747252747,"d":"$24.15"}},"Y",{"v":21974,"d":"$21,974"},17.5,"No"]
["6","COVENTRY","COV","COVENTRY PUBLIC LIBRARY","Library Technician",10,"Part-time Circulation/Youth Services Assistants",{"v":13.35,"d":"$13.35"}," N",null,19,"No"]
["6","COVENTRY","COV","COVENTRY PUBLIC LIBRARY","Library Technician",1,"Technical Assistant",{"v":11.91,"d":"$11.91"}," N",null,19,"No"]
["6","COVENTRY","COV","COVENTRY PUBLIC LIBRARY","Library Technician",1,"Homebound Coordinator",{"v":11.76,"d":"$11.76"}," N",null,15,"No"]
["7","CRANSTON","CRA","CRANSTON PUBLIC LIBRARY","Library Technician",4,"Library Aide",{"v":9,"d":"$9.00"}," N",null,3,"No"]
["7","CRANSTON","CRA","CRANSTON PUBLIC LIBRARY","Library Technician",2,"Library Aide",{"v":9,"d":"$9.00"}," N",null,5,"No"]
["7","CRANSTON","CRA","CRANSTON PUBLIC LIBRARY","Library Technician",4,"Library Aide",{"v":9,"d":"$9.00"}," N",null,12,"No"]
["7","CRANSTON","CRA","CRANSTON PUBLIC LIBRARY","Library Technician",2,"Library Aide",{"v":9,"d":"$9.00"}," N",null,16,"No"]
["7","CRANSTON","CRA","CRANSTON PUBLIC LIBRARY","Library Technician",3,"Library Aide",{"v":9,"d":"$9.00"}," N",null,4,"No"]
["7","CRANSTON","CRA","CRANSTON PUBLIC LIBRARY","Library Technician",2,"Library Aide",{"v":9,"d":"$9.00"}," N",null,8,"No"]
["7","CRANSTON","CRA","CRANSTON PUBLIC LIBRARY","Library Technician",2,"Library Aide",{"v":9,"d":"$9.00"}," N",null,18,"No"]
["7","CRANSTON","CRA","CRANSTON PUBLIC LIBRARY","Library Technician",2,"Library Aide",{"v":9,"d":"$9.00"}," N",null,20,"No"]
["7","CRANSTON","CRA","CRANSTON PUBLIC LIBRARY","Library Technician",3,"Library Aide",{"v":9,"d":"$9.00"}," N",null,15,"No"]
["7","CRANSTON","CRA","CRANSTON PUBLIC LIBRARY","Library Technician",2,"Library Aide",{"v":9,"d":"$9.00"}," N",null,21,"No"]
["7","CRANSTON","CRA","CRANSTON PUBLIC LIBRARY","Library Technician",1,"Library Aide",{"v":9.75,"d":"$9.75"}," N",null,25,"No"]
["7","CRANSTON","CRA","CRANSTON PUBLIC LIBRARY","Library Technician",1,"Library Aide",{"v":11.55,"d":"$11.55"}," N",null,18,"No"]
["8","CUMBERLAND","CUM","CUMBERLAND PUBLIC LIBRARY","Library Technician",1,"Part-time Catalog Assistant",{"v":15.27,"d":"$15.27"}," N",null,19.5,"No"]
["8","CUMBERLAND","CUM","CUMBERLAND PUBLIC LIBRARY","Library Technician",1,"Part-time Catalog Assistant",{"v":14.52,"d":"$14.52"}," N",null,19.5,"No"]
["10","EAST PROVIDENCE","EPL","EAST PROVIDENCE PUBLIC LIBRARY","Library Technician",7,"Library Aide",{"$f":"IF(J446>0,(J446/(K446*52)),\"  \")","v":{"v":19.625274725274725,"d":"$19.63"}},"Y",{"v":35718,"d":"$35,718"},35,"No"]
["30","SMITHFIELD","ESM","EAST SMITHFIELD PUBLIC LIBRARY","Library Technician",1,"Library Technician",{"v":11.55,"d":"$11.55"},"N",{"v":18018,"d":"$18,018"},30,"No"]
["30","SMITHFIELD","ESM","EAST SMITHFIELD PUBLIC LIBRARY","Library Technician",1,"Library Technician",{"v":11.19,"d":"$11.19"},"N",{"v":18038,"d":"$18,038"},31,"No"]
[10.5,"EXETER","EXE","EXETER PUBLIC LIBRARY","Library Technician",1,"Library Assistant",{"v":12.5,"d":"$12.50"},{"$f":"IF(J449>0,\"Y\",\" N\")","v":" N"},null,12,"N/A"]
[10.5,"EXETER","EXE","EXETER PUBLIC LIBRARY","Library Technician",2,"Library Assistant",{"v":9,"d":"$9.00"}," N",null,12,"No"]
[10.5,"EXETER","EXE","EXETER PUBLIC LIBRARY","Library Technician",1,"Library Assistant",{"v":9,"d":"$9.00"}," N",null,18,"N/A"]
[10.5,"EXETER","EXE","EXETER PUBLIC LIBRARY","Library Technician",1,"Library Assistant",{"v":9.27,"d":"$9.27"}," N",null,11,"No"]
["12","GLOCESTER","GLO","GLOCESTER MANTON FREE PUBLIC LIBRARY","Library Technician",1,"Circulation Assistant",{"v":10.86,"d":"$10.86"}," N",null,15,"No"]
["12","GLOCESTER","GLO","GLOCESTER MANTON FREE PUBLIC LIBRARY","Library Technician",1,"Circulation Head",{"v":11.91,"d":"$11.91"}," N",null,15,"No"]
["12","GLOCESTER","GLO","GLOCESTER MANTON FREE PUBLIC LIBRARY","Library Technician",1,"Library Technician",{"v":10.89,"d":"$10.89"}," N",null,15,"No"]
["12","GLOCESTER","GLO","GLOCESTER MANTON FREE PUBLIC LIBRARY","Library Technician",1,"Library Technician",{"v":10.58,"d":"$10.58"}," N",null,20,"No"]
["12","GLOCESTER","HAR","HARMONY LIBRARY","Library Technician",1,"Circulation Assistant",{"v":11.51,"d":"$11.51"}," N",null,21,"No"]
["12","GLOCESTER","HAR","HARMONY LIBRARY","Library Technician",1,"Circulation Assistant",{"v":10.3,"d":"$10.30"}," N",null,8,"No"]
["12","GLOCESTER","HAR","HARMONY LIBRARY","Library Technician",1,"Circulation Assistant",{"v":11.67,"d":"$11.67"}," N",null,23,"No"]
["12","GLOCESTER","HAR","HARMONY LIBRARY","Library Technician",1,"Circulation Head",{"v":14.94,"d":"$14.94"}," N",null,24,"No"]
["29","SCITUATE","HPE","HOPE LIBRARY","Library Technician",1,"Librarian Technician",{"v":10,"d":"$10.00"}," N",null,14,"No"]
["29","SCITUATE","HPE","HOPE LIBRARY","Library Technician",1,"Librarian Technician",{"v":10.75,"d":"$10.75"}," N",null,6,"No"]
["29","SCITUATE","HPE","HOPE LIBRARY","Library Technician",1,"Librarian Technician",{"v":10.25,"d":"$10.25"}," N",null,15,"No"]
["29","SCITUATE","HPE","HOPE LIBRARY","Library Technician",1,"Librarian Technician",{"v":11,"d":"$11.00"}," N",null,8,"No"]
["29","SCITUATE","HPE","HOPE LIBRARY","Library Technician",1,"Librarian Technician",{"v":10,"d":"$10.00"}," N",null,15,"No"]
["29","SCITUATE","HPE","HOPE LIBRARY","Library Technician",1,"Librarian Technician",{"v":10.75,"d":"$10.75"}," N",null,18,"No"]
["3","BURRILLVILLE","BUR","JESSE M. SMITH MEMORIAL LIBRARY","Library Technician",1,"Library Assistant (Circulation II)",{"v":11.42,"d":"$11.42"}," N",null,14.5,"No"]
["3","BURRILLVILLE","BUR","JESSE M. SMITH MEMORIAL LIBRARY","Library Technician",1,"Library Assistant (Circulation II)",{"v":12.68,"d":"$12.68"}," N",null,18,"No"]
["3","BURRILLVILLE","BUR","JESSE M. SMITH MEMORIAL LIBRARY","Library Technician",1,"Library Assistant (Circulation II)",{"v":12,"d":"$12.00"}," N",null,14,"No"]
["3","BURRILLVILLE","BUR","JESSE M. SMITH MEMORIAL LIBRARY","Library Technician",1,"Library Assistant (Circulation III)/Admin. Assistant",{"v":16.62,"d":"$16.62"}," N",null,35,"No"]
["3","BURRILLVILLE","BUR","JESSE M. SMITH MEMORIAL LIBRARY","Library Technician",1,"Library Assistant (Circulation III)",{"v":14.8,"d":"$14.80"}," N",null,35,"No"]
["16","LINCOLN","LIN","LINCOLN PUBLIC LIBRARY","Library Technician",3,"Tech 2 PS",{"v":15.35,"d":"$15.35"}," N",null,35,"No"]
["16","LINCOLN","LIN","LINCOLN PUBLIC LIBRARY","Library Technician",1,"Tech 1 PS",{"v":14.34,"d":"$14.34"}," N",null,35,"No"]
["16","LINCOLN","LIN","LINCOLN PUBLIC LIBRARY","Library Technician",1,"Part time Circulation",{"v":11.31,"d":"$11.31"}," N",null,12,"No"]
["16","LINCOLN","LIN","LINCOLN PUBLIC LIBRARY","Library Technician",1,"Part time Circulation",{"v":10.69,"d":"$10.69"}," N",null,14,"No"]
["16","LINCOLN","LIN","LINCOLN PUBLIC LIBRARY","Library Technician",1,"Part time Circulation",{"v":10.69,"d":"$10.69"}," N",null,11.5,"No"]
["15","JOHNSTON","JOH","MARIAN J. MOHR MEMORIAL LIBRARY","Library Technician",1,"Aide/Technician",{"v":9.46,"d":"$9.46"}," N",null,19,"No"]
["15","JOHNSTON","JOH","MARIAN J. MOHR MEMORIAL LIBRARY","Library Technician",1,"Aide/Technician",{"v":9,"d":"$9.00"}," N",null,19,"No"]
["15","JOHNSTON","JOH","MARIAN J. MOHR MEMORIAL LIBRARY","Library Technician",1,"Library Assistant",{"v":9,"d":"$9.00"}," N",null,9,"No"]
["19","NARRAGANSETT","NAR","MAURY LOONTJENS MEMORIAL LIBRARY (NARRAGANSETT)","Library Technician",2,"Library Clerk",{"v":9,"d":"$9.00"}," N",null,41,"No"]
["19","NARRAGANSETT","NAR","MAURY LOONTJENS MEMORIAL LIBRARY (NARRAGANSETT)","Library Technician",1,"Library Clerk",{"v":9,"d":"$9.00"}," N",null,16,"Yes"]
["19","NARRAGANSETT","NAR","MAURY LOONTJENS MEMORIAL LIBRARY (NARRAGANSETT)","Library Technician",1,"Library Clerk",{"v":9.39,"d":"$9.39"}," N",null,8,"No"]
["19","NARRAGANSETT","NAR","MAURY LOONTJENS MEMORIAL LIBRARY (NARRAGANSETT)","Library Technician",1,"Library Clerk",{"v":10.97,"d":"$10.97"}," N",null,15,"No"]
["19","NARRAGANSETT","NAR","MAURY LOONTJENS MEMORIAL LIBRARY (NARRAGANSETT)","Library Technician",1,"library Clerk",{"v":9,"d":"$9.00"}," N",null,4,"No"]
["19","NARRAGANSETT","NAR","MAURY LOONTJENS MEMORIAL LIBRARY (NARRAGANSETT)","Library Technician",1,"Library Clerk",{"v":9.25,"d":"$9.25"}," N",null,25,"No"]
["19","NARRAGANSETT","NAR","MAURY LOONTJENS MEMORIAL LIBRARY (NARRAGANSETT)","Library Technician",1,"Library Clerk",{"v":13.64,"d":"$13.64"}," N",null,25,"No"]
["19","NARRAGANSETT","NAR","MAURY LOONTJENS MEMORIAL LIBRARY (NARRAGANSETT)","Library Technician",1,"Library clerk",{"v":15.35,"d":"$15.35"}," N",null,18,"No"]
["19","NARRAGANSETT","NAR","MAURY LOONTJENS MEMORIAL LIBRARY (NARRAGANSETT)","Library Technician",1,"Library Clerk",{"v":12.15,"d":"$12.15"}," N",null,12,"No"]
["21","NEWPORT","NPT","NEWPORT PUBLIC LIBRARY","Library Technician",1,"Library Aide part time",{"v":14.42,"d":"$14.42"}," N",null,25,"No"]
["21","NEWPORT","NPT","NEWPORT PUBLIC LIBRARY","Library Technician",1,"Technical Services Aide",{"v":14.42,"d":"$14.42"}," N",null,20,"No"]
["21","NEWPORT","NPT","NEWPORT PUBLIC LIBRARY","Library Technician",1,"Library Technician",{"v":14.42,"d":"$14.42"}," N",null,25,"No"]
["22","NORTH KINGSTOWN","NKI","NORTH KINGSTOWN FREE LIBRARY","Library Technician",1,"Circulation ",{"$f":"IF(J492>0,(J492/(K492*52)),\"  \")","v":{"v":21.21153846153846,"d":"$21.21"}},"Y",{"v":38605,"d":"$38,605"},35,"No"]
["22","NORTH KINGSTOWN","NKI","NORTH KINGSTOWN FREE LIBRARY","Library Technician",1,"Circulation",{"$f":"IF(J493>0,(J493/(K493*52)),\"  \")","v":{"v":19.64065934065934,"d":"$19.64"}},"Y",{"v":35746,"d":"$35,746"},35,"No"]
["23","NORTH PROVIDENCE","NPR","NORTH PROVIDENCE UNION FREE","Library Technician",1,"Circulation Associate",{"v":9.39,"d":"$9.39"},{"$f":"IF(J494>0,\"Y\",\" N\")","v":" N"},null,17,"No"]
["23","NORTH PROVIDENCE","NPR","NORTH PROVIDENCE UNION FREE","Library Technician",1,"Circulation Associate",{"v":10.21,"d":"$10.21"}," N",null,15,"No"]
["23","NORTH PROVIDENCE","NPR","NORTH PROVIDENCE UNION FREE","Library Technician",1,"Circulation Associate",{"v":9.66,"d":"$9.66"}," N",null,15,"No"]
["23","NORTH PROVIDENCE","NPR","NORTH PROVIDENCE UNION FREE","Library Technician",1,"Circulation Associate",{"v":11.43,"d":"$11.43"}," N",null,12,"No"]
["23","NORTH PROVIDENCE","NPR","NORTH PROVIDENCE UNION FREE","Library Technician",1,"Circulation Associate",{"v":11.82,"d":"$11.82"}," N",null,19,"No"]
["23","NORTH PROVIDENCE","NPR","NORTH PROVIDENCE UNION FREE","Library Technician",1,"Reference Associate",{"v":11.43,"d":"$11.43"}," N",null,18,"No"]
["23","NORTH PROVIDENCE","NPR","NORTH PROVIDENCE UNION FREE","Library Technician",1,"Reference Associate",{"v":9.63,"d":"$9.63"}," N",null,15,"No"]
["23","NORTH PROVIDENCE","NPR","NORTH PROVIDENCE UNION FREE","Library Technician",1,"Reference Associate",{"v":9,"d":"$9.00"}," N",null,18,"No"]
["23","NORTH PROVIDENCE","NPR","NORTH PROVIDENCE UNION FREE","Library Technician",1,"Sr. Children\\'s Associate",{"v":12.59,"d":"$12.59"}," N",null,16,"No"]
["23","NORTH PROVIDENCE","NPR","NORTH PROVIDENCE UNION FREE","Library Technician",2,"Circulation Associate",{"v":9,"d":"$9.00"}," N",null,17,"No"]
["23","NORTH PROVIDENCE","NPR","NORTH PROVIDENCE UNION FREE","Library Technician",3,"Children\\'s Associate",{"v":9.39,"d":"$9.39"}," N",null,15,"No"]
["23","NORTH PROVIDENCE","NPR","NORTH PROVIDENCE UNION FREE","Library Technician",1,"Circulation Associate",{"v":9,"d":"$9.00"}," N",null,15,"No"]
["29","SCITUATE","SCI","NORTH SCITUATE PUBLIC LIBRARY","Library Technician",1,"Circulation Assistant",{"v":13,"d":"$13.00"}," N",null,32,"No"]
["29","SCITUATE","SCI","NORTH SCITUATE PUBLIC LIBRARY","Library Technician",1,"Circulation Assistant",{"v":10,"d":"$10.00"}," N",null,19,"No"]
["29","SCITUATE","SCI","NORTH SCITUATE PUBLIC LIBRARY","Library Technician",1,"Circulation Assistant",{"v":9.6,"d":"$9.60"}," N",null,11,"No"]
["29","SCITUATE","SCI","NORTH SCITUATE PUBLIC LIBRARY","Library Technician",1,"Circulation Assistant",{"v":10,"d":"$10.00"}," N",null,7,"No"]
["29","SCITUATE","SCI","NORTH SCITUATE PUBLIC LIBRARY","Library Technician",1,"Circulation Assistant",{"v":10,"d":"$10.00"}," N",null,4,"No"]
["29","SCITUATE","SCI","NORTH SCITUATE PUBLIC LIBRARY","Library Technician",1,"Circulation Assistant",{"v":10.25,"d":"$10.25"}," N",null,3,"No"]
["25","PAWTUCKET","PAW","PAWTUCKET PUBLIC LIBRARY","Library Technician",1,"Library Assistant I Circ ",{"v":17.52,"d":"$17.52"},"Y",{"v":31880,"d":"$31,880"},35,"No"]
["25","PAWTUCKET","PAW","PAWTUCKET PUBLIC LIBRARY","Library Technician",2,"Library Assistant II Circ",{"v":18.9,"d":"$18.90"},"Y",{"v":34402,"d":"$34,402"},35,"No"]
["25","PAWTUCKET","PAW","PAWTUCKET PUBLIC LIBRARY","Library Technician",2,"Library Assistant I",{"v":16.95,"d":"$16.95"},"Y",{"v":16743,"d":"$16,743"},19,"No"]
["25","PAWTUCKET","PAW","PAWTUCKET PUBLIC LIBRARY","Library Technician",1,"Library Assistant II",{"v":18.47,"d":"$18.47"},"Y",{"v":33611,"d":"$33,611"},35,"No"]
["26","PORTSMOUTH","POR","PORTSMOUTH FREE PUBLIC LIBRARY","Library Technician",1,"Senior Library Assistant",{"v":17.27,"d":"$17.27"}," N",null,35,"No"]
["27","PROVIDENCE","PRO","PROVIDENCE PUBLIC LIBRARY","Library Technician",1,"Computer Support Specialist",{"$f":"IF(J517>0,(J517/(K517*52)),\"  \")","v":{"v":30.270256410256412,"d":"$30.27"}},"Y",{"v":59027,"d":"$59,027"},37.5,"No"]
["27","PROVIDENCE","PRO","PROVIDENCE PUBLIC LIBRARY","Library Technician",1,"Tech Trainer",{"$f":"IF(J518>0,(J518/(K518*52)),\"  \")","v":{"v":22.890224358974358,"d":"$22.89"}},"Y",{"v":28567,"d":"$28,567"},24,"No"]
["27","PROVIDENCE","PRO","PROVIDENCE PUBLIC LIBRARY","Library Technician",1,"Digital Producer",{"$f":"IF(J519>0,(J519/(K519*52)),\"  \")","v":{"v":28.24,"d":"$28.24"}},"Y",{"v":55068,"d":"$55,068"},37.5,"Yes"]
["31","SOUTH KINGSTOWN","SKI","SOUTH KINGSTOWN PUBLIC LIBRARY","Library Technician",1,"Library Technial Asst",{"v":18.38,"d":"$18.38"}," N",null,11.5,"No"]
["31","SOUTH KINGSTOWN","SKI","SOUTH KINGSTOWN PUBLIC LIBRARY","Library Technician",1,"Library Technial Ast",{"v":17.75,"d":"$17.75"}," N",null,21,"No"]
["31","SOUTH KINGSTOWN","SKI","SOUTH KINGSTOWN PUBLIC LIBRARY","Library Technician",1,"Library Technical Ast",{"v":20.15,"d":"$20.15"}," N",null,13,"No"]
["31","SOUTH KINGSTOWN","SKI","SOUTH KINGSTOWN PUBLIC LIBRARY","Library Technician",1,"Library Technical Asst",{"v":18.38,"d":"$18.38"}," N",null,28,"No"]
["31","SOUTH KINGSTOWN","SKI","SOUTH KINGSTOWN PUBLIC LIBRARY","Library Technician",1,"Library Asst",{"v":11.65,"d":"$11.65"}," N",null,19,"No"]
["31","SOUTH KINGSTOWN","SKI","SOUTH KINGSTOWN PUBLIC LIBRARY","Library Technician",1,"Library Asst",{"v":11.91,"d":"$11.91"}," N",null,15,"No"]
["31","SOUTH KINGSTOWN","SKI","SOUTH KINGSTOWN PUBLIC LIBRARY","Library Technician",1,"Library Asst",{"v":10.74,"d":"$10.74"},{"$f":"IF(J526>0,\"Y\",\" N\")","v":" N"},null,16,"No"]
["31","SOUTH KINGSTOWN","SKI","SOUTH KINGSTOWN PUBLIC LIBRARY","Library Technician",1,"Library Asst",{"v":10.74,"d":"$10.74"}," N",null,18,"Yes"]
["31","SOUTH KINGSTOWN","SKI","SOUTH KINGSTOWN PUBLIC LIBRARY","Library Technician",1,"Library Asst",{"v":11.91,"d":"$11.91"}," N",null,6,"No"]
["31","SOUTH KINGSTOWN","SKI","SOUTH KINGSTOWN PUBLIC LIBRARY","Library Technician",1,"Library Asst",{"v":12.85,"d":"$12.85"}," N",null,9,"No"]
["34","WARWICK","WAR","WARWICK PUBLIC LIBRARY","Library Technician",6,"Circ Aide",{"v":18.69,"d":"$18.69"}," N",null,19,"No"]
["34","WARWICK","WAR","WARWICK PUBLIC LIBRARY","Library Technician",1,"Circ Aide",{"v":14.8,"d":"$14.80"}," N",null,19,"No"]
["34","WARWICK","WAR","WARWICK PUBLIC LIBRARY","Library Technician",1,"Circ Aide",{"v":18.69,"d":"$18.69"}," N",null,6,"No"]
["34","WARWICK","WAR","WARWICK PUBLIC LIBRARY","Library Technician",3,"Circ Aide",{"v":14.8,"d":"$14.80"}," N",null,19,"No"]
["34","WARWICK","WAR","WARWICK PUBLIC LIBRARY","Library Technician",1,"Circ Aide",{"v":18.69,"d":"$18.69"}," N",null,10,"No"]
["34","WARWICK","WAR","WARWICK PUBLIC LIBRARY","Library Technician",1,"Circ Aide",{"v":14.8,"d":"$14.80"}," N",null,12,"No"]
["36","WEST WARWICK","WWA","WEST WARWICK PUBLIC LIBRARY","Library Technician",1,"Circulation Assistant/Tech Services",{"v":13.84,"d":"$13.84"}," N",null,19,"No"]
["36","WEST WARWICK","WWA","WEST WARWICK PUBLIC LIBRARY","Library Technician",1,"Circulation Assistant/Cataloging",{"v":12.81,"d":"$12.81"}," N",null,19,"No"]
["1","BARRINGTON","BAR","BARRINGTON PUBLIC LIBRARY","Manager/Department Head",1,"head of technical services",{"$f":"IF(J538>0,(J538/(K538*52)),\"  \")","v":{"v":35.878571428571426,"d":"$35.88"}},"Y",{"v":65299,"d":"$65,299"},35,"Yes"]
["1","BARRINGTON","BAR","BARRINGTON PUBLIC LIBRARY","Manager/Department Head",1,"head of reference",{"$f":"IF(J539>0,(J539/(K539*52)),\"  \")","v":{"v":34.57142857142857,"d":"$34.57"}},"Y",{"v":62920,"d":"$62,920"},35,"Yes"]
["1","BARRINGTON","BAR","BARRINGTON PUBLIC LIBRARY","Manager/Department Head",1,"community services librarian",{"$f":"IF(J540>0,(J540/(K540*52)),\"  \")","v":{"v":28.296703296703296,"d":"$28.30"}},"Y",{"v":51500,"d":"$51,500"},35,"Yes"]
["1","BARRINGTON","BAR","BARRINGTON PUBLIC LIBRARY","Manager/Department Head",1,"Technology Coordinator",{"$f":"IF(J541>0,(J541/(K541*52)),\"  \")","v":{"v":27.568681318681318,"d":"$27.57"}},"Y",{"v":50175,"d":"$50,175"},35,"No"]
["4","CENTRAL FALLS","CFA","CENTRAL FALLS FREE PUBLIC LIBRARY","Manager/Department Head",1,"Head of Circulation",{"v":9,"d":"$9.00"}," N",null,22,"No"]
["6","COVENTRY","COV","COVENTRY PUBLIC LIBRARY","Manager/Department Head",1,"Adult Services",{"$f":"IF(J543>0,(J543/(K543*52)),\"  \")","v":{"v":27.087362637362638,"d":"$27.09"}},"Y",{"v":49299,"d":"$49,299"},35,"Yes"]
["6","COVENTRY","COV","COVENTRY PUBLIC LIBRARY","Manager/Department Head",1,"Youth Services",{"v":32.61978021978022,"d":"$32.62"},"Y",{"v":59368,"d":"$59,368"},35,"Yes"]
["6","COVENTRY","COV","COVENTRY PUBLIC LIBRARY","Manager/Department Head",1,"Technical Services",{"v":29.88131868131868,"d":"$29.88"},"Y",{"v":54384,"d":"$54,384"},35,"Yes"]
["6","COVENTRY","COV","COVENTRY PUBLIC LIBRARY","Manager/Department Head",1,"Circulation Manager",{"v":25.33131868131868,"d":"$25.33"},"Y",{"v":46103,"d":"$46,103"},35,"No"]
["7","CRANSTON","CRA","CRANSTON PUBLIC LIBRARY","Manager/Department Head",1,"Coordinator of Adult Services",{"v":41.16263736263736,"d":"$41.16"},"Y",{"v":74916,"d":"$74,916"},35,"Yes"]
["7","CRANSTON","CRA","CRANSTON PUBLIC LIBRARY","Manager/Department Head",1,"Coordinator of youth Services",{"v":34.21208791208791,"d":"$34.21"},"Y",{"v":62266,"d":"$62,266"},35,"Yes"]
["7","CRANSTON","CRA","CRANSTON PUBLIC LIBRARY","Manager/Department Head",1,"Coordinator of Technical Services",{"v":35.67197802197802,"d":"$35.67"},"Y",{"v":64923,"d":"$64,923"},35,"Yes"]
["7","CRANSTON","CRA","CRANSTON PUBLIC LIBRARY","Manager/Department Head",1,"Head of Circulation",{"v":24.21868131868132,"d":"$24.22"},"Y",{"v":44078,"d":"$44,078"},35,"No"]
["7","CRANSTON","CRA","CRANSTON PUBLIC LIBRARY","Manager/Department Head",1,"Office Manager",{"v":24.21868131868132,"d":"$24.22"},"Y",{"v":44078,"d":"$44,078"},35,"No"]
["5","CHARLESTOWN","CHA","CROSS' MILLS PUBLIC LIBRARY","Manager/Department Head",1,"Musical Programming",{"v":17.58,"d":"$17.58"},{"$f":"IF(J552>0,\"Y\",\"N\")","v":"N"},null,10,"No"]
["8","CUMBERLAND","CUM","CUMBERLAND PUBLIC LIBRARY","Manager/Department Head",1,"Reference Services Coordinator",{"$f":"IF(J553>0,(J553/(K553*52)),\"  \")","v":{"v":29.04725274725275,"d":"$29.05"}},{"$f":"IF(J553>0,\"Y\",\" N\")","v":"Y"},{"v":52866,"d":"$52,866"},35,"Yes"]
["8","CUMBERLAND","CUM","CUMBERLAND PUBLIC LIBRARY","Manager/Department Head",1,"Adult Services Coordinator",{"$f":"IF(J554>0,(J554/(K554*52)),\"  \")","v":{"v":29.337912087912088,"d":"$29.34"}},"Y",{"v":53395,"d":"$53,395"},35,"Yes"]
["8","CUMBERLAND","CUM","CUMBERLAND PUBLIC LIBRARY","Manager/Department Head",1,"Children\\'s Services Coordinator",{"$f":"IF(J555>0,(J555/(K555*52)),\"  \")","v":{"v":28.411538461538463,"d":"$28.41"}},"Y",{"v":51709,"d":"$51,709"},35,"Yes"]
["8","CUMBERLAND","CUM","CUMBERLAND PUBLIC LIBRARY","Manager/Department Head",1,"Technical Services/Homebound Librarian",{"$f":"IF(J556>0,(J556/(K556*52)),\"  \")","v":{"v":28.411538461538463,"d":"$28.41"}},"Y",{"v":51709,"d":"$51,709"},35,"Yes"]
["8","CUMBERLAND","CUM","CUMBERLAND PUBLIC LIBRARY","Manager/Department Head",1,"Circulation Supervisor",{"v":21.02,"d":"$21.02"}," N",null,35,"No"]
["9","EAST GREENWICH","EGR","EAST GREENWICH FREE LIBRARY","Manager/Department Head",1,"Head of Refernce and Information Services",{"v":29.82,"d":"$29.82"}," N",null,35,"Yes"]
["9","EAST GREENWICH","EGR","EAST GREENWICH FREE LIBRARY","Manager/Department Head",1,"Head of Children\\'s Services",{"v":28.4,"d":"$28.40"}," N",null,35,"Yes"]
["9","EAST GREENWICH","EGR","EAST GREENWICH FREE LIBRARY","Manager/Department Head",1,"Head of Cirulation",{"v":20.22,"d":"$20.22"}," N",null,35,"No"]
["10","EAST PROVIDENCE","EPL","EAST PROVIDENCE PUBLIC LIBRARY","Manager/Department Head",1,"Information Services",{"$f":"IF(J561>0,(J561/(K561*52)),\"  \")","v":{"v":31.0478021978022,"d":"$31.05"}},"Y",{"v":56507,"d":"$56,507"},35,"Yes"]
["10","EAST PROVIDENCE","EPL","EAST PROVIDENCE PUBLIC LIBRARY","Manager/Department Head",1,"Systems Librarian",{"$f":"IF(J562>0,(J562/(K562*52)),\"  \")","v":{"v":31.0478021978022,"d":"$31.05"}},"Y",{"v":56507,"d":"$56,507"},35,"Yes"]
["10","EAST PROVIDENCE","EPL","EAST PROVIDENCE PUBLIC LIBRARY","Manager/Department Head",1,"Neighborhood and Community Services",{"$f":"IF(J563>0,(J563/(K563*52)),\"  \")","v":{"v":31.0478021978022,"d":"$31.05"}},"Y",{"v":56507,"d":"$56,507"},35,"Yes"]
["10","EAST PROVIDENCE","EPL","EAST PROVIDENCE PUBLIC LIBRARY","Manager/Department Head",1,"Adult Services",{"$f":"IF(J564>0,(J564/(K564*52)),\"  \")","v":{"v":31.0478021978022,"d":"$31.05"}},"Y",{"v":56507,"d":"$56,507"},35,"Yes"]
["10","EAST PROVIDENCE","EPL","EAST PROVIDENCE PUBLIC LIBRARY","Manager/Department Head",1,"Literacy Coordinator",{"$f":"IF(J565>0,(J565/(K565*52)),\"  \")","v":{"v":26.624725274725275,"d":"$26.62"}},"Y",{"v":48457,"d":"$48,457"},35,"No"]
["30","SMITHFIELD","ESM","EAST SMITHFIELD PUBLIC LIBRARY","Manager/Department Head",1,"Manager",{"v":29.97,"d":"$29.97"},"N",{"v":62296,"d":"$62,296"},40,"Yes"]
["32","TIVERTON","TIV","ESSEX PUBLIC LIBRARY","Manager/Department Head",1,"Circulation Librarian",{"v":24.88,"d":"$24.88"},{"$f":"IF(J567>0,\"Y\",\" N\")","v":" N"},null,35,"No"]
["32","TIVERTON","TIV","ESSEX PUBLIC LIBRARY","Manager/Department Head",1,"Technology Coordinator",{"v":19,"d":"$19.00"}," N",null,35,"No"]
["30","SMITHFIELD","GVL","GREENVILLE PUBLIC LIBRARY","Manager/Department Head",1,"Head of Circulation",{"$f":"IF(J569>0,(J569/(K569*52)),\"  \")","v":{"v":19.98024948024948,"d":"$19.98"}},"Y",{"v":38442,"d":"$38,442"},37,"No"]
["13","HOPKINTON","LAN","LANGWORTHY PUBLIC LIBRARY","Manager/Department Head",1,"Circulation Manager",{"v":12,"d":"$12.00"}," N",null,18,"No"]
["15","JOHNSTON","JOH","MARIAN J. MOHR MEMORIAL LIBRARY","Manager/Department Head",1,"Head of Circulation & Fiction Specialist",{"v":16.08,"d":"$16.08"}," N",null,35,"No"]
["19","NARRAGANSETT","NAR","MAURY LOONTJENS MEMORIAL LIBRARY (NARRAGANSETT)","Manager/Department Head",1,"Circulation Supervisor",{"$f":"IF(J572>0,(J572/(K572*52)),\"  \")","v":{"v":15.507692307692308,"d":"$15.51"}},"Y",{"v":32256,"d":"$32,256"},40,"No"]
["18","MIDDLETOWN","MID","MIDDLETOWN PUBLIC LIBRARY","Manager/Department Head",1,"Head of Reference",{"v":27.45,"d":"$27.45"}," N",null,35,"Yes"]
["18","MIDDLETOWN","MID","MIDDLETOWN PUBLIC LIBRARY","Manager/Department Head",1,"Head of Children\\'s Services",{"v":23.12,"d":"$23.12"}," N",null,35,"Yes"]
["18","MIDDLETOWN","MID","MIDDLETOWN PUBLIC LIBRARY","Manager/Department Head",1,"Head of Technical Services",{"v":22.84,"d":"$22.84"}," N",null,35,"No"]
["18","MIDDLETOWN","MID","MIDDLETOWN PUBLIC LIBRARY","Manager/Department Head",1,"Circulation Supervisor",{"v":22.84,"d":"$22.84"}," N",null,35,"No"]
["21","NEWPORT","NPT","NEWPORT PUBLIC LIBRARY","Manager/Department Head",1,"Circulation Supervisor",{"$f":"IF(J577>0,(J577/(K577*52)),\"  \")","v":{"v":21.34065934065934,"d":"$21.34"}},"Y",{"v":38840,"d":"$38,840"},35,"No"]
["21","NEWPORT","NPT","NEWPORT PUBLIC LIBRARY","Manager/Department Head",1,"Head of Children\\'s Services",{"v":30.995604395604396,"d":"$31.00"},"Y",{"v":56412,"d":"$56,412"},35,"Yes"]
["21","NEWPORT","NPT","NEWPORT PUBLIC LIBRARY","Manager/Department Head",1,"Head of Adult Services",{"v":30.995604395604396,"d":"$31.00"},"Y",{"v":56412,"d":"$56,412"},35,"Yes"]
["22","NORTH KINGSTOWN","NKI","NORTH KINGSTOWN FREE LIBRARY","Manager/Department Head",1,"Reference & Nonfiction Coordinator",{"v":30.654945054945056,"d":"$30.65"},"Y",{"v":55792,"d":"$55,792"},35,"Yes"]
["22","NORTH KINGSTOWN","NKI","NORTH KINGSTOWN FREE LIBRARY","Manager/Department Head",1,"Young Readers & Teens Coordinator",{"v":29.380769230769232,"d":"$29.38"},"Y",{"v":53473,"d":"$53,473"},35,"No"]
["22","NORTH KINGSTOWN","NKI","NORTH KINGSTOWN FREE LIBRARY","Manager/Department Head",1,"Community Outreach Coordinator",{"v":30.654945054945056,"d":"$30.65"},"Y",{"v":55792,"d":"$55,792"},35,"No"]
["22","NORTH KINGSTOWN","NKI","NORTH KINGSTOWN FREE LIBRARY","Manager/Department Head",1,"Technology Coordinator",{"v":26.588461538461537,"d":"$26.59"},"Y",{"v":48391,"d":"$48,391"},35,"No"]
["23","NORTH PROVIDENCE","NPR","NORTH PROVIDENCE UNION FREE","Manager/Department Head",1,"Youth Services Librarian",{"v":25.458791208791208,"d":"$25.46"},{"$f":"IF(J584>0,\"Y\",\" N\")","v":"Y"},{"v":46335,"d":"$46,335"},35,"Yes"]
["23","NORTH PROVIDENCE","NPR","NORTH PROVIDENCE UNION FREE","Manager/Department Head",1,"Collection Development Librarian",{"v":20.52857142857143,"d":"$20.53"},"Y",{"v":37362,"d":"$37,362"},35,"Yes"]
["23","NORTH PROVIDENCE","NPR","NORTH PROVIDENCE UNION FREE","Manager/Department Head",1,"Circulation Manager",{"v":21.467582417582417,"d":"$21.47"},"Y",{"v":39071,"d":"$39,071"},35,"No"]
["23","NORTH PROVIDENCE","NPR","NORTH PROVIDENCE UNION FREE","Manager/Department Head",1,"Circulation Supervisor",{"v":12.89,"d":"$12.89"}," N",null,19,"No"]
["23","NORTH PROVIDENCE","NPR","NORTH PROVIDENCE UNION FREE","Manager/Department Head",1,"Assistant Circulation Manager",{"$f":"IF(J588>0,(J588/(K588*52)),\"  \")","v":{"v":17.555494505494504,"d":"$17.56"}},"Y",{"v":31951,"d":"$31,951"},35,"No"]
["23","NORTH PROVIDENCE","NPR","NORTH PROVIDENCE UNION FREE","Manager/Department Head",1,"Reference Department Head",{"$f":"IF(J589>0,(J589/(K589*52)),\"  \")","v":{"v":28.11758241758242,"d":"$28.12"}},"Y",{"v":51174,"d":"$51,174"},35,"Yes"]
["29","SCITUATE","SCI","NORTH SCITUATE PUBLIC LIBRARY","Manager/Department Head",1,"Circulation Supervisor",{"v":17,"d":"$17.00"}," N",null,32.5,"No"]
["25","PAWTUCKET","PAW","PAWTUCKET PUBLIC LIBRARY","Manager/Department Head",3,"Coordinator",{"v":31.88,"d":"$31.88"},"Y",{"v":58017,"d":"$58,017"},35,"Yes"]
["25","PAWTUCKET","PAW","PAWTUCKET PUBLIC LIBRARY","Manager/Department Head",1,"Circulation Supervisor",{"v":23.95,"d":"$23.95"},"Y",{"v":43589,"d":"$43,589"},35,"No"]
["25","PAWTUCKET","PAW","PAWTUCKET PUBLIC LIBRARY","Manager/Department Head",1,"Literacy Coordinator",{"$f":"IF(J593>0,(J593/(K593*52)),\"  \")","v":{"v":19.594505494505494,"d":"$19.59"}},"Y",{"v":35662,"d":"$35,662"},35,"No"]
["27","PROVIDENCE","PCL","PROVIDENCE COMMUNITY LIBRARY","Manager/Department Head",1,"Business Director",{"v":38.46153846153846,"d":"$38.46"},"Y",{"v":80000,"d":"$80,000"},40,"No"]
["27","PROVIDENCE","PCL","PROVIDENCE COMMUNITY LIBRARY","Manager/Department Head",1,"Development Director",{"v":40.86538461538461,"d":"$40.87"},"Y",{"v":85000,"d":"$85,000"},40,"No"]
["27","PROVIDENCE","PCL","PROVIDENCE COMMUNITY LIBRARY","Manager/Department Head",1,"IT Director",{"v":29.807692307692307,"d":"$29.81"},"Y",{"v":62000,"d":"$62,000"},40,"No"]
["27","PROVIDENCE","PCL","PROVIDENCE COMMUNITY LIBRARY","Manager/Department Head",1,"Web/Computer Training Specialist",{"v":24.853365384615383,"d":"$24.85"},"Y",{"v":51695,"d":"$51,695"},40,"No"]
["27","PROVIDENCE","PCL","PROVIDENCE COMMUNITY LIBRARY","Manager/Department Head",1,"Program Coordinator",{"v":31.72980769230769,"d":"$31.73"},"Y",{"v":65998,"d":"$65,998"},40,"No"]
["27","PROVIDENCE","PCL","PROVIDENCE COMMUNITY LIBRARY","Manager/Department Head",1,"Youth Program Coordinator",{"v":32.378571428571426,"d":"$32.38"},"Y",{"v":58929,"d":"$58,929"},35,"Yes"]
["27","PROVIDENCE","PCL","PROVIDENCE COMMUNITY LIBRARY","Manager/Department Head",1,"Latino Program Coordinator",{"v":22.770256410256412,"d":"$22.77"},"Y",{"v":44402,"d":"$44,402"},37.5,"No"]
["27","PROVIDENCE","PCL","PROVIDENCE COMMUNITY LIBRARY","Manager/Department Head",1,"IMLS  coordinator",{"v":17.307692307692307,"d":"$17.31"},"Y",{"v":18000,"d":"$18,000"},20,"No"]
["27","PROVIDENCE","PCL","PROVIDENCE COMMUNITY LIBRARY","Manager/Department Head",3,"Regional Librarian",{"v":27.325,"d":"$27.33"},"Y",{"v":56836,"d":"$56,836"},40,"Yes"]
["27","PROVIDENCE","PCL","PROVIDENCE COMMUNITY LIBRARY","Manager/Department Head",1,"Head of Maintenance",{"v":33.12019230769231,"d":"$33.12"},"Y",{"v":68890,"d":"$68,890"},40,"No"]
["27","PROVIDENCE","PRO","PROVIDENCE PUBLIC LIBRARY","Manager/Department Head",1,"Business Manager",{"v":39.76,"d":"$39.76"},"Y",{"v":77532,"d":"$77,532"},37.5,"No"]
["27","PROVIDENCE","PRO","PROVIDENCE PUBLIC LIBRARY","Manager/Department Head",1,"Director of Marketing",{"v":36.850256410256414,"d":"$36.85"},"Y",{"v":71858,"d":"$71,858"},37.5,"No"]
["27","PROVIDENCE","PRO","PROVIDENCE PUBLIC LIBRARY","Manager/Department Head",1,"Facilities Manager",{"v":32.520192307692305,"d":"$32.52"},"Y",{"v":67642,"d":"$67,642"},40,"No"]
["27","PROVIDENCE","PRO","PROVIDENCE PUBLIC LIBRARY","Manager/Department Head",1,"Children\\'s Dept. Head",{"v":31.79025641025641,"d":"$31.79"},"Y",{"v":61991,"d":"$61,991"},37.5,"Yes"]
["27","PROVIDENCE","PRO","PROVIDENCE PUBLIC LIBRARY","Manager/Department Head",1,"Program Coordinator",{"v":35.15025641025641,"d":"$35.15"},"Y",{"v":68543,"d":"$68,543"},37.5,"No"]
["27","PROVIDENCE","PRO","PROVIDENCE PUBLIC LIBRARY","Manager/Department Head",1,"RI Collection Librarian",{"v":29.35025641025641,"d":"$29.35"},"Y",{"v":57233,"d":"$57,233"},37.5,"Yes"]
["27","PROVIDENCE","PRO","PROVIDENCE PUBLIC LIBRARY","Manager/Department Head",1,"Business Services Head",{"v":31.75025641025641,"d":"$31.75"},"Y",{"v":61913,"d":"$61,913"},37.5,"Yes"]
["27","PROVIDENCE","PRO","PROVIDENCE PUBLIC LIBRARY","Manager/Department Head",1,"Circulation Head",{"v":24.44,"d":"$24.44"},"Y",{"v":47658,"d":"$47,658"},37.5,"No"]
["27","PROVIDENCE","PRO","PROVIDENCE PUBLIC LIBRARY","Manager/Department Head",1,"Lead ESOL Teacher",{"v":25.06,"d":"$25.06"},"Y",{"v":48867,"d":"$48,867"},37.5,"No"]
["27","PROVIDENCE","PRO","PROVIDENCE PUBLIC LIBRARY","Manager/Department Head",1,"Special Collections Librarian",{"v":32.5,"d":"$32.50"},"Y",{"v":63375,"d":"$63,375"},37.5,"Yes"]
["27","PROVIDENCE","PRO","PROVIDENCE PUBLIC LIBRARY","Manager/Department Head",1,"Dir. RIFLI Adult Literacy",{"v":27.4,"d":"$27.40"},"Y",{"v":53430,"d":"$53,430"},37.5,"No"]
["27","PROVIDENCE","PRO","PROVIDENCE PUBLIC LIBRARY","Manager/Department Head",1,"Technical Services Head",{"v":33.3,"d":"$33.30"},"Y",{"v":64935,"d":"$64,935"},37.5,"Yes"]
["27","PROVIDENCE","PRO","PROVIDENCE PUBLIC LIBRARY","Manager/Department Head",1,"Reference Head",{"v":33.52,"d":"$33.52"},{"$f":"IF(J616>0,\"Y\",\" N\")","v":"Y"},{"v":65364,"d":"$65,364"},37.5,"Yes"]
["27","PROVIDENCE","PRO","PROVIDENCE PUBLIC LIBRARY","Manager/Department Head",1,"Director of Development",{"v":47.69025641025641,"d":"$47.69"},"Y",{"v":92996,"d":"$92,996"},37.5,"No"]
["27","PROVIDENCE","PRO","PROVIDENCE PUBLIC LIBRARY","Manager/Department Head",1,"Tech Director",{"v":39.23025641025641,"d":"$39.23"},"Y",{"v":76499,"d":"$76,499"},37.5,"Yes"]
["31","SOUTH KINGSTOWN","SKI","SOUTH KINGSTOWN PUBLIC LIBRARY","Manager/Department Head",1,"Central Library Services Manager",{"v":32.03186813186813,"d":"$32.03"},"Y",{"v":58298,"d":"$58,298"},35,"Yes"]
["31","SOUTH KINGSTOWN","SKI","SOUTH KINGSTOWN PUBLIC LIBRARY","Manager/Department Head",1,"Circ Supervisor",{"v":22.19175824175824,"d":"$22.19"},"Y",{"v":40389,"d":"$40,389"},35,"No"]
["34","WARWICK","WAR","WARWICK PUBLIC LIBRARY","Manager/Department Head",5,"Librarian II",{"v":33.834871794871795,"d":"$33.83"},"Y",{"v":65978,"d":"$65,978"},37.5,"Yes"]
["34","WARWICK","WAR","WARWICK PUBLIC LIBRARY","Manager/Department Head",1,"Circ.Tech.Supervisor",{"v":18.83901098901099,"d":"$18.84"},"Y",{"v":34287,"d":"$34,287"},35,"No"]
["36","WEST WARWICK","WWA","WEST WARWICK PUBLIC LIBRARY","Manager/Department Head",1,"Head of Youth Services",{"v":25.11263736263736,"d":"$25.11"},"Y",{"v":45705,"d":"$45,705"},35,"Yes"]
["36","WEST WARWICK","WWA","WEST WARWICK PUBLIC LIBRARY","Manager/Department Head",1,"Head of Information Services",{"v":21.28901098901099,"d":"$21.29"},"Y",{"v":38746,"d":"$38,746"},35,"Yes"]
["36","WEST WARWICK","WWA","WEST WARWICK PUBLIC LIBRARY","Manager/Department Head",1,"Head of Circulation",{"v":17.322527472527472,"d":"$17.32"},"Y",{"v":31527,"d":"$31,527"},35,"No"]
["36","WEST WARWICK","WWA","WEST WARWICK PUBLIC LIBRARY","Manager/Department Head",1,"ESL Coordinator",{"v":17.04010989010989,"d":"$17.04"},"Y",{"v":31013,"d":"$31,013"},35,"No"]
["37","WESTERLY","WES","WESTERLY PUBLIC LIBRARY","Manager/Department Head",1,"Administrative Services Manager",{"v":29.095054945054944,"d":"$29.10"},"Y",{"v":52953,"d":"$52,953"},35,"No"]
["37","WESTERLY","WES","WESTERLY PUBLIC LIBRARY","Manager/Department Head",1,"Children\\'s Dept Head",{"v":34.30384615384615,"d":"$34.30"},"Y",{"v":62433,"d":"$62,433"},35,"N/A"]
["37","WESTERLY","WES","WESTERLY PUBLIC LIBRARY","Manager/Department Head",1,"Collection Management Librarian",{"v":34.30384615384615,"d":"$34.30"},"Y",{"v":62433,"d":"$62,433"},35,"Yes"]
["37","WESTERLY","WES","WESTERLY PUBLIC LIBRARY","Manager/Department Head",1,"Circulation Manager",{"v":26.09065934065934,"d":"$26.09"},"Y",{"v":47485,"d":"$47,485"},35,"Yes"]
["38","WOONSOCKET","WNS","WOONSOCKET HARRIS PUBLIC LIBRARY","Manager/Department Head",1,"Chief Reference & Adult Services Librarian",{"v":27.481868131868133,"d":"$27.48"},"Y",{"v":50017,"d":"$50,017"},35,"Yes"]
["38","WOONSOCKET","WNS","WOONSOCKET HARRIS PUBLIC LIBRARY","Manager/Department Head",1,"Chief Children\\'s & Youth Services Librarian",{"v":26.966483516483517,"d":"$26.97"},"Y",{"v":49079,"d":"$49,079"},35,"Yes"]
["13","HOPKINTON","ASH","ASHAWAY FREE LIBRARY","Office Staff",1,"Bookkeeper",{"v":15,"d":"$15.00"}," N",null,2,"No"]
["28","RICHMOND","CLA","CLARK MEMORIAL LIBRARY","Office Staff",1,"bookkeeper",{"v":14.99,"d":"$14.99"}," N",null,2,"No"]
["7","CRANSTON","CRA","CRANSTON PUBLIC LIBRARY","Office Staff",1,"Administrative Assistant",{"$f":"IF(J635>0,(J635/(K635*52)),\"  \")","v":{"v":20.68791208791209,"d":"$20.69"}},"Y",{"v":37652,"d":"$37,652"},35,"No"]
["7","CRANSTON","CRA","CRANSTON PUBLIC LIBRARY","Office Staff",1,"Community Engagment Mgr",{"$f":"IF(J636>0,(J636/(K636*52)),\"  \")","v":{"v":16.355494505494505,"d":"$16.36"}},"Y",{"v":29767,"d":"$29,767"},35,"No"]
["7","CRANSTON","CRA","CRANSTON PUBLIC LIBRARY","Office Staff",1,"Secretary to Board",{"v":13.3,"d":"$13.30"}," N",null,1.5,"No"]
["8","CUMBERLAND","CUM","CUMBERLAND PUBLIC LIBRARY","Office Staff",1,"Administrative Assistant",{"v":21.82,"d":"$21.82"}," N",null,35,"No"]
["8","CUMBERLAND","CUM","CUMBERLAND PUBLIC LIBRARY","Office Staff",1,"Bookkeeper",{"v":17.21,"d":"$17.21"}," N",null,4,"No"]
["9","EAST GREENWICH","EGR","EAST GREENWICH FREE LIBRARY","Office Staff",1,"administrative assistant",{"v":17.86,"d":"$17.86"}," N",null,24,"No"]
["30","SMITHFIELD","ESM","EAST SMITHFIELD PUBLIC LIBRARY","Office Staff",1,"Bookeeper",{"v":27.77,"d":"$27.77"},"N",{"v":7942,"d":"$7,942"},5.5,"No"]
["32","TIVERTON","TIV","ESSEX PUBLIC LIBRARY","Office Staff",1,"Office Assistant",{"v":18,"d":"$18.00"},{"$f":"IF(J642>0,\"Y\",\" N\")","v":" N"},null,15,"No"]
["12","GLOCESTER","GLO","GLOCESTER MANTON FREE PUBLIC LIBRARY","Office Staff",1,"Bookkeeper",{"$f":"IF(J643>0,(J643/(K643*52)),\"  \")","v":{"v":11.25,"d":"$11.25"}},{"$f":"IF(J643>0,\"Y\",\" N\")","v":"Y"},{"v":2340,"d":"$2,340"},4,"No"]
["12","GLOCESTER","HAR","HARMONY LIBRARY","Office Staff",1,"Bookkeeper",{"$f":"IF(J644>0,(J644/(K644*52)),\"  \")","v":{"v":24.610576923076923,"d":"$24.61"}},{"$f":"IF(J644>0,\"Y\",\" N\")","v":"Y"},{"v":5119,"d":"$5,119"},4,"No"]
["3","BURRILLVILLE","BUR","JESSE M. SMITH MEMORIAL LIBRARY","Office Staff",1,"Technology Specialist/Admin. Assistant",{"v":21.12,"d":"$21.12"},{"$f":"IF(J645>0,\"Y\",\" N\")","v":" N"},null,19.5,"No"]
["16","LINCOLN","LIN","LINCOLN PUBLIC LIBRARY","Office Staff",1,"Bookkeeper/Secretary",{"v":16.84,"d":"$16.84"},{"$f":"IF(J646>0,\"Y\",\" N\")","v":" N"},null,35,"No"]
["21","NEWPORT","NPT","NEWPORT PUBLIC LIBRARY","Office Staff",1,"Secretary",{"$f":"IF(J647>0,(J647/(K647*52)),\"  \")","v":{"v":22.541208791208792,"d":"$22.54"}},"Y",{"v":41025,"d":"$41,025"},35,"No"]
["21","NEWPORT","NPT","NEWPORT PUBLIC LIBRARY","Office Staff",1,"Bookkeeper",{"$f":"IF(J648>0,(J648/(K648*52)),\"  \")","v":{"v":25.926923076923078,"d":"$25.93"}},"Y",{"v":47187,"d":"$47,187"},35,"No"]
["23","NORTH PROVIDENCE","NPR","NORTH PROVIDENCE UNION FREE","Office Staff",1,"Executive Assistant",{"$f":"IF(J649>0,(J649/(K649*52)),\"  \")","v":{"v":22.01043956043956,"d":"$22.01"}},{"$f":"IF(J649>0,\"Y\",\" N\")","v":"Y"},{"v":40059,"d":"$40,059"},35,"No"]
["29","SCITUATE","SCI","NORTH SCITUATE PUBLIC LIBRARY","Office Staff",1,"Administrative Assistant/Cataloger",{"v":17.5,"d":"$17.50"}," N",null,18,"No"]
["3","PASCOAG","PAS","PASCOAG FREE PUBLIC LIBRARY","Office Staff",1,"Bookkeeper",{"$f":"IF(J651>0,(J651/(K651*52)),\"  \")","v":{"v":16.153846153846153,"d":"$16.15"}},"Y",{"v":2520,"d":"$2,520"},3,"No"]
["25","PAWTUCKET","PAW","PAWTUCKET PUBLIC LIBRARY","Office Staff",1,"Secretary",{"v":21.42,"d":"$21.42"},"Y",{"v":44543,"d":"$44,543"},40,"No"]
["26","PORTSMOUTH","POR","PORTSMOUTH FREE PUBLIC LIBRARY","Office Staff",1,"Office Manager",{"$f":"IF(J653>0,(J653/(K653*52)),\"  \")","v":{"v":19.23076923076923,"d":"$19.23"}},"Y",{"v":35000,"d":"$35,000"},35,"No"]
["27","PROVIDENCE","PCL","PROVIDENCE COMMUNITY LIBRARY","Office Staff",1,"Human Resources Specialist",{"v":24.03846153846154,"d":"$24.04"},"Y",{"v":50000,"d":"$50,000"},40,"No"]
["27","PROVIDENCE","PCL","PROVIDENCE COMMUNITY LIBRARY","Office Staff",1,"Administrative Assistant",{"v":19.23076923076923,"d":"$19.23"},"Y",{"v":40000,"d":"$40,000"},40,"No"]
["27","PROVIDENCE","PRO","PROVIDENCE PUBLIC LIBRARY","Office Staff",1,"Sr. H.R. Administrator",{"v":31.45025641025641,"d":"$31.45"},"Y",{"v":61328,"d":"$61,328"},37.5,"No"]
["27","PROVIDENCE","PRO","PROVIDENCE PUBLIC LIBRARY","Office Staff",1,"Exec. Admin. Asst.",{"v":25.71025641025641,"d":"$25.71"},"Y",{"v":50135,"d":"$50,135"},37.5,"No"]
["27","PROVIDENCE","PRO","PROVIDENCE PUBLIC LIBRARY","Office Staff",1,"Senior Accountant",{"v":28.36,"d":"$28.36"},"Y",{"v":55302,"d":"$55,302"},37.5,"No"]
["27","PROVIDENCE","PRO","PROVIDENCE PUBLIC LIBRARY","Office Staff",1,"Adm. Asst.",{"v":16,"d":"$16.00"},"Y",{"v":12480,"d":"$12,480"},15,"No"]
["34","WARWICK","WAR","WARWICK PUBLIC LIBRARY","Office Staff",1,"Adm.Mgr",{"v":23.46923076923077,"d":"$23.47"},"Y",{"v":42714,"d":"$42,714"},35,"No"]
["36","WEST WARWICK","WWA","WEST WARWICK PUBLIC LIBRARY","Office Staff",1,"Administrative Assistant",{"v":16.73846153846154,"d":"$16.74"},"Y",{"v":30464,"d":"$30,464"},35,"No"]
["37","WESTERLY","WES","WESTERLY PUBLIC LIBRARY","Office Staff",2,"Development/Bookkeeper",{"v":19.254091653027825,"d":"$19.25"},"Y",{"v":47057,"d":"$47,057"},47,"No"]
["6","COVENTRY","COV","COVENTRY PUBLIC LIBRARY","Reference/Information Librarian",5,"Part-time Reference Librarians",{"v":19.26,"d":"$19.26"}," N",null,15,"Yes"]
["7","CRANSTON","CRA","CRANSTON PUBLIC LIBRARY","Reference/Information Librarian",1,"Information Services Librarian",{"$f":"IF(J664>0,(J664/(K664*52)),\"  \")","v":{"v":30.062637362637364,"d":"$30.06"}},"Y",{"v":54714,"d":"$54,714"},35,"Yes"]
["7","CRANSTON","CRA","CRANSTON PUBLIC LIBRARY","Reference/Information Librarian",1,"Information Services Librarian",{"$f":"IF(J665>0,(J665/(K665*52)),\"  \")","v":{"v":23.72747252747253,"d":"$23.73"}},"Y",{"v":43184,"d":"$43,184"},35,"Yes"]
["7","CRANSTON","CRA","CRANSTON PUBLIC LIBRARY","Reference/Information Librarian",1,"Information Services Librarian",{"$f":"IF(J666>0,(J666/(K666*52)),\"  \")","v":{"v":30.342307692307692,"d":"$30.34"}},"Y",{"v":55223,"d":"$55,223"},35,"Yes"]
["7","CRANSTON","CRA","CRANSTON PUBLIC LIBRARY","Reference/Information Librarian",1,"Librarian",{"v":17.5,"d":"$17.50"}," N",null,6,"Yes"]
["7","CRANSTON","CRA","CRANSTON PUBLIC LIBRARY","Reference/Information Librarian",1,"Librarian",{"v":16.5,"d":"$16.50"}," N",null,30,"Yes"]
["7","CRANSTON","CRA","CRANSTON PUBLIC LIBRARY","Reference/Information Librarian",3,"Librarian",{"v":16.5,"d":"$16.50"}," N",null,6,"Yes"]
["9","EAST GREENWICH","EGR","EAST GREENWICH FREE LIBRARY","Reference/Information Librarian",1,"Reference librarian",{"v":20.5,"d":"$20.50"}," N",null,12,"Yes"]
["9","EAST GREENWICH","EGR","EAST GREENWICH FREE LIBRARY","Reference/Information Librarian",1,"Reference librarian",{"v":19.53,"d":"$19.53"}," N",null,20,"Yes"]
["32","TIVERTON","TIV","ESSEX PUBLIC LIBRARY","Reference/Information Librarian",1,"Adult Services Librarian",{"v":26.05,"d":"$26.05"}," N",null,35,"Yes"]
["33","WARREN","WRR","GEORGE HAIL FREE LIBRARY","Reference/Information Librarian",1,"Reference Librarian",{"v":21.97,"d":"$21.97"}," N",null,30,"Yes"]
["30","SMITHFIELD","GVL","GREENVILLE PUBLIC LIBRARY","Reference/Information Librarian",1,"Reference Librarian",{"$f":"IF(J674>0,(J674/(K674*52)),\"  \")","v":{"v":22.3489010989011,"d":"$22.35"}},"Y",{"v":8135,"d":"$8,135"},7,"Yes"]
["30","SMITHFIELD","GVL","GREENVILLE PUBLIC LIBRARY","Reference/Information Librarian",1,"Reference Librarian",{"$f":"IF(J675>0,(J675/(K675*52)),\"  \")","v":{"v":17.95,"d":"$17.95"}},"Y",{"v":14001,"d":"$14,001"},15,"Yes"]
["30","SMITHFIELD","GVL","GREENVILLE PUBLIC LIBRARY","Reference/Information Librarian",1,"Technology Coordinator",{"$f":"IF(J676>0,(J676/(K676*52)),\"  \")","v":{"v":29.15,"d":"$29.15"}},"Y",{"v":53053,"d":"$53,053"},35,"Yes"]
["12","GLOCESTER","HAR","HARMONY LIBRARY","Reference/Information Librarian",1,"Reference/Technology Libraries",{"v":22.41,"d":"$22.41"}," N",null,26,"Yes"]
["12","GLOCESTER","HAR","HARMONY LIBRARY","Reference/Information Librarian",1,"Adult Services Librarian",{"v":19.63,"d":"$19.63"}," N",null,13,"Yes"]
["20","NEW SHOREHAM","NSH","ISLAND FREE LIBRARY","Reference/Information Librarian",1,"Circulation Clerk",{"v":12.9,"d":"$12.90"}," N",null,38,"No"]
["20","NEW SHOREHAM","NSH","ISLAND FREE LIBRARY","Reference/Information Librarian",1,"Circulation/ILL Clerk",{"v":16.57,"d":"$16.57"}," N",null,38,"No"]
["14","JAMESTOWN","JAM","JAMESTOWN PHILOMENIAN LIBRARY","Reference/Information Librarian",1,"Referrence Librarian",{"v":26.16,"d":"$26.16"}," N",null,40,"Yes"]
["3","BURRILLVILLE","BUR","JESSE M. SMITH MEMORIAL LIBRARY","Reference/Information Librarian",1,"Reference Specialist",{"v":21.78,"d":"$21.78"}," N",null,35,"No"]
["13","HOPKINTON","LAN","LANGWORTHY PUBLIC LIBRARY","Reference/Information Librarian",1,"Circulation Librarian",{"v":9,"d":"$9.00"}," N",null,4,"Yes"]
["11","FOSTER","FOS","LIBRARIES OF FOSTER","Reference/Information Librarian",1,"Special Collections/Reference",{"v":12.86,"d":"$12.86"}," N",null,18,"No"]
["16","LINCOLN","LIN","LINCOLN PUBLIC LIBRARY","Reference/Information Librarian",1,"Reference/YA",{"v":24.77,"d":"$24.77"}," N",null,35,"Yes"]
["16","LINCOLN","LIN","LINCOLN PUBLIC LIBRARY","Reference/Information Librarian",1,"Reference Librarian",{"v":17.81,"d":"$17.81"}," N",null,12,"Yes"]
["15","JOHNSTON","JOH","MARIAN J. MOHR MEMORIAL LIBRARY","Reference/Information Librarian",1,"Reference Librarian",{"v":18,"d":"$18.00"}," N",null,19,"Yes"]
["15","JOHNSTON","JOH","MARIAN J. MOHR MEMORIAL LIBRARY","Reference/Information Librarian",1,"Reference Librarian",{"v":18,"d":"$18.00"}," N",null,14,"Yes"]
["15","JOHNSTON","JOH","MARIAN J. MOHR MEMORIAL LIBRARY","Reference/Information Librarian",1,"Reference Librarian",{"v":18,"d":"$18.00"}," N",null,8,"Yes"]
["19","NARRAGANSETT","NAR","MAURY LOONTJENS MEMORIAL LIBRARY (NARRAGANSETT)","Reference/Information Librarian",1,"Reference Librarian",{"v":15.3,"d":"$15.30"}," N",null,25,"Yes"]
["21","NEWPORT","NPT","NEWPORT PUBLIC LIBRARY","Reference/Information Librarian",1,"Reference Librarian",{"$f":"IF(J691>0,(J691/(K691*52)),\"  \")","v":{"v":23.73956043956044,"d":"$23.74"}},"Y",{"v":43206,"d":"$43,206"},35,"Yes"]
["21","NEWPORT","NPT","NEWPORT PUBLIC LIBRARY","Reference/Information Librarian",1,"Reference Librarian",{"$f":"IF(J692>0,(J692/(K692*52)),\"  \")","v":{"v":25.123626373626372,"d":"$25.12"}},"Y",{"v":45725,"d":"$45,725"},35,"Yes"]
["22","NORTH KINGSTOWN","NKI","NORTH KINGSTOWN FREE LIBRARY","Reference/Information Librarian",1,"Reference & Local History Librarian",{"$f":"IF(J693>0,(J693/(K693*52)),\"  \")","v":{"v":26.276373626373626,"d":"$26.28"}},"Y",{"v":47823,"d":"$47,823"},35,"Yes"]
["23","NORTH PROVIDENCE","NPR","NORTH PROVIDENCE UNION FREE","Reference/Information Librarian",1,"Reference/Information Librarian",{"v":10.43,"d":"$10.43"},{"$f":"IF(J694>0,\"Y\",\" N\")","v":" N"},null,15,"Yes"]
["23","NORTH PROVIDENCE","NPR","NORTH PROVIDENCE UNION FREE","Reference/Information Librarian",1,"Reference/Information Librarian",{"$f":"IF(J695>0,(J695/(K695*52)),\"  \")","v":{"v":24.505494505494507,"d":"$24.51"}},"Y",{"v":44600,"d":"$44,600"},35,"Yes"]
["29","SCITUATE","SCI","NORTH SCITUATE PUBLIC LIBRARY","Reference/Information Librarian",1,"Reference Librarian",{"v":19.75,"d":"$19.75"}," N",null,20,"Yes"]
["29","SCITUATE","SCI","NORTH SCITUATE PUBLIC LIBRARY","Reference/Information Librarian",1,"Weekend Reference Librarian",{"v":15,"d":"$15.00"}," N",null,3,"Yes"]
["29","SCITUATE","SCI","NORTH SCITUATE PUBLIC LIBRARY","Reference/Information Librarian",1,"Weekend Reference Librarian",{"v":14.5,"d":"$14.50"}," N",null,3,"Yes"]
["24","NORTH SMITHFIELD","NSM","NORTH SMITHFIELD PUBLIC LIBRARY","Reference/Information Librarian",1,"REFERENCE",{"$f":"IF(J699>0,(J699/(K699*52)),\"  \")","v":{"v":20,"d":"$20.00"}},"Y",{"v":36400,"d":"$36,400"},35,"Yes"]
["25","PAWTUCKET","PAW","PAWTUCKET PUBLIC LIBRARY","Reference/Information Librarian",2,"Reference Librarian",{"v":28.05,"d":"$28.05"},"Y",{"v":51060,"d":"$51,060"},35,"Yes"]
["26","PORTSMOUTH","POR","PORTSMOUTH FREE PUBLIC LIBRARY","Reference/Information Librarian",1,"Reference/Young Adult",{"$f":"IF(J701>0,(J701/(K701*52)),\"  \")","v":{"v":24.695604395604395,"d":"$24.70"}},"Y",{"v":44946,"d":"$44,946"},35,"Yes"]
["26","PORTSMOUTH","POR","PORTSMOUTH FREE PUBLIC LIBRARY","Reference/Information Librarian",2,"Reference Librarian Sunday",{"v":26,"d":"$26.00"}," N",null,4,"No"]
["27","PROVIDENCE","PCL","PROVIDENCE COMMUNITY LIBRARY","Reference/Information Librarian",6,"Adult Services Librarian",{"$f":"IF(J703>0,(J703/(K703*52)),\"  \")","v":{"v":42.28988603988604,"d":"$42.29"}},"Y",{"v":59375,"d":"$59,375"},27,"Yes"]
["27","PROVIDENCE","PRO","PROVIDENCE PUBLIC LIBRARY","Reference/Information Librarian",1,"Librarian",{"v":19.384615384615383,"d":"$19.38"},"Y",{"v":2016,"d":"$2,016"},2,"Yes"]
["27","PROVIDENCE","PRO","PROVIDENCE PUBLIC LIBRARY","Reference/Information Librarian",1,"Librarian",{"v":22.44,"d":"$22.44"},"Y",{"v":43758,"d":"$43,758"},37.5,"Yes"]
["27","PROVIDENCE","PRO","PROVIDENCE PUBLIC LIBRARY","Reference/Information Librarian",2,"Librarian",{"v":21.419871794871796,"d":"$21.42"},"Y",{"v":20049,"d":"$20,049"},18,"Yes"]
["2","BRISTOL","BRI","ROGERS FREE LIBRARY","Reference/Information Librarian",2,"Ref/info/outreach librarian",{"v":23.076923076923077,"d":"$23.08"},"Y",{"v":42000,"d":"$42,000"},35,"Yes"]
["31","SOUTH KINGSTOWN","SKI","SOUTH KINGSTOWN PUBLIC LIBRARY","Reference/Information Librarian",1,"Reference Librarian",{"v":25.360989010989012,"d":"$25.36"},"Y",{"v":46157,"d":"$46,157"},35,"Yes"]
["31","SOUTH KINGSTOWN","SKI","SOUTH KINGSTOWN PUBLIC LIBRARY","Reference/Information Librarian",1,"Reference Librarian",{"v":24.15,"d":"$24.15"}," N",null,30,"Yes"]
["31","SOUTH KINGSTOWN","SKI","SOUTH KINGSTOWN PUBLIC LIBRARY","Reference/Information Librarian",1,"Reference Librarian",{"v":23.5,"d":"$23.50"}," N",null,3.5,"Yes"]
["31","SOUTH KINGSTOWN","SKI","SOUTH KINGSTOWN PUBLIC LIBRARY","Reference/Information Librarian",1,"Reference Librarian",{"v":24.15,"d":"$24.15"}," N",null,6.5,"Yes"]
["34","WARWICK","WAR","WARWICK PUBLIC LIBRARY","Reference/Information Librarian",2,"ReferenceLibI",{"$f":"IF(J712>0,(J712/(K712*52)),\"  \")","v":{"v":27.336410256410257,"d":"$27.34"}},"Y",{"v":53306,"d":"$53,306"},37.5,"Yes"]
["34","WARWICK","WAR","WARWICK PUBLIC LIBRARY","Reference/Information Librarian",3,"Reference Lib I",{"$f":"IF(J713>0,(J713/(K713*52)),\"  \")","v":{"v":29.19025641025641,"d":"$29.19"}},"Y",{"v":56921,"d":"$56,921"},37.5,"Yes"]
["34","WARWICK","WAR","WARWICK PUBLIC LIBRARY","Reference/Information Librarian",2,"Reference Lib I",{"v":27.34,"d":"$27.34"}," N",null,19,"Yes"]
["34","WARWICK","WAR","WARWICK PUBLIC LIBRARY","Reference/Information Librarian",1,"Reference LibI",{"v":23.62,"d":"$23.62"}," N",null,19,"Yes"]
["36","WEST WARWICK","WWA","WEST WARWICK PUBLIC LIBRARY","Reference/Information Librarian",1,"Information Services Librarian",{"v":17.05,"d":"$17.05"}," N",null,35,"Yes"]
["37","WESTERLY","WES","WESTERLY PUBLIC LIBRARY","Reference/Information Librarian",3,"Reference Librarian",{"$f":"IF(J717>0,(J717/(K717*52)),\"  \")","v":{"v":29.263186813186813,"d":"$29.26"}},"Y",{"v":159777,"d":"$159,777"},105,"Yes"]
["37","WESTERLY","WES","WESTERLY PUBLIC LIBRARY","Reference/Information Librarian",1,"Reference Librarian",{"$f":"IF(J718>0,(J718/(K718*52)),\"  \")","v":{"v":25.939903846153847,"d":"$25.94"}},"Y",{"v":21582,"d":"$21,582"},16,"Yes"]
["38","WOONSOCKET","WNS","WOONSOCKET HARRIS PUBLIC LIBRARY","Reference/Information Librarian",1,"Reference & Adult Services Librarian",{"$f":"IF(J719>0,(J719/(K719*52)),\"  \")","v":{"v":22.0510989010989,"d":"$22.05"}},"Y",{"v":40133,"d":"$40,133"},35,"Yes"]
["38","WOONSOCKET","WNS","WOONSOCKET HARRIS PUBLIC LIBRARY","Reference/Information Librarian",1,"Reader\\'s Advisor",{"$f":"IF(J720>0,(J720/(K720*52)),\"  \")","v":{"v":16.96868131868132,"d":"$16.97"}},"Y",{"v":30883,"d":"$30,883"},35,"No"]
["38","WOONSOCKET","WNS","WOONSOCKET HARRIS PUBLIC LIBRARY","Reference/Information Librarian",1,"Reference Librarian/Part Time",{"v":15.5,"d":"$15.50"}," N",null,10,"Yes"]
["17","LITTLE COMPTON","LCO","BROWNELL LIBRARY, HOME OF LITTLE COMPTON","Technical Services Librarian",1,"Technical Services Librarian",{"v":14.11,"d":"$14.11"}," N",null,28.5,"No"]
["5","CHARLESTOWN","CHA","CROSS' MILLS PUBLIC LIBRARY","Technical Services Librarian",1,"Technical Librarian",{"v":20.51,"d":"$20.51"},{"$f":"IF(J723>0,\"Y\",\"N\")","v":"N"},null,8.5,"Yes"]
["9","EAST GREENWICH","EGR","EAST GREENWICH FREE LIBRARY","Technical Services Librarian",1,"technical services",{"v":12.29,"d":"$12.29"},{"$f":"IF(J724>0,\"Y\",\" N\")","v":" N"},null,9,"No"]
["9","EAST GREENWICH","EGR","EAST GREENWICH FREE LIBRARY","Technical Services Librarian",1,"technical services",{"v":20.22,"d":"$20.22"},{"$f":"IF(J725>0,\"Y\",\" N\")","v":" N"},null,5,"No"]
["10","EAST PROVIDENCE","EPL","EAST PROVIDENCE PUBLIC LIBRARY","Technical Services Librarian",1,"Cataloging and Acq",{"$f":"IF(J726>0,(J726/(K726*52)),\"  \")","v":{"v":29.703846153846154,"d":"$29.70"}},{"$f":"IF(J726>0,\"Y\",\" N\")","v":"Y"},{"v":54061,"d":"$54,061"},35,"Yes"]
["10","EAST PROVIDENCE","EPL","EAST PROVIDENCE PUBLIC LIBRARY","Technical Services Librarian",1,"Digital Services",{"$f":"IF(J727>0,(J727/(K727*52)),\"  \")","v":{"v":24.88021978021978,"d":"$24.88"}},{"$f":"IF(J727>0,\"Y\",\" N\")","v":"Y"},{"v":45282,"d":"$45,282"},35,"Yes"]
["30","SMITHFIELD","ESM","EAST SMITHFIELD PUBLIC LIBRARY","Technical Services Librarian",1,"Technical Services Librarian",{"v":15.68,"d":"$15.68"},"N",{"v":13046,"d":"$13,046"},16,"No"]
["30","SMITHFIELD","GVL","GREENVILLE PUBLIC LIBRARY","Technical Services Librarian",1,"Technical Services Librarian",{"$f":"IF(J729>0,(J729/(K729*52)),\"  \")","v":{"v":21.00989010989011,"d":"$21.01"}},{"$f":"IF(J729>0,\"Y\",\" N\")","v":"Y"},{"v":38238,"d":"$38,238"},35,"Yes"]
["20","NEW SHOREHAM","NSH","ISLAND FREE LIBRARY","Technical Services Librarian",1,"Technical Services",{"v":20.9,"d":"$20.90"}," N",null,38,"No"]
["14","JAMESTOWN","JAM","JAMESTOWN PHILOMENIAN LIBRARY","Technical Services Librarian",1,"Cataloger ",{"v":11.21,"d":"$11.21"}," N",null,35,"No"]
["14","JAMESTOWN","JAM","JAMESTOWN PHILOMENIAN LIBRARY","Technical Services Librarian",1,"Tech Librarian",{"v":12.94,"d":"$12.94"}," N",null,16,"No"]
["3","BURRILLVILLE","BUR","JESSE M. SMITH MEMORIAL LIBRARY","Technical Services Librarian",1,"Head of Circulation",{"v":21.78,"d":"$21.78"}," N",null,35,"No"]
["11","FOSTER","FOS","LIBRARIES OF FOSTER","Technical Services Librarian",1,"Cataloger",{"v":9.97,"d":"$9.97"}," N",null,8,"No"]
["16","LINCOLN","LIN","LINCOLN PUBLIC LIBRARY","Technical Services Librarian",1,"Electronic Resources Librarian",{"v":26.98,"d":"$26.98"}," N",null,35,"Yes"]
["19","NARRAGANSETT","NAR","MAURY LOONTJENS MEMORIAL LIBRARY (NARRAGANSETT)","Technical Services Librarian",1,"Computer Tech",{"v":25,"d":"$25.00"}," N",null,1.5,"No"]
["24","NORTH SMITHFIELD","NSM","NORTH SMITHFIELD PUBLIC LIBRARY","Technical Services Librarian",1,"CATALOGER",{"v":18.17,"d":"$18.17"}," N",null,30,"No"]
["3","PASCOAG","PAS","PASCOAG FREE PUBLIC LIBRARY","Technical Services Librarian",1,"Library Technician",{"v":10.24,"d":"$10.24"},"N",{"v":6502,"d":"$6,502"},11,"No"]
["25","PAWTUCKET","PAW","PAWTUCKET PUBLIC LIBRARY","Technical Services Librarian",1,"Technical Services Librarian",{"v":28.05,"d":"$28.05"},{"$f":"IF(J739>0,\"Y\",\" N\")","v":"Y"},{"v":51060,"d":"$51,060"},35,"Yes"]
["27","PROVIDENCE","PCL","PROVIDENCE COMMUNITY LIBRARY","Technical Services Librarian",1,"Head of Collection Management Services",{"$f":"IF(J740>0,(J740/(K740*52)),\"  \")","v":{"v":25.877403846153847,"d":"$25.88"}},{"$f":"IF(J740>0,\"Y\",\" N\")","v":"Y"},{"v":53825,"d":"$53,825"},40,"Yes"]
["27","PROVIDENCE","PRO","PROVIDENCE PUBLIC LIBRARY","Technical Services Librarian",2,"Cataloger",{"$f":"IF(J741>0,(J741/(K741*52)),\"  \")","v":{"v":20.809615384615384,"d":"$20.81"}},{"$f":"IF(J741>0,\"Y\",\" N\")","v":"Y"},{"v":10821,"d":"$10,821"},10,"Yes"]
["34","WARWICK","WAR","WARWICK PUBLIC LIBRARY","Technical Services Librarian",2,"Circ. Aide",{"$f":"IF(J742>0,(J742/(K742*52)),\"  \")","v":{"v":19.26098901098901,"d":"$19.26"}},{"$f":"IF(J742>0,\"Y\",\" N\")","v":"Y"},{"v":35055,"d":"$35,055"},35,"No"]
["36","WEST WARWICK","WWA","WEST WARWICK PUBLIC LIBRARY","Technical Services Librarian",1,"Technology Coordinator",{"$f":"IF(J743>0,(J743/(K743*52)),\"  \")","v":{"v":20.83021978021978,"d":"$20.83"}},{"$f":"IF(J743>0,\"Y\",\" N\")","v":"Y"},{"v":37911,"d":"$37,911"},35,"Yes"]
[]
["TOTAL",{"$nulls":4},{"$f":"SUM(F2:F743)","v":998},{"$nulls":5},{"$f":"SUM(L2:L743)","v":0}]

{"sheet":"positionsSummaryLibraries","index":4,"n_rows":49,"n_cols":12,"rows_kept":49}
["File #","City","Lib Code","Location","Job Categories","Number of Staff","Hourly Rate (average)","Annual Salary (average)","Hours Worked per Week (average)","Total MLS","Total MLS Hours","Average MLS Hours"]
["1","BARRINGTON","BAR","BARRINGTON PUBLIC LIBRARY",16,34,{"v":11.75667,"d":"$11.76"},{"v":53107.69231,"d":"$53,108"},{"v":30.6875,"d":"30.7"},{"$f":"salaries!K2","v":6},{"$f":"salaries!L2","v":{"v":210,"d":"210.0"}},{"$f":"K2/J2","v":{"v":35,"d":"35.0"}}]
["2","BRISTOL","BRI","ROGERS FREE LIBRARY",9,23,{"v":11.865,"d":"$11.87"},{"v":41699.85714,"d":"$41,700"},{"v":31,"d":"31.0"},{"$f":"salaries!K19","v":4},{"$f":"salaries!L19","v":{"v":105,"d":"105.0"}},{"$f":"K3/J3","v":{"v":26.25,"d":"26.3"}}]
["3","BURRILLVILLE","BUR","JESSE M. SMITH MEMORIAL LIBRARY",18,19,{"v":17.65222,"d":"$17.65"},{"v":0,"d":"$0"},25.5,{"$f":"salaries!K29","v":4},{"$f":"salaries!L29","v":{"v":124,"d":"124.0"}},{"v":31,"d":"31.0"}]
["3","PASCOAG","PAS","PASCOAG FREE PUBLIC LIBRARY",8,8,{"v":11.71333,"d":"$11.71"},{"v":8558.5,"d":"$8,559"},{"v":12.375,"d":"12.4"},{"$f":"salaries!K48","v":1},{"$f":"salaries!L48","v":{"v":26,"d":"26.0"}},{"v":26,"d":"26.0"}]
["4","CENTRAL FALLS","CFA","CENTRAL FALLS FREE PUBLIC LIBRARY",3,3,{"v":9,"d":"$9.00"},{"v":50000,"d":"$50,000"},{"v":29,"d":"29.0"},{"$f":"salaries!K57","v":1},{"$f":"salaries!L57","v":{"v":40,"d":"40.0"}},{"v":40,"d":"40.0"}]
["5","CHARLESTOWN","CHA","CROSS' MILLS PUBLIC LIBRARY",13,13,{"v":13.97364,"d":"$13.97"},{"v":54064,"d":"$54,064"},{"v":16.38462,"d":"16.4"},{"$f":"salaries!K61","v":4},{"$f":"salaries!L61","v":111.5},{"v":27.875,"d":"27.9"}]
["6","COVENTRY","COV","COVENTRY PUBLIC LIBRARY",16,31,{"v":15.08429,"d":"$15.08"},{"v":44516.55556,"d":"$44,517"},{"v":24.28125,"d":"24.3"},{"$f":"salaries!K75","v":13},{"$f":"salaries!L75","v":{"v":228,"d":"228.0"}},{"v":17.53846153846154,"d":"17.5"}]
["7","CRANSTON","CRA","CRANSTON PUBLIC LIBRARY",64,93,{"v":11.05128,"d":"$11.05"},{"v":50766.92,"d":"$50,767"},{"v":21.09375,"d":"21.1"},{"$f":"salaries!K92","v":24},{"$f":"salaries!L92","v":590.5},{"v":24.604166666666668,"d":"24.6"}]
["8","CUMBERLAND","CUM","CUMBERLAND PUBLIC LIBRARY",29,35,{"v":16.375,"d":"$16.38"},{"v":56625,"d":"$56,625"},{"v":23.44828,"d":"23.4"},{"$f":"salaries!K157","v":8},{"$f":"salaries!L157","v":257.5},{"v":32.1875,"d":"32.2"}]
["9","EAST GREENWICH","EGR","EAST GREENWICH FREE LIBRARY",16,17,{"v":20.73267,"d":"$20.73"},{"v":0,"d":"$0"},22.8,{"$f":"salaries!K187","v":6},{"$f":"salaries!L187","v":{"v":153,"d":"153.0"}},25.5]
["10","EAST PROVIDENCE","EPL","EAST PROVIDENCE PUBLIC LIBRARY",16,24,"",{"v":52127.13333,"d":"$52,127"},{"v":33.75,"d":"33.8"},{"$f":"salaries!K203","v":11},{"$f":"salaries!L203","v":{"v":385,"d":"385.0"}},{"v":35,"d":"35.0"}]
[10.5,"EXETER","EXE","EXETER PUBLIC LIBRARY",6,7,{"v":12.474,"d":"$12.47"},{"v":59056,"d":"$59,056"},{"v":18.83333,"d":"18.8"},{"$f":"salaries!K220","v":1},{"$f":"salaries!L220","v":{"v":35,"d":"35.0"}},{"v":35,"d":"35.0"}]
["11","FOSTER","FOS","LIBRARIES OF FOSTER",10,10,{"v":9.942,"d":"$9.94"},{"v":4614.6,"d":"$4,615"},{"v":16,"d":"16.0"},{"$f":"salaries!K227","v":1},{"$f":"salaries!L227","v":{"v":40,"d":"40.0"}},{"v":40,"d":"40.0"}]
["12","GLOCESTER","GLO","GLOCESTER MANTON FREE PUBLIC LIBRARY",7,7,{"v":11.918,"d":"$11.92"},{"v":25831,"d":"$25,831"},{"v":19.85714,"d":"19.9"},{"$f":"salaries!K238","v":1},{"$f":"salaries!L238","v":{"v":40,"d":"40.0"}},{"v":40,"d":"40.0"}]
["12","GLOCESTER","HAR","HARMONY LIBRARY",9,10,{"v":14.24714,"d":"$14.25"},{"v":23617.5,"d":"$23,618"},{"v":17.55556,"d":"17.6"},{"$f":"salaries!K246","v":3},{"$f":"salaries!L246","v":{"v":74,"d":"74.0"}},{"v":24.666666666666668,"d":"24.7"}]
["13","HOPKINTON","ASH","ASHAWAY FREE LIBRARY",6,8,{"v":16.89333,"d":"$16.89"},"",{"v":9.33333,"d":"9.3"},{"$f":"salaries!K256","v":2},{"$f":"salaries!L256","v":{"v":38,"d":"38.0"}},{"v":19,"d":"19.0"}]
["13","HOPKINTON","LAN","LANGWORTHY PUBLIC LIBRARY",6,10,{"v":13.41667,"d":"$13.42"},"",13.5,{"$f":"salaries!K263","v":3},{"$f":"salaries!L263","v":{"v":36,"d":"36.0"}},{"v":12,"d":"12.0"}]
["14","JAMESTOWN","JAM","JAMESTOWN PHILOMENIAN LIBRARY",11,11,{"v":13.909,"d":"$13.91"},{"v":69921,"d":"$69,921"},{"v":25.45455,"d":"25.5"},{"$f":"salaries!K270","v":3},{"$f":"salaries!L270","v":{"v":120,"d":"120.0"}},{"v":40,"d":"40.0"}]
["15","JOHNSTON","JOH","MARIAN J. MOHR MEMORIAL LIBRARY",18,18,{"v":13.04067,"d":"$13.04"},{"v":47000,"d":"$47,000"},{"v":23.77778,"d":"23.8"},{"$f":"salaries!K282","v":7},{"$f":"salaries!L282","v":{"v":165,"d":"165.0"}},{"v":23.571428571428573,"d":"23.6"}]
["16","LINCOLN","LIN","LINCOLN PUBLIC LIBRARY",20,22,{"v":16.23278,"d":"$16.23"},{"v":56704,"d":"$56,704"},24.3,{"$f":"salaries!K301","v":8},{"$f":"salaries!L301","v":{"v":215,"d":"215.0"}},{"v":26.875,"d":"26.9"}]
["17","LITTLE COMPTON","LCO","BROWNELL LIBRARY, HOME OF LITTLE COMPTON",4,4,{"v":18.0325,"d":"$18.03"},"",{"v":29.875,"d":"29.9"},{"$f":"salaries!K322","v":1},{"$f":"salaries!L322","v":{"v":35,"d":"35.0"}},{"v":35,"d":"35.0"}]
["18","MIDDLETOWN","MID","MIDDLETOWN PUBLIC LIBRARY",8,14,{"v":21.11625,"d":"$21.12"},"",{"v":31.125,"d":"31.1"},{"$f":"salaries!K327","v":3},{"$f":"salaries!L327","v":{"v":105,"d":"105.0"}},{"v":35,"d":"35.0"}]
["19","NARRAGANSETT","NAR","MAURY LOONTJENS MEMORIAL LIBRARY (NARRAGANSETT)",17,18,{"v":12.25417,"d":"$12.25"},{"v":49031,"d":"$49,031"},{"v":23.61765,"d":"23.6"},{"$f":"salaries!K335","v":5},{"$f":"salaries!L335","v":{"v":161,"d":"161.0"}},32.2]
["20","NEW SHOREHAM","NSH","ISLAND FREE LIBRARY",5,5,{"v":15.93,"d":"$15.93"},{"v":59808,"d":"$59,808"},38.4,{"$f":"salaries!K353","v":1},{"$f":"salaries!L353","v":{"v":40,"d":"40.0"}},{"v":40,"d":"40.0"}]
["21","NEWPORT","NPT","NEWPORT PUBLIC LIBRARY",29,37,{"v":18.20455,"d":"$18.20"},{"v":47504.88889,"d":"$47,505"},{"v":33.05172,"d":"33.1"},{"$f":"salaries!K359","v":10},{"$f":"salaries!L359","v":{"v":301,"d":"301.0"}},30.1]
["22","NORTH KINGSTOWN","DPL","DAVISVILLE FREE LIBRARY",3,4,{"v":17.76,"d":"$17.76"},"",{"v":13.16667,"d":"13.2"},{"$f":"salaries!K389","v":2},{"$f":"salaries!L389","v":{"v":35,"d":"35.0"}},17.5]
["22","NORTH KINGSTOWN","NKI","NORTH KINGSTOWN FREE LIBRARY",18,21,{"v":16.9725,"d":"$16.97"},{"v":48918.42857,"d":"$48,918"},{"v":32.11111,"d":"32.1"},{"$f":"salaries!K393","v":8},{"$f":"salaries!L393","v":{"v":275,"d":"275.0"}},{"v":34.375,"d":"34.4"}]
["22","NORTH KINGSTOWN","WIL","WILLETT FREE LIBRARY",4,4,{"v":13.8375,"d":"$13.84"},{"v":10763,"d":"$10,763"},{"v":12.875,"d":"12.9"},{"$f":"salaries!K412","v":2},{"$f":"salaries!L412","v":36.5},{"v":18.25,"d":"18.3"}]
["23","NORTH PROVIDENCE","NPR","NORTH PROVIDENCE UNION FREE",26,29,{"v":10.8275,"d":"$10.83"},{"v":42671,"d":"$42,671"},{"v":23.15385,"d":"23.2"},{"$f":"salaries!K416","v":7},{"$f":"salaries!L416","v":{"v":209,"d":"209.0"}},{"v":29.857142857142858,"d":"29.9"}]
["24","NORTH SMITHFIELD","NSM","NORTH SMITHFIELD PUBLIC LIBRARY",9,9,{"v":12.46,"d":"$12.46"},{"v":47603.33333,"d":"$47,603"},{"v":24.77778,"d":"24.8"},{"$f":"salaries!K443","v":3},{"$f":"salaries!L443","v":{"v":110,"d":"110.0"}},{"v":36.666666666666664,"d":"36.7"}]
["25","PAWTUCKET","PAW","PAWTUCKET PUBLIC LIBRARY",22,31,{"v":21.793,"d":"$21.79"},{"v":37285.40909,"d":"$37,285"},{"v":30.95455,"d":"31.0"},{"$f":"salaries!K453","v":11},{"$f":"salaries!L453","v":{"v":264,"d":"264.0"}},{"v":24,"d":"24.0"}]
["26","PORTSMOUTH","POR","PORTSMOUTH FREE PUBLIC LIBRARY",14,21,{"v":15.37,"d":"$15.37"},{"v":46205,"d":"$46,205"},{"v":26.23077,"d":"26.2"},{"$f":"salaries!K476","v":3},{"$f":"salaries!L476","v":{"v":105,"d":"105.0"}},{"v":35,"d":"35.0"}]
["27","PROVIDENCE","PCL","PROVIDENCE COMMUNITY LIBRARY",25,68,"",{"v":52382.16,"d":"$52,382"},{"v":37.572,"d":"37.6"},{"$f":"salaries!K491","v":21},{"$f":"salaries!L491","v":{"v":257,"d":"257.0"}},{"v":12.238095238095237,"d":"12.2"}]
["27","PROVIDENCE","PRO","PROVIDENCE PUBLIC LIBRARY",53,61,{"v":0,"d":"$0.00"},{"v":42692.71698,"d":"$42,693"},{"v":28.41509,"d":"28.4"},{"$f":"salaries!K517","v":18},{"$f":"salaries!L517","v":517.5},{"v":28.75,"d":"28.8"}]
["28","RICHMOND","CLA","CLARK MEMORIAL LIBRARY",7,7,{"v":14.96833,"d":"$14.97"},{"v":33293,"d":"$33,293"},{"v":13.07143,"d":"13.1"},{"$f":"salaries!K571","v":1},{"$f":"salaries!L571","v":{"v":25,"d":"25.0"}},{"v":25,"d":"25.0"}]
["29","SCITUATE","HPE","HOPE LIBRARY",12,12,{"v":14.38583,"d":"$14.39"},"",{"v":16.375,"d":"16.4"},{"$f":"salaries!K579","v":3},{"$f":"salaries!L579","v":76.5},25.5]
["29","SCITUATE","SCI","NORTH SCITUATE PUBLIC LIBRARY",13,13,{"v":14.3,"d":"$14.30"},{"v":59000,"d":"$59,000"},{"v":16.19231,"d":"16.2"},{"$f":"salaries!K592","v":5},{"$f":"salaries!L592","v":{"v":84,"d":"84.0"}},16.8]
["30","SMITHFIELD","ESM","EAST SMITHFIELD PUBLIC LIBRARY",16,16,{"v":18.99813,"d":"$19.00"},{"v":25004.0625,"d":"$25,004"},{"v":23.625,"d":"23.6"},{"$f":"salaries!K606","v":3},{"$f":"salaries!L606","v":{"v":92,"d":"92.0"}},{"v":30.666666666666668,"d":"30.7"}]
["30","SMITHFIELD","GVL","GREENVILLE PUBLIC LIBRARY",20,20,"",{"v":25795.85,"d":"$25,796"},22.6,{"$f":"salaries!K623","v":10},{"$f":"salaries!L623","v":{"v":277,"d":"277.0"}},27.7]
["31","SOUTH KINGSTOWN","SKI","SOUTH KINGSTOWN PUBLIC LIBRARY",27,32,{"v":14.98263,"d":"$14.98"},{"v":50715.125,"d":"$50,715"},{"v":19.66667,"d":"19.7"},{"$f":"salaries!K644","v":11},{"$f":"salaries!L644","v":{"v":233,"d":"233.0"}},{"v":21.181818181818183,"d":"21.2"}]
["32","TIVERTON","TIV","ESSEX PUBLIC LIBRARY",15,17,{"v":18.35286,"d":"$18.35"},{"v":65793,"d":"$65,793"},25.2,{"$f":"salaries!K672","v":3},{"$f":"salaries!L672","v":{"v":105,"d":"105.0"}},{"v":35,"d":"35.0"}]
["33","WARREN","WRR","GEORGE HAIL FREE LIBRARY",6,8,{"v":14.8925,"d":"$14.89"},{"v":51853.5,"d":"$51,854"},{"v":25.83333,"d":"25.8"},{"$f":"salaries!K688","v":2},{"$f":"salaries!L688","v":{"v":68,"d":"68.0"}},{"v":34,"d":"34.0"}]
["34","WARWICK","WPO","PONTIAC FREE LIBRARY",3,5,{"v":10,"d":"$10.00"},{"v":20280,"d":"$20,280"},{"v":17.66667,"d":"17.7"},{"$f":"salaries!K695","v":1},{"$f":"salaries!L695","v":{"v":25,"d":"25.0"}},{"v":25,"d":"25.0"}]
["34","WARWICK","WAR","WARWICK PUBLIC LIBRARY",26,50,{"v":16.19077,"d":"$16.19"},{"v":52493.46154,"d":"$52,493"},{"v":25.42308,"d":"25.4"},{"$f":"salaries!K699","v":16},{"$f":"salaries!L699","v":{"v":263,"d":"263.0"}},{"v":16.4375,"d":"16.4"}]
["35","WEST GREENWICH","WGR","LOUTTIT MEMORIAL LIBRARY",6,6,{"v":16.38,"d":"$16.38"},"",19.2,{"$f":"salaries!K726","v":2},{"$f":"salaries!L726","v":{"v":46,"d":"46.0"}},{"v":23,"d":"23.0"}]
["36","WEST WARWICK","WWA","WEST WARWICK PUBLIC LIBRARY",18,19,{"v":13.574,"d":"$13.57"},{"v":38202.125,"d":"$38,202"},{"v":26.76471,"d":"26.8"},{"$f":"salaries!K733","v":6},{"$f":"salaries!L733","v":{"v":210,"d":"210.0"}},{"v":35,"d":"35.0"}]
["37","WESTERLY","WES","WESTERLY PUBLIC LIBRARY",18,42,{"v":0,"d":"$0.00"},{"v":60075.16667,"d":"$60,075"},{"v":40.23529,"d":"40.2"},{"$f":"salaries!K752","v":13},{"$f":"salaries!L752","v":{"v":321,"d":"321.0"}},{"v":24.692307692307693,"d":"24.7"}]
["38","WOONSOCKET","WNS","WOONSOCKET HARRIS PUBLIC LIBRARY",20,24,{"v":11.97571,"d":"$11.98"},{"v":37068.46154,"d":"$37,068"},{"v":26.85,"d":"26.9"},{"$f":"salaries!K771","v":7},{"$f":"salaries!L771","v":{"v":220,"d":"220.0"}},{"v":31.428571428571427,"d":"31.4"}]

{"sheet":"positionsSummaryState","index":5,"n_rows":21,"n_cols":10,"rows_kept":21}
["Title","Total in category","Average Salary","Total Positions","MLS","non-MLS","Average Salary","Median Salary","Minimum Salary","Maximum Salary"]
["Aide/Page",47,{"v":10.257516483516486,"d":"$10.26"},86,2,84,{"v":10.257516483516486,"d":"$10.26"},{"v":9,"d":"$9.00"},{"v":8.1,"d":"$8.10"},{"v":21.65,"d":"$21.65"}]
["Branch Librarian",11,{"v":25.91872793872794,"d":"$25.92"},18,16,2,{"v":25.91872793872794,"d":"$25.92"},{"v":27.897252747252747,"d":"$27.90"},{"v":15,"d":"$15.00"},{"v":36.034065934065936,"d":"$36.03"}]
["Buildings/Ground Staff",56,{"v":17.483113689386006,"d":"$17.48"},65,0,65,{"v":17.483113689386006,"d":"$17.48"},{"v":16.66,"d":"$16.66"},{"v":9,"d":"$9.00"},{"v":39.74945054945055,"d":"$39.75"}]
["Childrens and/or Young Adult Services Librarian",63,{"v":22.553688041668405,"d":"$22.55"},70,59,11,{"v":22.553688041668405,"d":"$22.55"},{"v":22.6,"d":"$22.60"},{"v":13.35,"d":"$13.35"},{"v":36.034065934065936,"d":"$36.03"}]
["Deputy/Associate/Assistant Director",25,{"v":29.171690842490843,"d":"$29.17"},25,20,5,{"v":29.171690842490843,"d":"$29.17"},{"v":27.934065934065934,"d":"$27.93"},{"v":14,"d":"$14.00"},{"v":46.9,"d":"$46.90"}]
["Director",47,{"v":34.70977341975339,"d":"$34.71"},47,45,2,{"v":34.70977341975339,"d":"$34.71"},{"v":33.27166895604395,"d":"$33.27"},{"v":15.06,"d":"$15.06"},{"v":62.77025641025641,"d":"$62.77"}]
["Library Associate",172,{"v":15.44249846853215,"d":"$15.44"},285,3,282,{"v":15.44249846853215,"d":"$15.44"},{"v":14.587472527472528,"d":"$14.59"},{"v":9,"d":"$9.00"},{"v":33.33025641025641,"d":"$33.33"}]
["Library Technician",115,{"v":12.878087314859057,"d":"$12.88"},164,4,160,{"v":12.878087314859057,"d":"$12.88"},{"v":11.55,"d":"$11.55"},{"v":9,"d":"$9.00"},{"v":30.270256410256412,"d":"$30.27"}]
["Manager/Department Head",95,{"v":27.477262169196397,"d":"$27.48"},103,55,48,{"v":27.477262169196397,"d":"$27.48"},{"v":28.296703296703296,"d":"$28.30"},{"v":9,"d":"$9.00"},{"v":47.69025641025641,"d":"$47.69"}]
["Office Staff",30,{"v":20.19495659600447,"d":"$20.19"},31,0,31,{"v":20.19495659600447,"d":"$20.19"},{"v":19.242430441898527,"d":"$19.24"},{"v":11.25,"d":"$11.25"},{"v":31.45025641025641,"d":"$31.45"}]
["Reference/Information Librarian",59,{"v":21.740403404661873,"d":"$21.74"},80,73,7,{"v":21.740403404661873,"d":"$21.74"},{"v":22.0510989010989,"d":"$22.05"},{"v":9,"d":"$9.00"},{"v":42.28988603988604,"d":"$42.29"}]
["Technical Services Librarian",22,{"v":19.564644730269734,"d":"$19.56"},24,10,14,{"v":19.564644730269734,"d":"$19.56"},{"v":20.659807692307695,"d":"$20.66"},{"v":9.97,"d":"$9.97"},{"v":29.703846153846154,"d":"$29.70"}]
[]
["Total  Positions",{"$f":"SUM(B2:B13)","v":742},null,{"$f":"SUM(D2:D13)","v":998},{"$f":"SUM(E2:E13)","v":287},711]
[]
["Definitions"]
["Total in Category:","Number of positions category at libraries across the state.  There may be differently titled positions in the category."]
["Total Positions","Number of individuals filling the positions."]
["MLS","Number of MLS Librarians holding positions."]
["non-MLS","Number of non-MLS staff holding positions."]